Workbook

Sheet H2_08011349
A1: Cell Number | B1: Number Sequence | C1: Omit reason | D1: Length (mm) | E1: Width (mm) | F1: Length/Width | G1: Length x Width | H1: Elevation | K1: Bite | L1: End Divot | M1: #Divots | N1: Canoe | S1: Smooth | T1: Filamented | X1: comment | Y1: Dividing | Z1: Waist | AB1: divot length 1 | AC1: divot width 1 | AD1: divot depth 1 | AE1: % surface divot | AF1: canoe length | AG1: canoe width | AH1: canoe depth | AI1: % surface canoe | AJ1: bite length | AK1: bite width | AL1: bite depth | AM1: %surface bite
A2: 1 | B2: 29 | D2: 2.09 | E2: 1.374 | F2: =D2/E2 -> 1.521106259 | G2: =D2*E2 -> 2.87166 | X2: stage 3--asymmetrical end indentations | AB2: 0.371 | AC2: 0.625 | AD2: 0.0194 | AE2: =(AB2*AC2)/(D2*E2) -> 0.08074597968
A3: 2 | B3: 43 | D3: 2.348 | E3: 1.409 | F3: =D3/E3 -> 1.666430092 | G3: =D3*E3 -> 3.308332 | X3: 1 large divot | AB3: 0.352 | AC3: 0.294 | AD3: 0.045 | AE3: =(AB3*AC3)/(D3*E3) -> 0.03128102016
A4: 3 | B4: 74 | C4: blurry
A5: 4 | B5: 27 | D5: 1.785 | E5: 1.263 | F5: =D5/E5 -> 1.413301663 | G5: =D5*E5 -> 2.254455 | H5: 0.248 | X5: moat-like
A6: 5 | B6: 68 | D6: 1.43 | E6: 1.303 | F6: 1.097467383 | G6: 1.86329 | X6: irregular
A7: 6 | B7: 68 | D7: 2.018 | E7: 1.469 | F7: 1.373723622 | G7: 2.964442 | H7: 0.23 | X7: moat-like
A8: 7 | B8: 58 | D8: 1.408 | E8: 1.221 | F8: 1.153153153 | G8: 1.719168 | S8: 1 | X8: stage 1
A9: 8 | B9: 98 | D9: 1.51 | E9: 1.404 | F9: 1.075498575 | G9: 2.12004 | S9: 1 | X9: 3 trench
A10: 9 | B10: 15 | C10: revised | D10: 2.285 | E10: 1.259 | F10: 1.814932486 | G10: 2.876815 | H10: 0.253 | X10: stage 3--one large end divot, not dividing
A11: 10 | B11: 4 | D11: 2.65 | E11: 1.31 | F11: 2.022900763 | G11: 3.4715 | S11: 1 | X11: stage 3 | AB11: 0.296 | AC11: 0.362 | AD11: 0.016 | AE11: =(AB11*AC11)/(D11*E11) -> 0.03086619617
A12: 11 | B12: 60 | D12: 2.191 | E12: 1.38 | F12: 1.587681159 | G12: 3.02358 | S12: 1 | X12: 3 trench
A13: 12 | B13: 61 | D13: 2.444 | E13: 1.17 | F13: 2.088888889 | G13: 2.85948 | AB13: 0.469 | AC13: 0.39 | AD13: 0.037 | AE13: =(AB13*AC13)/(D13*E13) -> 0.06396617567
A14: 13 | B14: 32 | D14: 1.624 | E14: 1.434 | F14: 1.132496513 | G14: 2.328816 | H14: 0.218 | S14: 1 | X14: possibly dividing | AB14: 0.415 | AC14: 0.457 | AD14: 0.063 | AE14: =(AB14*AC14)/(D14*E14) -> 0.08143837899
A15: 14 | B15: 96 | C15: washed out
A16: 15 | B16: 91 | D16: 1.464 | E16: 1.132 | F16: =D16/E16 -> 1.293286219 | G16: =D16*E16 -> 1.657248 | S16: 1
A17: 16 | B17: 5 | D17: 2.291 | E17: 1.648 | F17: 1.390169903 | G17: 3.775568 | H17: 0.301 | S17: 1 | X17: stage 3
A18: 17 | B18: 83 | C18: obstructed | D18: 1.586 | E18: 1.172 | F18: 1.353242321 | G18: 1.858792
A19: 18 | B19: 65 | D19: 2.929 | E19: 1.287 | F19: 2.275835276 | G19: 3.769623 | H19: 0.248 | S19: 1
A20: 19 | B20: 12 | D20: 1.544 | E20: 1.152 | F20: 1.340277778 | G20: 1.778688 | S20: 1
A21: 20 | B21: 26 | D21: 1.1542 | E21: 1.1192 | F21: 1.031272337 | G21: 1.29178064 | X21: stage 1
A22: 21 | B22: 53 | C22: revised | D22: 1.299 | E22: 1.299 | F22: 1 | G22: 1.687401 | H22: 0.264 | N22: 1 | X22: stage 1-central divot
A23: 22 | B23: 67 | D23: 1.626 | E23: 1.353 | F23: 1.201773836 | G23: 2.199978 | X23: 2 moats
A24: 23 | B24: 45 | C24: washed out
A25: 24 | B25: 88 | D25: 3.18 | E25: 1.432 | F25: =D25/E25 -> 2.220670391 | G25: =D25*E25 -> 4.55376 | H25: 0.224 | Y25: 1 | Z25: 1.184
A26: 25 | B26: 82 | D26: 2.891 | E26: 1.35 | F26: 2.141481481 | G26: 3.90285 | S26: 1
A27: 26 | B27: 76 | C27: revised | D27: 1.452 | E27: 1.159 | F27: 1.252804142 | G27: 1.682868 | N27: 1 | X27: stage 1 | AB27: 0.701 | AC27: 0.644 | AD27: 0.018 | AE27: =(AB27*AC27)/(D27*E27) -> 0.2682587107
A28: 27 | B28: 0 | D28: 1.546 | E28: 1.203 | F28: 1.285120532 | G28: 1.859838 | S28: 1
A29: 28 | B29: 99 | D29: 3.652 | E29: 1.482 | F29: 2.464237517 | G29: 5.412264 | H29: 0.257 | S29: 1 | X29: middle trench, but no pinch
A30: 29 | B30: 83 | C30: revised | D30: 1.095 | E30: 0.932 | F30: 1.174892704 | G30: 1.02054 | N30: 1 | X30: medial divot, but no obvious sister cell
A31: 30 | B31: 72 | D31: 1.387 | E31: 1.378 | F31: 1.006531205 | G31: 1.911286 | H31: 0.245
A32: 31 | B32: 26 | D32: 2.781 | E32: 1.394 | F32: 1.994978479 | G32: 3.876714 | S32: 1 | Y32: 1 | Z32: 1.036
A33: 32 | B33: 55 | D33: 1.578 | E33: 1.055 | F33: 1.495734597 | G33: 1.66479 | S33: 1
A34: 33 | B34: 9 | D34: 2.6 | E34: 1.309 | F34: 1.986249045 | G34: 3.4034 | H34: 0.232 | S34: 1
A35: 34 | B35: 59 | D35: 1.883 | E35: 1.471 | F35: 1.280081577 | G35: 2.769893 | S35: 1
A36: 35 | B36: 3 | D36: 2.56 | E36: 1.409 | F36: 1.816891412 | G36: 3.60704 | S36: 1
A37: 36 | B37: 30 | D37: 2.523 | E37: 1.332 | F37: 1.894144144 | G37: 3.360636 | X37: stage 3 | Y37: 1 | Z37: 1.012 | AB37: 0.353 | AC37: 0.333 | AD37: 0.02 | AE37: =(AB37*AC37)/(D37*E37) -> 0.03497820055
A38: 37 | B38: 30 | D38: 1.468 | E38: 1.468 | F38: 1 | G38: 2.155024
A39: 38 | B39: 8 | D39: 2.529 | E39: 1.412 | F39: 1.791076487 | G39: 3.570948 | H39: 0.317 | S39: 1
A40: 39 | B40: 1 | D40: 1.421 | E40: 1.379 | F40: 1.030456853 | G40: 1.959559 | H40: 0.268 | X40: blurry
A41: 40 | B41: 15 | C41: revised | D41: 2.454 | E41: 1.475 | F41: 1.663728814 | G41: 3.61965 | X41: stage 3, not dividing (center not depressed, width has lower elevation than waist), waist measured at minima | Z41: 1.273
A42: 41 | B42: 74 | D42: 1.843 | E42: 1.481 | F42: 1.24442944 | G42: 2.729483 | S42: 1
A43: 42 | B43: 40 | D43: 2.652 | E43: 1.232 | F43: 2.152597403 | G43: 3.267264 | H43: 0.221 | S43: 1 | X43: stage 3
A44: 43 | B44: 29 | D44: 2.38 | E44: 1.589 | F44: 1.497797357 | G44: 3.78182 | S44: 1
A45: 44 | B45: 28 | D45: 2.424 | E45: 1.313 | F45: 1.846153846 | G45: 3.182712 | X45: stage 3?
A46: 45 | B46: 88 | D46: 2.408 | E46: 1.461 | F46: 1.648186174 | G46: 3.518088 | H46: 0.251 | S46: 1
A47: 46 | B47: 52 | D47: 1.703 | E47: 1.471 | F47: 1.15771584 | G47: 2.505113 | X47: bite-like feature | AJ47: 0.412 | AK47: 0.471 | AL47: 0.114 | AM47: =(AJ47*AK47)/(D47*E47) -> 0.07746237395
A48: 47 | B48: 86 | D48: 1.527 | E48: 1.353 | F48: 1.128603104 | G48: 2.066031 | S48: 1
A49: 48 | B49: 87 | D49: 1.984 | E49: 1.463 | F49: 1.356117567 | G49: 2.902592 | H49: 0.294
A50: 49 | B50: 76 | C50: blurry
A51: 50 | B51: 80 | D51: 2.114 | E51: 1.409 | F51: =D51/E51 -> 1.500354862 | G51: =D51*E51 -> 2.978626 | X51: stage 3
A52: 51 | B52: 89 | D52: 2.356 | E52: 1.386 | F52: =D52/E52 -> 1.6998557 | G52: =D52*E52 -> 3.265416 | H52: 0.245
A53: 52 | B53: 36 | C53: blurry
A54: 53 | B54: 81 | D54: 1.771 | E54: 1.5 | F54: =D54/E54 -> 1.180666667 | G54: =D54*E54 -> 2.6565 | S54: 1 | X54: stage 3
A55: 54 | B55: 72 | D55: 1.602 | E55: 1.223 | F55: =D55/E55 -> 1.309893704 | G55: =D55*E55 -> 1.959246 | H55: 0.224 | X55: stage 3
A56: 55 | B56: 82 | D56: 1.652 | E56: 1.294 | F56: =D56/E56 -> 1.276661515 | G56: =D56*E56 -> 2.137688 | AB56: 0.354 | AC56: 0.414 | AD56: 0.052 | AE56: =(AB56*AC56)/(D56*E56) -> 0.06855818061
A57: 56 | B57: 83
A58: 57 | B58: 2
A59: 58 | B59: 93
A60: 59 | B60: 51
A61: 60 | B61: 90
D64: =COUNT(D1:D61) -> 50 | E64: =COUNT(E1:E61) -> 50 | F64: =COUNT(F1:F61) -> 50 | G64: =COUNT(G1:G61) -> 50 | H64: =COUNT(H1:H61) -> 18 | I64: Instances | K64: =COUNT(K2:K63) -> 0 | L64: =COUNT(L2:L63) -> 0 | M64: =COUNT(M2:M63) -> 0 | N64: =COUNT(N2:N63) -> 3 | S64: =COUNT(S2:S63) -> 24 | T64: =COUNT(T2:T63) -> 0 | X64: =COUNT(X2:X63) -> 0 | Y64: =COUNT(Y2:Y63) -> 3 | Z64: =COUNT(Z2:Z63) -> 4 | AB64: =COUNT(AB1:AB61) -> 8 | AC64: 8 | AD64: 8 | AE64: 8 | AF64: 0 | AG64: 0 | AH64: 0 | AI64: 0 | AJ64: 1 | AK64: 1 | AL64: 1 | AM64: 1
C65: Average | D65: =AVERAGE($D$2:$D$56) -> 2.021844 | E65: =AVERAGE(E2:E56) -> 1.339464 | F65: =SUM(F2:F53)/50 -> 1.431286578 | G65: =SUM(G2:G53)/50 -> 2.604177233 | H65: =AVERAGE(H2:H53) -> 0.2538823529 | I65: Fraction | K65: =K64/$D$64 -> 0 | L65: =L64/$D$64 -> 0 | M65: =M64/$D$64 -> 0 | N65: =N64/$D$64 -> 0.06 | S65: =S64/$D$64 -> 0.48 | T65: =T64/$D$64 -> 0 | X65: =X64/$D$64 -> 0 | Y65: =Y64/$D$64 -> 0.06 | Z65: =AVERAGE(Z2:Z63) -> 1.12625 | AB65: =AVERAGE(AB1:AB60) -> 0.413875 | AC65: =AVERAGE(AC1:AC60) -> 0.439875 | AD65: =AVERAGE(AD1:AD60) -> 0.0338 | AE65: =AVERAGE(AE2:AE60) -> 0.08251160532 | AF65: =AVERAGE(AF1:AF60) ->  | AJ65: 0.412 | AK65: 0.471 | AL65: 0.114 | AM65: 0.07746237395
C66: Standard Dev. | D66: =STDEV(D2:D56) -> 0.5732299041 | E66: =STDEV(E2:E61) -> 0.1382269854 | F66: =STDEV(F2:F61) -> 0.3901312324 | G66: =STDEV(G2:G61) -> 0.902544843 | H66: =STDEV(H2:H61) -> 0.02819586026 | I66: Number/Cell | M66: =SUM(M3:M63)/L$64 ->  | Z66: =STDEV(Z2:Z63) -> 0.1239203373 | AB66: =STDEV(AB1:AB55) -> 0.1343104081 | AC66: 0.1398747739 | AD66: 0.01781983913 | AE66: 0.08403731421

Sheet H2_08011422
A1: Cell Number | B1: Number Sequence | C1: Comment | D1: Length (µm) | E1: Width (µm) | F1: Length/Width | G1: Width x Length | H1: Elevation | K1: Bite | L1: End Divot | M1: #Divots | N1: Canoe | S1: Smooth | T1: Filamented | X1: Comment | Y1: Dividing? | Z1: Waist | AB1: Divot Length | AC1: Divot Width | AD1: Divot Depth | AE1: %Surface Coverage | AF1: Canoe Length | AG1: Canoe Width | AH1: Canoe Depth | AI1: %Surface Coverage | AJ1: Bite Length | AK1: Bite Width | AL1: Bite Depth | AM1: %Surface Coverage
A2: =1 -> 1 | B2: 85 | D2: 2.059 | E2: 0.595 | F2: =D2/E2 -> 3.460504202 | G2: =D2*E2 -> 1.225105
A3: =A2+1 -> 2 | B3: 41 | C3: mica
A4: =A3+1 -> 3 | B4: 13 | D4: 1.22 | E4: 1.071 | F4: =D4/E4 -> 1.139122316 | G4: =D4*E4 -> 1.30662 | H4: 0.372867 | S4: 1
A5: 4 | B5: 1 | C5: cannot measure
A6: 5 | B6: 98 | D6: 1.064 | E6: 0.896 | F6: 1.1875 | G6: 0.953344 | S6: 1
A7: 6 | B7: 96 | D7: 2.206 | E7: 1.235 | F7: 1.786234818 | G7: 2.72441 | H7: 0.449724 | S7: 1
A8: 7 | B8: 99 | C8: blurry
A9: 8 | B9: 83 | D9: 1.51 | E9: 0.927 | F9: 1.628910464 | G9: 1.39977 | S9: 1
A10: 9 | B10: 54 | D10: 1.943 | E10: 0.951 | F10: 2.043112513 | G10: 1.847793 | H10: 0.498524 | K10: 1 | AJ10: 0.473 | AK10: 0.602 | AL10: 0.062 | AM10: =(AJ10*AK10)/(E10*D10)*100 -> 15.41005946
A11: 10 | B11: 34 | D11: 1.233 | E11: 1.233 | F11: 1 | G11: 1.520289 | S11: 1
A12: 11 | B12: 89 | C12: cannot measure
A13: 12 | B13: 53 | D13: 1.472 | E13: 1.245 | F13: 1.182329317 | G13: 1.83264 | H13: 0.402798 | S13: 1
A14: 13 | B14: 65 | D14: 1.969 | E14: 1.176 | F14: 1.674319728 | G14: 2.315544 | S14: 1
A15: 14 | B15: 43 | D15: 1.613 | E15: 1.124 | F15: 1.435053381 | G15: 1.813012 | S15: 1
A16: 15 | B16: 38 | D16: 1.31 | E16: 1.006 | F16: 1.302186879 | G16: 1.31786 | H16: 0.557761 | S16: 1
A17: 16 | B17: 57 | D17: 1.306 | E17: 1.123 | F17: 1.162956367 | G17: 1.466638 | S17: 1
A18: 17 | B18: 99 | C18: overlapped | X18: other cell pushed at top
A19: 18 | B19: 63 | D19: 2.084 | E19: 1.46 | F19: 1.42739726 | G19: 3.04264 | H19: 0.575158 | S19: 1
A20: 19 | B20: 95 | D20: 1.264 | E20: 1.08 | F20: 1.17037037 | G20: 1.36512
A21: 20 | B21: 65 | D21: 1.244 | E21: 1.105 | F21: 1.125791855 | G21: 1.37462 | S21: 1
A22: 21 | B22: 26
A23: 22 | B23: 49 | D23: 1.29 | E23: 0.79 | F23: 1.632911392 | G23: 1.0191 | S23: 1 | X23: bumpy surface
A24: 23 | B24: 6 | D24: 2.061 | E24: 1.173 | F24: 1.757033248 | G24: 2.417553 | H24: 0.327859
A25: 24 | B25: 32 | D25: 1.608 | E25: 0.936 | F25: 1.717948718 | G25: 1.505088 | H25: 0.525778 | K25: 1 | AJ25: 0.741 | AK25: 0.529 | AL25: 0.324915 | AM25: =(AJ25*AK25)/(E25*D25)*100 -> 26.04425788
A26: 25 | B26: 86 | D26: 1.35 | E26: 1.016 | F26: 1.328740157 | G26: 1.3716 | S26: 1
A27: 26 | B27: 25 | D27: 1.703 | E27: 1.061 | F27: 1.605089538 | G27: 1.806883 | S27: 1
A28: 27 | B28: 3 | D28: 1.245 | E28: 1.202 | F28: 1.03577371 | G28: 1.49649 | H28: 0.482019 | S28: 1
A29: 28 | B29: 94 | D29: 2.408 | E29: 1.18 | F29: 2.040677966 | G29: 2.84144 | S29: 1
A30: 29 | B30: 35 | D30: 1.167 | E30: 1.05 | F30: 1.111428571 | G30: 1.22535 | S30: 1
A31: 30 | B31: 52 | D31: 2.019 | E31: 0.897 | F31: 2.25083612 | G31: 1.811043 | H31: 0.413414 | S31: 1
A32: 31 | B32: 70 | D32: 1.906 | E32: 1.014 | F32: 1.879684418 | G32: 1.932684 | S32: 1
A33: 32 | B33: 54 | D33: 1.883 | E33: 1.501 | F33: 1.254497002 | G33: 2.826383 | S33: 1 | Y33: 1 | Z33: 1.079
A34: 33 | B34: 84 | D34: 1.296 | E34: 0.843 | F34: 1.537366548 | G34: 1.092528 | H34: 0.36399
A35: 34 | B35: 73 | D35: 1.411 | E35: 1.116 | F35: 1.264336918 | G35: 1.574676 | S35: 1
A36: 35 | B36: 65 | D36: 1.328 | E36: 1.118 | F36: 1.18783542 | G36: 1.484704
A37: 36 | B37: 85
A38: 37 | B38: 16 | D38: 1.66 | E38: 0.997 | F38: 1.664994985 | G38: 1.65502 | S38: 1 | X38: smooth
A39: 38 | B39: 49 | D39: 1.378 | E39: 0.964 | F39: 1.429460581 | G39: 1.328392 | S39: 1
A40: 39 | B40: 34 | D40: 1.757 | E40: 1.224 | F40: 1.435457516 | G40: 2.150568 | H40: 0.387944 | S40: 1
A41: 40 | B41: 42 | D41: 2.12 | E41: 1.018 | F41: 2.082514735 | G41: 2.15816
A42: 41 | B42: 30 | C42: mica
A43: 42 | B43: 70 | D43: 1.535 | E43: 1.05 | F43: 1.461904762 | G43: 1.61175 | H43: 0.462838 | S43: 1
A44: 43 | B44: 65 | D44: 1.09 | E44: 0.947 | F44: 1.151003168 | G44: 1.03223 | S44: 1 | X44: dip?
A45: 44 | B45: 23 | D45: 1.859 | E45: 1.116 | F45: 1.665770609 | G45: 2.074644 | X45: Canoe-ish
A46: 45 | B46: 20 | C46: mica
A47: 46 | B47: 37 | D47: 1.948 | E47: 1.173 | F47: 1.660699062 | G47: 2.285004 | H47: 0.40146 | S47: 1
A48: 47 | B48: 90 | D48: 1.469 | E48: 0.931 | F48: 1.577873255 | G48: 1.367639 | S48: 1
A49: 48 | B49: 57 | D49: 1.363 | E49: 0.776 | F49: 1.756443299 | G49: 1.057688 | S49: 1
A50: 49 | B50: 51 | D50: 1.473 | E50: 0.956 | F50: 1.540794979 | G50: 1.408188 | H50: 0.611735 | S50: 1
A51: 50 | B51: 91 | D51: 2.384 | E51: 0.928 | F51: 2.568965517 | G51: 2.212352 | S51: 1
A52: 51 | B52: 55 | D52: 2.065 | E52: 1.392 | F52: 1.483477011 | G52: 2.87448 | S52: 1 | X52: squished
A53: 52 | B53: 99 | D53: 1.441 | E53: 0.894 | F53: 1.611856823 | G53: 1.288254 | H53: 0.539874 | S53: 1
A54: 53 | B54: 39 | D54: 1.428 | E54: 1 | F54: 1.253731343 | G54: 1.626492 | S54: 1
A55: 54 | B55: 74 | D55: 2.319 | E55: 1.373 | F55: 1.689002185 | G55: 3.183987 | X55: squished into shape?
A56: 55 | B56: 68 | D56: 1.986 | E56: 0.877 | F56: 2.264538198 | G56: 1.741722 | H56: 0.536484 | S56: 1 | X56: odd shape
A57: 56 | B57: 61 | D57: 1.768 | E57: 1.009 | F57: 1.752229931 | G57: 1.783912 | S57: 1
A58: 57 | B58: 34 | D58: 2.311 | E58: 1.614 | F58: 1.431846344 | G58: 3.729954 | N58: 1 | AF58: 0.888 | AG58: 0.426 | AH58: 0.036042 | AI58: =(AF58*AG58)/$G58*100 -> 10.14189451
A59: 58 | B59: 69 | D59: 1.326 | E59: 1.326 | F59: 1 | G59: 1.758276 | H59: 0.448073
A60: 59 | B60: 42 | D60: 1.832 | E60: 1.072 | F60: 1.708955224 | G60: 1.963904 | S60: 1
A61: 60 | B61: 93 | D61: 1.446 | E61: 0.657 | F61: 2.200913242 | G61: 0.950022 | S61: 1
A62: 61 | B62: 54 | D62: 1.688 | E62: 1.26 | F62: 1.33968254 | G62: 2.12688 | H62: 0.49103 | K62: 1 | AJ62: 0.447 | AK62: 0.384 | AL62: 0.07708 | AM62: =(AJ62*AK62)/(E62*D62)*100 -> 8.070412999
A63: 62 | B63: 69 | D63: 1.716 | E63: 1.18 | F63: 1.454237288 | G63: 2.02488 | S63: 1
A64: Count | D64: =COUNT(D2:D63) -> 53 | E64: =COUNT(E2:E63) -> 53 | F64: =COUNT(F2:F63) -> 53 | G64: =COUNT(G2:G63) -> 53 | H64: =COUNT(H2:H63) -> 19 | I64: Instances | K64: =COUNT(K2:K63) -> 3 | L64: 0 | M64: 0 | N64: 1 | S64: 40 | T64: 0 | X64: 0 | Y64: 1 | Z64: =COUNT(Z2:Z63) -> 1 | AB64: =COUNT(AB2:AB63) -> 0 | AC64: 0 | AD64: 0 | AE64: 0 | AF64: 1 | AG64: 1 | AH64: 1 | AI64: 1 | AJ64: 3 | AK64: 3 | AL64: 3 | AM64: 3
A65: AVG | D65: =AVERAGE(D2:D63) -> 1.651584906 | E65: =AVERAGE(E2:E63) -> 1.075415094 | F65: =AVERAGE(F2:F63) -> 1.575779279 | G65: =AVERAGE(G2:G63) -> 1.798213679 | H65: =AVERAGE(H2:H63) -> 0.4657542105 | I65: Fraction | K65: =K64/$D$64 -> 0.05660377358 | L65: 0 | M65: 0 | N65: 0.01886792453 | S65: 0.7547169811 | T65: 0 | X65: 0 | Y65: 0.01886792453 | Z65: =AVERAGE(Z2:Z63) -> 1.079 | AB65: =AVERAGE(AB2:AB63) ->  | AF65: 0.888 | AG65: 0.426 | AH65: 0.036042 | AI65: 10.14189451 | AJ65: 0.5536666667 | AK65: 0.505 | AL65: 0.154665 | AM65: 16.50824345
A66: STDEV | D66: =STDEV(D2:D63) -> 0.3662413262 | E66: =STDEV(E2:E63) -> 0.1973439436 | F66: =STDEV(F2:F63) -> 0.439600728 | G66: =STDEV(G2:G63) -> 0.6184919975 | H66: =STDEV(H2:H63) -> 0.0793339391 | I66: Number/Cell | M66: =SUM(M3:M63)/L$64 ->  | Z66: =STDEV(Z2:Z63) ->  | AB66: =STDEV(AB2:AB63) ->  | AJ66: 0.1627554403 | AK66: 0.1109639581 | AL66: 0.1476334937 | AM66: 9.037105785

Sheet H2_01161024
A1: Cell Number | B1: Number Sequence | C1: Comment | D1: Length (µm) | E1: Width (µm) | F1: Length/Width | G1: Width x Length | H1: Elevation | K1: Bite | L1: End Divot | M1: #Divots | N1: Canoe | S1: Smooth | T1: Filamented | X1: Comment | Y1: Dividing? | Z1: Waist | AB1: Divot Length | AC1: Divot Width | AD1: Divot Depth | AE1: %Surface Coverage | AF1: Canoe Length | AG1: Canoe Width | AH1: Canoe Depth | AI1: %Surface Coverage | AJ1: Bite Length | AK1: Bite Width | AL1: Bite Depth | AM1: %Surface Coverage
A2: =1 -> 1 | B2: 21 | C2: revised | D2: 1.498 | E2: 1.144 | F2: =D2/E2 -> 1.309440559 | G2: =D2*E2 -> 1.713712 | N2: 1 | X2: Large medial divot--Stage 1? | AE2: =(AB2*AC2)/($D$2*$E$2)*100 -> 0
A3: =A2+1 -> 2 | B3: 76 | D3: 4.768 | E3: 1.394 | F3: =D3/E3 -> 3.420373027 | G3: =D3*E3 -> 6.646592 | T3: 1 | X3: Discontinuous | Y3: 1 | Z3: 1.099 | AE3: =(AB3*AC3)/($D$2*$E$2)*100 -> 0
A4: =A3+1 -> 3 | B4: 96 | D4: 3.479 | E4: 1.333 | F4: 2.609902476 | G4: 4.637507 | H4: 0.277 | X4: Several indentations irregularly placed | Y4: 1 | Z4: 1.046 | AE4: 0
A5: 4 | B5: 85 | D5: 1.761 | E5: 1.387 | F5: 1.26964672 | G5: 2.442507 | S5: 1 | X5: Discontinuous, slanted, somewhat smooth | AE5: 0
A6: 5 | B6: 31 | D6: 2.479 | E6: 1.357 | F6: 1.826823876 | G6: 3.364003 | S6: 1 | X6: Very smooth | AE6: 0
A7: 6 | B7: 65 | D7: 2.124 | E7: 1.384 | F7: 1.534682081 | G7: 2.939616 | H7: 0.278 | L7: 1 | M7: 2 | X7: Stage 3? | AB7: 0.477 | AC7: 0.419 | AD7: 0.057 | AE7: 11.66257808
A8: 7 | B8: 24 | D8: 2.039 | E8: 1.208 | F8: 1.687913907 | G8: 2.463112 | S8: 1 | X8: Mostly smooth | AE8: 0
A9: 8 | B9: 48 | D9: 1.174 | E9: 1.115 | F9: 1.052914798 | G9: 1.30901 | AE9: 0
A10: 9 | B10: 30 | D10: 3.469 | E10: 1.254 | F10: 2.766347687 | G10: 4.350126 | H10: 0.26 | S10: 1 | X10: Discontinuous, mostly smooth | AE10: 0
A11: 10 | B11: 21 | D11: 2.048 | E11: 1.233 | F11: 1.660989457 | G11: 2.525184 | L11: 1 | M11: 2 | X11: Stage 3? | AE11: 0
A12: 11 | B12: 4 | C12: revised | D12: 1.173 | E12: 1.088 | F12: 1.078125 | G12: 1.276224 | N12: 1 | X12: Satge 1? | AE12: 0
A13: 12 | B13: 31 | D13: 2.128 | E13: 1.185 | F13: 1.795780591 | G13: 2.52168 | H13: 0.29 | X13: Trenches | AE13: 0
A14: 13 | B14: 89 | D14: 2.544 | E14: 1.172 | F14: 2.170648464 | G14: 2.981568 | L14: 1 | M14: 2 | X14: Stage 2? | AE14: 0
A15: 14 | B15: 15 | C15: revised | D15: 2.008 | E15: 1.181 | F15: 1.700254022 | G15: 2.371448 | L15: 1 | M15: 2 | X15: Not dividing, no central depression, waist's elevation is higher than width's | AE15: 0
A16: 15 | B16: 22 | D16: 1.351 | E16: 1.292 | F16: 1.045665635 | G16: 1.745492 | H16: 0.309 | X16: Discontinuous | AE16: 0
A17: 16 | B17: 43 | C17: revised | D17: 1.295 | E17: 1.235 | F17: 1.048582996 | G17: 1.599325 | N17: 1 | X17: Deep canoe (0.091 um) | AE17: 0
A18: 17 | B18: 36 | D18: 2.414 | E18: 1.343 | F18: 1.797468354 | G18: 3.242002 | L18: 1 | M18: 2 | AE18: 0
A19: 18 | B19: 80 | C19: revised | D19: 1.413 | E19: 0.999 | F19: 1.414414414 | G19: 1.411587 | H19: 0.329 | N19: 1 | AE19: 0
A20: 19 | B20: 44 | D20: 2.291 | E20: 1.464 | F20: 1.56489071 | G20: 3.354024 | L20: 1 | M20: 2 | X20: Stage 2? | AE20: 0
A21: 20 | B21: 94 | D21: 1.37 | E21: 1.066 | F21: 1.285178236 | G21: 1.46042 | X21: Discontinuous and jagged | Y21: 1 | Z21: 0.878 | AE21: 0
A22: 21 | B22: 87 | D22: 1.982 | E22: 1.553 | F22: 1.276239536 | G22: 3.078046 | H22: 0.3143 | X22: Stage 2? | AE22: 0
A23: 22 | B23: 70 | D23: 2.314 | E23: 1.281 | F23: 1.806401249 | G23: 2.964234 | X23: Disctoninuous, raised edges | AE23: 0
A24: 23 | B24: 42 | D24: 1.778 | E24: 1.185 | F24: 1.500421941 | G24: 2.10693 | S24: 1 | X24: Smooth, slanted | AE24: 0
A25: 24 | B25: 13 | D25: 3.517 | E25: 1.544 | F25: 2.277849741 | G25: 5.430248 | H25: 0.235 | X25: Multiple indentations | AB25: 0.475 | AC25: 0.413 | AD25: 0.042 | AE25: 11.44737272
A26: 25 | B26: 2 | D26: 3.449 | E26: 1.249 | F26: 2.761409127 | G26: 4.307801 | X26: Discontinuous | Y26: 1 | Z26: 1 | AE26: 0
A27: =A26+1 -> 26 | B27: 66 | D27: 2.318 | E27: 1.413 | F27: 1.640481246 | G27: 3.275334 | X27: Discontinuous | AE27: 0
A28: 27 | B28: 22 | D28: 2.125 | E28: 1.545 | F28: 1.375404531 | G28: 3.283125 | H28: 0.247 | S28: 1 | X28: Mostly smooth | AE28: 0
A29: 28 | B29: 84 | D29: 2.363 | E29: 1.177 | F29: 2.007646559 | G29: 2.781251 | L29: 1 | M29: 2 | AE29: 0
A30: 29 | B30: 81 | D30: 2.311 | E30: 1.121 | F30: 2.061552186 | G30: 2.590631 | L30: 1 | M30: 2 | AE30: 0
A31: 30 | B31: 46 | D31: 1.613 | E31: 1.245 | F31: 1.295582329 | G31: 2.008185 | H31: 0.318 | S31: 1 | X31: Smooth | AE31: 0
A32: 31 | B32: 41 | D32: 1.87 | E32: 1.013 | F32: 1.846001974 | G32: 1.89431 | X32: Discontinuous with a very large indent in the middle of the cell, potentially early donut | AE32: 0
A33: 32 | B33: 26 | D33: 1.719 | E33: 1.305 | F33: 1.317241379 | G33: 2.243295 | X33: Discontinuous | AE33: 0
A34: 33 | B34: 26 | D34: 2.819 | E34: 1.367 | F34: 2.062179956 | G34: 3.853573 | H34: 0.292 | X34: Discontinuous | Y34: 1 | Z34: 1.127 | AE34: 0
A35: 34 | B35: 54 | D35: 2.262 | E35: 1.315 | F35: 1.720152091 | G35: 2.97453 | X35: Stage 2? | AE35: 0
A36: 35 | B36: 12 | D36: 2.944 | E36: 1.444 | F36: 2.038781163 | G36: 4.251136 | X36: One very deep divot | AE36: 0
A37: 36 | B37: 3 | D37: 2.13 | E37: 1.418 | F37: 1.502115656 | G37: 3.02034 | H37: 0.285 | L37: 1 | M37: 2 | X37: Stage 2? | AB37: 0.593 | AC37: 0.472 | AD37: 0.047 | AE37: 16.33273269
A38: 37 | B38: 25 | D38: 1.491 | E38: 1.027 | F38: 1.451801363 | G38: 1.531257 | AE38: 0
A39: 38 | B39: 83 | D39: 1.321 | E39: 0.99 | F39: 1.334343434 | G39: 1.30779 | S39: 1 | X39: Smooth, slanted | AE39: 0
A40: 39 | B40: 71 | D40: 1.51 | E40: 1.375 | F40: 1.098181818 | G40: 2.07625 | H40: 0.299 | X40: Discontinuous | AE40: 0
A41: 40 | B41: 76 | D41: 2.394 | E41: 1.413 | F41: 1.694267516 | G41: 3.382722 | X41: Discontinuous, raised edges | AE41: 0
A42: 41 | B42: 75 | D42: 1.292 | E42: 0.94 | F42: 1.374468085 | G42: 1.21448 | S42: 1 | X42: Mostly smooth, slanted | AE42: 0
A43: 42 | B43: 10 | D43: 2.408 | E43: 1.233 | F43: 1.95296026 | G43: 2.969064 | H43: 0.252 | X43: Discontinuous, raised edges | AE43: 0
A44: 43 | B44: 15 | D44: 1.346 | E44: 1.127 | F44: 1.194321207 | G44: 1.516942 | X44: Small indent in the middle of the cell, early dounut perhaps | AE44: 0
A45: 44 | B45: 39 | D45: 2.147 | E45: 1.329 | F45: 1.615500376 | G45: 2.853363 | X45: Discontinuous, one end divot | AE45: 0
A46: 45 | B46: 7 | D46: 1.889 | E46: 1.477 | F46: 1.278943805 | G46: 2.790053 | H46: 0.3 | X46: Raised section in the middle, like a bridge | AE46: 0
A47: 46 | B47: 95 | D47: 2.782 | E47: 1.281 | F47: 2.171740827 | G47: 3.563742 | S47: 1 | X47: Discontinuous, slanted | Y47: 1 | Z47: 1.207 | AE47: 0
A48: 47 | B48: 20 | D48: 2.276 | E48: 1.328 | F48: 1.713855422 | G48: 3.022528 | X48: Discontinuous, raised edges, one end divot | AE48: 0
A49: =A48+1 -> 48 | B49: 44 | D49: 2.063 | E49: 1.065 | F49: 1.937089202 | G49: 2.197095 | H49: 0.315 | X49: Discontinuous, almost end divots but too shallow along one axis | AE49: 0
A50: 49 | B50: 71 | D50: 1.461 | E50: 1.265 | F50: 1.154940711 | G50: 1.848165 | X50: Discontinuous | AE50: 0
A51: 50 | B51: 30 | D51: 2.267 | E51: 1.223 | F51: 1.853638594 | G51: 2.772541 | L51: 1 | M51: 2 | X51: Stage 2?
A52: 51 | B52: 30
A53: 52 | B53: 63
A54: 53 | B54: 79
A55: 54 | B55: 8
A56: 55 | B56: 19
A57: 56 | B57: 94
A58: 57 | B58: 27
A59: 58 | B59: 59
A60: 59 | B60: 9
A61: 60 | B61: 7
A62: 61 | B62: 30
A63: 62 | B63: 38
A64: Count | D64: =COUNT(D2:D63) -> 50 | E64: =COUNT(E2:E63) -> 50 | F64: =COUNT(F2:F63) -> 50 | G64: =COUNT(G2:G63) -> 50 | H64: =COUNT(H2:H63) -> 16 | I64: Instances | K64: =COUNT(K2:K63) -> 0 | L64: 10 | M64: 10 | N64: 4 | S64: 10 | T64: 1 | X64: 0 | Y64: 6 | Z64: =COUNT(Z2:Z63) -> 6 | AB64: =COUNT(AB2:AB63) -> 3 | AC64: 3 | AD64: 3 | AE64: 49 | AF64: 0 | AG64: 0 | AH64: 0 | AI64: 0 | AJ64: 0 | AK64: 0 | AL64: 0 | AM64: 0
A65: AVG | D65: =AVERAGE(D2:D63) -> 2.13974 | E65: =AVERAGE(E2:E63) -> 1.26164 | F65: =AVERAGE(F2:F63) -> 1.687111126 | G65: =AVERAGE(G2:G63) -> 2.749282 | H65: =AVERAGE(H2:H63) -> 0.28751875 | I65: Fraction | K65: =K64/$D$64 -> 0 | L65: 0.2 | M65: 0.2 | N65: 0.08 | S65: 0.2 | T65: 0.02 | X65: 0 | Y65: 0.12 | Z65: =AVERAGE(Z2:Z63) -> 1.0595 | AB65: =AVERAGE(AB2:AB63) -> 0.515 | AC65: 0.4346666667 | AD65: 0.04866666667 | AE65: 0.8049527242
A66: STDEV | D66: =STDEV(D2:D63) -> 0.7181141064 | E66: =STDEV(E2:E63) -> 0.1517371196 | F66: =STDEV(F2:F63) -> 0.4923679547 | G66: =STDEV(G2:G63) -> 1.106795544 | H66: =STDEV(H2:H63) -> 0.02771760497 | I66: Number/Cell | M66: =SUM(M3:M63)/L$64 -> 2 | Z66: =STDEV(Z2:Z63) -> 0.113611179 | AB66: =STDEV(AB2:AB63) -> 0.06755738302 | AC66: 0.03247049943 | AD66: 0.007637626158 | AE66: 3.234149589

Sheet H2_01161120
A1: Cell Number | B1: Number Sequence | C1: Comment | D1: Length (µm) | E1: Width (µm) | F1: Length/Width | G1: Width x Length | H1: Elevation | K1: Bite | L1: End Divot | M1: #Divots | N1: Canoe | S1: Smooth | T1: Filamented | X1: Comment | Y1: Dividing? | Z1: Waist | AB1: Divot Length | AC1: Divot Width | AD1: Divot Depth | AE1: %Surface Coverage | AF1: Canoe Length | AG1: Canoe Width | AH1: Canoe Depth | AI1: %Surface Coverage | AJ1: Bite Length | AK1: Bite Width | AL1: Bite Depth | AM1: %Surface Coverage
A2: =1 -> 1 | B2: 89 | D2: 2.025 | E2: 1.319 | F2: =D2/E2 -> 1.53525398 | G2: =D2*E2 -> 2.670975 | N2: 1
A3: =A2+1 -> 2 | B3: 26 | C3: revised | D3: 1.233 | E3: 1.233 | F3: =D3/E3 -> 1 | G3: =D3*E3 -> 1.520289 | N3: 1 | X3: Deep canoe (.124 um)
A4: =A3+1 -> 3 | B4: 86 | C4: revised | D4: 1.541 | E4: 1.53 | F4: 1.007189542 | G4: 2.35773 | H4: 0.312 | N4: 1 | X4: Deep canoe (.099 um)
A5: 4 | B5: 84 | D5: 1.105 | E5: 0.676 | F5: 1.634615385 | G5: 0.74698
A6: 5 | B6: 18 | C6: revised | D6: 1.899 | E6: 1.323 | F6: 1.43537415 | G6: 2.512377 | N6: 1 | X6: Deep canoe (.191 um)
A7: 6 | B7: 26 | C7: revised | D7: 1.35 | E7: 1.115 | F7: 1.210762332 | G7: 1.50525 | H7: 0.349 | K7: 1
A8: 7 | B8: 24 | C8: revised | D8: 1.079 | E8: 0.913 | F8: 1.181818182 | G8: 0.985127 | K8: 1
A9: 8 | B9: 99 | D9: 1.068 | E9: 1.063 | F9: 1.004703669 | G9: 1.135284 | X9: Discontinuous
A10: 9 | B10: 68 | D10: 1.253 | E10: 1.253 | F10: 1 | G10: 1.570009 | H10: 0.399 | X10: Slanted, somewhat smooth, recently divided
A11: 10 | B11: 24 | C11: revised | D11: 2.173 | E11: 1.295 | F11: 1.677992278 | G11: 2.814035 | X11: Discontinuous, a valley in the middle across the x-axis | Y11: 1 | Z11: 1.078
A12: 11 | B12: 45 | D12: 1.247 | E12: 1.059 | F12: 1.177525968 | G12: 1.320573 | X12: Discontinuous, an indent in the center
A13: 12 | B13: 49 | C13: revised | D13: 2.271 | E13: 1.208 | F13: 1.879966887 | G13: 2.743368 | H13: 0.398 | K13: 1 | X13: Valley
A14: 13 | B14: 17 | D14: 1.315 | E14: 0.988 | F14: 1.33097166 | G14: 1.29922 | K14: 1
A15: 14 | B15: 7 | D15: 1.598 | E15: 1.041 | F15: 1.53506244 | G15: 1.663518 | K15: 1
A16: 15 | B16: 21 | D16: 1.82 | E16: 1.292 | F16: 1.408668731 | G16: 2.35144 | H16: 0.369 | N16: 1 | AF16: 1.234 | AG16: 0.763 | AH16: 0.1 | AI16: =(AF16*AG16)/($D16*$E16)*100 -> 40.04108121
A17: 16 | B17: 31 | D17: 1.328 | E17: 1.328 | F17: 1 | G17: 1.763584 | N17: 1
A18: 17 | B18: 29 | D18: 1.846 | E18: 1.216 | F18: 1.518092105 | G18: 2.244736 | K18: 1
A19: 18 | B19: 23 | D19: 2.003 | E19: 1.352 | F19: 1.481508876 | G19: 2.708056 | H19: 0.382 | K19: 1 | X19: (Resembles #31) Large, deep indent near the middle of the cell with one side of raised edges (sort of bite-like)
A20: 19 | B20: 32 | D20: 2.596 | E20: 1.236 | F20: 2.100323625 | G20: 3.208656 | K20: 1
A21: 20 | B21: 38 | D21: 1.389 | E21: 1.257 | F21: 1.105011933 | G21: 1.745973 | K21: 1
A22: 21 | B22: 68 | D22: 1.371 | E22: 1.174 | F22: 1.167802385 | G22: 1.609554 | H22: 0.377 | N22: 1
A23: 22 | B23: 85 | D23: 1.818 | E23: 1.105 | F23: 1.645248869 | G23: 2.00889 | K23: 1
A24: 23 | B24: 77 | D24: 1.319 | E24: 1.278 | F24: 1.032081377 | G24: 1.685682 | N24: 1
A25: 24 | B25: 55 | D25: 1.922 | E25: 0.531 | F25: 3.619585687 | G25: 1.020582 | H25: 0.478 | K25: 1 | X25: A smooth, steep peak
A26: 25 | B26: 18 | D26: 1.123 | E26: 0.764 | F26: 1.469895288 | G26: 0.857972 | S26: 1 | X26: Almost dounut-like, but due to surrounding cells it is not round or even oval
A27: 26 | B27: 82 | C27: revised | D27: 1.317 | E27: 1.132 | F27: 1.163427562 | G27: 1.490844 | K27: 1 | X27: A consistant valley in the middle running along the x-axis, too narrow to be a canoe
A28: 27 | B28: 85 | D28: 1.758 | E28: 1.101 | F28: 1.596730245 | G28: 1.935558 | H28: 0.291 | X28: Discontinuous
A29: 28 | B29: 89 | D29: 2.899 | E29: 1.285 | F29: 2.256031128 | G29: 3.725215 | S29: 1 | X29: Mostly smooth
A30: 29 | B30: 38 | D30: 1.439 | E30: 1.192 | F30: 1.207214765 | G30: 1.715288
A31: 30 | B31: 37 | C31: revised | D31: 1.124 | E31: 1.114 | F31: 1.008976661 | G31: 1.252136 | H31: 0.334 | N31: 1 | X31: Satge 1? Deep canoe (.132 um)
A32: 31 | B32: 29 | D32: 1.499 | E32: 1.265 | F32: 1.184980237 | G32: 1.896235 | X32: Large, deep indent near the middle of the cell with one side of raised edges (sort of bite-like)
A33: 32 | B33: 21 | C33: revised | D33: 1.336 | E33: 1.227 | F33: 1.088834556 | G33: 1.639272 | N33: 1 | X33: Deep canoe (.200 um)
A34: 33 | B34: 95 | D34: 3.274 | E34: 0.998 | F34: 3.280561122 | G34: 3.267452 | H34: 0.246 | X34: Mostly smooth, one large bump
A35: 34 | B35: 18 | D35: 1.733 | E35: 0.898 | F35: 1.929844098 | G35: 1.556234 | K35: 1
A36: 35 | B36: 41 | D36: 1.31 | E36: 0.954 | F36: 1.373165618 | G36: 1.24974 | N36: 1
A37: 36 | B37: 14 | D37: 1.551 | E37: 1.138 | F37: 1.362917399 | G37: 1.765038 | H37: 0.425 | K37: 1
A38: 37 | B38: 15 | D38: 1.1 | E38: 1.079 | F38: 1.019462465 | G38: 1.1869 | N38: 1 | X38: Slanted
A39: 38 | B39: 6 | D39: 1.48 | E39: 1.048 | F39: 1.41221374 | G39: 1.55104 | X39: Discontinuous, raised edges
A40: 39 | B40: 58 | C40: revised | D40: 1.388 | E40: 1.324 | F40: 1.048338369 | G40: 1.837712 | H40: 0.386 | N40: 1 | X40: Deep canoe (.144 um)
A41: 40 | B41: 38 | C41: revised | D41: 1.175 | E41: 1.118 | F41: 1.0509839 | G41: 1.31365 | N41: 1 | X41: Deep canoe (.163 um)
A42: 41 | B42: 4 | D42: 1.228 | E42: 0.935 | F42: 1.313368984 | G42: 1.14818 | X42: Discontinuous, slanted
A43: 42 | B43: 68 | C43: revised | D43: 1.644 | E43: 1.205 | F43: 1.364315353 | G43: 1.98102 | H43: 0.304 | N43: 1 | X43: Deep canoe (.193)
A44: 43 | B44: 35 | D44: 1.247 | E44: 0.899 | F44: 1.387096774 | G44: 1.121053 | N44: 1
A45: 44 | B45: 45 | D45: 1.905 | E45: 1.285 | F45: 1.482490272 | G45: 2.447925
A46: 45 | B46: 56 | D46: 1.328 | E46: 1.233 | F46: 1.077047851 | G46: 1.637424 | H46: 0.36 | K46: 1
A47: 46 | B47: 62 | D47: 1.895 | E47: 1.095 | F47: 1.730593607 | G47: 2.075025 | X47: Discontinuous, a peak/raised section in the middle of the cell
A48: 47 | B48: 17 | C48: revised | D48: 1.588 | E48: 1.297 | F48: 1.224363917 | G48: 2.059636 | N48: 1
A49: 48 | B49: 11 | D49: 1.47 | E49: 1.292 | F49: 1.137770898 | G49: 1.89924 | H49: 0.361 | X49: Discontinuous, a valley running along the x-axis, raiased edges on either side
A50: 49 | B50: 4 | D50: 1.282 | E50: 1.043 | F50: 1.229146692 | G50: 1.337126 | N50: 1
A51: 50 | B51: 52 | C51: revised | D51: 1.492 | E51: 1.119 | F51: 1.333333333 | G51: 1.669548 | N51: 1 | X51: Deep canoe (.153 um)
A52: 51 | B52: 2
A53: 52 | B53: 13
A54: 53 | B54: 81
A55: 54 | B55: 11
A56: 55 | B56: 12
A57: 56 | B57: 35
A58: 57 | B58: 49
A59: 58 | B59: 99
A60: 59 | B60: 3
A61: 60 | B61: 13
A62: 61 | B62: 19
A63: 62 | B63: 68
A64: Count | D64: =COUNT(D2:D63) -> 50 | E64: =COUNT(E2:E63) -> 50 | F64: =COUNT(F2:F63) -> 50 | G64: =COUNT(G2:G63) -> 50 | H64: =COUNT(H2:H63) -> 16 | I64: Instances | K64: =COUNT(K2:K63) -> 15 | L64: 0 | M64: 0 | N64: 19 | S64: 2 | T64: 0 | X64: 0 | Y64: 1 | Z64: =COUNT(Z2:Z63) -> 1 | AB64: =COUNT(AB2:AB63) -> 0 | AC64: 0 | AD64: 0 | AE64: 0 | AF64: 1 | AG64: 1 | AH64: 1 | AI64: 1 | AJ64: 0 | AK64: 0 | AL64: 0 | AM64: 0
A65: AVG | D65: =AVERAGE(D2:D63) -> 1.58308 | E65: =AVERAGE(E2:E63) -> 1.1365 | F65: =AVERAGE(F2:F63) -> 1.428453298 | G65: =AVERAGE(G2:G63) -> 1.81616702 | H65: =AVERAGE(H2:H63) -> 0.3606875 | I65: Fraction | K65: =K64/$D$64 -> 0.3 | L65: 0 | M65: 0 | N65: 0.38 | S65: 0.04 | T65: 0 | X65: 0 | Y65: 0.02 | Z65: =AVERAGE(Z2:Z63) -> 1.078 | AB65: =AVERAGE(AB2:AB63) ->  | AF65: 1.234 | AG65: 0.763 | AH65: 0.1 | AI65: 40.04108121
A66: STDEV | D66: =STDEV(D2:D63) -> 0.4612040958 | E66: =STDEV(E2:E63) -> 0.1834117983 | F66: =STDEV(F2:F63) -> 0.5111049659 | G66: =STDEV(G2:G63) -> 0.6455763381 | H66: =STDEV(H2:H63) -> 0.05575627767 | I66: Number/Cell | M66: =SUM(M3:M63)/L$64 ->  | Z66: =STDEV(Z2:Z63) ->  | AB66: =STDEV(AB2:AB63) -> 

Sheet H3_07100951
A1: Cell Number | B1: Number Sequence | C1: Omit reason | D1: Length (mm) | E1: Width (mm) | F1: Length/Width | G1: Length x Width | H1: Elevation | K1: Bite | L1: End Divot | M1: #Divots | N1: Canoe | S1: Smooth | T1: Filamented | X1: comment | Y1: Dividing | Z1: Waist | AB1: divot length | AC1: divot width | AD1: divot depth | AE1: % surface divot | AF1: canoe length | AG1: canoe width | AH1: canoe depth | AI1: % surface canoe | AJ1: bite length | AK1: bite width | AL1: bite depth | AM1: %surface bite
A2: 1 | B2: 13 | D2: 2.336 | E2: 1.368 | F2: =D2/E2 -> 1.707602339 | G2: =D2*E2 -> 3.195648 | Y2: 1 | Z2: 1.122
A3: =1+A2 -> 2 | B3: 25 | D3: 1.704 | E3: 1.048 | F3: =D3/E3 -> 1.625954198 | G3: 1.785792
A4: =1+A3 -> 3 | B4: 44 | D4: 4.079 | E4: 1.184 | F4: 3.445101351 | G4: 4.829536 | H4: 0.353 | T4: 1 | Y4: 1 | Z4: 0.972
A5: 4 | B5: 45 | C5: same as 3
A6: 5 | B6: 21 | D6: 2.894 | E6: 0.981 | F6: 2.950050968 | G6: 2.839014
A7: 6 | B7: 99 | D7: 2.62 | E7: 1.053 | F7: 2.488129155 | G7: 2.75886 | H7: 0.354
A8: 7 | B8: 87 | D8: 1.949 | E8: 1.294 | F8: 1.50618238 | G8: 2.522006
A9: 8 | B9: 28 | D9: 2.253 | E9: 0.958 | F9: 2.35177453 | G9: 2.158374
A10: 9 | B10: 76 | D10: 1.633 | E10: 0.853 | F10: 1.914419695 | G10: 1.392949 | H10: 0.358 | X10: 3-trench
A11: 10 | B11: 2 | D11: 2.429 | E11: 1.468 | F11: 1.654632153 | G11: 3.565772 | AB11: 0.332 | AC11: 0.21 | AD11: 0.032 | AE11: =(AC11*AB11)/(D11*E11) -> 0.01955256814
A12: 11 | B12: 7 | D12: 2.802 | E12: 1.002 | F12: 2.796407186 | G12: 2.807604 | Y12: 1 | Z12: 0.767
A13: 12 | B13: 69 | D13: 2.894 | E13: 1.157 | F13: 2.501296456 | G13: 3.348358 | H13: 0.337 | K13: 1 | AJ13: 0.533 | AK13: 0.421 | AL13: 0.132 | AM13: =(AJ13*AK13)/(D13*E13) -> 0.06701583284
A14: 13 | B14: 94 | D14: 1.771 | E14: 1.181 | F14: 1.49957663 | G14: 2.091551
A15: 14 | B15: 50 | D15: 3.319 | E15: 0.941 | F15: 3.527098831 | G15: =D15*E15 -> 3.123179
A16: 15 | B16: 49 | D16: 1.388 | E16: 1.275 | F16: 1.088627451 | G16: 1.7697 | H16: 0.399 | K16: 1 | X16: not sure | AJ16: 0.379 | AK16: 0.629 | AL16: 0.062 | AM16: =(AJ16*AK16)/(D16*E16) -> 0.1347070125
A17: 16 | B17: 78 | D17: 2.596 | E17: 0.913 | F17: 2.843373494 | G17: 2.370148
A18: 17 | B18: 6 | D18: 1.804 | E18: 1.16 | F18: 1.555172414 | G18: 2.09264
A19: 18 | B19: 65 | D19: 1.821 | E19: 1.35 | F19: 1.348888889 | G19: 2.45835 | H19: 0.417
A20: 19 | B20: 24 | D20: 1.351 | E20: 1.115 | F20: 1.211659193 | G20: 1.506365
A21: 20 | B21: 56 | D21: 2.334 | E21: 1.161 | F21: 2.010335917 | G21: 2.709774
A22: 21 | B22: 77 | D22: 2.206 | E22: 1.115 | F22: 1.978475336 | G22: 2.45969 | H22: 0.313
A23: 22 | B23: 11 | D23: 2.882 | E23: 1 | F23: 2.882 | G23: 2.882
A24: 23 | B24: 74 | D24: 3.092 | E24: 0.875 | F24: 3.533714286 | G24: 2.7055
A25: 24 | B25: 29 | D25: 1.692 | E25: 0.664 | F25: 2.548192771 | G25: 1.123488 | H25: 0.388
A26: 25 | B26: 69 | D26: 2.205 | E26: 1.285 | F26: 1.715953307 | G26: 2.833425
A27: 26 | B27: 18 | D27: 1.526 | E27: 0.928 | F27: 1.644396552 | G27: 1.416128
A28: 27 | B28: 6 | C28: cutoff
A29: 28 | B29: 66 | C29: washed out
A30: 29 | B30: 25 | D30: 1.82 | E30: 1.137 | F30: 1.600703606 | G30: 2.06934 | H30: 0.369 | K30: 1 | X30: dividing? | AJ30: 0.944 | AK30: 1.135 | AL30: 0.281 | AM30: =(AJ30*AK30)/(D30*E30) -> 0.5177689505
A31: 30 | B31: 87 | D31: 1.714 | E31: 0.818 | F31: 2.095354523 | G31: 1.402052 | H31: 0.405
A32: 31 | B32: 10 | D32: 2.831 | E32: 1.238 | F32: 2.286752827 | G32: 3.504778
A33: 32 | B33: 29 | D33: 2.077 | E33: 0.936 | F33: 2.219017094 | G33: 1.944072
A34: 33 | B34: 43 | D34: 2.389 | E34: 1.326 | F34: 1.801659125 | G34: 3.167814 | H34: 0.383
A35: 34 | B35: 93 | D35: 1.897 | E35: 0.681 | F35: 2.785609398 | G35: 1.291857 | X35: S-shaped
A36: 35 | B36: 53 | D36: 2.275 | E36: 1.18 | F36: =D36/E36 -> 1.927966102 | G36: 2.6845
A37: 36 | B37: 92 | D37: 1.568 | E37: 1.014 | F37: 1.546351085 | G37: 1.589952 | H37: 0.398
A38: 37 | B38: 96 | C38: washed out
A39: 38 | B39: 13 | D39: 2.312 | E39: 0.806 | F39: 2.868486352 | G39: 1.863472 | X39: dividing?
A40: 39 | B40: 22 | D40: 2.656 | E40: 0.932 | F40: 2.849785408 | G40: 2.475392 | H40: 0.334
A41: 40 | B41: 83 | D41: 2.057 | E41: 0.94 | F41: 2.188297872 | G41: 1.93358
A42: 41 | B42: 84 | D42: 2.373 | E42: 1.142 | F42: 2.07793345 | G42: 2.709966
A43: 42 | B43: 52 | D43: 2.363 | E43: 1.186 | F43: 1.992411467 | G43: 2.802518 | H43: 0.335
A44: 43 | B44: 4 | D44: 1.409 | E44: 1.233 | F44: 1.142741281 | G44: 1.737297
A45: 44 | B45: 2 | D45: 1.822 | E45: 1.142 | F45: 1.595446585 | G45: 2.080724
A46: 45 | B46: 26 | D46: 2.613 | E46: 0.844 | F46: 3.095971564 | G46: 2.205372 | H46: 0.509
A47: 46 | B47: 51 | D47: 2.273 | E47: 0.906 | F47: 2.508830022 | G47: 2.059338
A48: 47 | B48: 60 | D48: 1.383 | E48: 0.875 | F48: 1.580571429 | G48: 1.210125 | X48: middle channel
A49: 48 | B49: 98 | D49: 1.891 | E49: 0.909 | F49: 2.080308031 | G49: 1.718919 | H49: 0.366
A50: 49 | B50: 81 | D50: 1.681 | E50: 0.541 | F50: 3.107208872 | G50: 0.909421 | X50: S-shaped
A51: 50 | B51: 26 | D51: 2.533 | E51: 0.831 | F51: 3.048134777 | G51: 2.104923
A52: 51 | B52: 52 | D52: 1.811 | E52: 1.261 | F52: 1.436161776 | G52: 2.283671 | H52: 0.369
A53: 52 | B53: 74 | D53: 1.929 | E53: 1.132 | F53: 1.704063604 | G53: 2.183628
A54: 53 | B54: 12 | D54: 2.779 | E54: 0.893 | F54: 3.111982083 | G54: 2.481647 | Y54: 1 | Z54: 0.813
A55: 54 | B55: 4
A56: 55 | B56: 97
A57: 56 | B57: 53
A58: 57 | B58: 74
A59: 58 | B59: 29
A60: 59 | B60: 3
A61: 60 | B61: 95
C64: Instances | D64: =COUNT(D2:D61) -> 49 | E64: =COUNT(E2:E61) -> 49 | F64: =COUNT(F2:F61) -> 49 | G64: =COUNT(G2:G61) -> 49 | H64: =COUNT(H2:H61) -> 17 | I64: Instances | K64: =COUNT(K2:K63) -> 3 | L64: 0 | M64: 0 | N64: 0 | S64: 0 | T64: 1 | X64: 0 | Y64: 4 | Z64: =COUNT(Z2:Z63) -> 4 | AB64: =COUNT(AB2:AB61) -> 1 | AC64: 1 | AD64: 1 | AE64: 1 | AF64: 0 | AG64: 0 | AH64: 0 | AI64: 0 | AJ64: 3 | AK64: 3 | AL64: 3 | AM64: 3
C65: Average | D65: =AVERAGE(D2:D61) -> 2.204816327 | E65: =AVERAGE(E2:E61) -> 1.04555102 | F65: =AVERAGE(F2:F61) -> 2.183280894 | G65: =AVERAGE(G2:G61) -> 2.30939202 | H65: =AVERAGE(H2:H61) -> 0.3757058824 | I65: Fraction | K65: =K64/$D$64 -> 0.0612244898 | L65: 0 | M65: 0 | N65: 0 | S65: 0 | T65: 0.02040816327 | X65: 0 | Y65: 0.08163265306 | Z65: =AVERAGE(Z2:Z63) -> 0.9185 | AB65: =AVERAGE(AB2:AB61) -> 0.332 | AC65: =AVERAGE(AC2:AC61) -> 0.21 | AD65: 0.032 | AE65: 0.01955256814 | AJ65: 0.6186666667 | AK65: 0.7283333333 | AL65: 0.1583333333 | AM65: 0.2398305986
C66: STDEV | D66: =STDEV(D2:D6,D8:D42,D44:D53) -> 0.5718675297 | E66: =STDEV(E2:E61) -> 0.198066704 | F66: =STDEV(F2:F54) -> 0.6674909229 | G66: =STDEV(G2:G54) -> 0.7398695309 | H66: =STDEV(H2:H61) -> 0.04464129913 | I66: Number/Cell | M66: =SUM(M3:M63)/L$64 ->  | Z66: =STDEV(Z2:Z63) -> 0.161613737 | AB66: =STDEV(AB2:AB61) ->  | AJ66: 0.2920793271 | AK66: 0.3672183728 | AL66: =STDEV(AL2:AL61) -> 0.1118496014 | AM66: =STDEV(AM2:AM61) -> 0.2430695776

Sheet H3_08011628
A1: Cell Number | B1: Number Sequence | C1: Comment | D1: Length (µm) | E1: Width (µm) | F1: Length/Width | G1: Width x Length | H1: Elevation | K1: Bite | L1: End Divot | M1: #Divots | N1: Canoe | S1: Smooth | T1: Filamented | X1: Comment | Y1: Dividing? | Z1: Waist | AB1: Divot Length | AC1: Divot Width | AD1: Divot Depth | AE1: %Surface Coverage | AF1: Canoe Length | AG1: Canoe Width | AH1: Canoe Depth | AI1: %Surface Coverage | AJ1: Bite Length | AK1: Bite Width | AL1: Bite Depth | AM1: %Surface Coverage
A2: =1 -> 1 | B2: 74 | D2: 1.339 | E2: 1.194 | F2: =D2/E2 -> 1.121440536 | G2: =D2*E2 -> 1.598766 | X2: Discontinuous, raised edges
A3: =A2+1 -> 2 | B3: 61 | D3: 1.587 | E3: 0.969 | F3: =D3/E3 -> 1.637770898 | G3: =D3*E3 -> 1.537803 | X3: discontinuous
A4: =A3+1 -> 3 | B4: 47 | D4: 1.79 | E4: 1.341 | F4: 1.334824758 | G4: 2.40039 | H4: 0.28 | X4: discontinuous
A5: 4 | B5: 97 | D5: 1.943 | E5: 1.204 | F5: 1.613787375 | G5: 2.339372 | X5: Discontinuous, raised edges | Y5: 1 | Z5: 0.999
A6: 5 | B6: 9 | D6: 1.181 | E6: 0.91 | F6: 1.297802198 | G6: 1.07471 | X6: discontinuous
A7: 6 | B7: 59 | C7: revised | D7: 3.408 | E7: 0.773 | F7: 4.408796895 | G7: 2.634384 | H7: 0.335 | X7: Discontinuous, oddly shaped with one very narrow end, not dividing, shaped by surrounding cells, waist is not central
A8: 7 | B8: 34 | D8: 1.287 | E8: 1.167 | F8: 1.102827763 | G8: 1.501929 | X8: Discontinuous, very large peak near the middle of the cell, raided edges
A9: 8 | B9: 72 | D9: 3.379 | E9: 1.162 | F9: =D9/E9 -> 2.907917384 | G9: =D9*E9 -> 3.926398 | X9: A little fuzzy because its on the edge, higher elevation on edge next to other cells
A10: 9 | B10: 76 | D10: 2.227 | E10: 1.067 | F10: =D10/E10 -> 2.087160262 | G10: =D10*E10 -> 2.376209 | H10: 0.421 | X10: Perhaps the beginning of a Bite, irregular shape, discontinuous
A11: 10 | B11: 9 | D11: 2.16 | E11: 0.842 | F11: 2.565320665 | G11: 1.81872 | X11: Discontinuous, one side much has higher elevation than other side
A12: 11 | B12: 93 | C12: revised, probably not even a cell, elevation ~90nm | X12: Very low elevation, discontinuous, about .15 um lower than surrounding cells
A13: 12 | B13: 88 | D13: 2.094 | E13: 1.027 | F13: 2.038948393 | G13: 2.150538 | H13: 0.39 | X13: Potentially the beginning of a bite, discontinuous
A14: 13 | B14: 65 | D14: 2.777 | E14: 1.083 | F14: 2.564173592 | G14: 3.007491 | X14: Discontinuous
A15: 14 | B15: 55 | D15: 3.232 | E15: 1.005 | F15: 3.215920398 | G15: 3.24816 | X15: Discontinuous, an indentation near the division point | Y15: 1 | Z15: 0.853
A16: 15 | B16: 45 | D16: 1.668 | E16: 1.255 | F16: 1.329083665 | G16: 2.09334 | H16: 0.258 | X16: Discontinuous, raised edges
A17: 16 | B17: 78 | D17: 2.065 | E17: 1.145 | F17: 1.80349345 | G17: 2.364425 | X17: Discontinuous
A18: 17 | B18: 94 | D18: 1.918 | E18: 1.229 | F18: 1.560618389 | G18: 2.357222 | X18: discontinuous
A19: 18 | B19: 40 | D19: 1.563 | E19: 0.724 | F19: 2.158839779 | G19: 1.131612 | H19: 0.436 | X19: No major bumps or indents but not totally smooth
A20: 19 | B20: 18 | D20: 2.385 | E20: 0.954 | F20: 2.5 | G20: 2.27529 | X20: Almost smooth, slanted
A21: 20 | B21: 45 | D21: 3.123 | E21: 0.966 | F21: 3.232919255 | G21: 3.016818 | X21: Discontinuous, almost smooth, irregular shape (very long with a narrow width but not dividing-just smushed)
A22: 21 | B22: 56 | D22: 1.59 | E22: 1.21 | F22: 1.314049587 | G22: 1.9239 | H22: 0.237 | X22: Discontinuous, some raised edges, a deep indent, a peak in the middle of the cell
A23: 22 | B23: 35 | D23: 2.058 | E23: 0.822 | F23: 2.503649635 | G23: 1.691676 | X23: Discontinuous, potentially the start of end divots
A24: 23 | B24: 43 | D24: 2.714 | E24: 0.647 | F24: 4.194744977 | G24: 1.755958 | X24: Slanted (higher on one side than the opposite)
A25: 24 | B25: 72 | D25: 1.438 | E25: 0.948 | F25: 1.516877637 | G25: 1.363224 | H25: 0.472 | X25: Discontinuous, raised edges
A26: 25 | B26: 27 | D26: 1.928 | E26: 0.993 | F26: 1.941591138 | G26: 1.914504 | X26: Discontinuous
A27: 26 | B27: 64 | D27: 1.955 | E27: 1.091 | F27: 1.791934005 | G27: 2.132905 | X27: Slanted, discontinuous
A28: 27 | B28: 69 | D28: 2.004 | E28: 1.237 | F28: 1.620048504 | G28: 2.478948 | H28: 0.272 | X28: Almost smooth, slanted
A29: 28 | B29: 75 | D29: 1.584 | E29: 1.188 | F29: 1.333333333 | G29: 1.881792 | X29: Discontinuous, raised edges
A30: 29 | B30: 8 | D30: 1.467 | E30: 0.994 | F30: 1.475855131 | G30: 1.458198 | X30: Discontinuous, raised edges
A31: 30 | B31: 17 | D31: 1.532 | E31: 1.115 | F31: 1.373991031 | G31: 1.70818 | H31: 0.333 | X31: Discontinuous
A32: 31 | B32: 85 | D32: 1.731 | E32: 1.291 | F32: 1.340821069 | G32: 2.234721 | X32: Discontinuous
A33: 32 | B33: 39 | D33: 1.059 | E33: 0.806 | F33: 1.313895782 | G33: 0.853554 | N33: 1 | X33: Donut shaped (large/deep indent in the middle with raised edges)
A34: 33 | B34: 49 | D34: 2.039 | E34: 1.103 | F34: 1.848594742 | G34: 2.249017 | H34: 0.388 | X34: Slanted, potentially the beginning of a Bite
A35: 34 | B35: 31 | D35: 2.55 | E35: 0.888 | F35: 2.871621622 | G35: 2.2644 | X35: Slanted, discontinuous
A36: 35 | B36: 49 | D36: 2.332 | E36: 1.155 | F36: 2.019047619 | G36: 2.69346 | X36: Discontinuous, half slanted, half smooth | Y36: 1 | Z36: 0.674
A37: 36 | B37: 68 | D37: 3.027 | E37: 1.317 | F37: 2.298405467 | G37: 3.986559 | H37: 0.249 | X37: Half of the dividing cell has an indent near the edge, not in the middle. | Y37: 1 | Z37: 0.999
A38: 37 | B38: 44 | D38: 1.843 | E38: 1.12 | F38: 1.645535714 | G38: 2.06416 | X38: Slanted, discontinuous
A39: 38 | B39: 88 | D39: 1.355 | E39: 0.822 | F39: 1.648418491 | G39: 1.11381 | S39: 1 | X39: Almost smooth
A40: 39 | B40: 57 | C40: revised | D40: 3.49 | E40: 1.378 | F40: 2.532656023 | G40: 4.80922 | H40: 0.33 | X40: Discontinuous, half of the divided cell has an indent, closer to the dividing side, not dividing, middle lacking depression, distinct features
A41: 40 | B41: 46 | D41: 2.124 | E41: 1.339 | F41: 1.586258402 | G41: 2.844036 | X41: Discontinuous, raised edges, about .166 um lower than surrounding cells
A42: 41 | B42: 96 | D42: 3.169 | E42: 0.931 | F42: 3.40386681 | G42: 2.950339 | X42: Discontinuous, slanted | Y42: 1 | Z42: 0.526
A43: 42 | B43: 99 | D43: 2.611 | E43: 1.147 | F43: 2.276373147 | G43: 2.994817 | H43: 0.243 | X43: Maybe a cell that has died/burst, low elevation comparied to surrounding cells
A44: 43 | B44: 75 | D44: 1.369 | E44: 0.867 | F44: 1.579008074 | G44: 1.186923 | N44: 1 | X44: Donut shaped (large/deep indent in the middle with raised edges), also possibly dead/burst
A45: 44 | B45: 98 | D45: 2.408 | E45: 1.302 | F45: 1.849462366 | G45: 3.135216 | X45: Indent in the middle, discontinuous
A46: 45 | B46: 68 | D46: 1.294 | E46: 1.116 | F46: 1.159498208 | G46: 1.444104 | H46: 0.275 | S46: 1 | X46: Discontinuous, raised edges
A47: 46 | B47: 95 | D47: 1.7 | E47: 0.575 | F47: 2.956521739 | G47: 0.9775 | S47: 1 | X47: Two indents on either end, possibly early end divots
A48: 47 | B48: 66 | D48: 2.882 | E48: 0.936 | F48: 3.079059829 | G48: 2.697552 | X48: Discontinuous | Y48: 1 | Z48: 0.898
A49: 48 | B49: 42 | D49: 2.406 | E49: 0.932 | F49: 2.581545064 | G49: 2.242392 | H49: 0.425 | X49: Discontinuous, slanted
A50: 49 | B50: 63 | D50: 1.756 | E50: 0.902 | F50: 1.946784922 | G50: 1.583912 | X50: Discontinuous, raised edges
A51: 50 | B51: 41 | D51: 2.754 | E51: 0.544 | F51: 5.0625 | G51: 1.498176 | X51: Discontinuous, slanted
A52: 51
A53: 52
A54: 53
A55: 54
A56: 55
A57: 56
A58: 57
A59: 58
A60: 59
A61: 60
A62: 61
A63: 62
A64: Count | D64: =COUNT(D2:D63) -> 49 | E64: =COUNT(E2:E63) -> 49 | F64: =COUNT(F2:F63) -> 49 | G64: =COUNT(G2:G63) -> 49 | H64: =COUNT(H2:H63) -> 16 | I64: Instances | K64: =COUNT(K2:K63) -> 0 | L64: 0 | M64: 0 | N64: 2 | S64: 3 | T64: 0 | X64: 0 | Y64: 6 | Z64: =COUNT(Z2:Z63) -> 6 | AB64: =COUNT(AB2:AB63) -> 0 | AC64: 0 | AD64: 0 | AE64: 0 | AF64: 0 | AG64: 0 | AH64: 0 | AI64: 0 | AJ64: 0 | AK64: 0 | AL64: 0 | AM64: 0
A65: AVG | D65: =AVERAGE(D2:D63) -> 2.108061224 | E65: =AVERAGE(E2:E63) -> 1.035367347 | F65: =AVERAGE(F2:F63) -> 2.133624403 | G65: =AVERAGE(G2:G63) -> 2.183402653 | H65: =AVERAGE(H2:H63) -> 0.334 | I65: Fraction | K65: =K64/$D$64 -> 0 | L65: 0 | M65: 0 | N65: 0.04081632653 | S65: 0.0612244898 | T65: 0 | X65: 0 | Y65: 0.1224489796 | Z65: =AVERAGE(Z2:Z63) -> 0.8248333333 | AB65: =AVERAGE(AB2:AB63) -> 
A66: STDEV | D66: =STDEV(D2:D63) -> 0.650674695 | E66: =STDEV(E2:E63) -> 0.20153977 | F66: =STDEV(F2:F63) -> 0.8833868127 | G66: =STDEV(G2:G63) -> 0.8142623376 | H66: =STDEV(H2:H63) -> 0.07844318538 | I66: Number/Cell | M66: =SUM(M3:M63)/L$64 ->  | Z66: =STDEV(Z2:Z63) -> 0.1891384854 | AB66: =STDEV(AB2:AB63) -> 

Sheet H3_08011706
A1: Cell Number | B1: Number Sequence | C1: Comment | D1: Length (µm) | E1: Width (µm) | F1: Length/Width | G1: Width x Length | H1: Elevation | K1: Bite | L1: End Divot | M1: #Divots | N1: Canoe | S1: Smooth | T1: Filamented | X1: Comment | Y1: Dividing? | Z1: Waist | AB1: Divot Length | AC1: Divot Width | AD1: Divot Depth | AE1: %Surface Coverage | AF1: Canoe Length | AG1: Canoe Width | AH1: Canoe Depth | AI1: %Surface Coverage | AJ1: Bite Length | AK1: Bite Width | AL1: Bite Depth | AM1: %Surface Coverage
A2: =1 -> 1 | B2: 2 | D2: 1.714 | E2: 1.111 | F2: =D2/E2 -> 1.542754275 | G2: =D2*E2 -> 1.904254 | N2: 1 | X2: Discontinuous, raised edges
A3: =A2+1 -> 2 | B3: 14 | D3: 1.65 | E3: 0.845 | F3: =D3/E3 -> 1.952662722 | G3: =D3*E3 -> 1.39425 | X3: Potentially beginning of a canoe, irregular
A4: =A3+1 -> 3 | B4: 17 | D4: 2.825 | E4: 1.366 | F4: 2.068081991 | G4: 3.85895 | H4: 0.238 | X4: discontinuous, one small indent on one edge
A5: 4 | B5: 47 | C5: Omitted, some skipping in the image
A6: 5 | B6: 65 | D6: 2.515 | E6: 1.297 | F6: 1.939090208 | G6: 3.261955 | X6: Discontinuous
A7: 6 | B7: 2 | D7: 1.98 | E7: 1.226 | F7: 1.615008157 | G7: 2.42748 | H7: 0.338 | S7: 1 | X7: Discontinuous, one small indent on one edge
A8: 7 | B8: 23 | C8: revised | D8: 3.733 | E8: 1.227 | F8: 3.042379788 | G8: 4.580391 | S8: 1 | X8: Discontinuous, not dividing, lacking central depression, cells don’t have a similar shape, waist is consistently lower than width
A9: 8 | B9: 49 | D9: 2.096 | E9: 1.046 | F9: 2.003824092 | G9: 2.192416 | X9: Discontinuous, slanted
A10: 9 | B10: 69 | D10: 2.87 | E10: 1.346 | F10: 2.132243685 | G10: 3.86302 | H10: 0.245 | X10: Discontinuous, slanted, some raised edges
A11: 10 | B11: 23 | D11: 3.013 | E11: 1.183 | F11: =D11/E11 -> 2.546914624 | G11: =D11*E11 -> 3.564379 | X11: Discontinuous, one small indent on one edge, | Y11: 1 | Z11: 0.707
A12: 11 | B12: 52 | D12: 1.867 | E12: 1.09 | F12: 1.712844037 | G12: 2.03503 | X12: Discontinuous, peak-like (no indents like most of the surrounding cells)
A13: 12 | B13: 47 | C13: questionable | D13: 1.807 | E13: 1.137 | F13: 1.589270009 | G13: 2.054559 | H13: 0.451 | K13: 1 | X13: Donut shaped with a large indent in the middle of the cell, very slanted
A14: 13 | B14: 15 | D14: 2.114 | E14: 1.05 | F14: 2.013333333 | G14: 2.2197 | X14: Relatively smooth with one small indent on one edge
A15: 14 | B15: 38 | D15: 1.82 | E15: 1.173 | F15: 1.551577153 | G15: 2.13486 | X15: Discontinuous, one indent in the middle of one half of the cell
A16: 15 | B16: 19 | D16: 1.863 | E16: 1.556 | F16: 1.197300771 | G16: 2.898828 | H16: 0.207 | X16: Discontinuous, slanted
A17: 16 | B17: 76 | C17: questionable | D17: 1.527 | E17: 1.352 | F17: 1.12943787 | G17: 2.064504 | X17: Discontinuous, slanted
A18: 17 | B18: 40 | D18: 3.123 | E18: 1.276 | F18: 2.447492163 | G18: 3.984948 | X18: Discontinuous, small indent in the middle of one half of the cell
A19: 18 | B19: 58 | D19: 3.251 | E19: 1.424 | F19: 2.283005618 | G19: 4.629424 | H19: 0.26 | X19: Discontinuous, abnormally shaped
A20: 19 | B20: 52 | D20: 2.589 | E20: 1.179 | F20: 2.195928753 | G20: 3.052431 | X20: Discontinuous
A21: 20 | B21: 60 | D21: 1.967 | E21: 1.035 | F21: 1.900483092 | G21: 2.035845 | X21: Discontinuous
A22: 21 | B22: 0 | D22: 1.973 | E22: 1.215 | F22: 1.623868313 | G22: 2.397195 | H22: 0.274 | X22: Discontinuous
A23: 22 | B23: 44 | D23: 3.261 | E23: 0.993 | F23: 3.283987915 | G23: 3.238173 | X23: Discontinuous, raised edges
A24: 23 | B24: 12 | D24: 2.099 | E24: 1.267 | F24: 1.656669298 | G24: 2.659433 | X24: Discontinuous with a shallow depth on one half
A25: 24 | B25: 44 | D25: 2.022 | E25: 1.207 | F25: 1.675227838 | G25: 2.440554 | H25: 0.198 | X25: Discontinuous
A26: 25 | B26: 23 | D26: 1.879 | E26: 1.174 | F26: 1.600511073 | G26: 2.205946 | X26: Discontinuous, small indent in the middle of the cell
A27: 26 | B27: 33 | D27: 3.096 | E27: 1.101 | F27: 2.811989101 | G27: 3.408696 | X27: Discontinuous, slanted
A28: 27 | B28: 75 | D28: 2.18 | E28: 1.186 | F28: 1.838111298 | G28: 2.58548 | H28: 0.347 | X28: Discontinuous
A29: 28 | B29: 89 | D29: 3.369 | E29: 1.468 | F29: 2.294959128 | G29: 4.945692 | X29: Discontinuous | Y29: 1 | Z29: 1.115
A30: 29 | B30: 30 | D30: 1.789 | E30: 1.42 | F30: 1.259859155 | G30: 2.54038 | X30: Discontinuous, somewhat smooth
A31: 30 | B31: 48 | C31: questionable | D31: 1.764 | E31: 1.199 | F31: 1.471226022 | G31: 2.115036 | H31: 0.18 | X31: Discontinuous, extremely low elevation, lots of holes
A32: 31 | B32: 41 | D32: 1.827 | E32: 1.132 | F32: 1.613957597 | G32: 2.068164 | X32: Smooth with an indent in the middle of the cell
A33: 32 | B33: 63 | C33: potentially overlapped by another cell | D33: 1.891 | E33: 0.885 | F33: 2.136723164 | G33: 1.673535 | X33: Discontinuous with an indent in the middle of one half of the cell
A34: 33 | B34: 48 | D34: 2.671 | E34: 1.321 | F34: 2.021953066 | G34: 3.528391 | H34: 0.34 | K34: 1 | X34: Fairly smooth | Y34: 1 | Z34: 1.113
A35: 34 | B35: 6 | D35: 1.235 | E35: 1.233 | F35: 1.00162206 | G35: 1.522755 | N35: 1 | X35: Donut shaped with a large indent in the middle of the cell
A36: 35 | B36: 77 | D36: 2.18 | E36: 1.044 | F36: 2.088122605 | G36: 2.27592 | X36: Discontinuous
A37: 36 | B37: 34 | D37: 2.209 | E37: 0.913 | F37: 2.419496166 | G37: 2.016817 | H37: 0.35 | X37: Fairly smooth with a small indent on the edge of one half
A38: 37 | B38: 16 | D38: 3.47 | E38: 1.475 | F38: 2.352542373 | G38: 5.11825 | X38: Discontinuous
A39: 38 | B39: 44 | D39: 2.663 | E39: 0.958 | F39: 2.779749478 | G39: 2.551154 | X39: Discontinuous, a small indent on the edge of one half of the cell
A40: 39 | B40: 22 | D40: 2.823 | E40: 0.931 | F40: 3.032223416 | G40: 2.628213 | H40: 0.421 | X40: Discontinuous
A41: 40 | B41: 15 | D41: 2.188 | E41: 1.083 | F41: 2.020313943 | G41: 2.369604 | X41: Discontinuous
A42: 41 | B42: 29 | D42: 2.287 | E42: 1.327 | F42: 1.723436323 | G42: 3.034849 | X42: Discontinuous
A43: 42 | B43: 47 | C43: questionable | D43: 1.95 | E43: 1.092 | F43: 1.785714286 | G43: 2.1294 | H43: 0.321 | X43: Somewhat smooth
A44: 43 | B44: 77 | D44: 2.022 | E44: 1.005 | F44: 2.011940299 | G44: 2.03211 | X44: Discontinuous, slanted
A45: 44 | B45: 26 | D45: 2.03 | E45: 1.495 | F45: 1.357859532 | G45: 3.03485 | X45: Discontinuous, lots of small indents/holes
A46: 45 | B46: 45 | D46: 3.265 | E46: 1.197 | F46: 2.727652464 | G46: 3.908205 | H46: 0.341 | X46: Discontinuous
A47: 46 | B47: 53 | D47: 2.415 | E47: 1.36 | F47: 1.775735294 | G47: 3.2844 | X47: Discontinuous
A48: 47 | B48: 57 | D48: 1.887 | E48: 1.307 | F48: 1.443764346 | G48: 2.466309 | X48: Discontinuous, slanted
A49: 48 | B49: 55 | D49: 2.157 | E49: 1.125 | F49: 1.917333333 | G49: 2.426625 | H49: 0.376 | X49: Discontinuous, half of the cell is slanted
A50: 49 | B50: 9 | C50: questionable | D50: 2.976 | E50: 1.292 | F50: 2.303405573 | G50: 3.844992 | X50: Discontinuous
A51: 50 | B51: 59 | D51: 1.937 | E51: 1.35 | F51: 1.434814815 | G51: 2.61495 | X51: Discontinous
A52: 51 | B52: 4 | D52: 2.84 | E52: 1.297 | F52: 2.189668466 | G52: 3.68348 | H52: 0.298 | X52: Discontinous, raised edges
A53: 52
A54: 53
A55: 54
A56: 55
A57: 56
A58: 57
A59: 58
A60: 59
A61: 60
A62: 61
A63: 62
A64: Count | D64: =COUNT(D2:D63) -> 50 | E64: =COUNT(E2:E63) -> 50 | F64: =COUNT(F2:F63) -> 50 | G64: =COUNT(G2:G63) -> 50 | H64: =COUNT(H2:H63) -> 17 | I64: Instances | K64: =COUNT(K2:K63) -> 2 | L64: 0 | M64: 0 | N64: 2 | S64: 2 | T64: 0 | X64: 0 | Y64: 3 | Z64: =COUNT(Z2:Z63) -> 3 | AB64: =COUNT(AB2:AB63) -> 0 | AC64: 0 | AD64: 0 | AE64: 0 | AF64: 0 | AG64: 0 | AH64: 0 | AI64: 0 | AJ64: 0 | AK64: 0 | AL64: 0 | AM64: 0
A65: AVG | D65: =AVERAGE(D2:D63) -> 2.33358 | E65: =AVERAGE(E2:E63) -> 1.19942 | F65: =AVERAGE(F2:F63) -> 1.970361402 | G65: =AVERAGE(G2:G63) -> 2.81813564 | H65: =AVERAGE(H2:H63) -> 0.305 | I65: Fraction | K65: =K64/$D$64 -> 0.04 | L65: 0 | M65: 0 | N65: 0.04 | S65: 0.04 | T65: 0 | X65: 0 | Y65: 0.06 | Z65: =AVERAGE(Z2:Z63) -> 0.9783333333 | AB65: =AVERAGE(AB2:AB63) -> 
A66: STDEV | D66: =STDEV(D2:D63) -> 0.5846304638 | E66: =STDEV(E2:E63) -> 0.1660654027 | F66: =STDEV(F2:F63) -> 0.5092738982 | G66: =STDEV(G2:G63) -> 0.8926768046 | H66: =STDEV(H2:H63) -> 0.0771645968 | I66: Number/Cell | M66: =SUM(M3:M63)/L$64 ->  | Z66: =STDEV(Z2:Z63) -> 0.2349836874 | AB66: =STDEV(AB2:AB63) -> 

Sheet H4_01161603
A1: Cell Number | B1: Number Sequence | C1: Comment | D1: Length (µm) | E1: Width (µm) | F1: Length/Width | G1: Width x Length | H1: Elevation | K1: Bite | L1: End Divot | M1: #Divots | N1: Canoe | S1: Smooth | T1: Filamented | X1: Comment | Y1: Dividing? | Z1: Waist | AB1: Divot Length | AC1: Divot Width | AD1: Divot Depth | AE1: %Surface Coverage | AF1: Canoe Length | AG1: Canoe Width | AH1: Canoe Depth | AI1: %Surface Coverage | AJ1: Bite Length | AK1: Bite Width | AL1: Bite Depth | AM1: %Surface Coverage
A2: =1 -> 1 | B2: 6 | C2: Debris? | D2: 1.326 | E2: 0.841 | F2: =D2/E2 -> 1.576694411 | G2: =D2*E2 -> 1.115166 | X2: Discontinuous, (potentially some debris on it), small indent near the middle of the cell
A3: =A2+1 -> 2 | B3: 23 | C3: Debris? | D3: 1.64 | E3: 0.996 | F3: =D3/E3 -> 1.646586345 | G3: =D3*E3 -> 1.63344 | X3: Discontinuous, raised edges
A4: =A3+1 -> 3 | B4: 41 | D4: 1.515 | E4: 0.998 | F4: 1.518036072 | G4: 1.51197 | H4: 0.411 | X4: Possibly and early bite, 1/4 of the sides is lower than others, the side opposite is raised higher than all others
A5: 4 | B5: 42 | D5: 1.27 | E5: 1.042 | F5: 1.218809981 | G5: 1.32334 | X5: Canoe-like, one section of the cell wall is significantly lower than the rest making the canoe discontinuous
A6: 5 | B6: 90 | D6: 1.423 | E6: 0.887 | F6: 1.604284104 | G6: 1.262201 | X6: Tear-drop shaped, discontinuous, slanted
A7: 6 | B7: 53 | D7: 1.451 | E7: 0.98 | F7: 1.480612245 | G7: 1.42198 | H7: 0.447 | N7: 1 | AF7: 1.155 | AG7: 0.698 | AH7: 0.077 | AI7: =(AF7*AG7)/($D$2*$E$2)*100 -> 72.29327293
A8: 7 | B8: 98 | D8: 1.452 | E8: 0.706 | F8: 2.056657224 | G8: 1.025112 | X8: Mostly smooth
A9: 8 | B9: 86 | D9: 0.936 | E9: 0.801 | F9: 1.168539326 | G9: 0.749736 | X9: Mostly smooth, peak-like
A10: 9 | B10: 84 | D10: 1.411 | E10: 0.985 | F10: 1.43248731 | G10: 1.389835 | H10: 0.479 | K10: 1 | AJ10: 0.861 | AK10: 0.688 | AL10: 0.322 | AM10: =(AJ10*AK10)/($D10*$E10)*100 -> 42.62146226
A11: 10 | B11: 21 | D11: 1.468 | E11: 0.826 | F11: 1.777239709 | G11: 1.212568 | X11: Tear-drop shaped, mostly smooth
A12: 11 | B12: 50 | D12: 1.072 | E12: 0.641 | F12: 1.672386895 | G12: 0.687152 | X12: Mostly smooth, peak-like
A13: 12 | B13: 72 | D13: 1.555 | E13: 0.855 | F13: 1.81871345 | G13: 1.329525 | H13: 0.494 | X13: Possibly and early bite, 1/4 of the cell wall is bounded lower than the others
A14: 13 | B14: 15 | D14: 2.381 | E14: 1.318 | F14: 1.806525038 | G14: 3.138158 | L14: 1 | M14: 2
A15: 14 | B15: 63 | D15: 1.218 | E15: 0.714 | F15: 1.705882353 | G15: 0.869652 | X15: Mostly smooth, peak-like
A16: 15 | B16: 70 | D16: 1.526 | E16: 0.881 | F16: 1.732122588 | G16: 1.344406 | H16: 0.381 | K16: 1 | AJ16: 1.115 | AK16: 0.705 | AL16: 0.238 | AM16: =(AJ16*AK16)/($D16*$E16)*100 -> 58.47006038
A17: 16 | B17: 48 | D17: 1.687 | E17: 0.632 | F17: 2.669303797 | G17: 1.066184 | X17: Peak-like, but shaped like a squash
A18: 17 | B18: 46 | D18: 1.957 | E18: 1.174 | F18: 1.666950596 | G18: 2.297518 | X18: Discontinuous, a long indent near the middle of the cell along the x-axis
A19: 18 | B19: 55 | D19: 1.115 | E19: 1.058 | F19: 1.053875236 | G19: 1.17967 | H19: 0.472 | X19: Similar to a moat but the island isn't high enough, and is less defined along the x-axis than it is on the y-axis
A20: 19 | B20: 37 | D20: 1.614 | E20: 1.105 | F20: 1.460633484 | G20: 1.78347 | X20: Similar to a canoe but one section of the cell wall has a lower bounding site than the others (similar to #4), there seems to be some debris on the cell as well,
A21: 20 | B21: 48 | D21: 1.814 | E21: 1.158 | F21: 1.566493955 | G21: 2.100612 | X21: Peak-like, rough surface (not smooth)
A22: 21 | B22: 29 | D22: 1.297 | E22: 0.858 | F22: 1.511655012 | G22: 1.112826 | H22: 0.631 | X22: Peak-like, shaped like a kidney-bean, rough surface
A23: 22 | B23: 97 | D23: 1.116 | E23: 0.882 | F23: 1.265306122 | G23: 0.984312 | X23: Mostly smooth, peak-like
A24: =A23+1 -> 23 | B24: 19 | D24: 1.771 | E24: 1.138 | F24: 1.556239016 | G24: 2.015398 | X24: Discontinuous, shaped like Captain Hook's hook (wide on one side and on the other side there is a bite-like feature)
A25: 24 | B25: 21 | D25: 1.057 | E25: 0.764 | F25: 1.383507853 | G25: 0.807548 | H25: 0.443 | X25: Discontinuous, slanted
A26: 25 | B26: 72 | D26: 1.348 | E26: 0.806 | F26: 1.672456576 | G26: 1.086488 | X26: Peak-like, rough surface
A27: 26 | B27: 4 | D27: 1.623 | E27: 1.317 | F27: 1.232346241 | G27: 2.137491 | N27: 1
A28: 27 | B28: 12 | D28: 1.024 | E28: 0.847 | F28: 1.208972845 | G28: 0.867328 | H28: 0.464 | X28: Mostly smooth, peak-like
A29: 28 | B29: 0 | D29: 1.72 | E29: 1.257 | F29: 1.368337311 | G29: 2.16204 | X29: Almost a bite, but the lowest bounding site is not low enough
A30: =A29+1 -> 29 | B30: 44 | D30: 1.691 | E30: 1.04 | F30: 1.625961538 | G30: 1.75864 | K30: 1
A31: 30 | B31: 78 | D31: 0.828 | E31: 0.627 | F31: 1.320574163 | G31: 0.519156 | H31: 0.389 | X31: Peak-like, smooth
A32: 31 | B32: 39 | C32: Debris? | D32: 1.467 | E32: 1.448 | F32: 1.013121547 | G32: 2.124216 | X32: Moat-like, but the raised center might be debris
A33: 32 | B33: 64 | D33: 1.405 | E33: 1.217 | F33: 1.154478225 | G33: 1.709885 | X33: Slanted, mostly smooth
A34: 33 | B34: 47 | D34: 1.334 | E34: 0.83 | F34: 1.607228916 | G34: 1.10722 | H34: 0.549 | X34: Tear-drop shaped, peak-like
A35: 34 | B35: 33 | D35: 1.53 | E35: 0.96 | F35: 1.59375 | G35: 1.4688 | K35: 1
A36: 35 | B36: 59 | D36: 1.036 | E36: 0.681 | F36: 1.521292217 | G36: 0.705516 | X36: Peak-like, smooth
A37: 36 | B37: 35 | D37: 1.135 | E37: 1.113 | F37: 1.019766397 | G37: 1.263255 | H37: 0.394 | X37: Slanted, low elevation, mostly smooth
A38: 37 | B38: 56 | D38: 1.798 | E38: 1.144 | F38: 1.571678322 | G38: 2.056912 | X38: Slanted, somewhat discontinuous such that it is not very smooth, low elevation
A39: 38 | B39: 69 | D39: 1.156 | E39: 0.975 | F39: 1.185641026 | G39: 1.1271 | X39: Slanted, discontinuous, an indent near one of the edges (similar to a bite)
A40: 39 | B40: 91 | D40: 1.172 | E40: 0.942 | F40: 1.244161359 | G40: 1.104024 | H40: 0.47 | X40: Almost tear-drop shaped, discontinuous
A41: 40 | B41: 55 | D41: 0.988 | E41: 0.853 | F41: 1.158264947 | G41: 0.842764 | X41: Slanted, low elevation, discontinuous, indent near one of the edges
A42: 41 | B42: 24 | D42: 1.709 | E42: 0.917 | F42: 1.863685932 | G42: 1.567153 | K42: 1
A43: 42 | B43: 34 | D43: 1.889 | E43: 1.058 | F43: 1.785444234 | G43: 1.998562 | H43: 0.331 | X43: Low elevation, slanted, discontinuous
A44: 43 | B44: 96 | D44: 1.396 | E44: 0.833 | F44: 1.675870348 | G44: 1.162868 | X44: Almost a canoe but the % surface coverage of the canoe was much too small
A45: 44 | B45: 67 | D45: 0.917 | E45: 0.855 | F45: 1.07251462 | G45: 0.784035 | X45: Early bite, mostly smooth
A46: 45 | B46: 95 | D46: 1.118 | E46: 0.646 | F46: 1.730650155 | G46: 0.722228 | H46: 0.5 | X46: Peak-like, mostly smooth
A47: 46 | B47: 66 | D47: 1.003 | E47: 0.722 | F47: 1.389196676 | G47: 0.724166 | X47: Peak-like, mostly smooth
A48: 47 | B48: 91 | D48: 1.563 | E48: 1.311 | F48: 1.19221968 | G48: 2.049093 | X48: Discontinuous, slanted, the lower end of the cell has a rougher surface
A49: 48 | B49: 84 | D49: 2.098 | E49: 0.95 | F49: 2.208421053 | G49: 1.9931 | H49: 0.454 | K49: 1 | AJ49: 1.394 | AK49: 0.752 | AL49: 0.136 | AM49: =(AJ49*AK49)/($D49*$E49)*100 -> 52.5958557
A50: 49 | B50: 19 | D50: 1.624 | E50: 0.913 | F50: 1.778751369 | G50: 1.482712 | K50: 1
A51: 50 | B51: 65 | D51: 1.313 | E51: 0.99 | F51: 1.326262626 | G51: 1.29987 | X51: Mostly smooth, almost tear-drop shaped (more squash-shaped)
A52: 51 | B52: 21
A53: 52 | B53: 72
A54: 53 | B54: 95
A55: 54 | B55: 62
A56: 55 | B56: 0
A57: 56 | B57: 88
A58: 57 | B58: 40
A59: 58 | B59: 73
A60: 59 | B60: 2
A61: 60 | B61: 4
A62: 61 | B62: 41
A63: 62 | B63: 30
A64: Count | D64: =COUNT(D2:D63) -> 50 | E64: =COUNT(E2:E63) -> 50 | F64: =COUNT(F2:F63) -> 50 | G64: =COUNT(G2:G63) -> 50 | H64: =COUNT(H2:H63) -> 16 | I64: Instances | K64: =COUNT(K2:K63) -> 7 | L64: 1 | M64: 1 | N64: 2 | S64: 0 | T64: 0 | X64: 0 | Y64: 0 | Z64: =COUNT(Z2:Z63) -> 0 | AB64: =COUNT(AB2:AB63) -> 0 | AC64: 0 | AD64: 0 | AE64: 0 | AF64: 1 | AG64: 1 | AH64: 1 | AI64: 1 | AJ64: 3 | AK64: 3 | AL64: 3 | AM64: 3
A65: AVG | D65: =AVERAGE(D2:D63) -> 1.41914 | E65: =AVERAGE(E2:E63) -> 0.94984 | F65: =AVERAGE(F2:F63) -> 1.517411809 | G65: =AVERAGE(G2:G63) -> 1.38372802 | H65: =AVERAGE(H2:H63) -> 0.4568125 | I65: Fraction | K65: =K64/$D$64 -> 0.14 | L65: 0.02 | M65: 0.02 | N65: 0.04 | S65: 0 | T65: 0 | X65: 0 | Y65: 0 | Z65: =AVERAGE(Z2:Z63) ->  | AB65: =AVERAGE(AB2:AB63) ->  | AF65: 1.155 | AG65: 0.698 | AH65: 0.077 | AI65: 72.29327293 | AJ65: 1.123333333 | AK65: 0.715 | AL65: 0.232 | AM65: 51.22912612
A66: STDEV | D66: =STDEV(D2:D63) -> 0.326831106 | E66: =STDEV(E2:E63) -> 0.1973272802 | F66: =STDEV(F2:F63) -> 0.3175307658 | G66: =STDEV(G2:G63) -> 0.5387276142 | H66: =STDEV(H2:H63) -> 0.07096968249 | I66: Number/Cell | M66: =SUM(M3:M63)/L$64 -> 2 | Z66: =STDEV(Z2:Z63) ->  | AB66: =STDEV(AB2:AB63) ->  | AJ66: 0.2665976994 | AK66: 0.03315116891 | AL66: 0.09314504818 | AM66: 8.012208057

Sheet H4_08021136
A1: Cell Number | B1: Number Sequence | C1: Omit reason | D1: Length (mm) | E1: Width (mm) | F1: Length/Width | G1: Lenth x Width | H1: Elevation | K1: Bite | L1: End Divot | M1: #Divots | N1: Canoe | S1: Smooth | T1: Filamented | X1: comment | Y1: Dividing | Z1: Waist | AB1: divot length 1 | AC1: divot width 1 | AD1: divot depth | AE1: % surface divot | AF1: canoe length | AG1: canoe width | AH1: canoe depth | AI1: % surface canoe | AJ1: bite length | AK1: bite width | AL1: bite depth | AM1: %surface bite
A2: 1 | B2: 50 | D2: 1.41 | E2: 1.292 | F2: =D2/E2 -> 1.091331269 | G2: =D2*E2 -> 1.82172 | K2: 1 | AJ2: 0.588 | AK2: 0.884 | AL2: 0.131 | AM2: =SUM((AK2*AJ2)/(D2*E2)*100) -> 28.53303471
A3: =1+A2 -> 2 | B3: 49 | D3: 1.946 | E3: 1.051 | F3: =D3/E3 -> 1.851569933 | G3: =D3*E3 -> 2.045246 | K3: 1 | AJ3: 0.647 | AK3: 0.623 | AL3: 0.222 | AM3: =SUM((AK3*AJ3)/(D3*E3)*100) -> 19.70819158
A4: =1+A3 -> 3 | B4: 54 | D4: 1.351 | E4: 1.057 | F4: =D4/E4 -> 1.278145695 | G4: 1.428007 | H4: 0.472 | K4: 1 | AJ4: 0.528 | AK4: 0.889 | AL4: 0.1 | AM4: =SUM((AK4*AJ4)/(D4*E4)*100) -> 32.87042711
A5: 4 | B5: 45 | D5: 2.219 | E5: 1.546 | F5: 1.435316947 | G5: 3.430574
A6: 5 | B6: 35 | D6: 1.138 | E6: 0.961 | F6: 1.184183143 | G6: 1.093618 | X6: dividing?
A7: 6 | B7: 91 | C7: Poor Surface Resolution
A8: 7 | B8: 84 | D8: 1.497 | E8: 1.328 | F8: 1.127259036 | G8: 1.988016 | H8: 0.363
A9: 8 | B9: 62 | D9: 1.291 | E9: 1.08 | F9: =D9/E9 -> 1.19537037 | G9: 1.39428
A10: 9 | B10: 94 | D10: 1.68 | E10: 1.339 | F10: 1.254667662 | G10: 2.24952 | H10: 0.462 | K10: 1 | AJ10: 0.709 | AK10: 0.708 | AL10: 0.167 | AM10: =SUM((AK10*AJ10)/(D10*E10)*100) -> 22.31462712
A11: 10 | B11: 38 | D11: 1.82 | E11: 1.351 | F11: 1.347150259 | G11: 2.45882 | X11: S-shaped-strange
A12: 11 | B12: 37 | D12: 1.835 | E12: 1.349 | F12: 1.360266864 | G12: 2.475415 | K12: 1
A13: 12 | B13: 2 | D13: 1.742 | E13: 1.476 | F13: 1.180216802 | G13: 2.571192 | H13: 0.29 | K13: 1
A14: 13 | B14: 20 | D14: 1.711 | E14: 1.519 | F14: 1.126398947 | G14: 2.599009 | K14: 1
A15: 14 | B15: 4 | D15: 1.937 | E15: 1.47 | F15: 1.317687075 | G15: 2.84739 | K15: 1 | AJ15: 1.115 | AK15: 1.47 | AL15: 0.284 | AM15: =SUM((AJ15*AK15)/(D15*E15)*100) -> 57.56324213
A16: 15 | B16: 55 | D16: 1.717 | E16: 1.21 | F16: 1.419008264 | G16: 2.07757 | H16: 0.343 | N16: 1
A17: 16 | B17: 74 | D17: 1.678 | E17: 1.294 | F17: 1.29675425 | G17: 2.171332 | K17: 1
A18: 17 | B18: 51 | D18: 1.524 | E18: 1.233 | F18: 1.236009732 | G18: 1.879092 | K18: 1
A19: 18 | B19: 95 | D19: 2.348 | E19: 1.468 | F19: 1.599455041 | G19: 3.446864 | H19: 0.327 | K19: 1 | AJ19: 1.057 | AK19: 1.233 | AL19: 0.148 | AM19: =SUM((AJ19*AK19)/(D19*E19)*100) -> 37.81063018
A20: 19 | B20: 97 | D20: 3 | E20: 1.529 | F20: 1.96206671 | G20: 4.587 | X20: dividing!? | Y20: 1 | Z20: 0.78
A21: 20 | B21: 70 | D21: 1.908 | E21: 1.413 | F21: 1.350318471 | G21: 2.696004 | K21: 1 | AJ21: 0.613 | AK21: 0.807 | AL21: 0.139 | AM21: =SUM((AJ21*AK21)/(D21*E21)*100) -> 18.34904548
A22: 21 | B22: 98 | D22: 1.665 | E22: 1.193 | F22: 1.395641241 | G22: 1.986345 | H22: 0.399 | K22: 1
A23: 22 | B23: 60 | D23: 2.039 | E23: 1.46 | F23: 1.396575342 | G23: 2.97694 | X23: end bump
A24: 23 | B24: 88 | D24: 1.705 | E24: 1.233 | F24: 1.382806164 | G24: 2.102265 | K24: 1 | AJ24: 0.647 | AK24: 0.881 | AL24: 0.198 | AM24: =SUM((AJ24*AK24)/(D24*E24)*100) -> 27.11394615
A25: 24 | B25: 64 | D25: 2.609 | E25: 1.189 | F25: 2.194280908 | G25: 3.102101 | H25: 0.328 | X25: slump
A26: 25 | B26: 45 | D26: 1.761 | E26: 1.289 | F26: 1.36617533 | G26: 2.269929 | K26: 1 | AJ26: 0.83 | AK26: 0.971 | AL26: 0.205 | AM26: =SUM((AJ26*AK26)/(D26*E26)*100) -> 35.50463473
A27: 26 | B27: 84 | D27: 1.925 | E27: 1.444 | F27: 1.333102493 | G27: 2.7797 | K27: 1
A28: 27 | B28: 71 | D28: 1.391 | E28: 1.28 | F28: 1.08671875 | G28: 1.78048 | H28: 0.326 | N28: 1
A29: 28 | B29: 85 | D29: 2.457 | E29: 1.462 | F29: 1.680574555 | G29: 3.592134 | H29: 0.326 | K29: 1 | AJ29: 0.951 | AK29: 1.393 | AL29: 0.185 | AM29: =SUM((AJ29*AK29)/(D29*E29)*100) -> 36.87899728
A30: 29 | B30: 96 | D30: 2.2 | E30: 1.245 | F30: 1.767068273 | G30: 2.739 | K30: 1
A32: 1 | B32: 1 | D32: 1.877 | E32: 1.197 | F32: 1.568086884 | G32: 2.246769 | H32: 0.322 | K32: 1 | AJ32: 0.626 | AK32: 0.893 | AL32: 0.132 | AM32: =SUM((AJ32*AK32)/(D32*E32)*100) -> 24.88097352
A33: 2 | B33: 27 | D33: 2.409 | E33: 1.313 | F33: 1.834729627 | G33: 3.163017 | K33: 1
A34: 3 | B34: 0 | D34: 2.275 | E34: 1.265 | F34: 1.798418972 | G34: 2.877875 | K34: 1
A35: 4 | B35: 59 | D35: 1.212 | E35: 0.9 | F35: 1.346666667 | G35: 1.0908 | H35: 0.475 | K35: 1 | AJ35: 0.781 | AK35: 0.481 | AL35: 0.112 | AM35: =SUM((AJ35*AK35)/(D35*E35)*100) -> 34.43903557
A36: 5 | B36: 13 | D36: 1.703 | E36: 1.118 | F36: 1.523255814 | G36: 1.903954 | K36: 1
A37: 6 | B37: 26 | D37: 1.484 | E37: 1.242 | F37: 1.194847021 | G37: 1.843128 | K37: 1
A38: 7 | B38: 9 | D38: 1.397 | E38: 1.331 | F38: 1.049586777 | G38: 1.859407 | H38: 0.313 | AJ38: 0.533 | AK38: 0.665 | AL38: 0.065 | AM38: =SUM((AJ38*AK38)/(D38*E38)*100) -> 19.06226017
A39: 8 | B39: 66 | D39: 1.877 | E39: 1.01 | F39: 1.858415842 | G39: 1.89577 | K39: 1
A40: 9 | B40: 85 | D40: 2.216 | E40: 1.418 | F40: 1.562764457 | G40: 3.142288 | K40: 1
A41: 10 | B41: 46 | D41: 1.749 | E41: 1.694 | F41: 1.032467532 | G41: 2.962806 | N41: 1 | X41: smooth with divot
A42: 11 | B42: 18 | D42: 2.494 | E42: 1.445 | F42: 1.725951557 | G42: 3.60383 | H42: 0.441 | K42: 1 | AJ42: 1.151 | AK42: 1.445 | AL42: 0.188 | AM42: =SUM((AJ42*AK42)/(D42*E42)*100) -> 46.15076183
A43: 12 | B43: 1 | C43: cut off
A44: 13 | B44: 16 | D44: 2.114 | E44: 1.234 | F44: 1.713128039 | G44: 2.608676 | K44: 1
A45: 14 | B45: 46 | D45: 1.474 | E45: 1.138 | F45: 1.295254833 | G45: 1.677412 | K45: 1 | X45: bite forming
A46: 15 | B46: 83 | D46: 1.641 | E46: 1.444 | F46: 1.136426593 | G46: 2.369604 | H46: 0.337 | K46: 1 | AJ46: 0.625 | AK46: 0.919 | AL46: 0.236 | AM46: =SUM((AJ46*AK46)/(D46*E46)*100) -> 24.23928218
A47: 16 | B47: 65 | D47: 2.194 | E47: 1.652 | F47: 1.328087167 | G47: 3.624488 | X47: sink
A48: 17 | B48: 45 | D48: 1.945 | E48: 1.05 | F48: 1.852380952 | G48: 2.04225 | K48: 1
A49: 18 | B49: 60 | D49: 1.879 | E49: 1.294 | F49: 1.452086553 | G49: 2.431426 | H49: 0.469 | K49: 1
A50: 19 | B50: 58 | D50: 1.998 | E50: 1.468 | F50: 1.361035422 | G50: 2.933064 | K50: 1
A51: 20 | B51: 67 | D51: 1.387 | E51: 1.031 | F51: 1.345295829 | G51: 1.429997 | K51: 1
A52: 21 | B52: 9 | D52: 1.7234 | E52: 1.394 | F52: 1.236298422 | G52: 2.4024196 | H52: 0.303
A53: 22 | B53: 23 | D53: 1.851 | E53: 1.257 | F53: 1.472553699 | G53: 2.326707 | K53: 1
A54: 23 | B54: 65
A55: 24 | B55: 21
A56: 25 | B56: 46
A57: 26 | B57: 4
A58: 27 | B58: 75
A59: 28 | B59: 64
A60: 29 | B60: 94
A61: 30 | B61: 37
C64: Count | D64: =COUNT(D2:D61) -> 49 | E64: =COUNT(E2:E61) -> 49 | F64: =COUNT(F2:F61) -> 49 | G64: =COUNT(G2:G61) -> 49 | H64: =COUNT(H2:H61) -> 17 | I64: Instances | K64: =COUNT(K2:K63) -> 35 | L64: 0 | M64: 0 | N64: 3 | S64: 0 | T64: 0 | X64: 0 | Y64: 1 | Z64: =COUNT(Z2:Z63) -> 1 | AB64: =COUNT(AB2:AB61) -> 0 | AC64: 0 | AD64: 0 | AE64: 0 | AF64: 0 | AG64: 0 | AH64: 0 | AI64: 0 | AJ64: 15 | AK64: 15 | AL64: 15 | AM64: 15
C65: Average | D65: =SUM(D2:D61)/50 -> 1.808068 | E65: =SUM(E2:E61)/50 -> 1.27312 | F65: =SUM(F2:F53)/50 -> 1.398077164 | G65: =SUM(G2:G53)/50 -> 2.380505012 | H65: =AVERAGE(H2:H61) -> 0.3703529412 | I65: Fraction | K65: =K64/$D$64 -> 0.7142857143 | L65: 0 | M65: 0 | N65: 0.0612244898 | S65: 0 | T65: 0 | X65: 0 | Y65: 0.02040816327 | Z65: =AVERAGE(Z2:Z63) -> 0.78 | AB65: =AVERAGE(AB2:AB61) ->  | AJ65: 0.7600666667 | AK65: 0.9508 | AL65: 0.1674666667 | AM65: 31.02793932
C66: Standard Dev. | D66: =STDEV(D2:D6,D8:D42,D44:D53) -> 0.3863700328 | E66: =STDEV(E2:E61) -> 0.1769700122 | F66: =STDEV(F2:F53) -> 0.2664517226 | G66: =STDEV(G2:G53) -> 0.7154261429 | H66: =STDEV(H2:H61) -> 0.06678691973 | I66: Number/Cell | M66: =SUM(M3:M63)/L$64 ->  | Z66: =STDEV(Z2:Z63) ->  | AB66: =STDEV(AB2:AB61) ->  | AJ66: 0.2120988539 | AK66: 0.3042990071 | AL66: 0.0574616228 | AM66: 10.89409487

Sheet H4_08021056
A1: Cell Number | B1: Number Sequence | C1: Comment | D1: Length (µm) | E1: Width (µm) | F1: Length/Width | G1: Width x Length | H1: Elevation | K1: Bite | L1: End Divot | M1: #Divots | N1: Canoe | S1: Smooth | T1: Filamented | X1: Comment | Y1: Dividing? | Z1: Waist | AB1: Divot Length | AC1: Divot Width | AD1: Divot Depth | AE1: %Surface Coverage | AF1: Canoe Length | AG1: Canoe Width | AH1: Canoe Depth | AI1: %Surface Coverage | AJ1: Bite Length | AK1: Bite Width | AL1: Bite Depth | AM1: %Surface Coverage
A2: =1 -> 1 | B2: 87 | D2: 1.207 | E2: 0.995 | F2: =D2/E2 -> 1.213065327 | G2: =D2*E2 -> 1.200965 | K2: 1 | AJ2: 0.525 | AK2: 0.581 | AL2: 0.132 | AM2: =(AJ2*AK2)/($D2*$E2)*100 -> 25.39832551
A3: =A2+1 -> 2 | B3: 96 | C3: cannot use out of sight | G3: =D3*E3 -> 0
A4: =A3+1 -> 3 | B4: 20 | D4: 1.889 | E4: 0.807 | F4: =D4/E4 -> 2.340768278 | G4: 1.524423 | H4: 0.277557 | X4: plain cell
A5: 4 | B5: 71 | C5: revised | D5: 1.123 | E5: 0.887 | F5: 1.266065389 | G5: 0.996101 | K5: 1 | X5: Not dividing, just bite | AJ5: 0.411 | AK5: 0.587 | AL5: 0.299528 | AM5: =(AJ5*AK5)/($D5*$E5)*100 -> 24.2201343
A6: 5 | B6: 17 | D6: 2.25 | E6: 0.971 | F6: 2.317198764 | G6: 2.18475 | X6: plaincell
A7: 6 | B7: 79 | C7: out of sight | G7: 0
A8: 7 | B8: 58 | D8: 1.38 | E8: 1 | F8: 1.38 | G8: 1.38 | H8: 0.437 | K8: 1 | AJ8: 0.535 | AK8: 0.552 | AL8: 0.142898 | AM8: =(AJ8*AK8)/($D8*$E8)*100 -> 21.4
A9: 8 | B9: 49 | D9: 1.879 | E9: 0.998 | F9: 1.882765531 | G9: 1.875242 | X9: plain cell
A10: 9 | B10: 52 | D10: 2.711 | E10: 0.969 | F10: 2.797729618 | G10: 2.626959 | K10: 1 | AJ10: 0.541 | AK10: 0.324 | AL10: 0.20084 | AM10: =(AJ10*AK10)/($D10*$E10)*100 -> 6.672506118
A11: 10 | B11: 25 | D11: 3.617 | E11: 1.276 | F11: 2.834639498 | G11: 4.615292 | H11: 0.668 | X11: lumpy
A12: 11 | B12: 40 | D12: 1.276 | E12: 0.84 | F12: 1.519047619 | G12: 1.07184 | K12: 1 | AJ12: 0.519 | AK12: 0.365 | AL12: 0.093375 | AM12: =(AJ12*AK12)/($D12*$E12)*100 -> 17.67381326
A13: 12 | B13: 39 | C13: out of sight | G13: 0
A14: 13 | B14: 69 | D14: 1.864 | E14: 0.979 | F14: 1.903983657 | G14: 1.824856 | H14: 0.278797 | N14: 1 | AF14: 0.98 | AG14: 0.358 | AH14: 0.057673 | AI14: =(AF14*AG14)/($D14*$E14)*100 -> 19.22562657
A15: 14 | B15: 15 | D15: 1.358 | E15: 1.021 | F15: 1.33006856 | G15: 1.386518 | K15: 1 | X15: large bite | AJ15: 0.785 | AK15: 1.064 | AL15: 0.145 | AM15: =(AJ15*AK15)/($D15*$E15)*100 -> 60.24011228
A16: 15 | B16: 84 | D16: 1.254 | E16: 0.9 | F16: 1.393333333 | G16: 1.1286
A17: 16 | B17: 76 | D17: 1.728 | E17: 0.961 | F17: 1.798126951 | G17: 1.660608 | H17: 0.631037 | K17: 1 | AJ17: 0.846 | AK17: 0.481 | AL17: 0.240349 | AM17: =(AJ17*AK17)/($D17*$E17)*100 -> 24.50463926
A18: 17 | B18: 35 | D18: 1.305 | E18: 0.926 | F18: 1.409287257 | G18: 1.20843 | K18: 1 | AJ18: 0.868 | AK18: 0.323 | AL18: 0.106133 | AM18: =(AJ18*AK18)/($D18*$E18)*100 -> 23.20068188
A19: 18 | B19: 18 | D19: 1.325 | E19: 0.972 | F19: 1.363168724 | G19: 1.2879 | X19: plain | AJ19: 0.94 | AK19: 0.411 | AL19: 0.075569 | AM19: =(AJ19*AK19)/($D19*$E19)*100 -> 29.99767063
A20: 19 | B20: 59 | D20: 1.768 | E20: 0.924 | F20: 1.913419913 | G20: 1.633632 | H20: 0.31388 | X20: plain
A21: 20 | B21: 81 | D21: 1.409 | E21: 1.162 | F21: 1.212564544 | G21: 1.637258 | X21: plain
A22: 21 | B22: 3 | D22: 1.712 | E22: 1.167 | F22: 1.467009426 | G22: 1.997904 | X22: plain
A23: 22 | B23: 78 | D23: 1.538 | E23: 0.529 | F23: 2.907372401 | G23: 0.813602 | H23: 0.368452 | X23: plain, squished
A24: 23 | B24: 83 | D24: 2.818 | E24: 0.944 | F24: 2.985169492 | G24: 2.660192 | K24: 1
A25: 24 | B25: 34 | D25: 1.547 | E25: 1.233 | F25: 1.254663423 | G25: 1.907451
A26: 25 | B26: 77 | D26: 2.197 | E26: 0.945 | F26: 2.324867725 | G26: 2.076165 | H26: 0.337622 | X26: trench
A27: 26 | B27: 30 | D27: 1.313 | E27: 0.881 | F27: 1.490351873 | G27: 1.156753 | X27: almost bite
A28: 27 | B28: 13 | D28: 1.215 | E28: 0.829 | F28: 1.46562123 | G28: 1.007235 | X28: almost bite
A29: 28 | B29: 26 | D29: 1.662 | E29: 0.607 | F29: 2.738056013 | G29: 1.008834 | H29: 0.375362 | K29: 1 | AJ29: 0.646 | AK29: 0.546 | AL29: 0.101437 | AM29: =(AJ29*AK29)/($D29*$E29)*100 -> 34.96273916
A30: 29 | B30: 72 | D30: 1.179 | E30: 0.887 | F30: 1.329199549 | G30: 1.045773 | K30: 1 | AJ30: 0.589 | AK30: 0.657 | AL30: 0.353303 | AM30: =(AJ30*AK30)/($D30*$E30)*100 -> 37.0035371
A31: 30 | B31: 21 | D31: 2.928 | E31: 0.886 | F31: 3.304740406 | G31: 2.594208 | Y31: 1 | Z31: 0.89
A32: 31 | B32: 11 | D32: 1.678 | E32: 1.208 | F32: 1.389072848 | G32: 2.027024 | H32: 0.354189 | X32: almost canoe
A33: 32 | B33: 91 | D33: 1.337 | E33: 1.185 | F33: 1.128270042 | G33: 1.584345 | K33: 1 | AJ33: 0.477 | AK33: 0.625 | AL33: 0.127306 | AM33: =(AJ33*AK33)/($D33*$E33)*100 -> 18.81692434
A34: 33 | B34: 80 | D34: 1.7373 | E34: 0.671 | F34: 2.589120715 | G34: 1.1657283 | Y34: 1 | Z34: 0.659
A35: 34 | B35: 47 | D35: 2.033 | E35: 1.089 | F35: 1.866850321 | G35: 2.213937 | H35: 0.53293 | K35: 1 | AJ35: 0.96 | AK35: 0.69 | AL35: 0.097805 | AM35: =(AJ35*AK35)/($D35*$E35)*100 -> 29.91955056
A36: 35 | B36: 89 | D36: 1.713 | E36: 0.923 | F36: 1.855904659 | G36: 1.581099 | K36: 1 | AJ36: 0.673 | AK36: 0.71 | AL36: 0.064406 | AM36: =(AJ36*AK36)/($D36*$E36)*100 -> 30.22138399
A37: 36 | B37: 23 | D37: 1.467 | E37: 0.936 | F37: 1.567307692 | G37: 1.373112 | K37: 1 | AJ37: 0.39 | AK37: 0.586 | AL37: 0.170849 | AM37: =(AJ37*AK37)/($D37*$E37)*100 -> 16.64394456
A38: 37 | B38: 33 | D38: 2.059 | E38: 0.941 | F38: 2.188097768 | G38: 1.937519 | H38: 0.514274 | K38: 1 | AJ38: 0.645 | AK38: 0.632 | AL38: 0.296206 | AM38: =(AJ38*AK38)/($D38*$E38)*100 -> 21.03927755
A39: 38 | B39: 63 | D39: 1.836 | E39: 1.178 | F39: 1.558573854 | G39: 2.162808 | X39: looks like a train ran through it
A40: 39 | B40: 37 | D40: 1.754 | E40: 1.367 | F40: 1.283101683 | G40: 2.397718 | X40: round
A41: 40 | B41: 45 | D41: 2.177 | E41: 1.208 | F41: 1.802152318 | G41: 2.629816 | H41: 0.339793 | K41: 1 | AJ41: 0.587 | AK41: 0.299 | AL41: 0.048548 | AM41: =(AJ41*AK41)/($D41*$E41)*100 -> 6.673965023
A42: 41 | B42: 31 | D42: 2.538 | E42: 0.939 | F42: 2.702875399 | G42: 2.383182 | Y42: 1 | Z42: 0.773
A43: =A42+1 -> 42 | B43: 94 | D43: 1.234 | E43: 1.115 | F43: 1.106726457 | G43: 1.37591
A44: 43 | B44: 8 | D44: 1.469 | E44: 1.167 | F44: 1.258783205 | G44: 1.714323 | H44: 0.397731 | K44: 1 | AJ44: 0.707 | AK44: 0.642 | AL44: 0.0761 | AM44: =(AJ44*AK44)/($D44*$E44)*100 -> 26.47657413
A45: 44 | B45: 38 | D45: 1.409 | E45: 0.939 | F45: 1.500532481 | G45: 1.323051 | K45: 1 | AJ45: 0.412 | AK45: 0.646 | AL45: 0.228832 | AM45: 20.11653368
A46: 45 | B46: 24 | D46: 2.542 | E46: 1.02 | F46: 2.492156863 | G46: 2.59284 | K46: 1 | X46: small bite | AJ46: 0.328 | AK46: 0.44 | AL46: 0.165312 | AM46: 5.566097407
A47: 46 | B47: 51 | C47: revised | D47: 2.348 | E47: 0.795 | F47: 2.953459119 | G47: 1.86666 | H47: 0.526233 | K47: 1 | X47: bite on top cell, not dividing | AJ47: 0.399 | AK47: 0.636 | AL47: 0.264711 | AM47: 13.59454855
A48: 47 | B48: 5 | D48: 1.245 | E48: 1.027 | F48: 1.212268744 | G48: 1.278615 | K48: 1 | AJ48: 0.303 | AK48: 0.614 | AL48: 0.301521 | AM48: 14.5502751
A49: 48 | B49: 46 | D49: 1.945 | E49: 0.874 | F49: 2.225400458 | G49: 1.69993 | X49: train | AJ49: 0.711 | AK49: 0.637 | AL49: 0.068127 | AM49: 26.64268529
A50: 49 | B50: 43 | D50: 2.438 | E50: 1.052 | F50: 2.317490494 | G50: 2.564776 | H50: 0.482691 | K50: 1
A51: 50 | B51: 10 | D51: 1.099 | E51: 0.939 | F51: 1.170394036 | G51: 1.031961 | K51: 1 | AJ51: 0.517 | AK51: 0.626 | AL51: 0.306349 | AM51: =(AJ51*AK51)/($D51*$E51)*100 -> 31.3618441
A52: 51 | B52: 61 | D52: 1.166 | E52: 1.065 | F52: 1.094835681 | G52: 1.24179 | K52: 1 | AJ52: 0.371 | AK52: 0.532 | AL52: 0.150428 | AM52: =(AJ52*AK52)/($D52*$E52)*100 -> 15.8941528
A53: 52 | B53: 48 | D53: 1.902 | E53: 0.956 | F53: 1.989539749 | G53: 1.818312 | H53: 0.411375 | X53: train
A54: 53 | B54: 32 | D54: 1.57 | E54: 1.351 | F54: 1.162102147 | G54: 2.12107 | K54: 1 | AJ54: 0.672 | AK54: 0.941 | AL54: 0.264357 | AM54: =(AJ54*AK54)/($D54*$E54)*100 -> 29.81287746
A55: 54 | B55: 62 | D55: 1.832 | E55: 0.913 | F55: 2.006571742 | G55: 1.672616 | K55: 1 | AJ55: 0.29 | AK55: 0.815 | AL55: 0.137848 | AM55: =(AJ55*AK55)/($D55*$E55)*100 -> 14.13055955
A56: 55 | B56: 65 | D56: 3.592 | E56: 1.022 | F56: 3.514677104 | G56: 3.671024 | H56: 0.388164 | X56: plain (no surface features)
A57: 56 | B57: 88 | C57: revised | D57: 1.995 | E57: 1.142 | F57: 1.746935201 | G57: 2.27829 | S57: 1 | X57: not dividing, smooth
A58: 57 | B58: 22 | D58: 2.178 | E58: 1.076 | F58: 2.024163569 | G58: 2.343528 | X58: bite forming?
A59: 58 | B59: 44 | D59: 1.644 | E59: 1.057 | F59: 1.555345317 | G59: 1.737708 | H59: 0.292573 | X59: bite forming?
A60: 59 | B60: 6 | D60: 2.322 | E60: 1.301 | F60: 1.784780938 | G60: 3.020922 | Y60: 1 | Z60: 0.906
A61: 60 | B61: 90 | D61: 1.993 | E61: 1.048 | F61: 1.901717557 | G61: 2.088664 | X61: train
A62: 61 | B62: 55 | D62: 1.649 | E62: 1.225 | F62: 1.346122449 | G62: 2.020025 | H62: 0.501516
A63: 62 | B63: 100 | D63: 1.574 | E63: 1.037 | F63: 1.517839923 | G63: 1.632238 | X63: almost bite, small ridge on edge
A64: Count | D64: =COUNT(D2:D63) -> 59 | E64: =COUNT(E2:E63) -> 59 | F64: =COUNT(F2:F63) -> 59 | G64: =COUNT(G2:G63) -> 62 | H64: =COUNT(H2:H63) -> 20 | I64: Instances | K64: =COUNT(K2:K63) -> 27 | L64: 0 | M64: 0 | N64: 1 | S64: 1 | T64: 0 | X64: 0 | Y64: 4 | Z64: =COUNT(Z2:Z63) -> 4 | AB64: =COUNT(AB2:AB63) -> 0 | AC64: 0 | AD64: 0 | AE64: 0 | AF64: 1 | AG64: 1 | AH64: 1 | AI64: 1 | AJ64: 27 | AK64: 27 | AL64: 27 | AM64: 27
A65: AVG | D65: =AVERAGE(D2:D63) -> 1.812327119 | E65: =AVERAGE(E2:E63) -> 1.004440678 | F65: =AVERAGE(F2:F63) -> 1.846702628 | G65: =AVERAGE(G2:G63) -> 1.742936005 | H65: =AVERAGE(H2:H63) -> 0.4214588 | I65: Fraction | K65: =K64/$D$64 -> 0.4576271186 | L65: 0 | M65: 0 | N65: 0.01694915254 | S65: 0.01694915254 | T65: 0 | X65: 0 | Y65: 0.06779661017 | Z65: =AVERAGE(Z2:Z63) -> 0.807 | AB65: =AVERAGE(AB2:AB63) ->  | AF65: 0.98 | AG65: 0.358 | AH65: 0.057673 | AI65: 19.22562657 | AJ65: 0.5795185185 | AK65: 0.5911851852 | AL65: 0.1725606296 | AM65: 23.2124205
A66: STDEV | D66: =STDEV(D2:D63) -> 0.563378506 | E66: =STDEV(E2:E63) -> 0.1650103728 | F66: =STDEV(F2:F63) -> 0.6182117938 | G66: =STDEV(G2:G63) -> 0.7802721688 | H66: =STDEV(H2:H63) -> 0.1126941946 | I66: Number/Cell | M66: =SUM(M3:M63)/L$64 ->  | Z66: =STDEV(Z2:Z63) -> 0.1151086443 | AB66: =STDEV(AB2:AB63) ->  | AJ66: 0.1908848566 | AK66: 0.1746427204 | AL66: 0.08969914532 | AM66: 11.18398347

Sheet H5_01311558
A1: Cell Number | B1: Number Sequence | C1: Comment | D1: Length (µm) | E1: Width (µm) | F1: Length/Width | G1: Width x Length | H1: Elevation | K1: Bite | L1: End Divot | M1: #Divots | N1: Canoe | S1: Smooth | T1: Filamented | X1: Comment | Y1: Dividing? | Z1: Waist | AB1: Divot Length | AC1: Divot Width | AD1: Divot Depth | AE1: %Surface Coverage | AF1: Canoe Length | AG1: Canoe Width | AH1: Canoe Depth | AI1: %Surface Coverage | AJ1: Bite Length | AK1: Bite Width | AL1: Bite Depth | AM1: %Surface Coverage
A2: =1 -> 1 | B2: 42 | D2: 2.118 | E2: 1.115 | F2: =D2/E2 -> 1.89955157 | G2: =D2*E2 -> 2.36157 | L2: 1 | M2: 2 | Y2: 1 | Z2: 0.705 | AE2: =(AB2*AC2)/($D$2*$E$2)*100 -> 0 | AI2: =(AF2*AG2)/($D$2*$E$2)*100 -> 0 | AM2: =(AJ2*AK2)/($D$2*$E$2)*100 -> 0
A3: =A2+1 -> 2 | B3: 23 | D3: 3.193 | E3: 1.201 | F3: 2.658617818 | G3: 3.834793 | L3: 1 | M3: 2 | AE3: 0
A4: 3 | B4: 55 | D4: 5.359 | E4: 1.286 | F4: 4.16718507 | G4: 6.891674 | H4: 0.248 | T4: 1 | AE4: 0
A5: 4 | B5: 47 | D5: 3.755 | E5: 1.366 | F5: 2.748901903 | G5: 5.12933 | X5: Discontinuous, convex with a rough surface with indents | AE5: 0
A6: 5 | B6: 0 | D6: 5.104 | E6: 1.192 | F6: 4.281879195 | G6: 6.083968 | T6: 1 | AE6: 0
A7: 6 | B7: 58 | D7: 3.173 | E7: 1.268 | F7: 2.502365931 | G7: 4.023364 | H7: 0.258 | L7: 1 | M7: 2 | AB7: 0.686 | AC7: 0.482 | AD7: 0.033 | AE7: 14.0013635
A8: 7 | B8: 68 | D8: 3.241 | E8: 1.146 | F8: 2.828097731 | G8: 3.714186 | S8: 1 | AE8: 0
A9: 8 | B9: 23 | D9: 2.75 | E9: 1.113 | F9: 2.470799641 | G9: 3.06075 | L9: 1 | M9: 2 | AE9: 0
A10: 9 | B10: 66 | D10: 1.508 | E10: 1.211 | F10: 1.245251858 | G10: 1.826188 | H10: 0.283 | S10: 1 | AE10: 0
A11: 10 | B11: 64 | D11: 3.093 | E11: 1.211 | F11: 2.554087531 | G11: 3.745623 | S11: 1 | AE11: 0
A12: 11 | B12: 32 | D12: 2.292 | E12: 1.174 | F12: 1.95229983 | G12: 2.690808 | L12: 1 | M12: 2 | AE12: 0
A13: 12 | B13: 15 | D13: 2.178 | E13: 1.234 | F13: 1.764991896 | G13: 2.687652 | H13: 0.29 | L13: 1 | M13: 2 | Y13: 1 | Z13: 1.058 | AE13: 0
A14: 13 | B14: 40 | D14: 4.183 | E14: 1.152 | F14: 3.631076389 | G14: 4.818816 | T14: 1 | AE14: 0
A15: 14 | B15: 7 | D15: 1.529 | E15: 1.184 | F15: 1.291385135 | G15: 1.810336 | L15: 1 | M15: 2 | X15: Counted this as one cell instead one that is dividing because both cells had developed their own end divots | AE15: 0
A16: 15 | B16: 99 | D16: 3.162 | E16: 1.297 | F16: 2.437933693 | G16: 4.101114 | H16: 0.285 | X16: Discontinuous, two nonsymmetrical indents | AE16: 0
A17: 16 | B17: 34 | D17: 3.037 | E17: 1.248 | F17: 2.43349359 | G17: 3.790176 | L17: 1 | M17: 2 | AE17: 0
A18: 17 | B18: 61 | D18: 2.295 | E18: 1.152 | F18: 1.9921875 | G18: 2.64384 | L18: 1 | M18: 2 | Y18: 1 | Z18: 0.908 | AE18: 0
A19: 18 | B19: 57 | D19: 2.973 | E19: 1.129 | F19: 2.633303809 | G19: 3.356517 | H19: 0.282 | L19: 1 | M19: 2 | AB19: 0.713 | AC19: 0.583 | AD19: 0.019 | AE19: 17.60180727
A20: 19 | B20: 26 | D20: 2.529 | E20: 1.341 | F20: 1.88590604 | G20: 3.391389 | L20: 1 | M20: 3 | AE20: 0
A21: 20 | B21: 12 | D21: 3.674 | E21: 1.189 | F21: 3.08999159 | G21: 4.368386 | L21: 1 | M21: 3 | Y21: 1 | Z21: 0.718 | AE21: 0
A22: 21 | B22: 84 | D22: 3.466 | E22: 0.999 | F22: 3.469469469 | G22: 3.462534 | H22: 0.275 | L22: 1 | M22: 2 | AE22: 0
A23: 22 | B23: 2 | D23: 6.007 | E23: 1.06 | F23: 5.666981132 | G23: 6.36742 | T23: 1 | AE23: 0
A24: 23 | B24: 74 | D24: 2.667 | E24: 1.139 | F24: 2.341527656 | G24: 3.037713 | S24: 1 | AE24: 0
A25: 24 | B25: 52 | D25: 2.466 | E25: 1.115 | F25: 2.211659193 | G25: 2.74959 | H25: 0.261 | L25: 1 | M25: 2 | AB25: 0.529 | AC25: 0.418 | AD25: 0.034 | AE25: 9.363347265
A26: 25 | B26: 29 | D26: 4.003 | E26: 1.211 | F26: 3.305532618 | G26: 4.847633 | T26: 1 | AE26: 0
A27: 26 | B27: 63 | D27: 2.819 | E27: 1.155 | F27: 2.440692641 | G27: 3.255945 | X27: Similar to an end divot cell but there are more divots (4 total) but cell is not dividing | AE27: 0
A28: 27 | B28: 49 | D28: 4.32 | E28: 1.181 | F28: 3.657917019 | G28: 5.10192 | H28: 0.253 | T28: 1 | AE28: 0
A29: 28 | B29: 44 | D29: 4.487 | E29: 1.19 | F29: 3.770588235 | G29: 5.33953 | T29: 1 | AE29: 0
A30: 29 | B30: 33 | D30: 2.258 | E30: 1.174 | F30: 1.923339012 | G30: 2.650892 | X30: Very round cells, compelling evidince for kristine/phoebe's theory | Y30: 1 | Z30: 0.847 | AE30: 0
A31: 30 | B31: 37 | D31: 2.34 | E31: 1.265 | F31: 1.849802372 | G31: 2.9601 | H31: 0.266 | L31: 1 | M31: 2 | Y31: 1 | Z31: 1.003 | AB31: 0.796 | AC31: 0.677 | AD31: 0.046 | AE31: 22.81922619
A32: 31 | B32: 41 | D32: 4.644 | E32: 1.106 | F32: 4.198915009 | G32: 5.136264 | T32: 1 | AE32: 0
A33: 32 | B33: 61 | D33: 4.465 | E33: 1.118 | F33: 3.993738819 | G33: 4.99187 | T33: 1 | AE33: 0
A34: 33 | B34: 93 | D34: 2.823 | E34: 1.359 | F34: =D34/E34 -> 2.077262693 | G34: =D34*E34 -> 3.836457 | H34: 0.25 | L34: 1 | M34: 2 | AB34: 0.801 | AC34: 0.436 | AD34: 0.029 | AE34: =(AB34*AC34)/($D$2*$E$2)*100 -> 14.78829762
A35: =A34+1 -> 34 | B35: 62 | D35: 2.28 | E35: 1.155 | F35: 1.974025974 | G35: 2.6334 | L35: 1 | M35: 2 | AE35: 0
A36: 35 | B36: 15 | D36: 4.132 | E36: 1.213 | F36: 3.406430338 | G36: 5.012116 | T36: 1 | AE36: 0
A37: 36 | B37: 25 | D37: 3.65 | E37: 1.31 | F37: 2.786259542 | G37: 4.7815 | H37: 0.267 | X37: Similar to an end divot cell, but there are too many indents (5) | Y37: 1 | Z37: 1.023 | AE37: 0
A38: 37 | B38: 72 | D38: 3.352 | E38: 1.263 | F38: 2.653998416 | G38: 4.233576 | L38: 1 | M38: 2 | AE38: 0
A39: 38 | B39: 82 | D39: 1.545 | E39: 1.079 | F39: 1.431881372 | G39: 1.667055 | L39: 1 | M39: 2 | AE39: 0
A40: 39 | B40: 86 | D40: 4.002 | E40: 1.272 | F40: 3.146226415 | G40: 5.090544 | H40: 0.257 | T40: 1 | AE40: 0
A41: 40 | B41: 12 | D41: 2.701 | E41: 1.174 | F41: 2.300681431 | G41: 3.170974 | L41: 1 | M41: 2 | AE41: 0
A42: 41 | B42: 16 | D42: 2.517 | E42: 1.127 | F42: 2.23336291 | G42: 2.836659 | X42: Discontinuous, nonsymmetircal indents along the cell | AE42: 0
A43: 42 | B43: 80 | D43: 2.294 | E43: 1.079 | F43: 2.126042632 | G43: 2.475226 | H43: 0.288 | L43: 1 | M43: 2 | AB43: 0.415 | AC43: 0.363 | AD43: 0.017 | AE43: 6.379019042
A44: 43 | B44: 94 | D44: 4.388 | E44: 1.294 | F44: 3.391035549 | G44: 5.678072 | T44: 1 | AE44: 0
A45: 44 | B45: 78 | D45: 2.079 | E45: 1.324 | F45: 1.570241692 | G45: 2.752596 | X45: Similar to an end divot cell but the second divot is in the middle not on the end (also not as rod like as other end divot cells) | AE45: 0
A46: 45 | B46: 87 | D46: 5.448 | E46: 1.378 | F46: 3.953555878 | G46: 7.507344 | H46: 0.225 | T46: 1 | AE46: 0
A47: 46 | B47: 50 | D47: 3.085 | E47: 1.12 | F47: 2.754464286 | G47: 3.4552 | X47: One cell dividing into two end divot cells | Y47: 1 | Z47: 0.909 | AE47: 0
A48: 47 | B48: 86 | D48: 2.573 | E48: 1.25 | F48: 2.0584 | G48: 3.21625 | S48: 1 | AE48: 0
A49: 48 | B49: 33 | D49: 3.291 | E49: 1.351 | F49: 2.435973353 | G49: 4.446141 | H49: 0.278 | L49: 1 | M49: 3 | AB49: 0.71 | AC49: 0.53 | AD49: 0.029 | AE49: 15.93431488
A50: 49 | B50: 72 | D50: 2.786 | E50: 1.233 | F50: 2.259529603 | G50: 3.435138 | L50: 1 | M50: 2 | AE50: 0
A51: 50 | B51: 97 | D51: 2.994 | E51: 1.181 | F51: 2.535139712 | G51: 3.535914 | L51: 1 | M51: 2 | Y51: 1 | Z51: 1.171
A52: 51 | B52: 86
A53: 52 | B53: 15
A54: 53 | B54: 33
A55: 54 | B55: 47
A56: 55 | B56: 34
A57: 56 | B57: 73
A58: 57 | B58: 36
A59: 58 | B59: 76
A60: 59 | B60: 25
A61: 60 | B61: 40
A62: 61 | B62: 42
A63: 62 | B63: 51
A64: Count | D64: =COUNT(D2:D63) -> 50 | E64: =COUNT(E2:E63) -> 50 | F64: =COUNT(F2:F63) -> 50 | G64: =COUNT(G2:G63) -> 50 | H64: =COUNT(H2:H63) -> 16 | I64: Instances | K64: =COUNT(K2:K63) -> 0 | L64: 24 | M64: 24 | N64: 0 | S64: 5 | T64: 13 | X64: 0 | Y64: 9 | Z64: =COUNT(Z2:Z63) -> 9 | AB64: =COUNT(AB2:AB63) -> 7 | AC64: 7 | AD64: 7 | AE64: 49 | AF64: 0 | AG64: 0 | AH64: 0 | AI64: 1 | AJ64: 0 | AK64: 0 | AL64: 0 | AM64: 1
A65: AVG | D65: =AVERAGE(D2:D63) -> 3.22056 | E65: =AVERAGE(E2:E63) -> 1.20168 | F65: =AVERAGE(F2:F63) -> 2.687879654 | G65: =AVERAGE(G2:G63) -> 3.87992106 | H65: =AVERAGE(H2:H63) -> 0.266625 | I65: Fraction | K65: =K64/$D$64 -> 0 | L65: 0.48 | M65: 0.48 | N65: 0 | S65: 0.1 | T65: 0.26 | X65: =X64/$D$64 -> 0 | Y65: =Y64/$D$64 -> 0.18 | Z65: =AVERAGE(Z2:Z63) -> 0.9268888889 | AB65: =AVERAGE(AB2:AB63) -> 0.6642857143 | AC65: 0.4984285714 | AD65: 0.02957142857 | AE65: 2.058926036 | AI65: 0 | AM65: 0
A66: STDEV | D66: =STDEV(D2:D63) -> 1.041599303 | E66: =STDEV(E2:E63) -> 0.0866591823 | F66: =STDEV(F2:F63) -> 0.8893566042 | G66: =STDEV(G2:G63) -> 1.310709574 | H66: =STDEV(H2:H63) -> 0.01786197078 | I66: Number/Cell | M66: =SUM(M3:M63)/L$64 -> 2.041666667 | Z66: =STDEV(Z2:Z63) -> 0.1548139564 | AB66: =STDEV(AB2:AB63) -> 0.1422553037 | AC66: 0.1072487096 | AD66: 0.009761440175 | AE66: 5.438710654

Sheet H5_01170943
A1: Cell Number | B1: Number Sequence | C1: Comment | D1: Length (µm) | E1: Width (µm) | F1: Length/Width | G1: Width x Length | H1: Elevation | K1: Bite | L1: End Divot | M1: #Divots | N1: Canoe | S1: Smooth | T1: Filamented | X1: Comment | Y1: Dividing? | Z1: Waist | AB1: Divot Length | AC1: Divot Width | AD1: Divot Depth | AE1: %Surface Coverage | AF1: Canoe Length | AG1: Canoe Width | AH1: Canoe Depth | AI1: %Surface Coverage | AJ1: Bite Length | AK1: Bite Width | AL1: Bite Depth | AM1: %Surface Coverage
A2: =1 -> 1 | B2: 98 | D2: 3.025 | E2: 1.416 | F2: =D2/E2 -> 2.136299435 | G2: =D2*E2 -> 4.2834 | X2: Similar to an end divot cell but one of the divots is much too deep to be classified as such
A3: =A2+1 -> 2 | B3: 73 | D3: 2.13 | E3: 1.357 | F3: 1.569638909 | G3: 2.89041 | L3: 1 | M3: 2 | Y3: 1 | Z3: 0.951
A4: 3 | B4: 12 | D4: 0.921 | E4: 0.887 | F4: 1.038331454 | G4: 0.816927 | H4: 0.232 | X4: Similar to a canoe but the canoe extends through the cell boundary
A5: 4 | B5: 48 | D5: 2.815 | E5: 1.248 | F5: 2.255608974 | G5: 3.51312 | X5: Similar to an end divot cell but the divots are too shallow
A6: 5 | B6: 19 | D6: 2.177 | E6: 1.043 | F6: 2.087248322 | G6: 2.270611 | X6: Similar to an end divot cell but one divot is too small and the other seems too wide
A7: 6 | B7: 61 | C7: revised | D7: 4.333 | E7: 1.006 | F7: 4.307157058 | G7: 4.358998 | H7: 0.315 | T7: 1 | X7: Changed from dividing to just filamented
A8: 7 | B8: 49 | D8: 3.11 | E8: 1.121 | F8: 2.774308653 | G8: 3.48631 | L8: 1 | M8: 2 | Y8: 1 | Z8: 0.119
A9: 8 | B9: 14 | D9: 1.545 | E9: 1.132 | F9: 1.364840989 | G9: 1.74894 | L9: 1 | M9: 3
A10: 9 | B10: 37 | D10: 2.833 | E10: 1.005 | F10: 2.818905473 | G10: 2.847165 | H10: 0.285 | L10: 1 | M10: 2 | AB10: 0.626 | AC10: 0.605 | AD10: 0.028 | AE10: =(AB10*AC10)/($D$2*$E$2)*100 -> 8.84180791
A11: 10 | B11: 64 | D11: 3.668 | E11: 1.134 | F11: 3.234567901 | G11: 4.159512 | L11: 1 | M11: 2 | Y11: 1 | Z11: 0.645
A12: 11 | B12: 8 | D12: 3.013 | E12: 1.052 | F12: 2.864068441 | G12: 3.169676 | X12: Similar to a canoe but since the cell recently divided, one of the cell boundaries is not fully bounded
A13: 12 | B13: 76 | D13: 1.368 | E13: 1.019 | F13: 1.34249264 | G13: 1.393992 | H13: 0.34
A14: 13 | B14: 70 | D14: 1.535 | E14: 1.085 | F14: 1.414746544 | G14: 1.665475 | S14: 1 | X14: Similar to a canoe but along the opposite axis, and not fully bounded on either end of the cell (similar to #12)
A15: 14 | B15: 94 | D15: 4.63 | E15: 1.19 | F15: 3.890756303 | G15: 5.5097 | T15: 1 | X15: Discontinuous, many (about 5) indents/depressions along the cell
A16: 15 | B16: 67 | D16: 2.487 | E16: 1.192 | F16: 2.086409396 | G16: 2.964504 | H16: 0.297 | X16: Similar to an end divot cell but the second divot is in the center of the cell, not on the end
A17: 16 | B17: 4 | D17: 2.466 | E17: 1.116 | F17: 2.209677419 | G17: 2.752056 | L17: 1 | M17: 3 | Y17: 1 | Z17: 0.822
A18: 17 | B18: 50 | D18: 2.239 | E18: 1.175 | F18: 1.905531915 | G18: 2.630825 | L18: 1 | M18: 2
A19: 18 | B19: 13 | D19: 3.202 | E19: 1.066 | F19: 3.003752345 | G19: 3.413332 | H19: 0.338 | X19: Discontinuous, ends of the cell are raised
A20: 19 | B20: 16 | C20: revised | D20: 3.494 | E20: 1.118 | F20: 3.125223614 | G20: 3.906292 | S20: 1 | X20: Not dividing
A21: 20 | B21: 72 | D21: 1.646 | E21: 1.236 | F21: 1.33171521 | G21: 2.034456 | L21: 1 | M21: 2
A22: 21 | B22: 19 | D22: 2.828 | E22: 1.292 | F22: 2.188854489 | G22: 3.653776 | H22: 0.267 | L22: 1 | M22: 2 | Y22: 1 | Z22: 0.713 | AB22: 0.646 | AC22: 0.235 | AD22: 0.017 | AE22: =(AB22*AC22)/($D$2*$E$2)*100 -> 3.544147173
A23: 22 | B23: 41 | C23: revised | D23: 4.026 | E23: 0.98 | F23: 4.108163265 | G23: 3.94548 | T23: 1 | X23: No dividing, filamented
A24: 23 | B24: 94 | D24: 1.688 | E24: 1.089 | F24: 1.550045914 | G24: 1.838232 | L24: 1 | M24: 2
A25: 24 | B25: 70 | D25: 1.006 | E25: 0.823 | F25: 1.22235723 | G25: 0.827938 | H25: 0.346 | S25: 1 | X25: Peak-like, one indent near the middle of the cell making the cell similar to a donut cell
A26: 25 | B26: 25 | D26: 4.222 | E26: 1.125 | F26: 3.752888889 | G26: 4.74975 | T26: 1 | X26: Discontinuous, convex along the short axis, raised ends along the long axis
A27: 26 | B27: 28 | C27: revised | D27: 4.419 | E27: 1.507 | F27: 2.932315859 | G27: 6.659433 | T27: 1 | X27: Not dividing, filamented
A28: 27 | B28: 51 | D28: 2.162 | E28: 1.207 | F28: 1.791217896 | G28: 2.609534 | H28: 0.263 | L28: 1 | M28: 2 | AB28: 0.628 | AC28: 0.577 | AD28: 0.025 | AE28: =(AB28*AC28)/($D$2*$E$2)*100 -> 8.459541486
A29: 28 | B29: 52 | D29: 2.562 | E29: 1.226 | F29: 2.089722675 | G29: 3.141012 | S29: 1 | X29: Discontinuous, slanted, convex
A30: 29 | B30: 4 | D30: 2.584 | E30: 1.057 | F30: 2.444654683 | G30: 2.731288 | X30: Discontinuous, half of the cell is similar to a canoe cell and the other half has one divot that would classify as an end divot | Y30: 1 | Z30: 0.766
A31: 30 | B31: 40 | D31: 2.362 | E31: 1.064 | F31: 2.219924812 | G31: 2.513168 | H31: 0.278 | L31: 1 | M31: 2 | AB31: 0.53 | AC31: 0.473 | AD31: 0.023 | AE31: =(AB31*AC31)/($D$2*$E$2)*100 -> 5.852593734
A32: 31 | B32: 42 | D32: 1.579 | E32: 1.147 | F32: 1.376634699 | G32: 1.811113 | L32: 1 | M32: 2
A33: 32 | B33: 58 | D33: 3.047 | E33: 1.194 | F33: 2.551926298 | G33: 3.638118 | L33: 1 | M33: 2 | Y33: 1 | Z33: 1.086
A34: 33 | B34: 94 | D34: 1.8 | E34: 1.199 | F34: =D34/E34 -> 1.501251043 | G34: =D34*E34 -> 2.1582 | H34: 0.288 | L34: 1 | M34: 2 | AB34: 0.551 | AC34: 0.44 | AD34: 0.02 | AE34: =(AB34*AC34)/($D$2*$E$2)*100 -> 5.659989728
A35: =A34+1 -> 34 | B35: 11 | D35: 2.306 | E35: 1.018 | F35: 2.265225933 | G35: 2.347508 | X35: Similar to a canoe but the cell is not fully bounded (also somewhat similar to an early bite)
A36: 35 | B36: 11 | D36: 2.79 | E36: 1.111 | F36: 2.511251125 | G36: 3.09969 | N36: 1
A37: 36 | B37: 87 | D37: 4.276 | E37: 1.192 | F37: 3.587248322 | G37: 5.096992 | H37: 0.308 | X37: Discontinuous, ends of the cell are raised, convex along the short axis | Y37: 1 | Z37: 0.585
A38: 37 | B38: 32 | D38: 4.163 | E38: 1.079 | F38: 3.858202039 | G38: 4.491877 | T38: 1 | X38: Discontinuous, ends of the cell are raised, convex along the short axis
A39: 38 | B39: 56 | D39: 3.069 | E39: 1.232 | F39: 2.491071429 | G39: 3.781008 | X39: Discontinuous, ends of the cell are raised, convex along the short axis
A40: 39 | B40: 84 | D40: 1.529 | E40: 1.214 | F40: 1.259472817 | G40: 1.856206 | H40: 0.295 | N40: 1 | X40: Similar to a canoe but not as continuous as most other canoes, one edge has half the elevation of the other
A41: 40 | B41: 69 | D41: 4.54 | E41: 1.075 | F41: 4.223255814 | G41: 4.8805 | T41: 1 | X41: Discontinuous, ends of the cell are raised, deep depressions/indents along the cell
A42: 41 | B42: 19 | C42: revixed | D42: 2.719 | E42: 1.274 | F42: 2.13422292 | G42: 3.464006 | N42: 1
A43: 42 | B43: 46 | D43: 3.003 | E43: 1.288 | F43: 2.331521739 | G43: 3.867864 | H43: 0.244 | L43: 1 | M43: 2 | AB43: 0.674 | AC43: 0.531 | AD43: 0.04 | AE43: =(AB43*AC43)/($D$2*$E$2)*100 -> 8.355371901
A44: 43 | B44: 61 | D44: 1.703 | E44: 1.233 | F44: 1.381184104 | G44: 2.099799 | L44: 1 | M44: 3
A45: 44 | B45: 63 | D45: 1.292 | E45: 1.116 | F45: 1.157706093 | G45: 1.441872 | S45: 1 | X45: Peak-like, somewhat slanted, mostly smooth
A46: 45 | B46: 28 | D46: 3.994 | E46: 0.999 | F46: 3.997997998 | G46: 3.990006 | H46: 0.323 | X46: Discontinuous, ends of the cell are raised
A47: 46 | B47: 20 | D47: 2.549 | E47: 1 | F47: 2.549 | G47: 2.549 | X47: Discontinuous, ends of the cell are raised, depressions near the ends of the cell | Y47: 1 | Z47: 0.761
A48: 47 | B48: 10 | D48: 2.071 | E48: 1.022 | F48: 2.026418787 | G48: 2.116562 | L48: 1 | M48: 2
A49: 48 | B49: 5 | D49: 3.183 | E49: 0.998 | F49: 3.189378758 | G49: 3.176634 | H49: 0.267 | L49: 1 | M49: 2 | AB49: 0.537 | AC49: 0.498 | AD49: 0.026 | AE49: =(AB49*AC49)/($D$2*$E$2)*100 -> 6.243311388
A50: 49 | B50: 23 | D50: 3.288 | E50: 1.144 | F50: 2.874125874 | G50: 3.761472 | X50: Discontinuous, half of the cell is a canoe and the other does not have classifiable features | Y50: 1 | Z50: 0.706
A51: 50 | B51: 56 | C51: revised | D51: 4.087 | E51: 1.277 | F51: 3.200469851 | G51: 5.219099 | T51: 1 | X51: Not dividng, filamented
A52: 51 | B52: 38
A53: 52 | B53: 67
A54: 53 | B54: 40
A55: 54 | B55: 49
A56: 55 | B56: 24
A57: 56 | B57: 56
A58: 57 | B58: 0
A59: 58 | B59: 77
A60: 59 | B60: 59
A61: 60 | B61: 83
A62: 61 | B62: 21
A63: 62 | B63: 49
A64: Count | D64: =COUNT(D2:D63) -> 50 | E64: =COUNT(E2:E63) -> 50 | F64: =COUNT(F2:F63) -> 50 | G64: =COUNT(G2:G63) -> 50 | H64: =COUNT(H2:H63) -> 16 | I64: Instances | K64: =COUNT(K2:K63) -> 0 | L64: 19 | M64: 19 | N64: 3 | S64: 5 | T64: 8 | X64: 0 | Y64: 10 | Z64: =COUNT(Z2:Z63) -> 10 | AB64: =COUNT(AB2:AB63) -> 7 | AC64: 7 | AD64: 7 | AE64: 7 | AF64: 0 | AG64: 0 | AH64: 0 | AI64: 0 | AJ64: 0 | AK64: 0 | AL64: 0 | AM64: 0
A65: AVG | D65: =AVERAGE(D2:D63) -> 2.74968 | E65: =AVERAGE(E2:E63) -> 1.1356 | F65: =AVERAGE(F2:F63) -> 2.430579847 | G65: =AVERAGE(G2:G63) -> 3.14665676 | H65: =AVERAGE(H2:H63) -> 0.292875 | I65: Fraction | K65: =K64/$D$64 -> 0 | L65: 0.38 | M65: 0.38 | N65: 0.06 | S65: 0.1 | T65: 0.16 | X65: =X64/$D$64 -> 0 | Y65: =Y64/$D$64 -> 0.2 | Z65: =AVERAGE(Z2:Z63) -> 0.7154 | AB65: =AVERAGE(AB2:AB63) -> 0.5988571429 | AC65: 0.4798571429 | AD65: 0.02557142857 | AE65: 6.708109046
A66: STDEV | D66: =STDEV(D2:D63) -> 1.00051508 | E66: =STDEV(E2:E63) -> 0.1270601657 | F66: =STDEV(F2:F63) -> 0.9031543046 | G66: =STDEV(G2:G63) -> 1.23754541 | H66: =STDEV(H2:H63) -> 0.03401935723 | I66: Number/Cell | M66: =SUM(M3:M63)/L$64 -> 2.157894737 | Z66: =STDEV(Z2:Z63) -> 0.2552999108 | AB66: =STDEV(AB2:AB63) -> 0.05818484502 | AC66: 0.1222244228 | AD66: 0.007367883976 | AE66: 1.93178732

Sheet H5_01311522
A1: Cell Number | B1: Number Sequence | C1: Comment | D1: Length (µm) | E1: Width (µm) | F1: Length/Width | G1: Width x Length | H1: Elevation | K1: Bite | L1: End Divot | M1: #Divots | N1: Canoe | S1: Smooth | T1: Filamented | X1: Comment | Y1: Dividing? | Z1: Waist | AB1: Divot Length | AC1: Divot Width | AD1: Divot Depth | AE1: %Surface Coverage | AF1: Canoe Length | AG1: Canoe Width | AH1: Canoe Depth | AI1: %Surface Coverage | AJ1: Bite Length | AK1: Bite Width | AL1: Bite Depth | AM1: %Surface Coverage
A2: =1 -> 1 | B2: 57 | C2: revised | D2: 5.856 | E2: 1.073 | F2: =D2/E2 -> 5.457595527 | G2: =D2*E2 -> 6.283488 | T2: 1 | X2: Not dividing, filamented | AE2: =(AB2*AC2)/($D$2*$E$2)*100 -> 0 | AI2: =(AF2*AG2)/($D$2*$E$2)*100 -> 0 | AM2: =(AJ2*AK2)/($D$2*$E$2)*100 -> 0
A3: =A2+1 -> 2 | B3: 34 | D3: 1.792 | E3: 1.129 | F3: =D3/E3 -> 1.58724535 | G3: =D3*E3 -> 2.023168 | N3: 1 | AE3: =(AB3*AC3)/($D$2*$E$2)*100 -> 0 | AI3: =(AF3*AG3)/($D$2*$E$2)*100 -> 0
A4: =A3+1 -> 3 | B4: 55 | C4: revised | D4: 3.008 | E4: 1.173 | F4: 2.564364876 | G4: 3.528384 | H4: 0.332 | X4: Already divided | AE4: 0 | AI4: 0
A5: =A4+1 -> 4 | B5: 4 | D5: 3.076 | E5: 1.053 | F5: 2.921177588 | G5: 3.239028 | X5: Raised ends with lower side walls, similar to "sink canoe" with less drastic drop in the middle | AE5: 0 | AI5: 0
A6: 5 | B6: 13 | D6: 2.564 | E6: 1.11 | F6: 2.30990991 | G6: 2.84604 | X6: Forming two canoes | Y6: 1 | Z6: 0.941 | AE6: 0 | AI6: 0
A7: 6 | B7: 91 | D7: 3.534 | E7: 1.044 | F7: 3.385057471 | G7: 3.689496 | H7: 0.347 | X7: Canoe with discontinuous walls | AE7: 0 | AI7: 0
A8: 7 | B8: 20 | C8: revised | D8: 3.517 | E8: 1.058 | F8: 3.324196597 | G8: 3.720986 | K8: 1 | X8: Divided, Discontinuous, raised ends, non symmetrical side walls with lower elevation, randomly placed divots | Z8: 0.18 | AE8: 0 | AI8: 0
A9: 8 | B9: 25 | D9: 1.202 | E9: 0.977 | F9: 1.230296827 | G9: 1.174354 | N9: 1 | AE9: 0 | AI9: 0
A10: 9 | B10: 72 | D10: 1.619 | E10: 1.162 | F10: 1.393287435 | G10: 1.881278 | H10: 0.299 | X10: Canoe with discontinuous walls, one section lower than all others | AE10: 0 | AI10: 0
A11: 10 | B11: 87 | D11: 4.392 | E11: 1.091 | F11: 4.025664528 | G11: 4.791672 | T11: 1 | AE11: 0 | AI11: 0
A12: 11 | B12: 1 | D12: 3.787 | E12: 1.313 | F12: 2.884234577 | G12: 4.972331 | X12: Discontinuous, raised ends, a canoe-like feature in the middle (asymmetrical) | AE12: 0 | AI12: 0
A13: 12 | B13: 13 | D13: 3.045 | E13: 1.156 | F13: 2.634083045 | G13: 3.52002 | H13: 0.349 | X13: Similar to cell #4, side walls discontinuous | AE13: 0 | AI13: 0
A14: 13 | B14: 28 | C14: revised | D14: 3.468 | E14: 1.149 | F14: 3.018276762 | G14: 3.984732 | K14: 1 | X14: Divided, Discontinuous, large depression in the middle, one wall lower than other, riased ends | Z14: 0.52 | AE14: 0 | AI14: 0
A15: 14 | B15: 36 | D15: 3.55 | E15: 1.123 | F15: 3.161175423 | G15: 3.98665 | K15: 1 | X15: Similar to cell #13 | AE15: 0 | AI15: 0
A16: 15 | B16: 48 | D16: 1.791 | E16: 1.113 | F16: 1.60916442 | G16: 1.993383 | H16: 0.358 | N16: 1 | AE16: 0 | AF16: 1.351 | AG16: 0.582 | AH16: 0.041 | AI16: 12.51346386
A17: 16 | B17: 83 | D17: 1.781 | E17: 1.064 | F17: 1.67387218 | G17: 1.894984 | K17: 1 | X17: Similar to cell #4 | AE17: 0 | AI17: 0
A18: 17 | B18: 91 | D18: 2.289 | E18: 1.058 | F18: 2.163516068 | G18: 2.421762 | L18: 1 | M18: 3 | AE18: 0 | AI18: 0
A19: 18 | B19: 34 | D19: 4.676 | E19: 1.123 | F19: 4.163846839 | G19: 5.251148 | H19: 0.392 | T19: 1 | AE19: 0 | AI19: 0
A20: 19 | B20: 72 | D20: 1.735 | E20: 1.115 | F20: 1.556053812 | G20: 1.934525 | K20: 1 | AE20: 0 | AI20: 0
A21: 20 | B21: 37 | D21: 3.016 | E21: 1.242 | F21: 2.428341385 | G21: 3.745872 | X21: Similar to cell #4 with a small bite like feature on one side wall | AE21: 0 | AI21: 0
A22: 21 | B22: 27 | C22: revised | D22: 2.911 | E22: 1.159 | F22: 2.511647972 | G22: 3.373849 | H22: 0.354 | X22: Divided, Similar to cell #4 | AE22: 0 | AI22: 0
A23: 22 | B23: 84 | D23: 1.869 | E23: 1.142 | F23: 1.636602452 | G23: 2.134398 | L23: 1 | M23: 2 | AE23: 0 | AI23: 0
A24: 23 | B24: 22 | D24: 2.28 | E24: 0.998 | F24: 2.284569138 | G24: 2.27544 | K24: 1 | X24: Similar to cell #4 | Y24: 1 | Z24: 1.079 | AE24: 0 | AI24: 0
A25: 24 | B25: 49 | D25: 2.566 | E25: 0.998 | F25: 2.571142285 | G25: 2.560868 | H25: 0.328 | X25: Similar to cell #20 | AE25: 0 | AI25: 0
A26: 25 | B26: 56 | D26: 2.802 | E26: 1.083 | F26: 2.587257618 | G26: 3.034566 | X26: Discontinuous, randomly placed indents, raised ends, | AE26: 0 | AI26: 0
A27: 26 | B27: 14 | D27: 3.581 | E27: 1.174 | F27: 3.050255537 | G27: 4.204094 | X27: Similar to cell #20 | AE27: 0 | AI27: 0
A28: 27 | B28: 92 | D28: 2.517 | E28: 1.107 | F28: 2.273712737 | G28: 2.786319 | H28: 0.279 | L28: 1 | M28: 2 | AB28: 0.696 | AC28: 0.664 | AD28: 0.043 | AE28: 7.354895879 | AI28: 0
A29: 28 | B29: 95 | D29: 2.776 | E29: 1.058 | F29: 2.623818526 | G29: 2.937008 | L29: 1 | M29: 2 | AE29: 0 | AI29: 0
A30: 29 | B30: 73 | D30: 1.489 | E30: 1.051 | F30: 1.416745956 | G30: 1.564939 | X30: Discontinuous, one raised end, depression near the middle, slanted | AE30: 0 | AI30: 0
A31: 30 | B31: 59 | D31: 2.751 | E31: 1.084 | F31: 2.537822878 | G31: 2.982084 | H31: 0.359 | K31: 1 | X31: Similar to cell #20, divots present on both of the raised ends | AE31: 0 | AI31: 0
A32: 31 | B32: 93 | D32: 2.673 | E32: 1.077 | F32: 2.48189415 | G32: 2.878821 | X32: Discontinuous, randomly placed indents | AE32: 0 | AI32: 0
A33: 32 | B33: 87 | D33: 1.768 | E33: 1.005 | F33: 1.75920398 | G33: 1.77684 | N33: 1 | AE33: 0 | AI33: 0
A34: 33 | B34: 35 | D34: 1.276 | E34: 1.144 | F34: 1.115384615 | G34: 1.459744 | H34: 0.342 | X34: Discontinuous, one raised end, slanted, depression near middle, randomly placed indents | AE34: 0 | AI34: 0
A35: 34 | B35: 90 | D35: 2.146 | E35: 1.006 | F35: 2.133200795 | G35: 2.158876 | K35: 1 | X35: Similar to cell #4 | Z35: 1.305 | AE35: 0 | AI35: 0
A36: 35 | B36: 24 | D36: 5.575 | E36: 1.13 | F36: 4.933628319 | G36: 6.29975 | T36: 1 | AE36: 0 | AI36: 0
A37: 36 | B37: 40 | D37: 2.275 | E37: 0.981 | F37: 2.319062181 | G37: 2.231775 | H37: 0.323 | X37: Forming two canoes, bridge in the middle where dividing | Y37: 1 | Z37: 0.544 | AE37: 0 | AI37: 0
A38: 37 | B38: 3 | D38: 3.703 | E38: 1.223 | F38: 3.027800491 | G38: 4.528769 | X38: Similar to cell #20, Discontinuous, both ends raised, depression near middle, small bite like feature on one side | AE38: 0 | AI38: 0
A39: 38 | B39: 22 | D39: 2.773 | E39: 1.175 | F39: 2.36 | G39: 3.258275 | X39: Similar to cell #37/20 | AE39: 0 | AI39: 0
A40: 39 | B40: 80 | D40: 3.244 | E40: 0.974 | F40: 3.330595483 | G40: 3.159656 | H40: 0.382 | X40: Similar to cell #37/20 | Y40: 1 | Z40: 0.958 | AE40: 0 | AI40: 0
A41: 40 | B41: 23 | D41: 4.641 | E41: 1.077 | F41: 4.309192201 | G41: 4.998357 | T41: 1 | AE41: 0 | AI41: 0
A42: 41 | B42: 46 | D42: 3.177 | E42: 1.234 | F42: 2.574554295 | G42: 3.920418 | L42: 1 | M42: 2 | AE42: 0 | AI42: 0
A43: 42 | B43: 75 | D43: 2.669 | E43: 1.176 | F43: 2.269557823 | G43: 3.138744 | H43: 0.382 | K43: 1 | X43: Similar to cell #4 | AE43: 0 | AI43: 0
A44: 43 | B44: 45 | D44: 1.3 | E44: 1.083 | F44: 1.200369344 | G44: 1.4079 | X44: Discontinuous, randomly placed indents, slanted, offset canoe-like feature that runs all the way to the end of the cell | AE44: 0 | AI44: 0
A45: 44 | B45: 42 | D45: 2.845 | E45: 0.988 | F45: 2.879554656 | G45: 2.81086 | K45: 1 | X45: Raised ends, uneven surface | Y45: 1 | Z45: 1.121 | AE45: 0 | AI45: 0
A46: 45 | B46: 82 | D46: 2.519 | E46: 1.19 | F46: 2.116806723 | G46: 2.99761 | H46: 0.36 | X46: Similar to cell #4 | Y46: 1 | Z46: 0.912 | AE46: 0
A47: 46 | B47: 26 | D47: 2.636 | E47: 1.145 | F47: 2.302183406 | G47: 3.01822 | X47: Similar to end divot but one divot too large | AE47: 0
A48: 47 | B48: 64 | C48: revised | D48: 4.164 | E48: 1.106 | F48: 3.764918626 | G48: 4.605384 | T48: 1 | X48: Not dividing, filamented | AE48: 0
A49: 48 | B49: 81 | D49: 2.726 | E49: 1.165 | F49: 2.339914163 | G49: 3.17579 | H49: 0.281 | L49: 1 | M49: 2 | AB49: 0.739 | AC49: 0.591 | AD49: 0.074 | AE49: 6.950741372
A50: 49 | B50: 62 | D50: 2.527 | E50: 1.195 | F50: 2.114644351 | G50: 3.019765 | X50: Forming two canoe cells | Y50: 1 | Z50: 1.029
A51: 50 | B51: 71 | D51: 1.985 | E51: 1.322 | F51: 1.501512859 | G51: 2.62417 | X51: Discontinuous, randomly placed indents
A52: 51 | B52: 58
A53: 52 | B53: 25
A54: 53 | B54: 15
A55: 54 | B55: 5
A56: 55 | B56: 29
A57: 56 | B57: 5
A58: 57 | B58: 7
A59: 58 | B59: 57
A60: 59 | B60: 82
A61: 60 | B61: 21
A62: 61 | B62: 24
A63: 62 | B63: 30
A64: Count | D64: =COUNT(D2:D63) -> 50 | E64: =COUNT(E2:E63) -> 50 | F64: =COUNT(F2:F63) -> 50 | G64: =COUNT(G2:G63) -> 50 | H64: =COUNT(H2:H63) -> 16 | I64: Instances | K64: =COUNT(K2:K63) -> 10 | L64: 6 | M64: 6 | N64: 4 | S64: 0 | T64: 6 | X64: 0 | Y64: 7 | Z64: =COUNT(Z2:Z63) -> 10 | AB64: =COUNT(AB2:AB63) -> 2 | AC64: 2 | AD64: 2 | AE64: 48 | AF64: 1 | AG64: 1 | AH64: 1 | AI64: 44 | AJ64: 0 | AK64: 0 | AL64: 0 | AM64: 1
A65: AVG | D65: =AVERAGE(D2:D63) -> 2.83724 | E65: =AVERAGE(E2:E63) -> 1.11152 | F65: =AVERAGE(F2:F63) -> 2.556378284 | G65: =AVERAGE(G2:G63) -> 3.1641318 | H65: =AVERAGE(H2:H63) -> 0.3416875 | I65: Fraction | K65: =K64/$D$64 -> 0.2 | L65: 0.12 | M65: 0.12 | N65: 0.08 | S65: 0 | T65: 0.12 | X65: 0 | Y65: 0.14 | Z65: =AVERAGE(Z2:Z63) -> 0.8589 | AB65: =AVERAGE(AB2:AB63) -> 0.7175 | AC65: 0.6275 | AD65: 0.0585 | AE65: 0.2980341094 | AF65: 1.351 | AG65: 0.582 | AH65: 0.041 | AI65: 0.2843969059 | AM65: 0
A66: STDEV | D66: =STDEV(D2:D63) -> 1.030212432 | E66: =STDEV(E2:E63) -> 0.08083776648 | F66: =STDEV(F2:F63) -> 0.9302923994 | G66: =STDEV(G2:G63) -> 1.185080071 | H66: =STDEV(H2:H63) -> 0.03364663183 | I66: Number/Cell | M66: =SUM(M3:M63)/L$64 -> 2.166666667 | Z66: =STDEV(Z2:Z63) -> 0.3398334396 | AB66: =STDEV(AB2:AB63) -> 0.03040559159 | AC66: 0.05161879503 | AD66: 0.02192031022 | AE66: 1.445048267 | AI66: 1.886475657

Sheet H5_08021540
A1: Cell Number | B1: Number Sequence | C1: Omit reason | D1: Length (mm) | E1: Width (mm) | F1: Length/Width | G1: Length x Width | H1: Elevation | K1: Bite | L1: End Divot | M1: #Divots | N1: Canoe | S1: Smooth | T1: Filamented | X1: comment | Y1: Dividing | Z1: Waist | AB1: divot length | AC1: divot width | AD1: divot depth | AE1: % surface divot | AF1: canoe length | AG1: canoe width | AH1: canoe depth | AI1: % surface canoe | AJ1: bite length | AK1: bite width | AL1: bite depth | AM1: %surface bite
A2: 1 | B2: 72 | C2: ! | D2: 3.23 | E2: 1.154 | F2: =D2/E2 -> 2.798960139 | G2: =D2*E2 -> 3.72742 | X2: large, irregular dip
A3: =1+A2 -> 2 | B3: 51 | D3: 2.239 | E3: 1.177 | F3: 1.902293968 | G3: 2.635303 | AB3: 0.352 | AC3: 0.295 | AD3: 0.041 | AE3: =(AC3*AB3)/(D3*E3) -> 0.03940343862
A4: 3 | B4: 8 | D4: 1.527 | E4: 1.001 | F4: 1.525474525 | G4: 1.528527 | H4: 0.235 | S4: 1
A5: 4 | B5: 63 | D5: 3.118 | E5: 1.12 | F5: 2.783928571 | G5: 3.49216 | L5: 1 | M5: 3 | X5: end divots forming?
A6: 5 | B6: 76 | D6: 3.966 | E6: 1.352 | F6: 2.933431953 | G6: 5.362032 | X6: lumpy, irregular
A7: 6 | B7: 26 | D7: 2.447 | E7: 0.851 | F7: 2.875440658 | G7: 2.082397 | H7: 0.263 | X7: random bump
A8: 7 | B8: 52 | D8: 2.389 | E8: 1.162 | F8: 2.055938038 | G8: 2.776018 | S8: 1 | AB8: 0.478 | AC8: 0.385 | AD8: 0.01 | AE8: =(AC8*AB8)/(D8*E8) -> 0.06629279781
A9: 8 | B9: 38 | C9: blurry
A10: 9 | B10: 14 | D10: 3.336 | E10: 1.204 | F10: =D10/E10 -> 2.77076412 | G10: =D10*E10 -> 4.016544 | H10: 0.299 | S10: 1 | X10: rough
A11: 10 | B11: 45 | C11: blurry
A12: 11 | B12: 3 | D12: 2.684 | E12: 1.167 | F12: =D12/E12 -> 2.29991431 | G12: =D12*E12 -> 3.132228 | L12: 1 | AB12: 0.358 | AC12: 0.247 | AD12: 0.02 | AE12: =(AC12*AB12)/(D12*E12) -> 0.02823102277
A13: 12 | B13: 44 | D13: 1.672 | E13: 1.444 | F13: =D13/E13 -> 1.157894737 | G13: =D13*E13 -> 2.414368 | H13: 0.314 | S13: 1
A14: 13 | B14: 5 | C14: washed out
A15: 14 | B15: 11 | D15: 1.356 | E15: 1.162 | F15: =D15/E15 -> 1.166953528 | G15: =D15*E15 -> 1.575672 | S15: 1
A16: 15 | B16: 75 | D16: 3.618 | E16: 1.398 | F16: =D16/E16 -> 2.587982833 | G16: =D16*E16 -> 5.057964 | H16: 0.25 | S16: 1 | Y16: 1 | Z16: 1.224 | AB16: 0.353 | AC16: 0.399 | AD16: 0.01 | AE16: =(AC16*AB16)/(D16*E16) -> 0.02784658017
A17: 16 | B17: 95 | C17: blurry
A18: 17 | B18: 41 | D18: 2.459 | E18: 1.067 | F18: =D18/E18 -> 2.304592315 | G18: =D18*E18 -> 2.623753 | S18: 1
A19: 18 | B19: 85 | D19: 1.716 | E19: 1.326 | F19: 1.294117647 | G19: 2.275416 | H19: 0.254 | S19: 1 | AB19: 0.549 | AC19: 0.464 | AD19: 0.013 | AE19: =(AC19*AB19)/(D19*E19) -> 0.111951397
A20: 19 | B20: 92 | D20: 3.961 | E20: 0.943 | F20: 4.200424178 | G20: 3.735223 | S20: 1 | X20: dividing?
A21: 20 | B21: 15 | C21: revised | D21: 2.065 | E21: 1.137 | F21: 1.816182938 | G21: 2.347905 | T21: 1 | X21: Not dividing, filamented, same as cell 34 | AB21: 0.323 | AC21: 0.334 | AD21: 0.019 | AE21: =(AC21*AB21)/(D21*E21) -> 0.04594819637
A22: 21 | B22: 17 | D22: 1.79 | E22: 0.89 | F22: 2.011235955 | G22: 1.5931 | H22: 0.254 | S22: 1 | X22: recovering bite?
A23: 22 | B23: 20 | D23: 1.351 | E23: 1.18 | F23: 1.144915254 | G23: 1.59418 | X23: divided
A24: 23 | B24: 42 | C24: revised | D24: 2.836 | E24: 1.184 | F24: 2.39527027 | G24: 3.357824 | X24: random bump, not dividing
A25: 24 | B25: 95 | D25: 2.923 | E25: 1.115 | F25: 2.621524664 | G25: 3.259145 | H25: 0.267 | X25: lumpy
A26: 25 | B26: 41 | D26: 2.858 | E26: 1.058 | F26: 2.701323251 | G26: 3.023764 | X26: recovering bite?
A27: 26 | B27: 84 | D27: 2.322 | E27: 0.993 | F27: 2.33836858 | G27: 2.305746 | S27: 1
A28: 27 | B28: 83 | D28: 4.959 | E28: 1.083 | F28: 4.578947368 | G28: 5.370597 | H28: 0.262 | T28: 1
A29: 28 | B29: 33 | D29: 2.267 | E29: 1.378 | F29: 1.645137881 | G29: 3.123926 | S29: 1
A30: 29 | B30: 98 | D30: 3.317 | E30: 1.129 | F30: 2.937998229 | G30: 3.744893
A31: 30 | B31: 16 | D31: 2.157 | E31: 1.102 | F31: 1.957350272 | G31: 2.377014 | H31: 0.271
A32: 31 | B32: 85 | D32: 3.04 | E32: 1.2 | F32: 2.533333333 | G32: 3.648 | S32: 1 | X32: end divots forming?
A33: 32 | B33: 77 | D33: 2.202 | E33: 1.219 | F33: 1.806398687 | G33: 2.684238 | N33: 1 | X33: random bumps(2)
A34: 33 | B34: 51 | D34: 1.945 | E34: 1.175 | F34: 1.655319149 | G34: 2.285375 | H34: 0.283
A35: =1+A34 -> 34 | B35: 16 | D35: 2.434 | E35: 1.223 | F35: 1.990188062 | G35: 2.976782 | S35: 1
A36: 35 | B36: 72 | D36: 1.922 | E36: 1.157 | F36: 1.66119274 | G36: 2.223754 | S36: 1 | X36: recovering bite?
A37: 36 | B37: 69 | D37: 1.902 | E37: 1.214 | F37: 1.566721582 | G37: 2.309028 | H37: 0.263 | S37: 1 | X37: recovering bite?
A38: 37 | B38: 42 | D38: 2.294 | E38: 1.208 | F38: 1.899006623 | G38: 2.771152 | X38: lumpy
A39: 38 | B39: 55 | D39: 1.644 | E39: 1.292 | F39: 1.27244582 | G39: 2.124048 | K39: 1 | AJ39: 1.233 | AK39: 0.881 | AL39: 0.054 | AM39: =(AJ39*AK39)/(D39*E39) -> 0.5114164087
A40: 39 | B40: 38 | D40: 2.785 | E40: 1.28 | F40: 2.17578125 | G40: 3.5648 | H40: 0.313 | X40: 2 trench
A41: 40 | B41: 19 | D41: 3.603 | E41: 1.003 | F41: 3.59222333 | G41: 3.613809 | S41: 1 | Y41: 1 | Z41: 0.967 | AB41: 0.278 | AC41: 0.226 | AD41: 0.014 | AE41: =(AC41*AB41)/(D41*E41) -> 0.01738553421
A42: 41 | B42: 27 | C42: overlapped
A43: 42 | B43: 45 | D43: 1.502 | E43: 1.333 | F43: =D43/E43 -> 1.126781695 | G43: =D43*E43 -> 2.002166 | X43: rough
A44: 43 | B44: 32 | D44: 1.469 | E44: 1.339 | F44: 1.097087379 | G44: 1.966991 | H44: 0.377 | X44: recovering bite?
A45: 44 | B45: 13 | D45: 1.524 | E45: 1.062 | F45: 1.435028249 | G45: 1.618488 | S45: 1
A46: 45 | B46: 31 | D46: 2.363 | E46: 1.126 | F46: 2.098579041 | G46: 2.660738 | S46: 1
A47: 46 | B47: 73 | D47: 2.48 | E47: 1.363 | F47: 1.819515774 | G47: 3.38024 | H47: 0.261 | S47: 1 | X47: canoe-like
A48: 47 | B48: 31 | C48: revised | D48: 4.928 | E48: 1.012 | F48: 4.869565217 | G48: 4.987136 | T48: 1 | X48: Not dividing, filamented
A49: 48 | B49: 25 | D49: 1.321 | E49: 0.917 | F49: 1.440567067 | G49: 1.211357
A50: 49 | B50: 20 | D50: 1.314 | E50: 0.96 | F50: 1.36875 | G50: 1.26144 | H50: 0.246
A51: 50 | B51: 48 | C51: nonexistant
A52: 51 | B52: 7 | D52: 2.882 | E52: 1.223 | F52: =D52/E52 -> 2.356500409 | G52: =D52*E52 -> 3.524686 | S52: 1 | Y52: 1 | Z52: 0.815
A53: 52 | B53: 74 | C53: revised | D53: 4.124 | E53: 1.121 | F53: 3.678858162 | G53: 4.623004 | T53: 1 | X53: Not dividing, filamented
A54: 53 | B54: 28 | D54: 1.111 | E54: 0.81 | F54: 1.371604938 | G54: 0.89991 | H54: 0.275
A55: 54 | B55: 60 | D55: 2.577 | E55: 1.214 | F55: 2.122734761 | G55: 3.128478 | S55: 1 | AB55: 0.358 | AC55: 0.446 | AD55: 0.012 | AE55: =(AC55*AB55)/(D55*E55) -> 0.05103695791
A56: 55 | B56: 73 | D56: 3.534 | E56: 1.284 | F56: 2.752336449 | G56: 4.537656 | S56: 1
A57: 56 | B57: 72 | D57: 1.562 | E57: 1.105 | F57: 1.413574661 | G57: 1.72601 | H57: 0.265
A58: 57 | B58: 99
A59: 58 | B59: 82
A60: 59 | B60: 56
A61: 60 | B61: 74
C64: Instances | D64: =COUNT(D2:D61) -> 50 | E64: =COUNT(E2:E61) -> 50 | F64: =COUNT(F2:F61) -> 50 | G64: =COUNT(G2:G61) -> 50 | H64: =COUNT(H2:H61) -> 18 | I64: Instances | K64: =COUNT(K2:K63) -> 1 | L64: 2 | M64: 1 | N64: 1 | S64: 23 | T64: 4 | X64: 0 | Y64: 3 | Z64: =COUNT(Z2:Z63) -> 3 | AB64: =COUNT(AB2:AB61) -> 8 | AC64: 8 | AD64: 8 | AE64: 8 | AF64: 0 | AG64: 0 | AH64: 0 | AI64: 0 | AJ64: 1 | AK64: 1 | AL64: 1 | AM64: 1
C65: Average | D65: =SUM(D2:D61)/50 -> 2.5005 | E65: =SUM(E2:E61)/50 -> 1.15234 | F65: =SUM(F2:F57)/50 -> 2.198209211 | G65: =AVERAGE(G2:G61) -> 2.8852481 | H65: =AVERAGE(H2:H61) -> 0.2751111111 | I65: Fraction | K65: =K64/$D$64 -> 0.02 | L65: 0.04 | M65: 0.02 | N65: 0.02 | S65: 0.46 | T65: 0.08 | X65: =X64/$D$64 -> 0 | Y65: =Y64/$D$64 -> 0.06 | Z65: =AVERAGE(Z2:Z63) -> 1.002 | AB65: =AVERAGE(AB2:AB61) -> 0.381125 | AC65: 0.3495 | AD65: 0.017375 | AE65: 0.04851199061 | AJ65: 1.233 | AK65: 0.881 | AL65: 0.054 | AM65: 0.5114164087
C66: STDEV | D66: =STDEV(D2:D6,D8:D42,D44:D53) -> 0.9278410253 | E66: =STDEV(E2:E61) -> 0.1433478159 | F66: =STDEV(F2:F53) -> 0.8939594774 | G66: =STDEV(G2:G61) -> 1.094846638 | H66: =STDEV(H2:H61) -> 0.03324576734 | I66: Number/Cell | M66: =SUM(M3:M63)/L$64 -> 1.5 | Z66: =STDEV(Z2:Z63) -> 0.2067341288 | AB66: =STDEV(AB2:AB61) -> 0.08806562083 | AC66: 0.08872268191 | AD66: 0.01025304833 | AE66: 0.02986604078

Sheet H6_01171646
A1: Cell Number | B1: Number Sequence | C1: Comment | D1: Length (µm) | E1: Width (µm) | F1: Length/Width | G1: Width x Length | H1: Elevation | K1: Bite | L1: End Divot | M1: #Divots | N1: Canoe | S1: Smooth | T1: Filamented | X1: Comment | Y1: Dividing? | Z1: Waist | AB1: Divot Length | AC1: Divot Width | AD1: Divot Depth | AE1: %Surface Coverage | AF1: Canoe Length | AG1: Canoe Width | AH1: Canoe Depth | AI1: %Surface Coverage | AJ1: Bite Length | AK1: Bite Width | AL1: Bite Depth | AM1: %Surface Coverage
A2: =1 -> 1 | B2: 31 | D2: 2.08 | E2: 1.087 | F2: =D2/E2 -> 1.913523459 | G2: =D2*E2 -> 2.26096 | K2: 1 | X2: canoe-like feature in middle--dwarked by bite feature though | AE2: =(AB2*AC2)/($D$2*$E$2)*100 -> 0 | AI2: =(AF2*AG2)/($D$2*$E$2)*100 -> 0 | AM2: =(AJ2*AK2)/($D$2*$E$2)*100 -> 0
A3: =A2+1 -> 2 | B3: 28 | D3: 1.602 | E3: 1.079 | F3: =D3/E3 -> 1.484708063 | G3: =D3*E3 -> 1.728558 | N3: 1 | AE3: =(AB3*AC3)/($D$2*$E$2)*100 -> 0 | AI3: =(AF3*AG3)/($D$2*$E$2)*100 -> 0 | AM3: =(AJ3*AK3)/($D$2*$E$2)*100 -> 0
A4: =A3+1 -> 3 | B4: 41 | D4: 2.104 | E4: 1.254 | F4: 1.677830941 | G4: 2.638416 | H4: 0.277 | L4: 1 | M4: 2 | AB4: 0.615 | AC4: 0.508 | AD4: 0.048 | AE4: 13.8180242 | AI4: 0 | AM4: 0
A5: 4 | B5: 42 | D5: 1.967 | E5: 1.126 | F5: 1.746891652 | G5: 2.214842 | K5: 1 | X5: Similar to cell #1 but on its side (similar to a bie cell, but bit is too large) | AE5: 0 | AI5: 0 | AM5: 0
A6: 5 | B6: 27 | D6: 1.648 | E6: 1.192 | F6: 1.382550336 | G6: 1.964416 | X6: Early formation of bite, not deep enough | AE6: 0 | AI6: 0 | AM6: 0
A7: 6 | B7: 74 | D7: 1.387 | E7: 1.036 | F7: 1.338803089 | G7: 1.436932 | H7: 0.399 | S7: 1 | AE7: 0 | AI7: 0 | AM7: 0
A8: 7 | B8: 50 | D8: 4.432 | E8: 1.056 | F8: 4.196969697 | G8: 4.680192 | X8: Similar to step, discontinuous | AE8: 0 | AI8: 0 | AM8: 0
A9: 8 | B9: 93 | D9: 1.486 | E9: 1.203 | F9: 1.23524522 | G9: 1.787658 | X9: Slanted donut | AE9: 0 | AI9: 0 | AM9: 0
A10: 9 | B10: 79 | C10: deleted | AE10: 0 | AF10: 0.812 | AG10: 0.389 | AH10: 0.07 | AI10: 13.97052579 | AM10: 0
A11: 10 | B11: 53 | D11: 1.341 | E11: 1.334 | F11: 1.005247376 | G11: 1.788894 | L11: 1 | M11: 2 | AE11: 0 | AI11: 0 | AM11: 0
A12: 11 | B12: 99 | D12: 1.64 | E12: 0.967 | F12: 1.695966908 | G12: 1.58588 | K12: 1 | AE12: 0 | AI12: 0 | AM12: 0
A13: 12 | B13: 93 | D13: 1.764 | E13: 1.167 | F13: 1.511568123 | G13: 2.058588 | H13: 0.356 | S13: 1 | X13: Shaped like a light bulb | AE13: 0 | AI13: 0 | AM13: 0
A14: 13 | B14: 80 | C14: revised | D14: 2.979 | E14: 0.996 | F14: 2.990963855 | G14: 2.967084 | X14: Similar to cell #1 | AE14: 0 | AI14: 0 | AM14: 0
A15: 14 | B15: 46 | D15: 3.816 | E15: 1.328 | F15: 2.873493976 | G15: 5.067648 | X15: Slightly raised ends, bite-like feature near middle | AE15: 0 | AI15: 0 | AM15: 0
A16: 15 | B16: 21 | D16: 2.297 | E16: 1.059 | F16: 2.169027384 | G16: 2.432523 | H16: 0.303 | K16: 1 | X16: canoe-like feature in bottom of bite | AE16: 0 | AI16: 0 | AM16: 0
A17: 16 | B17: 70 | D17: 2.055 | E17: 1.057 | F17: 1.944181646 | G17: 2.172135 | K17: 1 | X17: canoe-like feature in bottom of bite | AE17: 0 | AI17: 0 | AM17: 0
A18: 17 | B18: 30 | D18: 2.154 | E18: 1.171 | F18: 1.839453459 | G18: 2.522334 | X18: Sink-canoe (raised ends, low walls with an even lower middle, both walls have similar elevation) | AE18: 0 | AI18: 0 | AM18: 0
A19: 18 | B19: 2 | D19: 1.387 | E19: 1.031 | F19: 1.345295829 | G19: 1.429997 | H19: 0.301 | X19: Half of a sink-canoe, cut along short axis) | AE19: 0 | AI19: 0 | AM19: 0
A20: 19 | B20: 25 | D20: 2.166 | E20: 1.135 | F20: 1.908370044 | G20: 2.45841 | AE20: 0 | AI20: 0 | AM20: 0
A21: 20 | B21: 16 | D21: 1.89 | E21: 1.175 | F21: 1.608510638 | G21: 2.22075 | K21: 1 | X21: canoe-like feature in bottom of bite | AE21: 0 | AI21: 0 | AM21: 0
A22: 21 | B22: 20 | C22: revised | D22: 1.241 | E22: 1.066 | F22: 1.164165103 | G22: 1.322906 | H22: 0.285 | N22: 1 | X22: Deep canoe (.090 um) | AE22: 0 | AI22: 0 | AM22: 0
A23: 22 | B23: 90 | D23: 1.09 | E23: 0.985 | F23: 1.106598985 | G23: 1.07365 | N23: 1 | X23: Donut | AE23: 0 | AI23: 0 | AM23: 0
A24: 23 | B24: 95 | D24: 1.62 | E24: 1.053 | F24: 1.538461538 | G24: 1.70586 | S24: 1 | X24: Shaped like a tear drop | AE24: 0 | AI24: 0 | AM24: 0
A25: 24 | B25: 57 | D25: 3.265 | E25: 1.109 | F25: 2.944093778 | G25: 3.620885 | H25: 0.285 | N25: 1 | AE25: 0 | AF25: 2.656 | AG25: 0.517 | AH25: 0.06 | AI25: 60.73313991 | AM25: 0
A26: 25 | B26: 29 | D26: 2.046 | E26: 1.303 | F26: 1.570222563 | G26: 2.665938 | L26: 1 | M26: 2 | AE26: 0 | AI26: 0 | AM26: 0
A27: 26 | B27: 17 | D27: 2.808 | E27: 1.187 | F27: 2.365627633 | G27: 3.333096 | N27: 1 | AE27: 0 | AI27: 0 | AM27: 0
A28: 27 | B28: 18 | D28: 1.614 | E28: 1.319 | F28: 1.223654284 | G28: 2.128866 | H28: 0.3 | X28: Similar to cell #1, but recently divided so only one end is raised and the other is hardly bounded | AE28: 0 | AI28: 0 | AM28: 0
A29: 28 | B29: 36 | D29: 1.423 | E29: 1.162 | F29: 1.224612737 | G29: 1.653526 | X29: Similar to cell #1, but recently divided so only one end is raised and the other is hardly bounded | AE29: 0 | AI29: 0 | AM29: 0
A30: 29 | B30: 96 | D30: 1.152 | E30: 1.146 | F30: 1.005235602 | G30: 1.320192 | X30: Recently divided end divot | AE30: 0 | AI30: 0 | AM30: 0
A31: 30 | B31: 98 | D31: 1.079 | E31: 0.847 | F31: 1.27390791 | G31: 0.913913 | H31: 0.336 | S31: 1 | AE31: 0 | AI31: 0 | AM31: 0
A32: 31 | B32: 88 | D32: 2.073 | E32: 0.935 | F32: 2.217112299 | G32: 1.938255 | X32: Similar to cell #1, but not as distint or deep middle, also similar to a dividing end divot, | Y32: 1 | Z32: 0.823 | AE32: 0 | AI32: 0 | AM32: 0
A33: 32 | B33: 40 | D33: 1.843 | E33: 1.206 | F33: 1.528192371 | G33: 2.222658 | K33: 1 | AE33: 0 | AI33: 0 | AM33: 0
A34: 33 | B34: 3 | D34: 4.121 | E34: 1.236 | F34: 3.334142395 | G34: 5.093556 | H34: 0.346 | T34: 1 | AE34: 0 | AI34: 0 | AM34: 0
A35: 34 | B35: 85 | D35: 2.118 | E35: 1.411 | F35: 1.501063076 | G35: 2.988498 | X35: Early bite | AE35: 0 | AI35: 0 | AM35: 0
A36: 35 | B36: 31 | D36: 3.834 | E36: 1.142 | F36: 3.357267951 | G36: 4.378428 | X36: Similar to cell #1 but longer, lowest wall has elevation around 0.145 um and more than .01 um elevation difference from sunken middle | AE36: 0 | AI36: 0 | AM36: 0
A37: 36 | B37: 22 | D37: 1.974 | E37: 1.113 | F37: 1.773584906 | G37: 2.197062 | H37: 0.352 | S37: 1 | X37: Slanted, shallow canoe | AE37: 0 | AI37: 0 | AM37: 0
A38: 37 | B38: 4 | D38: 2.878 | E38: 0.999 | F38: 2.880880881 | G38: 2.875122 | L38: 1 | M38: 2 | X38: Has similar characteristics to cell #1 with one wall that is much lower than the others | Y38: 1 | Z38: 0.528 | AE38: 0 | AI38: 0 | AM38: 0
A39: 38 | B39: 92 | D39: 1.401 | E39: 1.046 | F39: 1.339388145 | G39: 1.465446 | S39: 1 | X39: Discontinuous, peak-like, randomly placed indents | AE39: 0 | AI39: 0 | AM39: 0
A40: 39 | B40: 81 | D40: 3.877 | E40: 1.174 | F40: 3.302385009 | G40: 4.551598 | H40: 0.322 | X40: Similar to cell #1, long | AE40: 0 | AI40: 0 | AM40: 0
A41: 40 | B41: 58 | D41: 3.58 | E41: 1.247 | F41: 2.870890136 | G41: 4.46426 | X41: Discontinuous canoe, walls are not uniform/continuous | AE41: 0 | AI41: 0 | AM41: 0
A42: 41 | B42: 39 | D42: 2.002 | E42: 1.108 | F42: 1.806859206 | G42: 2.218216 | N42: 1 | AE42: 0 | AI42: 0 | AM42: 0
A43: 42 | B43: 48 | X43: Peak-like with a divot in the middle | AE43: 0 | AI43: 0 | AM43: 0
A44: 43 | B44: 10 | D44: 1.827 | E44: 1.1 | F44: 1.660909091 | G44: 2.0097 | L44: 1 | M44: 2 | AE44: 0 | AI44: 0 | AM44: 0
A45: 44 | B45: 32 | D45: 1.598 | E45: 1.086 | F45: 1.47145488 | G45: 1.735428 | X45: Relatively smooth surface with one raised end (to large to be classified as bump) | AE45: 0 | AI45: 0 | AM45: 0
A46: 45 | B46: 47 | D46: 2.276 | E46: 1.107 | F46: 2.056007227 | G46: 2.519532 | H46: 0.264 | L46: 1 | M46: 2 | AB46: 0.715 | AC46: 0.521 | AD46: 0.072 | AE46: 16.47596596 | AM46: 0
A47: 46 | B47: 48 | D47: 2.276 | E47: 1.002 | F47: 2.271457086 | G47: 2.280552 | X47: Similar to cell #1 | Z47: 0.974 | AM47: 0
A48: 47 | B48: 70 | D48: 1.822 | E48: 1.115 | F48: 1.634080717 | G48: 2.03153 | X48: Canoe in Process of Becoming Bite | AM48: 0
A49: 48 | B49: 80 | D49: 1.505 | E49: 1.035 | F49: 1.45410628 | G49: 1.557675 | H49: 0.317 | K49: 1 | AJ49: 0.675 | AK49: 0.501 | AL49: 0.161 | AM49: 14.9571421
A50: 49 | B50: 45 | D50: 1.723 | E50: 1.016 | F50: 1.695866142 | G50: 1.750568 | X50: Discontinuous, nonsymmetrical shape with randomly placed indents (valley-like)
A51: 50 | B51: 9 | D51: 1.534 | E51: 0.95 | F51: 1.614736842 | G51: 1.4573 | N51: 1 | X51: One wall much higher than other
A52: 51 | B52: 59
A53: 52 | B53: 1
A54: 53 | B54: 17
A55: 54 | B55: 70
A56: 55 | B56: 99
A57: 56 | B57: 97
A58: 57 | B58: 88
A59: 58 | B59: 11
A60: 59 | B60: 90
A61: 60 | B61: 65
A62: 61 | B62: 79
A63: 62 | B63: 22
A64: Count | D64: =COUNT(D2:D63) -> 48 | E64: =COUNT(E2:E63) -> 48 | F64: =COUNT(F2:F63) -> 48 | G64: =COUNT(G2:G63) -> 48 | H64: =COUNT(H2:H63) -> 14 | I64: Instances | K64: =COUNT(K2:K63) -> 8 | L64: =COUNT(L2:L63) -> 6 | M64: =COUNT(M2:M63) -> 6 | N64: =COUNT(N2:N63) -> 7 | S64: =COUNT(S2:S63) -> 6 | T64: =COUNT(T2:T63) -> 1 | X64: =COUNT(X2:X63) -> 0 | Y64: =COUNT(Y2:Y63) -> 2 | Z64: =COUNT(Z2:Z63) -> 3 | AB64: =COUNT(AB2:AB63) -> 2 | AC64: 2 | AD64: 2 | AE64: 45 | AF64: 2 | AG64: 2 | AH64: 2 | AI64: 44 | AJ64: 1 | AK64: 1 | AL64: 1 | AM64: 48
A65: AVG | D65: =AVERAGE(D2:D63) -> 2.120729167 | E65: =AVERAGE(E2:E63) -> 1.117875 | F65: =AVERAGE(F2:F63) -> 1.896990968 | G65: =AVERAGE(G2:G63) -> 2.393550688 | H65: =AVERAGE(H2:H63) -> 0.3173571429 | I65: Fraction | K65: =K64/$D$64 -> 0.1666666667 | L65: =L64/$D$64 -> 0.125 | M65: =M64/$D$64 -> 0.125 | N65: =N64/$D$64 -> 0.1458333333 | S65: =S64/$D$64 -> 0.125 | T65: =T64/$D$64 -> 0.02083333333 | X65: =X64/$D$64 -> 0 | Y65: =Y64/$D$64 -> 0.04166666667 | Z65: =AVERAGE(Z2:Z63) -> 0.775 | AB65: =AVERAGE(AB2:AB63) -> 0.665 | AC65: 0.5145 | AD65: 0.06 | AE65: 0.6731997814 | AF65: 1.734 | AG65: 0.453 | AH65: 0.065 | AI65: 1.697810584 | AJ65: 0.675 | AK65: 0.501 | AL65: 0.161 | AM65: 0.3116071271
A66: STDEV | D66: =STDEV(D2:D63) -> 0.8428087979 | E66: =STDEV(E2:E63) -> 0.1146499993 | F66: =STDEV(F2:F63) -> 0.7228101298 | G66: =STDEV(G2:G63) -> 1.045016307 | H66: =STDEV(H2:H63) -> 0.03709988004 | I66: Number/Cell | M66: =SUM(M3:M63)/L$64 -> 2 | Z66: =STDEV(Z2:Z63) -> 0.2268413543 | AB66: =STDEV(AB2:AB63) -> 0.07071067812 | AC66: 0.009192388155 | AD66: 0.01697056275 | AE66: 3.169461309 | AF66: 1.303904905 | AG66: 0.09050966799 | AH66: 0.007071067812 | AI66: 9.347126408 | AM66: 2.158877504

Sheet H6_01171140
A1: Cell Number | B1: Number Sequence | C1: Comment | D1: Length (µm) | E1: Width (µm) | F1: Length/Width | G1: Width x Length | H1: Elevation | K1: Bite | L1: End Divot | M1: #Divots | N1: Canoe | S1: Smooth | T1: Filamented | X1: Comment | Y1: Dividing? | Z1: Waist | AB1: Divot Length | AC1: Divot Width | AD1: Divot Depth | AE1: %Surface Coverage | AF1: Canoe Length | AG1: Canoe Width | AH1: Canoe Depth | AI1: %Surface Coverage | AJ1: Bite Length | AK1: Bite Width | AL1: Bite Depth | AM1: %Surface Coverage
A2: =1 -> 1 | B2: 36 | D2: 1.153 | E2: 0.905 | F2: =D2/E2 -> 1.274033149 | G2: =D2*E2 -> 1.043465 | X2: Peak-like
A3: =A2+1 -> 2 | B3: 51 | D3: 4.788 | E3: 1.132 | F3: =D3/E3 -> 4.229681979 | G3: =D3*E3 -> 5.420016 | T3: 1 | X3: Discontinuous, convex, slanted, recently divided
A4: =A3+1 -> 3 | B4: 59 | D4: 1.545 | E4: 0.988 | F4: 1.563765182 | G4: 1.52646 | H4: 0.381 | S4: 1 | X4: Convex, image here is doubled, mostly smooth
A5: 4 | B5: 13 | D5: 1.241 | E5: 0.913 | F5: 1.359255203 | G5: 1.133033 | S5: 1 | X5: Convex, image doubled
A6: 5 | B6: 75 | D6: 1.969 | E6: 1.116 | F6: 1.764336918 | G6: 2.197404 | K6: 1
A7: 6 | B7: 82 | D7: 2.551 | E7: 1.05 | F7: 2.42952381 | G7: 2.67855 | H7: 0.383 | X7: A rod-like cell with a large indent in the middle that occupies about 1/3 of the cell, inclosed by low and thin cell walls
A8: 7 | B8: 65 | D8: 3.232 | E8: 1.069 | F8: 3.023386342 | G8: 3.455008 | K8: 1 | X8: A rod-like cell with a large indent in the middle that occupies about 1/3 of the cell, inclosed by low and thin cell walls (similar to #6)
A9: 8 | B9: 9 | D9: 1.129 | E9: 1.106 | F9: 1.02079566 | G9: 1.248674 | X9: Peak-like, shaped like an oval
A10: 9 | B10: 57 | D10: 1.161 | E10: 1.058 | F10: 1.097353497 | G10: 1.228338 | H10: 0.361 | K10: 1 | X10: Peak-like, round
A11: 10 | B11: 91 | D11: 1.187 | E11: 1.122 | F11: 1.057932264 | G11: 1.331814 | S11: 1 | X11: Peak-like, mostly round
A12: 11 | B12: 38 | D12: 0.999 | E12: 0.763 | F12: 1.309305374 | G12: 0.762237 | K12: 1 | X12: Peak-like, rough surface, oval shaped
A13: 12 | B13: 71 | D13: 1.115 | E13: 0.763 | F13: 1.461336828 | G13: 0.850745 | H13: 0.297 | X13: Somewhat smooth, rod-like, a small peak
A14: 13 | B14: 68 | D14: 1.38 | E14: 0.982 | F14: 1.405295316 | G14: 1.35516 | S14: 1 | X14: Discontinuous, recently divided, convex
A15: 14 | B15: 88 | D15: 1.127 | E15: 0.776 | F15: 1.452319588 | G15: 0.874552 | X15: Peak-like, football shaped
A16: 15 | B16: 63 | D16: 4.027 | E16: 0.974 | F16: 4.13449692 | G16: 3.922298 | H16: 0.297 | T16: 1 | X16: Discontinuous, long
A17: 16 | B17: 73 | D17: 1.466 | E17: 1.1 | F17: 1.332727273 | G17: 1.6126 | S17: 1 | X17: Peak-like, egg-shaped
A18: 17 | B18: 80 | D18: 2.685 | E18: 1.114 | F18: 2.410233393 | G18: 2.99109 | X18: Discontinuous, slanted, lowest near division site | Y18: 1 | Z18: 0.99
A19: 18 | B19: 21 | D19: 1.162 | E19: 0.806 | F19: 1.441687345 | G19: 0.936572 | H19: 0.344 | X19: Discontinuous, convex
A20: 19 | B20: 80 | D20: 1.072 | E20: 1 | F20: 1.072 | G20: 1.072 | S20: 1 | X20: Peak-like, rough surface, nearly round
A21: 20 | B21: 83 | D21: 2.599 | E21: 0.913 | F21: 2.846659365 | G21: 2.372887 | K21: 1 | X21: A rod-like cell with a large indent in the middle that occupies about 1/3 of the cell, inclosed by low and thin cell walls (similar to #6 and #7)
A22: 21 | B22: 50 | D22: 1.021 | E22: 0.784 | F22: 1.302295918 | G22: 0.800464 | H22: 0.347 | S22: 1 | X22: Peak-like, nearly round, mostly smooth
A23: 22 | B23: 33 | D23: 1.3 | E23: 1.175 | F23: 1.106382979 | G23: 1.5275 | S23: 1 | X23: Recently divided, similar to #6, 7, 20 but a little older so it has divided, only one small wall connects this cell to its sister,
A24: 23 | B24: 11 | D24: 1.586 | E24: 0.839 | F24: 1.89034565 | G24: 1.330654 | S24: 1 | X24: Discontinuous, rough surface, convex
A25: 24 | B25: 52 | D25: 1.933 | E25: 1.227 | F25: 1.575387123 | G25: 2.371791 | H25: 0.418 | K25: 1 | X25: Similar to hour 12 cells, low elevation in the middle with very rasied edges on the ends, this cell is shorter than most of the 12 hour cells
A26: 25 | B26: 90 | D26: 1.532 | E26: 0.885 | F26: 1.731073446 | G26: 1.35582 | X26: Peak-like, mostly smooth, shaped like a triangle with rounded edges
A27: 26 | B27: 18 | D27: 1.419 | E27: 1.123 | F27: 1.263579697 | G27: 1.593537 | K27: 1 | X27: Discontinuous, convex, similar to 22 where there is a low wall connectin gthis cell to its sister but one corner of the sister cell is also nearly touching this cell (like when you crack an egg)
A28: 27 | B28: 86 | D28: 2.712 | E28: 1.032 | F28: 2.627906977 | G28: 2.798784 | H28: 0.357 | X28: Similar to a canoe but it has started to divide in the middle so the sides of the canoe are lower in there | Y28: 1 | Z28: 0.994
A29: 28 | B29: 23 | D29: 2.524 | E29: 1.181 | F29: 2.137171888 | G29: 2.980844 | X29: A peak-like cell dividing in the middle so two peaks fall into the valley at the division site | Y29: 1 | Z29: 0.959
A30: 29 | B30: 72 | D30: 1.457 | E30: 0.83 | F30: 1.755421687 | G30: 1.20931 | X30: Might be a bite cell but is next to a very tall cell so it seems like all edges are bounded
A31: 30 | B31: 50 | D31: 1.77 | E31: 0.826 | F31: 2.142857143 | G31: 1.46202 | H31: 0.319 | K31: 1 | X31: Slanted, rough surface
A32: 31 | B32: 67 | D32: 3.334 | E32: 1.127 | F32: 2.958296362 | G32: 3.757418 | X32: (Similar to #6, #7, and #20) but it appears that there is one central part with bridges (low, narrow walls) off of two opposite sides connecting it to two different parts of the cell. It's almost like 2 cells like #6 put together
A33: 32 | B33: 3 | C33: revised | D33: 1.328 | E33: 1.315 | F33: 1.009885932 | G33: 1.74632 | X33: Discontinuous, not dividing
A34: 33 | B34: 11 | D34: 2.532 | E34: 0.956 | F34: 2.648535565 | G34: 2.420592 | H34: 0.353 | K34: 1 | X34: Peak-like, rough surface
A35: 34 | B35: 56 | D35: 1.322 | E35: 1.269 | F35: 1.041765169 | G35: 1.677618 | S35: 1 | X35: Similar to 26 where there is a low wall connectin gthis cell to its sister but one corner of the sister cell is also nearly touching this cell (like when you crack an egg)
A36: 35 | B36: 40 | D36: 1.135 | E36: 0.998 | F36: 1.137274549 | G36: 1.13273 | S36: 1 | X36: Peak-like, mostly smooth
A37: 36 | B37: 90 | D37: 2.582 | E37: 1.01 | F37: 2.556435644 | G37: 2.60782 | H37: 0.373 | K37: 1 | X37: Peak-like, similar to 26 and 34
A38: 37 | B38: 2 | D38: 1.333 | E38: 1.101 | F38: 1.21071753 | G38: 1.467633 | S38: 1 | X38: Discontinuous, convex, rough surface
A39: 38 | B39: 65 | C39: ovelapped | X39: Peak-like, mostly smooth
A40: 39 | B40: 78 | D40: 2.079 | E40: 1.119 | F40: 1.857908847 | G40: 2.326401 | H40: 0.364 | K40: 1 | X40: A rod-like cell with a large indent in the middle that occupies about 1/3 of the cell, inclosed by low and thin cell walls (similar to #6 and #7 and #20)
A41: 40 | B41: 50 | D41: 4.143 | E41: 1.073 | F41: 3.861136999 | G41: 4.445439 | T41: 1 | X41: Similar to 26 and 34 where there is a low wall connectin gthis cell to its sister but one corner of the sister cell is also nearly touching this cell (like when you crack an egg) but much longer
A42: 41 | B42: 14 | D42: 2.59 | E42: 1.295 | F42: 2 | G42: 3.35405 | K42: 1 | X42: A rod-like cell with a large indent in the middle that occupies about 1/3 of the cell, inclosed by low and thin cell walls (similar to #6 and #7 and #20)
A43: 42 | B43: 85 | D43: 4.772 | E43: 1.192 | F43: 4.003355705 | G43: 5.688224 | H43: 0.269 | T43: 1 | X43: Discontinuous, lower elevation, convex
A44: 43 | B44: 98 | D44: 1.79 | E44: 0.961 | F44: 1.86264308 | G44: 1.72019 | K44: 1 | X44: Discontinuous, convex | Y44: 1 | Z44: 0.888
A45: 44 | B45: 11 | D45: 2.518 | E45: 1.219 | F45: 2.065627564 | G45: 3.069442 | K45: 1 | X45: Discontinuous, convex
A46: 45 | B46: 97 | D46: 2.284 | E46: 1.254 | F46: 1.821371611 | G46: 2.864136 | H46: 0.424 | K46: 1 | X46: (Similar to #6 and #7 and #20) A rod-like cell with a large indent in the middle that occupies about 1/3 of the cell, inclosed by low and thin cell walls but there seems to be a bridge across the indent
A47: 46 | B47: 97 | D47: 2.139 | E47: 1.29 | F47: 1.658139535 | G47: 2.75931 | K47: 1 | X47: Similar to 26 and 34 where there is a low wall connectin gthis cell to its sister but one corner of the sister cell is also nearly touching this cell (like when you crack an egg)
A48: 47 | B48: 91 | D48: 3.775 | E48: 1.138 | F48: 3.317223199 | G48: 4.29595 | X48: (Similar to #6 and #7 and #20) A rod-like cell with a large indent in the middle that occupies about 1/3 of the cell, inclosed by low and thin cell walls, but much longer
A49: 48 | B49: 66 | D49: 1.874 | E49: 1.162 | F49: 1.612736661 | G49: 2.177588 | H49: 0.376 | K49: 1 | X49: (Similar to #6 and #7 and #20) A rod-like cell with a large indent in the middle that occupies about 1/3 of the cell, inclosed by low and thin cell walls
A50: 49 | B50: 15 | D50: 1.116 | E50: 0.989 | F50: 1.128412538 | G50: 1.103724 | S50: 1 | X50: Discontinuous, convex, shaped like a triangle with rounded edges
A51: 50 | B51: 38 | D51: 1.027 | E51: 0.826 | F51: 1.243341404 | G51: 0.848302 | S51: 1 | X51: Discontinuous, lower elevation, odd shape (like a trapezoid
A52: 51 | B52: 4
A53: 52 | B53: 53
A54: 53 | B54: 66
A55: 54 | B55: 67
A56: 55 | B56: 65
A57: 56 | B57: 56
A58: 57 | B58: 70
A59: 58 | B59: 63
A60: 59 | B60: 15
A61: 60 | B61: 19
A62: 61 | B62: 2
A63: 62 | B63: 56
A64: Count | D64: =COUNT(D2:D63) -> 49 | E64: =COUNT(E2:E63) -> 49 | F64: =COUNT(F2:F63) -> 49 | G64: =COUNT(G2:G63) -> 49 | H64: =COUNT(H2:H63) -> 16 | I64: Instances | K64: =COUNT(K2:K63) -> 17 | L64: 0 | M64: 0 | N64: 0 | S64: 14 | T64: 4 | X64: 0 | Y64: 4 | Z64: =COUNT(Z2:Z63) -> 4 | AB64: =COUNT(AB2:AB63) -> 0 | AC64: 0 | AD64: 0 | AE64: 0 | AF64: 0 | AG64: 0 | AH64: 0 | AI64: 0 | AJ64: 0 | AK64: 0 | AL64: 0 | AM64: 0
A65: AVG | D65: =AVERAGE(D2:D63) -> 2.010510204 | E65: =AVERAGE(E2:E63) -> 1.037673469 | F65: =AVERAGE(F2:F63) -> 1.922721547 | G65: =AVERAGE(G2:G63) -> 2.140949265 | H65: =AVERAGE(H2:H63) -> 0.3539375 | I65: Fraction | K65: =K64/$D$64 -> 0.3469387755 | L65: 0 | M65: 0 | N65: 0 | S65: 0.2857142857 | T65: 0.08163265306 | X65: 0 | Y65: 0.08163265306 | Z65: =AVERAGE(Z2:Z63) -> 0.95775 | AB65: =AVERAGE(AB2:AB63) -> 
A66: STDEV | D66: =STDEV(D2:D63) -> 1.007107908 | E66: =STDEV(E2:E63) -> 0.1540898531 | F66: =STDEV(F2:F63) -> 0.8734748404 | G66: =STDEV(G2:G63) -> 1.207733888 | H66: =STDEV(H2:H63) -> 0.04216391625 | I66: Number/Cell | M66: =SUM(M3:M63)/L$64 ->  | Z66: =STDEV(Z2:Z63) -> 0.049060337 | AB66: =STDEV(AB2:AB63) -> 

Sheet H6_08261345
A1: Cell Number | B1: Number Sequence | C1: Omit reason | D1: Length (mm) | E1: Width (mm) | F1: Length/Width | G1: Width x Length | H1: Elevation | K1: Bite | L1: End Divot | M1: #Divots | N1: Canoe | S1: Smooth | T1: Filamented | X1: comment | Y1: dividing | Z1: Waist | AB1: divot length 1 | AC1: divot width 1 | AD1: divot depth 1 | AE1: % surface divot | AF1: canoe length | AG1: canoe width | AH1: canoe depth | AI1: % surface canoe | AJ1: bite length | AK1: bite width | AL1: bite depth | AM1: %surface bite
A2: 1 | B2: 85 | C2: Overlapped
A3: =1+A2 -> 2 | B3: 33 | D3: 2.006 | E3: 1.058 | F3: =D3/E3 -> 1.896030246 | G3: =D3*E3 -> 2.122348 | S3: 1 | Y3: 1 | Z3: 0.716 | AB3: 0.353 | AC3: 0.306 | AD3: 0.024 | AE3: =SUM((AB3*AC3)/(D3*E3)*100) -> 5.089551761
A4: 3 | B4: 86 | D4: 3.12 | E4: 1.12 | F4: 2.785714286 | G4: =D4*E4 -> 3.4944 | L4: 1 | M4: 2 | AB4: 0.486 | AC4: 0.363 | AD4: 0.0133 | AE4: =SUM((AB4*AC4)/(D4*E4)*100) -> 5.048592033
A5: 4 | B5: 72 | D5: 1.186 | E5: 1.142 | F5: 1.038528897 | G5: 1.354412 | H5: 0.229 | L5: 1 | M5: 2
A6: 5 | B6: 7 | D6: 3.369 | E6: 1.16 | F6: 2.904310345 | G6: 3.90804 | L6: 1 | M6: 2
A7: 6 | B7: 36 | D7: 2.584 | E7: 1.209 | F7: 2.137303557 | G7: 3.124056 | L7: 1 | M7: 2 | AB7: 0.332 | AC7: 0.47 | AD7: 0.011 | AE7: =SUM((AB7*AC7)/(D7*E7)*100) -> 4.994788826
A8: 7 | B8: 54 | C8: revised | D8: 5.063 | E8: 1.214 | F8: 4.170510708 | G8: 6.146482 | H8: 0.235 | T8: 1 | X8: Pinching for division is not centered, therefore not dividing | Z8: 0.932
A9: 8 | B9: 69 | D9: 2.793 | E9: 1.162 | F9: 2.403614458 | G9: 3.245466 | L9: 1 | M9: 2 | AB9: 0.498 | AC9: 0.498 | AD9: 0.0294 | AE9: =SUM((AB9*AC9)/(D9*E9)*100) -> 7.641552862
A10: 9 | B10: 26 | D10: 1.771 | E10: 1.13 | F10: 1.567256637 | G10: 2.00123 | L10: 1 | M10: 2
A11: 10 | B11: 24 | D11: 1.762 | E11: 1.175 | F11: 1.499574468 | G11: 2.07035 | H11: 0.244 | L11: 1 | M11: 2
A12: 11 | B12: 52 | D12: 2.765 | E12: 1.118 | F12: 2.473166369 | G12: 3.09127 | L12: 1 | M12: 2
A13: 12 | B13: 7 | D13: 1.613 | E13: 1.193 | F13: 1.352053646 | G13: 1.924309 | L13: 1 | M13: 2
A14: 13 | B14: 49 | D14: 2.016 | E14: 1.262 | F14: 1.597464342 | G14: 2.544192 | H14: 0.279 | L14: 1 | M14: 2
A15: 14 | B15: 47 | D15: 2.348 | E15: 1.115 | F15: 2.105829596 | G15: 2.61802 | L15: 1 | M15: 2
A16: 15 | B16: 3 | D16: 4.523 | E16: 1.18 | F16: 3.833050847 | G16: 5.33714 | T16: 1 | AB16: 0.529 | AC16: 0.413 | AD16: 0.0168 | AE16: =SUM((AB16*AC16)/(D16*E16)*100) -> 4.093521999
A17: 16 | B17: 77 | D17: 1.849 | E17: 1.137 | F17: 1.626209323 | G17: 2.102313 | H17: 0.244 | L17: 1 | M17: 2
A18: 17 | B18: 38 | D18: 2.974 | E18: 1.234 | F18: 2.410048622 | G18: 3.669916 | L18: 1 | M18: 2 | X18: deep divots | Y18: 1 | Z18: 0.898 | AB18: 0.431 | AC18: 0.454 | AD18: 0.048 | AE18: =SUM((AB18*AC18)/(D18*E18)*100) -> 5.331838658
A19: 18 | B19: 87 | D19: 5.36 | E19: 1.296 | F19: 4.135802469 | G19: 6.94656 | T19: 1
A20: 19 | B20: 22 | D20: 2.881 | E20: 1.293 | F20: 2.228151585 | G20: 3.725133 | H20: 0.236 | L20: 1 | M20: 2 | AB20: 0.47 | AC20: 0.529 | AD20: 0.037 | AE20: =SUM((AB20*AC20)/(D20*E20)*100) -> 6.674392565
A21: 20 | B21: 89 | D21: 2.418 | E21: 1.1 | F21: 2.198181818 | G21: 2.6598 | L21: 1 | M21: 2
A22: 21 | B22: 49 | D22: 2.02 | E22: 1.041 | F22: 1.940441883 | G22: 2.10282 | L22: 1 | M22: 2 | X22: concave
A23: 22 | B23: 49 | D23: 1.827 | E23: 1.079 | F23: 1.693234476 | G23: 1.971333 | H23: 0.246 | N23: 1 | X23: 2 divots in canoe bottom | AB23: 0.497 | AC23: 0.551 | AD23: 0.063 | AE23: =SUM((AB23*AC23)/(D23*E23)*100) -> 13.89146329
A24: 23 | B24: 24 | D24: 2.701 | E24: 1.174 | F24: 2.300681431 | G24: 3.170974 | X24: 3-linked, bite
A25: 24 | B25: 24 | D25: 1.526 | E25: 1.115 | F25: 1.368609865 | G25: 1.70149 | X25: 3-linked
A26: 25 | B26: 72 | D26: 3.294 | E26: 1.351 | F26: 2.43819393 | G26: 4.450194 | H26: 0.245 | L26: 1 | M26: 2 | AB26: 0.411 | AC26: 0.411 | AD26: 0.028 | AE26: =SUM((AB26*AC26)/(D26*E26)*100) -> 3.795812048
A27: 26 | B27: 92 | C27: cut off
A28: 27 | B28: 60 | D28: 1.63 | E28: 1.058 | F28: =D28/E28 -> 1.540642722 | G28: 1.72454 | L28: 1 | M28: 2
A29: 28 | B29: 55 | D29: =1.66+1.647 -> 3.307 | E29: 1.083 | F29: 3.05355494 | G29: 3.581481 | L29: 1 | M29: 3 | AB29: 0.374 | AC29: 0.383 | AD29: 0.019 | AE29: =SUM((AB29*AC29)/(D29*E29)*100) -> 3.999518635
A30: 29 | B30: 56 | D30: 4.349 | E30: 1.068 | F30: 4.072097378 | G30: 4.644732 | H30: 0.234 | T30: 1 | AB30: 0.277 | AC30: 0.4 | AD30: 0.012 | AE30: =SUM((AB30*AC30)/(D30*E30)*100) -> 2.385498238
A31: 30 | B31: 7 | D31: 2.2 | E31: 1.354 | F31: 1.624815362 | G31: 2.9788 | L31: 1 | M31: 2
A32: 31 | B32: 32 | D32: 2.871 | E32: 1.198 | F32: 2.396494157 | G32: 3.439458 | L32: 1 | M32: 3 | AB32: 0.498 | AC32: 0.524 | AD32: 0.022 | AE32: =SUM((AB32*AC32)/(D32*E32)*100) -> 7.587009349
A33: 32 | B33: 35 | D33: 2.642 | E33: 1.115 | F33: 2.369506726 | G33: 2.94583 | H33: 0.223 | L33: 1 | M33: 2
A34: 33 | B34: 95 | C34: cut off
A35: =1+A34 -> 34 | B35: 60 | D35: 1.866 | E35: 1.003 | F35: =D35/E35 -> 1.860418744 | G35: 1.871598 | L35: 1 | M35: 3
A36: 35 | B36: 37 | D36: 1.865 | E36: 1.229 | F36: 1.517493897 | G36: 2.292085 | L36: 1 | M36: 2
A37: 36 | B37: 59 | D37: 2.085 | E37: 1.187 | F37: 1.756529065 | G37: 2.474895 | H37: 0.223 | L37: 1 | M37: 2 | AB37: 0.305 | AC37: 0.519 | AD37: 0.033 | AE37: =SUM((AB37*AC37)/(D37*E37)*100) -> 6.396028922
A38: 37 | B38: 13 | D38: 2.673 | E38: 1.286 | F38: 2.078538103 | G38: 3.437478 | L38: 1 | M38: 3 | AB38: 0.278 | AC38: 0.342 | AD38: 0.015 | AE38: =SUM((AB38*AC38)/(D38*E38)*100) -> 2.765864974
A39: 38 | B39: 98 | D39: 1.278 | E39: 1.266 | F39: 1.009478673 | G39: 1.617948 | L39: 1 | M39: 2 | AB39: 0.367 | AC39: 0.358 | AD39: 0.019 | AE39: =SUM((AB39*AC39)/(D39*E39)*100) -> 8.120532922
A40: 39 | B40: 56 | D40: 1.68 | E40: 1.057 | F40: 1.589403974 | G40: 1.77576 | H40: 0.25 | L40: 1 | M40: 2
A41: 40 | B41: 90 | D41: 2.525 | E41: 1.325 | F41: 1.905660377 | G41: 3.345625 | L41: 1 | M41: 2
A42: 41 | B42: 25 | D42: 1.174 | E42: 1.06 | F42: 1.10754717 | G42: 1.24444 | S42: 1 | X42: small indentations
A43: 42 | B43: 50 | D43: 2.906 | E43: 1.086 | F43: 2.67587477 | G43: 3.155916 | H43: 0.207 | L43: 1 | M43: 2
A44: 43 | B44: 85 | D44: 2.48 | E44: 1.043 | F44: 2.377756472 | G44: 2.58664 | X44: Almost canoe | Y44: 1 | Z44: 0.985
A45: 44 | B45: 5 | C45: revised | D45: 4.66 | E45: 1.2 | F45: 3.883333333 | G45: 5.592 | T45: 1 | X45: Several depressions, no central pinching for division | Z45: 1.004
A46: 45 | B46: 81 | D46: 2.363 | E46: 1.273 | F46: 1.85624509 | G46: 3.008099 | H46: 0.231 | L46: 1 | M46: 2
A47: 46 | B47: 55 | D47: 1.703 | E47: 1.057 | F47: 1.611163671 | G47: 1.800071 | L47: 1 | M47: 2 | Y47: 1 | Z47: 1.001
A48: 47 | B48: 39 | D48: 1.544 | E48: 1.07 | F48: 1.442990654 | G48: 1.65208 | L48: 1 | M48: 2
A49: 48 | B49: 5 | D49: 1.594 | E49: 1 | F49: 1.594 | G49: 1.594 | H49: 0.219 | L49: 1 | M49: 2
A50: 49 | B50: 73 | D50: 1.72 | E50: 1.087 | F50: 1.582336707 | G50: 1.86964 | S50: 1 | X50: 1 end divot
A51: 50 | B51: 19 | D51: 2.2 | E51: 1.029 | F51: 2.137998056 | G51: 2.2638 | L51: 1 | M51: 2 | X51: half-moon divot
A52: 51 | B52: 47 | D52: 2.975 | E52: 0.994 | F52: 2.992957746 | G52: 2.95715 | H52: 0.213 | L52: 1 | M52: 3
A53: 52 | B53: 10 | D53: 2.198 | E53: 0.994 | F53: 2.211267606 | G53: 2.184812 | L53: 1 | M53: 2 | X53: half-moon divot
A54: 53 | B54: 77 | D54: 3.532 | E54: 1.066 | F54: 3.313320826 | G54: 3.765112 | L54: 1 | M54: 3 | Y54: 1 | Z54: 0.771
A55: 54 | B55: 76
A56: 55 | B56: 55
A57: 56 | B57: 83
A58: 57 | B58: 11
A59: 58 | B59: 75
A60: 59 | B60: 80
A61: 60 | B61: 32
C64: Count | D64: =COUNT(D3:D26,D28:D33,D35:D54) -> 50 | E64: =COUNT(E2:E61) -> 50 | F64: =COUNT(F2:F61) -> 50 | G64: =COUNT(G2:G61) -> 50 | H64: =COUNT(H2:H61) -> 16 | I64: Instances | K64: =COUNT(K2:K63) -> 0 | L64: 38 | M64: 38 | N64: 1 | S64: 3 | T64: 5 | X64: 0 | Y64: 5 | Z64: =COUNT(Z2:Z63) -> 7 | AB64: =COUNT(AB2:AB61) -> 15 | AC64: 15 | AD64: 15 | AE64: 15 | AF64: 0 | AG64: 0 | AH64: 0 | AI64: 0 | AJ64: 0 | AK64: 0 | AL64: 0 | AM64: 0
C65: Average | D65: =AVERAGE(D2:D61) -> 2.51578 | E65: =AVERAGE(E2:E61) -> 1.14492 | F65: =AVERAGE(F2:F61) -> 2.1933078 | G65: =AVERAGE(G2:G61) -> 2.90572476 | H65: =AVERAGE(H2:H61) -> 0.234875 | I65: Fraction | K65: =K64/$D$64 -> 0 | L65: 0.76 | M65: 0.76 | N65: 0.02 | S65: 0.06 | T65: 0.1 | X65: 0 | Y65: 0.1 | Z65: =AVERAGE(Z2:Z63) -> 0.901 | AB65: =AVERAGE(AB2:AB61) -> 0.4070666667 | AC65: 0.4347333333 | AD65: 0.02603333333 | AE65: 5.854397805
C66: STDEV | D66: =STDEV(D2:D54) -> 0.9755365094 | E66: =STDEV(E2:E54) -> 0.09726543527 | F66: =STDEV(F2:F54) -> 0.8057617862 | G66: =STDEV(G2:G54) -> 1.237278859 | H66: =STDEV(H2:H54) -> 0.01714594218 | I66: Number/Cell | M66: =SUM(M3:M63)/L$64 -> 2.157894737 | Z66: =STDEV(Z2:Z63) -> 0.1152967187 | AB66: =STDEV(AB2:AB54) -> 0.08681792661 | AC66: 0.07755870281 | AD66: 0.01450239717 | AE66: 2.82196809

Sheet H6_08261244
A1: Cell Number | B1: Number Sequence | C1: Comment | D1: Length (µm) | E1: Width (µm) | F1: Length/Width | G1: Width x Length | H1: Elevation | K1: Bite | L1: End Divot | M1: #Divots | N1: Canoe | S1: Smooth | T1: Filamented | X1: Comment | Y1: Dividing? | Z1: Waist | AB1: Divot Length | AC1: Divot Width | AD1: Divot Depth | AE1: %Surface Coverage | AF1: Canoe Length | AG1: Canoe Width | AH1: Canoe Depth | AI1: %Surface Coverage | AJ1: Bite Length | AK1: Bite Width | AL1: Bite Depth | AM1: %Surface Coverage
A2: =1 -> 1 | B2: 11 | C2: Dividing cell | D2: 2.661 | E2: 1.062 | F2: =D2/E2 -> 2.505649718 | G2: =D2*E2 -> 2.825982 | X2: Two small indentations in right part of cell. Possibly going to form end divot | Y2: 1 | Z2: 0.739
A3: =A2+1 -> 2 | B3: 70 | D3: 2.419 | E3: 1.064 | F3: =D3/E3 -> 2.273496241 | G3: =D3*E3 -> 2.573816 | L3: 1 | M3: 2 | X3: Cell is mostly absent of features except for one small indentation
A4: =A3+1 -> 3 | B4: 77 | D4: 2.076 | E4: 0.966 | F4: 2.149068323 | G4: 2.005416 | H4: 0.222 | S4: 1 | X4: Lack of features that fall into other categories, fairly smooth
A5: 4 | B5: 56 | C5: omit, too fuzzy | G5: 0 | X5: Lack of features that fall into other categories, fairly smooth
A6: 5 | B6: 60 | C6: Smooth | D6: 2.076 | E6: 1.061 | F6: 1.956644675 | G6: 2.202636 | S6: 1 | X6: No features
A7: 6 | B7: 11 | D7: 3.523 | E7: 1.115 | F7: 3.159641256 | G7: 3.928145 | H7: 0.242 | X7: Fairly smooth, lack of prominent features
A8: 7 | B8: 53 | C8: Looks divided but questionable | D8: 1.34 | E8: 1.18 | F8: 1.13559322 | G8: 1.5812 | S8: 1 | X8: Really smooth
A9: 8 | B9: 37 | D9: 2.374 | E9: 1.181 | F9: 2.010160881 | G9: 2.803694 | X9: Could be forming a bite
A10: 9 | B10: 91 | C10: Dividing cell | D10: 2.92 | E10: 1.248 | F10: 2.33974359 | G10: 3.64416 | H10: 0.215 | X10: Good Example of End Divots on one side of a dividing cell | Y10: 1 | Z10: 0.782
A11: 10 | B11: 58 | D11: 1.735 | E11: 1.082 | F11: 1.603512015 | G11: 1.87727 | S11: 1 | X11: Fairly smooth, small features
A12: 11 | B12: 43 | D12: 1.727 | E12: 0.908 | F12: 1.901982379 | G12: 1.568116 | X12: Fairly smooth, small features
A13: 12 | B13: 92 | D13: 1.937 | E13: 1.174 | F13: 1.649914821 | G13: 2.274038 | H13: 0.23 | L13: 1 | M13: 2 | X13: Potentially forming end divots
A14: 13 | B14: 90 | D14: 2.553 | E14: 1.13 | F14: 2.259292035 | G14: 2.88489 | S14: 1 | X14: Really smooth, lack of prominent features
A15: 14 | B15: 33 | D15: 2.65 | E15: 1.068 | F15: 2.481273408 | G15: 2.8302 | S15: 1 | X15: Really smooth, lack of prominent features
A16: 15 | B16: 13 | D16: 4.377 | E16: 1.252 | F16: 3.49600639 | G16: 5.480004 | H16: 0.226 | T16: 1 | X16: Bottom part of cell has a depression, potential bite forming
A17: 16 | B17: 90 | D17: 2.526 | E17: 1.024 | F17: 2.466796875 | G17: 2.586624
A18: 17 | B18: 51 | D18: 1.535 | E18: 1.116 | F18: 1.375448029 | G18: 1.71306 | S18: 1 | X18: Potential divot forming but otherwise fairly smooth
A19: 18 | B19: 10 | D19: 2.534 | E19: 1.029 | F19: 2.462585034 | G19: 2.607486 | H19: 0.246 | X19: Lack of features that fall into other categories
A20: 19 | B20: 45 | C20: Questionable | D20: 2.787 | E20: 1.051 | F20: 2.651760228 | G20: 2.929137 | X20: Could be forming a bite, is this dividing
A21: 20 | B21: 6 | C21: Questionable | D21: 3.229 | E21: 1.014 | F21: 3.184418146 | G21: 3.274206 | X21: Depression throughout cell, potential bite forming
A22: 21 | B22: 5 | D22: 2.27 | E22: 1.102 | F22: 2.059891107 | G22: 2.50154 | H22: 0.207 | S22: 1 | X22: Fairly smooth, lack of prominent features
A23: 22 | B23: 92 | D23: 1.665 | E23: 1.038 | F23: 1.604046243 | G23: 1.72827 | X23: multiple divots
A24: 23 | B24: 30 | C24: Really weird cell, how do I measure | G24: 0
A25: 24 | B25: 66 | D25: 2.748 | E25: 0.936 | F25: 2.935897436 | G25: 2.572128 | H25: 0.239 | S25: 1 | X25: Lacks features
A26: 25 | B26: 72 | D26: 3.865 | E26: 1.136 | F26: 3.402288732 | G26: 4.39064 | X26: Lacks features
A27: 26 | B27: 39 | D27: 2.89 | E27: 1.106 | F27: 2.613019892 | G27: 3.19634 | S27: 1 | X27: lacks features
A28: 27 | B28: 38 | D28: 1.651 | E28: 1.006 | F28: 1.641153082 | G28: 1.660906 | H28: 0.226 | S28: 1 | X28: Really smooth, lacks features
A29: 28 | B29: 11 | D29: 2.437 | E29: 1.06 | F29: 2.299056604 | G29: 2.58322 | S29: 1 | X29: Fairly smooth, bumpy at the bottom of cell
A30: 29 | B30: 66 | C30: Dividing cell | D30: 3.253 | E30: 1.145 | F30: 2.841048035 | G30: 3.724685 | S30: 1 | X30: Two shallow indents forming on either end | Y30: 1 | Z30: 0.594
A31: 30 | B31: 5 | C31: Dividing | D31: 3.065 | E31: 1.121 | F31: 2.734165923 | G31: 3.435865 | H31: 0.246 | S31: 1 | X31: Lacks features | Y31: 1 | Z31: 0.881
A32: 31 | B32: 39 | D32: 2.734 | E32: 1.086 | F32: 2.517495396 | G32: 2.969124 | S32: 1 | X32: Fairly smooth, lacks features
A33: 32 | B33: 70 | D33: 2.143 | E33: 1.089 | F33: 1.967860422 | G33: 2.333727 | X33: Fairly smooth, indent at bottom
A34: 33 | B34: 17 | D34: 2.108 | E34: 1.218 | F34: 1.730706076 | G34: 2.567544 | H34: 0.228 | L34: 1 | M34: 2 | X34: Really smooth, lacks features
A35: 34 | B35: 43 | D35: 3.107 | E35: 1.058 | F35: 2.936672968 | G35: 3.287206 | S35: 1 | X35: Fairly smooth on top, rougher at bottom
A36: 35 | B36: 7 | D36: 2.644 | E36: 1.142 | F36: 2.315236427 | G36: 3.019448 | S36: 1 | X36: Really smooth, lacks features
A37: 36 | B37: 59 | C37: Potentially dividing | D37: 2.953 | E37: 1.269 | F37: 2.327029157 | G37: 3.747357 | H37: 0.238 | X37: Really smooth in some areas, two small indents
A38: 37 | B38: 29 | D38: 1.62 | E38: 1.241 | F38: 1.305398872 | G38: 2.01042 | S38: 1 | X38: Fairly smooth, lacks features
A39: 38 | B39: 63 | D39: 1.559 | E39: 1.232 | F39: 1.265422078 | G39: 1.920688 | S39: 1 | X39: Fairly smooth, lacks features
A40: 39 | B40: 75 | D40: 2.962 | E40: 1.255 | F40: 2.360159363 | G40: 3.71731 | H40: 0.229 | S40: 1 | X40: Illustration of End Divot sForming on dividing cells? | Y40: 1 | Z40: 1.05
A41: 40 | B41: 9 | C41: Cell is elevated | D41: 2.201 | E41: 1.118 | F41: 1.968694097 | G41: 2.460718 | S41: 1 | X41: Really smooth, lacks features
A42: 41 | B42: 87 | C42: Potentially dividing | D42: 3.1 | E42: 1.173 | F42: 2.642796249 | G42: 3.6363 | X42: Really smooth, not dividing but almost
A43: 42 | B43: 29 | C43: Dividing | D43: 5.823 | E43: 1.11 | F43: 5.245945946 | G43: 6.46353 | H43: 0.242 | X43: Fairly smooth in middle, two indents | Y43: 1 | Z43: 1.003
A44: 43 | B44: 63 | D44: 4.74 | E44: 1.18 | F44: 4.016949153 | G44: 5.5932 | X44: Fairly smooth, curved upwards
A45: 44 | B45: 18 | C45: Divided | D45: 1.928 | E45: 1.129 | F45: 1.707705934 | G45: 2.176712 | S45: 1 | X45: Fairly smooth, lacks features
A46: 45 | B46: 80 | D46: 2.601 | E46: 1.151 | F46: 2.259774109 | G46: 2.993751 | H46: 0.193 | X46: Really smooth, lacks features
A47: 46 | B47: 74 | D47: 2.996 | E47: 1.215 | F47: 2.465843621 | G47: 3.64014 | S47: 1 | X47: Fairly smooth, lacks features
A48: 47 | B48: 19 | D48: 2.071 | E48: 1.007 | F48: 2.056603774 | G48: 2.085497 | S48: 1 | X48: Really smooth, lacks features
A49: 48 | B49: 2 | D49: 1.667 | E49: 1.121 | F49: 1.48706512 | G49: 1.868707 | H49: 0.24 | S49: 1 | X49: Fairly smooth, lacks features
A50: 49 | B50: 94 | D50: 2.132 | E50: 1.017 | F50: 2.096361849 | G50: 2.168244 | S50: 1 | X50: Fairly smooth, lacks features
A51: 50 | B51: 54 | D51: 2.343 | E51: 0.976 | F51: 2.400614754 | G51: 2.286768 | S51: 1 | X51: Really smooth, lacks features
A52: 51 | B52: 19
A53: 52 | B53: 48
A54: 53 | B54: 98
A55: 54 | B55: 12
A56: 55 | B56: 36
A57: 56 | B57: 69
A58: 57 | B58: 36
A59: 58 | B59: 76
A60: 59 | B60: 56
A61: 60 | B61: 79
A62: 61 | B62: 96
A63: 62 | B63: 46
A64: Count | D64: =COUNT(D2:D63) -> 48 | E64: =COUNT(E2:E63) -> 48 | F64: =COUNT(F2:F63) -> 48 | G64: =COUNT(G2:G63) -> 50 | H64: =COUNT(H2:H63) -> 16 | I64: Instances | K64: =COUNT(K2:K63) -> 0 | L64: 3 | M64: 3 | N64: 0 | S64: 27 | T64: 1 | X64: 0 | Y64: 6 | Z64: =COUNT(Z2:Z63) -> 6 | AB64: =COUNT(AB2:AB63) -> 0 | AC64: 0 | AD64: 0 | AE64: 0 | AF64: 0 | AG64: 0 | AH64: 0 | AI64: 0 | AJ64: 0 | AK64: 0 | AL64: 0 | AM64: 0
A65: AVG | D65: =AVERAGE(D2:D63) -> 2.588645833 | E65: =AVERAGE(E2:E63) -> 1.107541667 | F65: =AVERAGE(F2:F63) -> 2.338914368 | G65: =AVERAGE(G2:G63) -> 2.7666013 | H65: =AVERAGE(H2:H63) -> 0.2293125 | I65: Fraction | K65: =K64/$D$64 -> 0 | L65: 0.0625 | M65: 0.0625 | N65: 0 | S65: 0.5625 | T65: 0.02083333333 | X65: 0 | Y65: 0.125 | Z65: =AVERAGE(Z2:Z63) -> 0.8415 | AB65: =AVERAGE(AB2:AB63) -> 
A66: STDEV | D66: =STDEV(D2:D63) -> 0.8575888885 | E66: =STDEV(E2:E63) -> 0.08702554243 | F66: =STDEV(F2:F63) -> 0.7404541646 | G66: =STDEV(G2:G63) -> 1.169238371 | H66: =STDEV(H2:H63) -> 0.01474547953 | I66: Number/Cell | M66: =SUM(M3:M63)/L$64 -> 2 | Z66: =STDEV(Z2:Z63) -> 0.1711242239 | AB66: =STDEV(AB2:AB63) -> 

Sheet H7_01211455
A1: Cell Number | B1: Number Sequence | C1: Comment | D1: Length (µm) | E1: Width (µm) | F1: Length/Width | G1: Width x Length | H1: Elevation | K1: Bite | L1: End Divot | M1: #Divots | N1: Canoe | S1: Smooth | T1: Filamented | X1: Comment | Y1: Dividing? | Z1: Waist | AB1: Divot Length | AC1: Divot Width | AD1: Divot Depth | AE1: %Surface Coverage | AF1: Canoe Length | AG1: Canoe Width | AH1: Canoe Depth | AI1: %Surface Coverage | AJ1: Bite Length | AK1: Bite Width | AL1: Bite Depth | AM1: %Surface Coverage
A2: =1 -> 1 | B2: 62 | D2: 1.557 | E2: 1.012 | F2: =D2/E2 -> 1.538537549 | G2: =D2*E2 -> 1.575684 | L2: 1 | M2: 2 | X2: One divot is slightly odd because cell is slanted there | AE2: =(AB2*AC2)/($D$2*$E$2)*100 -> 0 | AI2: =(AF2*AG2)/($D$2*$E$2)*100 -> 0 | AM2: =(AJ2*AK2)/($D$2*$E$2)*100 -> 0
A3: =A2+1 -> 2 | B3: 46 | D3: 2.83 | E3: 1.137 | F3: =D3/E3 -> 2.489006157 | G3: =D3*E3 -> 3.21771 | L3: 1 | M3: 2 | X3: Rather large depression near the middle of the cell | AE3: =(AB3*AC3)/($D$2*$E$2)*100 -> 0 | AI3: =(AF3*AG3)/($D$2*$E$2)*100 -> 0
A4: =A3+1 -> 3 | B4: 8 | D4: 2.202 | E4: 1.061 | F4: 2.075400566 | G4: 2.336322 | H4: 0.222 | L4: 1 | M4: 3 | AB4: 0.55 | AC4: 0.516 | AD4: 0.038 | AE4: 18.0112256 | AI4: 0
A5: 4 | B5: 75 | D5: 2.114 | E5: 1.057 | F5: 2 | G5: 2.234498 | X5: Similar to end divot, strange depression (valley-like) near one end | AE5: 0 | AI5: 0
A6: 5 | B6: 93 | D6: 6.432 | E6: 1.191 | F6: 5.400503778 | G6: 7.660512 | T6: 1 | AE6: 0 | AI6: 0
A7: 6 | B7: 33 | D7: 1.876 | E7: 0.783 | F7: 2.395913155 | G7: 1.468908 | H7: 0.283 | X7: Discontinuous, slanted, similar to end divot but more than three divots | AE7: 0 | AI7: 0
A8: 7 | B8: 24 | D8: 3.227 | E8: 0.881 | F8: 3.662883087 | G8: 2.842987 | X8: Discontinuous, slanted, similar to end divot but more than three divots | AE8: 0 | AI8: 0
A9: 8 | B9: 87 | D9: 0.958 | E9: 0.835 | F9: 1.147305389 | G9: 0.79993 | N9: 1 | AE9: 0 | AI9: 0
A10: 9 | B10: 39 | D10: 4.957 | E10: 1.137 | F10: 4.359718558 | G10: 5.636109 | H10: 0.242 | T10: 1 | AE10: 0 | AI10: 0
A11: 10 | B11: 46 | D11: 3.094 | E11: 1.215 | F11: 2.546502058 | G11: 3.75921 | L11: 1 | M11: 2 | AE11: 0 | AI11: 0
A12: 11 | B12: 45 | D12: 6.498 | E12: 1.009 | F12: 6.440039643 | G12: 6.556482 | T12: 1 | AE12: 0 | AI12: 0
A13: 12 | B13: 93 | D13: 2.445 | E13: 1.072 | F13: 2.280783582 | G13: 2.62104 | H13: 0.214 | L13: 1 | M13: 3 | AB13: 0.628 | AC13: 0.467 | AD13: 0.022 | AE13: 18.61261522 | AI13: 0
A14: 13 | B14: 88 | D14: 1.975 | E14: 1.23 | F14: 1.605691057 | G14: 2.42925 | X14: Discontinuous, one large indent near one end | AE14: 0 | AI14: 0
A15: 14 | B15: 36 | D15: 1.946 | E15: 1.113 | F15: 1.748427673 | G15: 2.165898 | X15: Discontinuous, one large indent near one end | AE15: 0 | AI15: 0
A16: 15 | B16: 11 | D16: 3.424 | E16: 1.005 | F16: 3.406965174 | G16: 3.44112 | H16: 0.228 | X16: Discontinuous, many nonsymmetrical indents | AE16: 0 | AI16: 0
A17: 16 | B17: 91 | D17: 4.386 | E17: 1.183 | F17: 3.707523246 | G17: 5.188638 | T17: 1 | AE17: 0 | AI17: 0
A18: 17 | B18: 58 | D18: 3.599 | E18: 1.249 | F18: 2.881505204 | G18: 4.495151 | X18: Discontinuous, many nonsymmetrical indents | AE18: 0 | AI18: 0
A19: 18 | B19: 15 | D19: 2.417 | E19: 0.924 | F19: 2.615800866 | G19: 2.233308 | H19: 0.277 | L19: 1 | M19: 2 | AB19: 0.568 | AC19: 0.483 | AD19: 0.035 | AE19: 17.41110527 | AI19: 0
A20: 19 | B20: 42 | D20: 5.123 | E20: 0.913 | F20: 5.611171961 | G20: 4.677299 | T20: 1 | AE20: 0 | AI20: 0
A21: 20 | B21: 88 | D21: 1.823 | E21: 0.94 | F21: 1.939361702 | G21: 1.71362 | N21: 1 | AE21: 0 | AI21: 0
A22: 21 | B22: 45 | D22: 3.306 | E22: 1.057 | F22: 3.127719962 | G22: 3.494442 | H22: 0.265 | N22: 1 | AE22: 0 | AF22: 2.715 | AG22: 0.587 | AH22: 0.054 | AI22: 101.1436938
A23: 22 | B23: 81 | D23: 3.25 | E23: 1.058 | F23: 3.071833648 | G23: 3.4385 | L23: 1 | M23: 2 | Y23: 1 | Z23: 0.885 | AE23: 0 | AI23: 0
A24: 23 | B24: 78 | D24: 2.016 | E24: 1.247 | F24: 1.616680032 | G24: 2.513952 | L24: 1 | M24: 2 | AE24: 0 | AI24: 0
A25: 24 | B25: 94 | D25: 2.63 | E25: 1.126 | F25: 2.335701599 | G25: 2.96138 | H25: 0.247 | X25: Discontinuous, many nonsymmetrical indents | AE25: 0 | AI25: 0
A26: 25 | B26: 74 | D26: 3.268 | E26: 1.084 | F26: 3.014760148 | G26: 3.542512 | L26: 1 | M26: 3 | AE26: 0 | AI26: 0
A27: 26 | B27: 50 | D27: 2.588 | E27: 1.175 | F27: 2.202553191 | G27: 3.0409 | L27: 1 | M27: 3 | AE27: 0 | AI27: 0
A28: 27 | B28: 61 | D28: 2.585 | E28: 0.987 | F28: 2.619047619 | G28: 2.551395 | H28: 0.244 | S28: 1 | X28: Disconintuous, many nonsymmetrical indents | AE28: 0 | AI28: 0
A29: 28 | B29: 64 | D29: 2.768 | E29: 1.057 | F29: 2.618732261 | G29: 2.925776 | L29: 1 | M29: 3 | AE29: 0 | AI29: 0
A30: 29 | B30: 76 | D30: 2.087 | E30: 1.183 | F30: 1.764158918 | G30: 2.468921 | L30: 1 | M30: 2 | AE30: 0 | AI30: 0
A31: 30 | B31: 64 | D31: 6.339 | E31: 1.079 | F31: 5.874884152 | G31: 6.839781 | H31: 0.281 | T31: 1 | AE31: 0 | AI31: 0
A32: 31 | B32: 80 | D32: 2.486 | E32: 1.052 | F32: 2.363117871 | G32: 2.615272 | L32: 1 | M32: 2 | AE32: 0 | AI32: 0
A33: 32 | B33: 4 | D33: 3.276 | E33: 1.129 | F33: 2.901682905 | G33: 3.698604 | L33: 1 | M33: 3 | AE33: 0 | AI33: 0
A34: 33 | B34: 95 | D34: 2.94 | E34: 1.241 | F34: 2.369057212 | G34: 3.64854 | H34: 0.246 | X34: Discontinuous, a very deep indent in the middle of the cell (circular) along with a few other small indents | AE34: 0 | AI34: 0
A35: 34 | B35: 51 | D35: 2.591 | E35: 0.943 | F35: 2.747613998 | G35: 2.443313 | N35: 1 | AE35: 0 | AI35: 0
A36: 35 | B36: 94 | D36: 1.717 | E36: 1.167 | F36: 1.471293916 | G36: 2.003739 | S36: 1 | X36: Discontinuous, many nonsymmetrical indents | AE36: 0 | AI36: 0
A37: 36 | B37: 47 | D37: 3.122 | E37: 1.118 | F37: 2.792486583 | G37: 3.490396 | H37: 0.259 | X37: Discontinuous, many nonsymmetrical indents | AE37: 0 | AI37: 0
A38: 37 | B38: 3 | D38: 3.144 | E38: 1.159 | F38: 2.712683348 | G38: 3.643896 | N38: 1 | AE38: 0 | AI38: 0
A39: 38 | B39: 66 | D39: 3.581 | E39: 1.12 | F39: 3.197321429 | G39: 4.01072 | N39: 1 | AE39: 0 | AI39: 0
A40: 39 | B40: 78 | D40: 4.331 | E40: 1.167 | F40: 3.711225364 | G40: 5.054277 | H40: 0.253 | T40: 1 | AE40: 0 | AI40: 0
A41: 40 | B41: 32 | D41: 2.525 | E41: 0.794 | F41: 3.180100756 | G41: 2.00485 | N41: 1 | AE41: 0 | AI41: 0
A42: 41 | B42: 63 | D42: 2.713 | E42: 0.919 | F42: 2.952121872 | G42: 2.493247 | S42: 1 | AE42: 0 | AI42: 0
A43: 42 | B43: 64 | D43: 2.999 | E43: 1.171 | F43: 2.561058924 | G43: 3.511829 | H43: 0.215 | N43: 1 | AE43: 0 | AF43: 2.637 | AG43: 0.648 | AH43: 0.032 | AI43: 108.4466175
A44: 43 | B44: 74 | D44: 2.708 | E44: 1.2 | F44: 2.256666667 | G44: 3.2496 | L44: 1 | M44: 3 | AE44: 0 | AI44: 0
A45: 44 | B45: 62 | D45: 4.701 | E45: 1.002 | F45: 4.691616766 | G45: 4.710402 | T45: 1 | AI45: 0
A46: 45 | B46: 15 | D46: 5.427 | E46: 1.026 | F46: 5.289473684 | G46: 5.568102 | H46: 0.218 | Y46: 1 | Z46: 0.712 | AI46: 0
A47: 46 | B47: 51 | D47: 1.828 | E47: 1.076 | F47: 1.698884758 | G47: 1.966928 | X47: Discontinuous, randomly placed indent (valley-like) | AI47: 0
A48: 47 | B48: 58 | D48: 6.17 | E48: 1.058 | F48: 5.831758034 | G48: 6.52786 | T48: 1 | AI48: 0
A49: 48 | B49: 57 | D49: 1.837 | E49: 1.021 | F49: 1.799216454 | G49: 1.875577 | H49: 0.237 | N49: 1 | AF49: 1.422 | AG49: 0.601 | AH49: 0.036 | AI49: 54.23815943
A50: 49 | B50: 67 | C50: revised | D50: 2.074 | E50: 0.961 | F50: 2.158168574 | G50: 1.993114 | N50: 1 | X50: Not dividing bc waist is higher than width | Z50: 0.728 | AI50: 0
A51: 50 | B51: 64 | D51: 1.158 | E51: 0.908 | F51: 1.275330396 | G51: 1.051464 | N51: 1 | AI51: 0
A52: 51 | B52: 53 | AI52: 0
A53: 52 | B53: 4 | AI53: 0
A54: 53 | B54: 8 | AI54: 0
A55: 54 | B55: 92 | AI55: 0
A56: 55 | B56: 6
A57: 56 | B57: 73
A58: 57 | B58: 48
A59: 58 | B59: 7
A60: 59 | B60: 15
A61: 60 | B61: 56
A62: 61 | B62: 64
A63: 62 | B63: 63
A64: Count | D64: =COUNT(D2:D63) -> 50 | E64: =COUNT(E2:E63) -> 50 | F64: =COUNT(F2:F63) -> 50 | G64: =COUNT(G2:G63) -> 50 | H64: =COUNT(H2:H63) -> 16 | I64: Instances | K64: =COUNT(K2:K63) -> 0 | L64: =COUNT(L2:L63) -> 15 | M64: =COUNT(M2:M63) -> 15 | N64: =COUNT(N2:N63) -> 11 | S64: =COUNT(S2:S63) -> 3 | T64: =COUNT(T2:T63) -> 9 | X64: =COUNT(X2:X63) -> 0 | Y64: =COUNT(Y2:Y63) -> 2 | Z64: =COUNT(Z2:Z63) -> 3 | AB64: =COUNT(AB2:AB63) -> 3 | AC64: 3 | AD64: 3 | AE64: 43 | AF64: 3 | AG64: 3 | AH64: 3 | AI64: 54 | AJ64: 0 | AK64: 0 | AL64: 0 | AM64: 1
A65: AVG | D65: =AVERAGE(D2:D63) -> 3.10096 | E65: =AVERAGE(E2:E63) -> 1.06464 | F65: =AVERAGE(F2:F63) -> 2.921199829 | G65: =AVERAGE(G2:G63) -> 3.3278593 | H65: =AVERAGE(H2:H63) -> 0.2456875 | I65: Fraction | K65: =K64/$D$64 -> 0 | L65: =L64/$D$64 -> 0.3 | M65: =M64/$D$64 -> 0.3 | N65: =N64/$D$64 -> 0.22 | S65: =S64/$D$64 -> 0.06 | T65: =T64/$D$64 -> 0.18 | X65: =X64/$D$64 -> 0 | Y65: =Y64/$D$64 -> 0.04 | Z65: =AVERAGE(Z2:Z63) -> 0.775 | AB65: =AVERAGE(AB2:AB63) -> 0.582 | AC65: 0.4886666667 | AD65: 0.03166666667 | AE65: 1.256626653 | AF65: 2.258 | AG65: 0.612 | AH65: 0.04066666667 | AI65: 4.88571242 | AM65: 0
A66: STDEV | D66: =STDEV(D2:D63) -> 1.368290576 | E66: =STDEV(E2:E63) -> 0.1180781063 | F66: =STDEV(F2:F63) -> 1.288310608 | G66: =STDEV(G2:G63) -> 1.534712392 | H66: =STDEV(H2:H63) -> 0.02295421167 | I66: Number/Cell | M66: =SUM(M3:M63)/L$64 -> 2.333333333 | Z66: =STDEV(Z2:Z63) -> 0.09559811714 | AB66: =STDEV(AB2:AB63) -> 0.04084115571 | AC66: 0.02498666311 | AD66: 0.008504900548 | AE66: 4.644706476 | AF66: 0.725046895 | AG66: 0.03195309062 | AH66: 0.01171893055 | AI66: 21.12117043

Sheet H7_07101047
A1: Cell Number | B1: Number Sequence | C1: Omit reason | D1: Length (mm) | E1: Width (mm) | F1: Length/Width | G1: Length x Width | H1: Elevation | K1: Bite | L1: End Divot | M1: #Divots | N1: Canoe | S1: Smooth | T1: Filamented | X1: comment | Y1: Dividing | Z1: Waist | AB1: divot length | AC1: divot width | AD1: divot depth | AE1: % surface divot | AF1: canoe length | AG1: canoe width | AH1: canoe depth | AI1: % surface canoe | AJ1: bite length | AK1: bite width | AL1: bite depth | AM1: %surface bite
A2: 1 | B2: 45 | D2: 1.907 | E2: 1.006 | F2: =D2/E2 -> 1.895626243 | G2: =D2*E2 -> 1.918442 | S2: 1
A3: =1+A2 -> 2 | B3: 73 | D3: 6.167 | E3: 0.983 | F3: 6.273652085 | G3: =D3*E3 -> 6.062161 | S3: 1 | Y3: 1 | Z3: 0.75 | AB3: 0.436 | AC3: 0.369 | AD3: 0.037 | AE3: =(AC3*AB3)/(D3*E3) -> 0.02653905101
A4: 3 | B4: 12 | D4: 3.098 | E4: 1.007 | F4: 3.076464747 | G4: 3.119686 | S4: 1
A5: 4 | B5: 41 | D5: 6.146 | E5: 1.029 | F5: 5.972789116 | G5: 6.324234 | H5: 0.211 | T5: 1 | X5: sunken corner
A6: 5 | B6: 2 | D6: 3.487 | E6: 1.029 | F6: 3.388726919 | G6: 3.588123 | X6: sunken middle
A7: 6 | B7: 82 | D7: 3.042 | E7: 1.042 | F7: 2.919385797 | G7: 3.169764 | H7: 0.188 | S7: 1 | X7: sunken corner | Y7: 1 | Z7: 0.611
A8: 7 | B8: 62 | D8: 2.686 | E8: 1.144 | F8: 2.347902098 | G8: 3.072784 | S8: 1
A9: 8 | B9: 19 | D9: =3.418+2.938 -> 6.356 | E9: 0.922 | F9: 6.893709328 | G9: 5.860232 | H9: 0.196 | T9: 1 | AB9: 0.183 | AC9: 0.308 | AD9: 0.019 | AE9: =(AC9*AB9)/(D9*E9) -> 0.009618049251
A10: 9 | B10: 43 | D10: 1.029 | E10: 0.841 | F10: 1.223543401 | G10: 0.865389 | S10: 1
A11: =1+A10 -> 10 | B11: 82 | D11: 5.475 | E11: 1.014 | F11: 5.399408284 | G11: 5.55165 | H11: 0.194 | T11: 1 | X11: Sunken middle
A12: 11 | B12: 35 | D12: 1.932 | E12: 0.769 | F12: 2.512353706 | G12: 1.485708 | S12: 1
A13: 12 | B13: 50 | D13: 6.66 | E13: 1.183 | F13: 5.629754861 | G13: 7.87878 | T13: 1 | X13: divided | Y13: 1 | Z13: 0.587
A14: 13 | B14: 47 | D14: 1.825 | E14: 1.001 | F14: 1.823176823 | G14: 1.826825
A15: 14 | B15: 80 | C15: cut off
A16: 15 | B16: 38 | D16: 4.33 | E16: 0.855 | F16: =D16/E16 -> 5.064327485 | G16: 3.70215 | H16: 0.266 | T16: 1
A17: 16 | B17: 24 | D17: 1.825 | E17: 0.89 | F17: 2.050561798 | G17: 1.62425 | S17: 1 | X17: End Canoe
A18: 17 | B18: 31 | D18: =3.561+3.269 -> 6.83 | E18: 1.067 | F18: 6.401124649 | G18: 7.28761 | T18: 1 | X18: rough | AB18: 0.255 | AC18: 0.186 | AD18: 0.041 | AE18: =(AC18*AB18)/(D18*E18) -> 0.006508306564
A19: 18 | B19: 45 | D19: 1.301 | E19: 0.996 | F19: 1.3062249 | G19: 1.295796 | S19: 1
A20: 19 | B20: 39 | D20: 4.853 | E20: 0.945 | F20: 5.135449735 | G20: 4.586085 | H20: 0.231 | T20: 1 | AB20: 0.374 | AC20: 0.129 | AD20: 0.032 | AE20: =(AC20*AB20)/(D20*E20) -> 0.01052008412
A21: 20 | B21: 50 | D21: 1.044 | E21: 0.925 | F21: 1.128648649 | G21: 0.9657 | S21: 1
A22: 21 | B22: 55 | D22: 5.669 | E22: 0.92 | F22: 6.161956522 | G22: 5.21548 | T22: 1
A23: 22 | B23: 24 | D23: 2.079 | E23: 0.744 | F23: 2.794354839 | G23: 1.546776 | S23: 1 | X23: maybe sink
A24: 23 | B24: 90 | D24: 2.519 | E24: 0.89 | F24: 2.830337079 | G24: 2.24191 | S24: 1
A25: 24 | B25: 82 | C25: same as 6
A26: 25 | B26: 59 | D26: 2.309 | E26: 1.015 | F26: =D26/E26 -> 2.274876847 | G26: 2.343635 | S26: 1
A27: 26 | B27: 12 | D27: 3.156 | E27: 0.944 | F27: =D27/E27 -> 3.343220339 | G27: 2.979264
A28: 27 | B28: 68 | D28: 2.502 | E28: 0.936 | F28: =D28/E28 -> 2.673076923 | G28: 2.341872 | S28: 1
A29: 28 | C29: nonexistant
A30: 29 | B30: 64 | D30: 1.132 | E30: 0.747 | F30: =D30/E30 -> 1.515394913 | G30: 0.845604 | H30: 0.178 | S30: 1
A31: 30 | B31: 24 | D31: 3.042 | E31: 1.033 | F31: =D31/E31 -> 2.94482091 | G31: 3.142386 | X31: Middle Sink
A32: 31 | B32: 51 | D32: 1.351 | E32: 0.764 | F32: =D32/E32 -> 1.768324607 | G32: 1.032164 | S32: 1
A33: 32 | B33: 72 | C33: same as 2 | H33: 0.17
A34: 33 | B34: 66 | D34: 2.765 | E34: 1.052 | F34: =D34/E34 -> 2.628326996 | G34: 2.90878 | H34: 0.249
A35: 34 | B35: 40 | D35: 2.257 | E35: 1.086 | F35: 2.078268877 | G35: 2.451102 | S35: 1
A36: 35 | B36: 75 | D36: 3.053 | E36: 1.157 | F36: 2.63872083 | G36: 3.532321
A37: 36 | B37: 13 | D37: 2.04 | E37: 0.808 | F37: 2.524752475 | G37: 1.64832 | H37: 0.217 | S37: 1
A38: 37 | B38: 23 | D38: =2.164+1.292 -> 3.456 | E38: 1.155 | F38: 2.992207792 | G38: 3.99168 | S38: 1 | X38: between smoothe and rough
A39: 38 | B39: 53 | D39: 2.909 | E39: 1.192 | F39: 2.440436242 | G39: 3.467528
A40: 39 | B40: 36 | D40: 3.621 | E40: 0.774 | F40: 4.678294574 | G40: 2.802654 | H40: 0.279
A41: 40 | B41: 77 | C41: blurry
A42: 41 | B42: 21 | C42: already measured
A43: =1+A42 -> 42 | B43: 11 | D43: 1.753 | E43: 0.945 | F43: =D43/E43 -> 1.855026455 | G43: 1.656585 | H43: 0.219 | S43: 1 | X43: between rough and smooth
A44: 43 | B44: 67 | C44: blurry
A45: 44 | B45: 85 | D45: 2.461 | E45: 0.945 | F45: =D45/E45 -> 2.604232804 | G45: 2.325645 | X45: sink?
A46: 45 | B46: 85 | D46: 1.827 | E46: 0.863 | F46: 2.117033604 | G46: 1.576701 | H46: 0.216
A47: 46 | B47: 23 | D47: =2.894+2.747 -> 5.641 | E47: 1.029 | F47: 5.48202138 | G47: 5.804589 | T47: 1
A48: 47 | B48: 66 | D48: =2.82+1.588 -> 4.408 | E48: 1.018 | F48: 4.330058939 | G48: 4.487344 | T48: 1 | X48: sink?
A49: 48 | B49: 64 | D49: 1.645 | E49: 1.012 | F49: 1.625494071 | G49: 1.66474 | H49: 0.241 | S49: 1 | X49: b smoothe and rough
A50: 49 | B50: 75 | D50: 1.86 | E50: 1.013 | F50: 1.836130306 | G50: 1.88418 | S50: 1 | X50: b smoothe and rough
A51: 50 | B51: 73 | D51: 3.425 | E51: 1.152 | F51: 2.973090278 | G51: 3.9456
A52: 51 | B52: 66 | D52: 1.371 | E52: 0.938 | F52: 1.461620469 | G52: 1.285998 | H52: 0.211 | S52: 1
A53: 52 | B53: 45 | D53: 1.63 | E53: 1.102 | F53: 1.479128857 | G53: 1.79626 | S53: 1 | X53: b smoothe and rough
A54: 53 | B54: 72 | D54: 2.545 | E54: 1.05 | F54: 2.423809524 | G54: 2.67225 | S54: 1
A55: 54 | B55: 73 | D55: 3.381 | E55: 0.932 | F55: 3.627682403 | G55: 3.151092 | H55: 0.212 | S55: 1
A56: 55 | B56: 22 | C56: already measured | X56: end divots degrading?
A57: 56 | B57: 46 | D57: 1.588 | E57: 0.823 | F57: =D57/E57 -> 1.929526124 | G57: 1.306924 | S57: 1
A58: 57 | B58: 2
A59: 58 | B59: 75
A60: 59 | B60: 54
A61: 60 | B61: 72
C64: Count | D64: =COUNT(D2:D61) -> 48 | E64: =COUNT(E2:E61) -> 48 | F64: =COUNT(F2:F61) -> 48 | G64: =COUNT(G2:G61) -> 48 | H64: =COUNT(H2:H61) -> 16 | I64: Instances | K64: =COUNT(K2:K63) -> 0 | L64: 0 | M64: 0 | N64: 0 | S64: 27 | T64: 10 | X64: 0 | Y64: 3 | Z64: =COUNT(Z2:Z63) -> 3 | AB64: =COUNT(AB2:AB61) -> 4 | AC64: 4 | AD64: 4 | AE64: 4 | AF64: 0 | AG64: 0 | AH64: 0 | AI64: 0 | AJ64: 0 | AK64: 0 | AL64: 0 | AM64: 0
C65: Avg. | D65: =SUM(D2:D61)/50 -> 2.94776 | E65: =SUM(E2:E61)/50 -> 0.93374 | F65: =SUM(F2:F57)/50 -> 3.009501132 | G65: =SUM(G2:G57)/50 -> 2.92469506 | H65: =AVERAGE(H2:H61) -> 0.217375 | I65: Fraction | K65: =K64/$D$64 -> 0 | L65: 0 | M65: 0 | N65: 0 | S65: 0.5625 | T65: 0.2083333333 | X65: 0 | Y65: 0.0625 | Z65: =AVERAGE(Z2:Z63) -> 0.6493333333 | AB65: =AVERAGE(AB2:AB61) -> 0.312 | AC65: 0.248 | AD65: 0.03225 | AE65: 0.01329637274
C66: STDEV | D66: =STDEV(D2:D6,D8:D42,D44:D53) -> 1.701049704 | E66: =STDEV(E2:E61) -> 0.1177175649 | F66: =STDEV(F2:F57) -> 1.59622793 | G66: =STDEV(G2:G57) -> 1.758012789 | H66: =STDEV(H2:H61) -> 0.03020126929 | I66: Number/Cell | M66: =SUM(M3:M63)/L$64 ->  | Z66: =STDEV(Z2:Z63) -> 0.08800189392 | AB66: =STDEV(AB2:AB61) -> 0.1141782233 | AC66: 0.1099181514 | AD66: 0.009569918147 | AE66: 0.008994150178

Sheet H7_08031220
A1: Cell Number | B1: Number Sequence | C1: Comment | D1: Length (µm) | E1: Width (µm) | F1: Length/Width | G1: Width x Length | H1: Elevation | K1: Bite | L1: End Divot | M1: #Divots | N1: Canoe | S1: Smooth | T1: Filamented | X1: Comment | Y1: Dividing? | Z1: Waist | AB1: Divot Length | AC1: Divot Width | AD1: Divot Depth | AE1: %Surface Coverage | AF1: Canoe Length | AG1: Canoe Width | AH1: Canoe Depth | AI1: %Surface Coverage | AJ1: Bite Length | AK1: Bite Width | AL1: Bite Depth | AM1: %Surface Coverage
A2: =1 -> 1 | B2: 47 | C2: Long | D2: 3.336 | E2: 0.762 | F2: =D2/E2 -> 4.377952756 | G2: =D2*E2 -> 2.542032 | X2: Canoe on a third of the cell, but not continuous, large ridge in the middle | AM2: =(AJ2*AK2)/($D$2*$E$2)*100 -> 0
A3: =A2+1 -> 2 | B3: 85 | C3: Potentially dividing, distinct features on each cell | D3: 2.114 | E3: 0.999 | F3: =D3/E3 -> 2.116116116 | G3: =D3*E3 -> 2.111886 | N3: 1 | X3: Canoe feature is not continuous throughout cell
A4: =A3+1 -> 3 | B4: 86 | C4: Long | D4: 3.007 | E4: 1.115 | F4: 2.696860987 | G4: 3.352805 | H4: 0.202 | X4: Canoelike features in some parts, not continuous throughout cell, ridge in the middle
A5: 4 | B5: 88 | D5: 1.904 | E5: 0.906 | F5: 2.101545254 | G5: 1.725024 | N5: 1 | X5: Slightly larger canoe
A6: 5 | B6: 78 | C6: Cell looks divided or burst | D6: 3.803 | E6: 1.061 | F6: 3.584354383 | G6: 4.034983 | N6: 1
A7: 6 | B7: 53 | D7: 2.237 | E7: 0.83 | F7: 2.695180723 | G7: 1.85671 | H7: 0.218 | X7: Canoe formed at bottom of cell but not continuous throughout the cell, ridge at the top part
A8: 7 | B8: 76
A9: 8 | B9: 57 | C9: revised | D9: 3.366 | E9: 0.827 | F9: 4.070133011 | G9: 2.783682 | N9: 1
A10: 9 | B10: 88 | C10: Unlike other cells in image, irregular, possible omit? | D10: 1.608 | E10: 1.242 | F10: 1.29468599 | G10: 1.997136 | H10: 0.25 | X10: Strange looking cell, no features that can be categorized, might be burst or squished
A11: 10 | B11: 24 | C11: Unlike other cells in image | D11: 1.883 | E11: 1.124 | F11: 1.675266904 | G11: 2.116492 | L11: 1 | M11: 2 | X11: Strange looking cell, potentially forming end divots but one divot is too small
A12: 11 | B12: 15 | C12: Long | D12: 3.721 | E12: 0.875 | F12: 4.252571429 | G12: 3.255875 | N12: 1 | X12: Long canoe
A13: 12 | B13: 51 | C13: Divided, not along the same axis | D13: 2.926 | E13: 1.038 | F13: 2.818882466 | G13: 3.037188 | H13: 0.258 | X13: Discontinuous, has canoe feature at bottom
A14: 13 | B14: 53 | C14: Dividing | D14: 3.166 | E14: 0.893 | F14: 3.545352744 | G14: 2.827238 | X14: Looks like both top and bottom parts were in the process of forming canoes
A15: 14 | B15: 76 | C15: Close but divided | D15: 2.611 | E15: 1.038 | F15: 2.515414258 | G15: 2.710218 | X15: Discontinuous, has canoe feature on the left
A16: 15 | B16: 34 | D16: 3.306 | E16: 0.949 | F16: 3.483667018 | G16: 3.137394 | H16: 0.24 | N16: 1 | X16: Canoe-like with a ridge through the middle
A17: 16 | B17: 69 | D17: 2.241 | E17: 0.739 | F17: 3.032476319 | G17: 1.656099 | X17: Discontinuous, canoe at bottom
A18: 17 | B18: 10 | C18: Divided | D18: 1.639 | E18: 0.921 | F18: 1.779587405 | G18: 1.509519 | N18: 1
A19: 18 | B19: 32 | D19: 1.576 | E19: 0.904 | F19: 1.743362832 | G19: 1.424704 | H19: 0.195 | N19: 1 | X19: Normal looking canoe | AF19: 1.101 | AG19: 0.416 | AH19: 0.019 | AI19: =(AF19*AG19)/($D19*$E19)*100 -> 32.14815148
A20: 19 | B20: 3 | D20: 2.532 | E20: 0.942 | F20: 2.687898089 | G20: 2.385144 | N20: 1 | X20: Larger than average canoe
A21: 20 | B21: 11 | D21: 1.756 | E21: 1.083 | F21: 1.621421976 | G21: 1.901748 | X21: Canoe-like, irregularly shaped, could be forming a canoe
A22: 21 | B22: 46 | D22: 2.537 | E22: 0.919 | F22: 2.760609358 | G22: 2.331503 | H22: 0.239 | N22: 1 | X22: Larger than average canoe | AF22: 2.002 | AG22: 0.37 | AH22: 0.017 | AI22: =(AF22*AG22)/($D22*$E22)*100 -> 31.77092202
A23: 22 | B23: 2 | D23: 2.177 | E23: 1.196 | F23: 1.820234114 | G23: 2.603692 | X23: Could be forming end divots
A24: 23 | B24: 15 | D24: 1.726 | E24: 0.716 | F24: 2.410614525 | G24: 1.235816 | X24: Discontinuous, could be forming canoe
A25: 24 | B25: 13 | D25: 2.408 | E25: 1.005 | F25: 2.3960199 | G25: 2.42004 | H25: 0.208 | N25: 1 | X25: Strange indent at top | AF25: 1.55 | AG25: 0.309 | AH25: 0.018 | AI25: =(AF25*AG25)/($D25*$E25)*100 -> 19.79099519
A26: 25 | B26: 1 | C26: Divided | D26: 3.254 | E26: 0.955 | F26: 3.407329843 | G26: 3.10757 | N26: 1 | X26: Long
A27: 26 | B27: 30 | C27: Really really long | D27: 6.358 | E27: 0.913 | F27: 6.963855422 | G27: 5.804854 | T27: 1 | X27: Canoe-like, discontinuous because of ridge in middle, looks twisted
A28: 27 | B28: 48 | D28: 2.921 | E28: 0.615 | F28: 4.749593496 | G28: 1.796415 | H28: 0.291 | X28: Canoe-like, discontinuous
A29: 28 | B29: 87 | D29: 3.73 | E29: 0.963 | F29: 3.873312565 | G29: 3.59199 | X29: Canoe-like at top and bottom but discontinuous
A30: 29 | B30: 65 | D30: 1.891 | E30: 0.866 | F30: 2.183602771 | G30: 1.637606 | X30: Could be overlapping, divot at bottom
A31: 30 | B31: 26 | D31: 1.724 | E31: 0.77 | F31: 2.238961039 | G31: 1.32748 | H31: 0.231 | X31: Could be a canoe, higher middle part
A32: 31 | B32: 36 | D32: 3.114 | E32: 0.932 | F32: 3.341201717 | G32: 2.902248 | N32: 1
A33: 32 | B33: 25 | C33: Dividing | D33: 4.3 | E33: 0.955 | F33: 4.502617801 | G33: 4.1065 | X33: Discontinuous, could be forming a canoe | Y33: 1 | Z33: 0.825
A34: 33 | B34: 3 | C34: Divided | D34: 1.276 | E34: 0.888 | F34: 1.436936937 | G34: 1.133088 | H34: 0.211 | N34: 1 | X34: Each cell has distinct canoe feature, forming divots | AF34: 1.029 | AG34: 0.609 | AH34: 0.013 | AI34: =(AF34*AG34)/($D34*$E34)*100 -> 55.30558968
A35: 34 | B35: 63 | C35: Really really long | D35: 6.388 | E35: 1.053 | F35: 6.066476733 | G35: 6.726564 | T35: 1 | X35: Incredibly long
A36: 35 | B36: 4 | D36: 4.51 | E36: 1.138 | F36: 3.963093146 | G36: 5.13238 | T36: 1 | X36: Really rough, unlike other cells in image
A37: 36 | B37: 45 | C37: Some overlap | D37: 2.305 | E37: 0.921 | F37: 2.502714441 | G37: 2.122905 | H37: 0.233 | N37: 1 | AF37: 1.558 | AG37: 0.435 | AI37: =(AF37*AG37)/($D37*$E37)*100 -> 31.92465042
A38: 37 | B38: 79 | D38: 3.37 | E38: 0.834 | F38: 4.040767386 | G38: 2.81058 | X38: Could be forming canoe, discontinuous
A39: 38 | B39: 57 | D39: 3.572 | E39: 1.118 | F39: 3.194991055 | G39: 3.993496 | N39: 1
A40: 39 | B40: 64 | D40: 2.832 | E40: 1.091 | F40: 2.595783685 | G40: 3.089712 | H40: 0.283 | S40: 1 | X40: Lacks features to categorize
A41: 40 | B41: 2 | C41: Divided | D41: 1.89 | E41: 1.066 | F41: 1.772983114 | G41: 2.01474 | X41: Discontinuous, ridge in canoe
A42: 41 | B42: 89 | D42: 1.509 | E42: 0.866 | F42: 1.742494226 | G42: 1.306794 | N42: 1 | X42: Cell looks broken off from neighboring cell
A43: 42 | B43: 31 | D43: 1.928 | E43: 1.001 | F43: 1.926073926 | G43: 1.929928 | H43: 0.214 | N43: 1 | X43: Discontinuous, canoe flattens out
A44: 43 | B44: 11 | D44: 2.3 | E44: 0.898 | F44: 2.561247216 | G44: 2.0654 | N44: 1
A45: 44 | B45: 36 | D45: 2.094 | E45: 0.594 | F45: 3.525252525 | G45: 1.243836 | N45: 1
A46: 45 | B46: 16 | D46: 1.724 | E46: 0.663 | F46: 2.600301659 | G46: 1.143012 | H46: 0.266 | X46: Discontinuous, possibly forming canoe
A47: 46 | B47: 20 | D47: 3.546 | E47: 1.115 | F47: 3.180269058 | G47: 3.95379 | N47: 1
A48: 47 | B48: 22 | D48: 6.792 | E48: 1.064 | F48: 6.383458647 | G48: 7.226688 | T48: 1 | X48: Incredibly long, canoe-like at bottom
A49: 48 | B49: 73 | D49: 3.007 | E49: 0.564 | F49: 5.331560284 | G49: 1.695948 | H49: 0.25 | X49: Canoe-like, discontinuous and shallow
A50: 49 | B50: 75 | D50: 2.838 | E50: 0.928 | F50: 3.058189655 | G50: 2.633664 | N50: 1
A51: 50 | B51: 42 | D51: 2.817 | E51: 0.785 | F51: 3.588535032 | G51: 2.211345 | N51: 1
A52: 51 | B52: 9
A53: 52 | B53: 4
A54: 53 | B54: 62
A55: 54 | B55: 35
A56: 55 | B56: 14
A57: 56 | B57: 88
A58: 57 | B58: 20
A59: 58 | B59: 62
A60: 59 | B60: 65
A61: 60 | B61: 58
A62: 61 | B62: 64
A63: 62 | B63: 83
A64: Count | D64: =COUNT(D2:D63) -> 49 | E64: =COUNT(E2:E63) -> 49 | F64: =COUNT(F2:F63) -> 49 | G64: =COUNT(G2:G63) -> 49 | H64: =COUNT(H2:H63) -> 16 | I64: Instances | K64: =COUNT(K2:K63) -> 0 | L64: 1 | M64: 1 | N64: 23 | S64: 1 | T64: 4 | X64: 0 | Y64: 1 | Z64: =COUNT(Z2:Z63) -> 1 | AB64: =COUNT(AB2:AB63) -> 0 | AC64: 0 | AD64: 0 | AE64: 0 | AF64: 5 | AG64: 5 | AH64: 4 | AI64: 5 | AJ64: 0 | AK64: 0 | AL64: 0 | AM64: 1
A65: AVG | D65: =AVERAGE(D2:D63) -> 2.848367347 | E65: =AVERAGE(E2:E63) -> 0.9314285714 | F65: =AVERAGE(F2:F63) -> 3.106363509 | G65: =AVERAGE(G2:G63) -> 2.687050224 | H65: =AVERAGE(H2:H63) -> 0.2368125 | I65: Fraction | K65: =K64/$D$64 -> 0 | L65: 0.02040816327 | M65: 0.02040816327 | N65: 0.4693877551 | S65: 0.02040816327 | T65: 0.08163265306 | X65: 0 | Y65: 0.02040816327 | Z65: =AVERAGE(Z2:Z63) -> 0.825 | AB65: =AVERAGE(AB2:AB63) ->  | AF65: 1.448 | AG65: 0.4278 | AH65: 0.01675 | AI65: 34.18806176 | AM65: 0
A66: STDEV | D66: =STDEV(D2:D63) -> 1.223316746 | E66: =STDEV(E2:E63) -> 0.153696671 | F66: =STDEV(F2:F63) -> 1.279862703 | G66: =STDEV(G2:G63) -> 1.349473315 | H66: =STDEV(H2:H63) -> 0.02841647116 | I66: Number/Cell | M66: =SUM(M3:M63)/L$64 -> 2 | Z66: =STDEV(Z2:Z63) ->  | AB66: =STDEV(AB2:AB63) ->  | AF66: 0.3954080171 | AG66: 0.1123374381 | AH66: 0.00262995564 | AI66: 12.92625565

Sheet H7_08031144
A1: Cell Number | B1: Number Sequence | C1: Comment | D1: Length (µm) | E1: Width (µm) | F1: Length/Width | G1: Width x Length | H1: Elevation | K1: Bite | L1: End Divot | M1: #Divots | N1: Canoe | S1: Smooth | T1: Filamented | X1: Comment | Y1: Dividing? | Z1: Waist | AB1: Divot Length | AC1: Divot Width | AD1: Divot Depth | AE1: %Surface Coverage | AF1: Canoe Length | AG1: Canoe Width | AH1: Canoe Depth | AI1: %Surface Coverage | AJ1: Bite Length | AK1: Bite Width | AL1: Bite Depth | AM1: %Surface Coverage
A2: =1 -> 1 | B2: 25 | D2: 1.375 | E2: 0.622 | F2: =D2/E2 -> 2.210610932 | G2: =D2*E2 -> 0.85525 | X2: An indent present in the cell running vertically, early canoe? | AM2: =(AJ2*AK2)/($D$2*$E$2)*100 -> 0
A3: =A2+1 -> 2 | B3: 20 | D3: 2.161 | E3: 0.996 | F3: =D3/E3 -> 2.169678715 | G3: =D3*E3 -> 2.152356 | X3: Almost a canoe but there is a ridge in the middle so it is not a continuous feature.
A4: =A3+1 -> 3 | B4: 14 | D4: 1.465 | E4: 0.771 | F4: 1.900129702 | G4: 1.129515 | H4: 0.211 | X4: Two small indents on either end of the cell that may be forming end divots but are too shallow
A5: 4 | B5: 7 | D5: 2.155 | E5: 0.964 | F5: 2.235477178 | G5: 2.07742 | L5: 1 | M5: 2 | X5: Not as wide as most end divot cells
A6: 5 | B6: 37 | D6: 1.542 | E6: 0.632 | F6: 2.439873418 | G6: 0.974544 | N6: 1
A7: 6 | B7: 21 | D7: 1.644 | E7: 0.823 | F7: 1.997569866 | G7: 1.353012 | H7: 0.284 | S7: 1 | X7: Discontinuous, slanted
A8: 7 | B8: 16 | D8: 1.528 | E8: 0.845 | F8: 1.808284024 | G8: 1.29116 | N8: 1
A9: 8 | B9: 12 | C9: Suspected Entry Error
A10: 9 | B10: 28 | D10: 2.415 | E10: 1.019 | F10: 2.369970559 | G10: 2.460885 | H10: 0.22 | N10: 1 | X10: Discontinuous
A11: 10 | B11: 41 | D11: 1.147 | E11: 0.787 | F11: =D11/E11 -> 1.457433291 | G11: 0.902689 | S11: 1 | X11: Discontinuous
A12: 11 | B12: 1 | D12: 1.47 | E12: 0.89 | F12: 1.651685393 | G12: 1.3083 | N12: 1 | X12: A large indent in the middle of half of the cell
A13: 12 | B13: 43 | C13: questionable: strange cell next to it… | D13: 1.797 | E13: 0.714 | F13: 2.516806723 | G13: 1.283058 | H13: 0.318 | N13: 1 | X13: Discontinuous, large indent in one half of the cell, abnormally shaped
A14: 13 | B14: 46 | D14: 2.409 | E14: 0.696 | F14: 3.461206897 | G14: 1.676664 | X14: Abnormally shaped, potentially formation of a bite.
A15: 14 | B15: 18 | D15: 3.177 | E15: 0.925 | F15: 3.434594595 | G15: 2.938725 | X15: Discontinuous canoe with a ridge
A16: 15 | B16: 2 | D16: 1.699 | E16: 0.887 | F16: 1.915445321 | G16: 1.507013 | H16: 0.259 | X16: Discontinuous
A17: 16 | B17: 12 | D17: 3.174 | E17: 0.764 | F17: 4.154450262 | G17: 2.424936 | X17: Discontinuous
A18: 17 | B18: 3 | D18: 1.803 | E18: 0.949 | F18: 1.899894626 | G18: 1.711047 | L18: 1 | M18: 2
A19: 18 | B19: 47 | C19: LONG | D19: 5.68 | E19: 0.839 | F19: 6.769964243 | G19: 4.76552 | H19: 0.284 | T19: 1 | X19: Way longer than most canoes | AF19: 5.061 | AG19: 0.336 | AH19: 0.016 | AI19: =(AF19*AG19)/($D19*$E19)*100 -> 35.68332522
A20: 19 | B20: 14 | D20: 1.887 | E20: 0.943 | F20: 2.001060445 | G20: 1.779441 | N20: 1
A21: 20 | B21: 50 | D21: 1.891 | E21: 0.824 | F21: 2.294902913 | G21: 1.558184 | L21: 1 | M21: 2
A22: 21 | B22: 17 | D22: 2.728 | E22: 0.938 | F22: 2.908315565 | G22: 2.558864 | H22: 0.2 | N22: 1 | AF22: 2.056 | AG22: 0.564 | AH22: 0.024 | AI22: =(AF22*AG22)/($D22*$E22)*100 -> 45.31635913
A23: 22 | B23: 45 | D23: 1.825 | E23: 0.825 | F23: 2.212121212 | G23: 1.505625 | N23: 1
A24: 23 | B24: 33 | D24: 1.421 | E24: 0.792 | F24: 1.794191919 | G24: 1.125432 | N24: 1
A25: 24 | B25: 10 | D25: 1.913 | E25: 0.904 | F25: 2.116150442 | G25: 1.729352 | H25: 0.228 | L25: 1 | M25: 2 | AB25: 0.492 | AC25: 0.664 | AD25: 0.021 | AE25: =(AB25*AC25)/($D25*$E25)*100 -> 18.89077527
A26: 25 | B26: 29 | C26: Not sure where this cell ends therefore unsure if dividing or not… | D26: 2.642 | E26: 1.233 | F26: 2.142741281 | G26: 3.257586 | X26: Discontinuous, but canoe-like with a ridge in the middle
A27: 26 | B27: 51 | D27: 2.046 | E27: 0.606 | F27: 3.376237624 | G27: 1.239876 | N27: 1
A28: 27 | B28: 26 | D28: 1.308 | E28: 0.649 | F28: 2.01540832 | G28: 0.848892 | H28: 0.255 | N28: 1 | X28: Canoe overflows the edges of the cell (vertically) (the edge here is lower) | AF28: 1.197 | AG28: 0.473 | AH28: 0.026 | AI28: =(AF28*AG28)/($D28*$E28)*100 -> 66.69647022
A29: 28 | B29: 16 | C29: LONG | D29: 4.367 | E29: 0.881 | F29: 4.956867196 | G29: 3.847327 | T29: 1
A30: 29 | B30: 11 | D30: 2.042 | E30: 0.778 | F30: 2.624678663 | G30: 1.588676 | N30: 1
A31: 30 | B31: 34 | D31: 1.129 | E31: 0.841 | F31: 1.342449465 | G31: 0.949489 | H31: 0.288 | N31: 1
A32: 31 | B32: 16 | D32: 2.532 | E32: 1.411 | F32: 1.794472006 | G32: 3.572652 | S32: 1 | X32: Discontinuous | AF32: 0.488 | AG32: 0.421 | AH32: 0.019 | AI32: =(AF32*AG32)/($D32*$E32)*100 -> 5.750574083
A33: 32 | B33: 38 | C33: Mysterious "stuff" in the right corner so used middle cell | D33: 1.848 | E33: 0.951 | F33: 1.943217666 | G33: 1.757448 | S33: 1 | X33: Discontinuous
A34: 33 | B34: 22 | D34: 3.064 | E34: 0.764 | F34: 4.010471204 | G34: 2.340896 | H34: 0.26 | X34: Discontinuous
A35: 34 | B35: 2 | D35: 2.248 | E35: 0.766 | F35: 2.934725849 | G35: 1.721968 | N35: 1
A36: 35 | B36: 18 | D36: 3.342 | E36: 0.913 | F36: 3.660460022 | G36: 3.051246 | N36: 1
A37: 36 | B37: 9 | D37: 1.998 | E37: 0.94 | F37: 2.125531915 | G37: 1.87812 | H37: 0.151 | X37: Almost a canoe with 2 divots but there is a ridge so it is not continuous
A38: 37 | B38: 32 | D38: 1.96 | E38: 0.869 | F38: 2.255466053 | G38: 1.70324 | L38: 1 | M38: 2
A39: 38 | B39: 41 | D39: 3.006 | E39: 0.879 | F39: 3.419795222 | G39: 2.642274 | X39: Bite-like but too shallow and too long with an uneven surface
A40: 39 | B40: 14 | D40: 2.356 | E40: 0.942 | F40: 2.501061571 | G40: 2.219352 | H40: 0.256 | X40: Large depression on one end of the cell with an overall discontinuous surface
A41: 40 | B41: 12 | D41: 2.621 | E41: 0.887 | F41: 2.954904171 | G41: 2.324827 | S41: 1 | X41: Discontinuous, slanted
A42: 41 | B42: 32 | D42: 1.752 | E42: 0.557 | F42: 3.145421903 | G42: 0.975864 | N42: 1
A43: 42 | B43: 20 | D43: 1.929 | E43: 0.866 | F43: 2.227482679 | G43: 1.670514 | H43: 0.215 | X43: Surface is very uneven, divots are too large to be classified as end divots
A44: 43 | B44: 39 | D44: 1.945 | E44: 0.743 | F44: 2.617765814 | G44: 1.445135 | N44: 1
A45: 44 | B45: 32 | D45: 1.93 | E45: 0.903 | F45: 2.137320044 | G45: 1.74279 | N45: 1
A46: 45 | B46: 38 | C46: Questionable: unsure what is to the right of the cell so unsure where it end | D46: 1.876 | E46: 0.44 | F46: 4.263636364 | G46: 0.82544 | H46: 0.338 | S46: 1 | X46: Discontinuous, slanted
A47: 46 | B47: 1 | D47: 2.427 | E47: 0.767 | F47: 3.164276402 | G47: 1.861509 | N47: 1
A48: 47 | B48: 35 | D48: 2.094 | E48: 0.811 | F48: 2.581997534 | G48: 1.698234 | N48: 1
A49: 48 | B49: 14 | D49: 1.969 | E49: 0.992 | F49: 1.984879032 | G49: 1.953248 | H49: 0.211 | X49: Discontinuous, raised edges
A50: 49 | B50: 49 | D50: 3.161 | E50: 1.002 | F50: 3.154690619 | G50: 3.167322 | X50: Discontinuous, one large indent on the edge of one side of the cell
A51: 50 | B51: 32 | D51: 3.563 | E51: 0.854 | F51: 4.172131148 | G51: 3.042802 | N51: 1 | X51: Surface uneven, longer cell than most canoes
A52: 51 | B52: 48
A53: 52 | B53: 45
A54: 53 | B54: 5
A55: 54 | B55: 25
A56: 55 | B56: 47
A57: 56 | B57: 46
A58: 57 | B58: 34
A59: 58 | B59: 10
A60: 59 | B60: 27
A61: 60 | B61: 26
A62: 61 | B62: 46
A63: 62 | B63: 8
A64: Count | D64: =COUNT(D2:D63) -> 49 | E64: =COUNT(E2:E63) -> 49 | F64: =COUNT(F2:F63) -> 49 | G64: =COUNT(G2:G63) -> 49 | H64: =COUNT(H2:H63) -> 16 | I64: Instances | K64: =COUNT(K2:K63) -> 0 | L64: 5 | M64: 5 | N64: 21 | S64: 6 | T64: 2 | X64: 0 | Y64: 0 | Z64: =COUNT(Z2:Z63) -> 0 | AB64: =COUNT(AB2:AB63) -> 1 | AC64: 1 | AD64: 1 | AE64: 1 | AF64: 4 | AG64: 4 | AH64: 4 | AI64: 4 | AJ64: 0 | AK64: 0 | AL64: 0 | AM64: 1
A65: AVG | D65: =AVERAGE(D2:D63) -> 2.233897959 | E65: =AVERAGE(E2:E63) -> 0.8488571429 | F65: =AVERAGE(F2:F63) -> 2.678120572 | G65: =AVERAGE(G2:G63) -> 1.926443245 | H65: =AVERAGE(H2:H63) -> 0.248625 | I65: Fraction | K65: =K64/$D$64 -> 0 | L65: 0.1020408163 | M65: 0.1020408163 | N65: 0.4285714286 | S65: 0.1224489796 | T65: 0.04081632653 | X65: 0 | Y65: 0 | Z65: =AVERAGE(Z2:Z63) ->  | AB65: =AVERAGE(AB2:AB63) -> 0.492 | AC65: 0.664 | AD65: 0.021 | AE65: 18.89077527 | AF65: 2.2005 | AG65: 0.4485 | AH65: 0.02125 | AI65: 38.36168216 | AM65: 0
A66: STDEV | D66: =STDEV(D2:D63) -> 0.8355872746 | E66: =STDEV(E2:E63) -> 0.1581709255 | F66: =STDEV(F2:F63) -> 1.003804898 | G66: =STDEV(G2:G63) -> 0.8555766897 | H66: =STDEV(H2:H63) -> 0.04781056369 | I66: Number/Cell | M66: =SUM(M3:M63)/L$64 -> 2 | Z66: =STDEV(Z2:Z63) ->  | AB66: =STDEV(AB2:AB63) ->  | AF66: 2.01188212 | AG66: 0.09548647374 | AH66: 0.004573474245 | AI66: 25.31064145

Sheet H8_01221702
A1: Cell Number | B1: Number Sequence | C1: Comment | D1: Length (µm) | E1: Width (µm) | F1: Length/Width | G1: Width x Length | H1: Elevation | K1: Bite | L1: End Divot | M1: #Divots | N1: Canoe | S1: Smooth | T1: Filamented | X1: Comment | Y1: Dividing? | Z1: Waist | AB1: Divot Length | AC1: Divot Width | AD1: Divot Depth | AE1: %Surface Coverage | AF1: Canoe Length | AG1: Canoe Width | AH1: Canoe Depth | AI1: %Surface Coverage | AJ1: Bite Length | AK1: Bite Width | AL1: Bite Depth | AM1: %Surface Coverage
A2: =1 -> 1 | B2: 19 | D2: 1.619 | E2: 1.086 | F2: =D2/E2 -> 1.490791897 | G2: =D2*E2 -> 1.758234 | N2: 1 | AE2: =(AB2*AC2)/($D$2*$E$2)*100 -> 0 | AI2: =(AF2*AG2)/($D$2*$E$2)*100 -> 0 | AM2: =(AJ2*AK2)/($D$2*$E$2)*100 -> 0
A3: =A2+1 -> 2 | B3: 18 | D3: 1.593 | E3: 0.954 | F3: 1.669811321 | G3: 1.519722 | N3: 1 | AI3: 0
A4: 3 | B4: 13 | C4: revised | D4: 2.526 | E4: 1.062 | F4: 2.378531073 | G4: 2.682612 | H4: 0.228 | X4: Waist is higher than width, Similar to a canoe but there is a large depression near the end of the cell that makes the canoe feature discontinuous | Z4: 0.789 | AI4: 0
A5: 4 | B5: 27 | D5: 1.852 | E5: 1.043 | F5: 1.775647172 | G5: 1.931636 | S5: 1 | AI5: 0
A6: 5 | B6: 30 | D6: 1.534 | E6: 0.952 | F6: 1.611344538 | G6: 1.460368 | S6: 1 | AI6: 0
A7: 6 | B7: 19 | D7: 1.444 | E7: 0.896 | F7: 1.611607143 | G7: 1.293824 | H7: 0.289 | N7: 1 | AF7: 1.193 | AG7: 0.448 | AH7: 0.045 | AI7: 30.39777413
A8: 7 | B8: 10 | D8: 2.055 | E8: 1.057 | F8: 1.944181646 | G8: 2.172135 | S8: 1 | X8: Discontinuous, a large indent near the end of the cell | Y8: 1 | Z8: 0.764 | AI8: 0
A9: 8 | B9: 6 | D9: 1.186 | E9: 0.951 | F9: 1.247108307 | G9: 1.127886 | S9: 1 | AI9: 0
A10: 9 | B10: 6 | D10: 1.461 | E10: 0.685 | F10: 2.132846715 | G10: 1.000785 | H10: 0.254 | S10: 1 | AI10: 0
A11: 10 | B11: 13 | D11: 1.295 | E11: 0.967 | F11: 1.339193382 | G11: 1.252265 | S11: 1 | X11: Discontinuous, a large indent near the end of the cell | AI11: 0
A12: 11 | B12: 26 | D12: 1.755 | E12: 0.936 | F12: 1.875 | G12: 1.64268 | N12: 1 | AI12: 0
A13: 12 | B13: 7 | D13: 1.712 | E13: 1.061 | F13: 1.613572102 | G13: 1.816432 | H13: 0.29 | AF13: 1.417 | AG13: 0.648 | AH13: 0.047 | AI13: 52.22376544
A14: 13 | B14: 11 | D14: 1.737 | E14: 1.078 | F14: 1.611317254 | G14: 1.872486 | X14: Discontinuous, a large indent near the end of the cell | AI14: 0
A15: 14 | B15: 15 | D15: 1.629 | E15: 0.919 | F15: 1.77257889 | G15: 1.497051 | N15: 1 | AI15: 0
A16: 15 | B16: 14 | D16: 1.321 | E16: 1.031 | F16: 1.28128031 | G16: 1.361951 | H16: 0.253 | AF16: 0.842 | AG16: 0.667 | AH16: 0.021 | AI16: 31.94193719
A17: 16 | B17: 22 | D17: 1.579 | E17: 1.066 | F17: 1.481238274 | G17: 1.683214 | S17: 1 | X17: Slanted, rough surface looks like it has started to disintegrate prior to drying. | AI17: 0
A18: 17 | B18: 17 | D18: 0.972 | E18: 0.847 | F18: 1.147579693 | G18: 0.823284 | N18: 1 | X18: Similar to a donut cell because it is very round | AI18: 0
A19: 18 | B19: 3 | C19: Layered cells | D19: 1.057 | E19: 0.822 | F19: 1.285888078 | G19: 0.868854 | H19: 0.328 | N19: 1 | X19: Similar to a donut cell because it is very round | AF19: 0.529 | AG19: 0.47 | AH19: 0.068 | AI19: 14.14089365
A20: 19 | B20: 21 | D20: 2.09 | E20: 0.94 | F20: 2.223404255 | G20: 1.9646 | N20: 1 | Y20: 1 | Z20: 0.561 | AI20: 0
A21: 20 | B21: 17 | D21: 1.3 | E21: 0.887 | F21: 1.465614431 | G21: 1.1531 | N21: 1 | AI21: 0
A22: 21 | B22: 9 | D22: 1.61 | E22: 0.884 | F22: 1.821266968 | G22: 1.42324 | H22: 0.269 | AF22: 1.192 | AG22: 0.59 | AH22: 0.048 | AI22: 39.9992265
A23: 22 | B23: 26 | D23: 1.508 | E23: 1.007 | F23: 1.497517378 | G23: 1.518556 | X23: Discontinuous, peak-like, rough surface a small indent near one end | AI23: 0
A24: 23 | B24: 3 | D24: 1.079 | E24: 0.887 | F24: 1.216459977 | G24: 0.957073 | N24: 1 | AI24: 0
A25: 24 | B25: 5 | D25: 1.234 | E25: 0.939 | F25: 1.314164004 | G25: 1.158726 | H25: 0.262 | N25: 1 | AF25: 0.646 | AG25: 0.646 | AH25: 0.036 | AI25: 23.73495223
A26: 25 | B26: 22 | D26: 1.92 | E26: 0.866 | F26: 2.217090069 | G26: 1.66272 | N26: 1 | AI26: 0
A27: 26 | B27: 5 | D27: 1.391 | E27: 0.798 | F27: 1.743107769 | G27: 1.110018 | S27: 1 | X27: Discontinuous, rough surface, a large indent near the middle of the cell | AI27: 0
A28: 27 | B28: 25 | D28: 1.057 | E28: 0.94 | F28: 1.124468085 | G28: 0.99358 | H28: 0.257 | N28: 1 | AF28: 0.763 | AG28: 0.529 | AH28: 0.056 | AI28: 22.95638692
A29: 28 | B29: 15 | C29: revised, entry erorr same as 3 | AI29: 0
A30: 29 | B30: 31 | D30: 0.773 | E30: 0.71 | F30: 1.088732394 | G30: 0.54883 | X30: Discontinuous, rough surface, looks like it has started to disintegrate prior to drying | AI30: 0
A31: 30 | B31: 25 | D31: 1.152 | E31: 0.961 | F31: 1.198751301 | G31: 1.107072 | H31: 0.284 | N31: 1 | AF31: 0.849 | AG31: 0.661 | AH31: 0.04 | AI31: 31.91776521
A32: 31 | B32: 16 | D32: 1.381 | E32: 0.83 | F32: 1.663855422 | G32: 1.14623 | N32: 1 | AI32: 0
A33: 32 | B33: 17 | D33: 2.104 | E33: 1.076 | F33: 1.955390335 | G33: 2.263904 | N33: 1 | Y33: 1 | Z33: 0.794 | AI33: 0
A34: 33 | B34: 6 | D34: 2.058 | E34: 0.91 | F34: =D34/E34 -> 2.261538462 | G34: =D34*E34 -> 1.87278 | H34: 0.312 | AF34: 1.737 | AG34: 0.715 | AH34: 0.043 | AI34: =(AF34*AG34)/($D$2*$E$2)*100 -> 70.63650231
A35: =A34+1 -> 34 | B35: 20 | D35: 1.233 | E35: 1.075 | F35: 1.146976744 | G35: 1.325475 | N35: 1 | AI35: 0
A36: 35 | B36: 28 | D36: 1.753 | E36: 0.744 | F36: 2.356182796 | G36: 1.304232 | L36: 1 | M36: 2 | AI36: 0
A37: 36 | B37: 19 | D37: 1.42 | E37: 0.79 | F37: 1.797468354 | G37: 1.1218 | H37: 0.28 | AF37: 1.065 | AG37: 0.575 | AH37: 0.049 | AI37: 34.82898181
A38: 37 | B38: 27 | D38: 2.063 | E38: 0.934 | F38: 2.208779443 | G38: 1.926842 | X38: Discontinuous, similar to a canoe but there is a "bridge" along the midle of the cell (running perpendicular to the canoe) | AI38: 0
A39: 38 | B39: 9 | D39: 1.018 | E39: 0.728 | F39: 1.398351648 | G39: 0.741104 | N39: 1 | X39: Slanted | AI39: 0
A40: 39 | B40: 23 | D40: 2.29 | E40: 1.058 | F40: 2.164461248 | G40: 2.42282 | H40: 0.259 | N40: 1 | X40: There is an indent running perpendicular to the canoe near one end of the cell | AF40: 1.763 | AG40: 0.47 | AH40: 0.05 | AI40: 47.1274017
A41: 40 | B41: 4 | D41: 1.675 | E41: 1.067 | F41: 1.569821931 | G41: 1.787225 | N41: 1 | AI41: 0
A42: 41 | B42: 1 | D42: 1.152 | E42: 0.862 | F42: 1.336426914 | G42: 0.993024 | N42: 1 | AI42: 0
A43: 42 | B43: 15 | D43: 1.245 | E43: 0.881 | F43: 1.413166856 | G43: 1.096845 | H43: 0.246 | N43: 1 | AF43: 1.011 | AG43: 0.66 | AH43: 0.048 | AI43: 37.95057996
A44: 43 | B44: 3 | D44: 1.733 | E44: 0.842 | F44: 2.058194774 | G44: 1.459186 | N44: 1 | AI44: 0
A45: 44 | B45: 31 | D45: 1.59 | E45: 0.908 | F45: 1.751101322 | G45: 1.44372 | X45: Similar to a canoe but discontinuous due to an indent near the end of the cell | AI45: 0
A46: 45 | B46: 24 | D46: 1.81 | E46: 0.821 | F46: 2.204628502 | G46: 1.48601 | H46: 0.265 | N46: 1 | AF46: 1.433 | AG46: 0.523 | AH46: 0.042 | AI46: 42.62566871
A47: 46 | B47: 19 | D47: 1.663 | E47: 0.96 | F47: 1.732291667 | G47: 1.59648 | L47: 1 | M47: 2 | AI47: 0
A48: 47 | B48: 2 | D48: 2.497 | E48: 1.049 | F48: 2.38036225 | G48: 2.619353 | N48: 1 | Y48: 1 | Z48: 0.591 | AI48: 0
A49: 48 | B49: 4 | D49: 1.204 | E49: 0.78 | F49: 1.543589744 | G49: 0.93912 | H49: 0.258 | N49: 1 | AF49: 0.824 | AG49: 0.39 | AH49: 0.043 | AI49: 18.27743065
A50: 49 | B50: 30 | D50: 1.499 | E50: 0.8 | F50: 1.87375 | G50: 1.1992 | N50: 1 | AI50: 0
A51: 50 | B51: 5 | D51: 1.328 | E51: 0.972 | F51: 1.366255144 | G51: 1.290816 | N51: 1 | AI51: 0
A52: 51 | B52: 26
A53: 52 | B53: 29
A54: 53 | B54: 28
A55: 54 | B55: 15
A56: 55 | B56: 5
A57: 56 | B57: 26
A58: 57 | B58: 7
A59: 58 | B59: 16
A60: 59 | B60: 11
A61: 60 | B61: 25
A62: 61 | B62: 17
A63: 62 | B63: 6
A64: Count | D64: =COUNT(D2:D63) -> 49 | E64: =COUNT(E2:E63) -> 49 | F64: =COUNT(F2:F63) -> 49 | G64: =COUNT(G2:G63) -> 49 | H64: =COUNT(H2:H63) -> 16 | I64: Instances | K64: =COUNT(K2:K63) -> 0 | L64: 2 | M64: 2 | N64: 28 | S64: 8 | T64: 0 | X64: 0 | Y64: 4 | Z64: =COUNT(Z2:Z63) -> 5 | AB64: =COUNT(AB2:AB63) -> 0 | AC64: 0 | AD64: 0 | AE64: 1 | AF64: 14 | AG64: 14 | AH64: 14 | AI64: 50 | AJ64: 0 | AK64: 0 | AL64: 0 | AM64: 1
A65: AVG | D65: =AVERAGE(D2:D63) -> 1.55422449 | E65: =AVERAGE(E2:E63) -> 0.924877551 | F65: =AVERAGE(F2:F63) -> 1.680871183 | G65: =AVERAGE(G2:G63) -> 1.45712449 | H65: =AVERAGE(H2:H63) -> 0.270875 | I65: Fraction | K65: =K64/$D$64 -> 0 | L65: 0.04081632653 | M65: 0.04081632653 | N65: 0.5714285714 | S65: 0.1632653061 | T65: 0 | X65: 0 | Y65: 0.08163265306 | Z65: =AVERAGE(Z2:Z63) -> 0.6998 | AB65: =AVERAGE(AB2:AB63) ->  | AE65: 0 | AF65: 1.090285714 | AG65: 0.5708571429 | AH65: 0.04542857143 | AI65: 9.975185328 | AM65: 0
A66: STDEV | D66: =STDEV(D2:D63) -> 0.3928195761 | E66: =STDEV(E2:E63) -> 0.1088834684 | F66: =STDEV(F2:F63) -> 0.3756888908 | G66: =STDEV(G2:G63) -> 0.474563721 | H66: =STDEV(H2:H63) -> 0.02527416336 | I66: Number/Cell | M66: =SUM(M3:M63)/L$64 -> 2 | Z66: =STDEV(Z2:Z63) -> 0.1140776052 | AB66: =STDEV(AB2:AB63) ->  | AF66: 0.38561847 | AG66: 0.1001013772 | AH66: 0.01041237641 | AI66: 17.85441809

Sheet H8_07201242
A1: Cell Number | B1: Number Sequence | C1: Omit reason | D1: Length (mm) | E1: Width (mm) | F1: Length/Width | G1: Length x Width | H1: Elevation | K1: Bite | L1: End Divot | M1: #Divots | N1: Canoe | S1: Smooth | T1: Filamented | X1: comment | Y1: Dividing | Z1: Waist | AB1: divot length | AC1: divot width | AD1: divot depth | AE1: % surface divot | AF1: canoe length | AG1: canoe width | AH1: canoe depth | AI1: % surface canoe | AJ1: bite length | AK1: bite width | AL1: bite depth | AM1: %surface bite
A2: 1 | B2: 71 | D2: 1.474 | E2: 1.057 | F2: =D2/E2 -> 1.394512772 | G2: =D2*E2 -> 1.558018 | N2: 1
A3: =A2+1 -> 2 | B3: 70 | D3: 1.209 | E3: 0.855 | F3: =D3/E3 -> 1.414035088 | G3: =D3*E3 -> 1.033695 | N3: 1
A4: 3 | B4: 99 | D4: 1.377 | E4: 0.974 | F4: =D4/E4 -> 1.4137577 | G4: 1.341198 | H4: 0.291 | N4: 1 | AF4: 0.939 | AG4: 0.455 | AH4: 0.021 | AI4: =(AF4*AG4)/(D4*E4) -> 0.3185547548
A5: 4 | B5: 42 | C5: blurry
A6: 5 | B6: 70 | D6: 0.961 | E6: 0.879 | F6: =D6/E6 -> 1.093287827 | G6: 0.844719 | N6: 1
A7: 6 | B7: 54 | D7: 1.138 | E7: 0.951 | F7: 1.196635121 | G7: 1.082238 | N7: 1
A8: 7 | B8: 65 | D8: 1.086 | E8: 0.936 | F8: 1.16025641 | G8: 1.016496 | H8: 0.209 | N8: 1 | AF8: 0.507 | AG8: 0.468 | AH8: 0.028 | AI8: =(AF8*AG8)/(D8*E8) -> 0.2334254144
A9: 8 | B9: 52 | D9: 1.178 | E9: 0.705 | F9: 1.670921986 | G9: 0.83049 | N9: 1
A10: 9 | B10: 85 | C10: revised | D10: 1.94 | E10: 0.822 | F10: 2.360097324 | G10: 1.59468 | N10: 1 | X10: Not divding, more than 90% | Z10: 0.752
A11: 10 | B11: 52 | D11: 0.941 | E11: 0.705 | F11: 1.334751773 | G11: 0.663405 | H11: 0.279 | N11: 1 | AF11: 0.529 | AG11: 0.294 | AH11: 0.025 | AI11: =(AF11*AG11)/(D11*E11) -> 0.234435978
A12: 11 | B12: 62 | D12: 1.948 | E12: 0.944 | F12: 2.063559322 | G12: 1.838912 | N12: 1 | X12: divoted bottom
A13: 12 | B13: 63 | D13: 2.086 | E13: 0.966 | F13: 2.15942029 | G13: 2.015076 | N13: 1 | X13: divoted bottom
A14: 13 | B14: 73 | D14: 2.267 | E14: 0.979 | F14: 2.315628192 | G14: 2.219393 | H14: 0.23 | N14: 1 | AF14: 1.551 | AG14: 0.477 | AH14: 0.024 | AI14: =(AF14*AG14)/(D14*E14) -> 0.3333465502
A15: 14 | B15: 65 | D15: 1.248 | E15: 0.692 | F15: 1.803468208 | G15: 0.863616 | N15: 1
A16: 15 | B16: 83 | D16: 2.668 | E16: 1.082 | F16: 2.465804067 | G16: 2.886776 | S16: 1
A17: 16 | B17: 72 | D17: 1.605 | E17: 0.913 | F17: 1.757940854 | G17: 1.465365 | H17: 0.232 | N17: 1 | AF17: 0.95 | AG17: 0.332 | AH17: 0.016 | AI17: =(AF17*AG17)/(D17*E17) -> 0.2152364769
A18: 17 | B18: 90 | D18: 2.036 | E18: 0.661 | F18: 3.080181543 | G18: 1.345796 | N18: 1 | X18: dividing?
A19: 18 | B19: 54 | C19: blurry
A20: 19 | B20: 42 | D20: 1.261 | E20: 0.734 | F20: =D20/E20 -> 1.717983651 | G20: 0.925574 | N20: 1
A21: 20 | B21: 53 | D21: 1.665 | E21: 0.759 | F21: =D21/E21 -> 2.193675889 | G21: 1.263735 | H21: 0.256 | N21: 1 | X21: divoted canoe | AB21: 0.415 | AC21: 0.296 | AD21: 0.021 | AE21: =(AC21*AB21)/(D21*E21) -> 0.09720392329 | AF21: 1.076 | AG21: 0.19 | AH21: 0.036 | AI21: =(AF21*AG21)/(D21*E21) -> 0.1617744226
A22: 21 | B22: 66 | D22: 1.399 | E22: 0.871 | F22: =D22/E22 -> 1.60619977 | G22: 1.218529 | X22: side bite?
A23: 22 | B23: 71 | D23: 1.808 | E23: 0.95 | F23: =D23/E23 -> 1.903157895 | G23: 1.7176 | N23: 1 | Y23: 1 | Z23: 0.832
A24: 23 | B24: 95 | C24: blurry
A25: 24 | B25: 50 | D25: 2.309 | E25: 0.934 | F25: =D25/E25 -> 2.472162741 | G25: 2.156606 | H25: 0.252
A26: 25 | B26: 73 | D26: 1.021 | E26: 0.723 | F26: =D26/E26 -> 1.412171508 | G26: 0.738183 | N26: 1
A27: 26 | B27: 93 | C27: blurry
A28: 27 | B28: 81 | D28: 2.427 | E28: 0.961 | F28: =D28/E28 -> 2.525494277 | G28: 2.332347 | N28: 1 | Y28: 1 | Z28: 0.761
A29: 28 | B29: 61 | D29: 1.871 | E29: 1.015 | F29: 1.843349754 | G29: 1.899065 | H29: 0.2 | N29: 1 | AB29: 0.267 | AC29: 0.316 | AD29: 0.027 | AE29: =(AC29*AB29)/(D29*E29) -> 0.04442817913 | AF29: 1.514 | AG29: 0.502 | AH29: 0.022 | AI29: =(AF29*AG29)/(D29*E29) -> 0.4002116831
A30: 29 | B30: 71 | D30: 1.132 | E30: 0.892 | F30: 1.269058296 | G30: 1.009744 | N30: 1
A31: 30 | B31: 64 | D31: 1.478 | E31: 0.942 | F31: 1.569002123 | G31: 1.392276 | N31: 1
A32: 31 | B32: 65 | D32: 0.985 | E32: 0.762 | F32: 1.292650919 | G32: 0.75057 | H32: 0.272 | N32: 1 | AF32: 0.773 | AG32: 0.321 | AH32: 0.024 | AI32: =(AF32*AG32)/(D32*E32) -> 0.3305927495
A33: 32 | B33: 73 | C33: revised | D33: 1.854 | E33: 0.966 | F33: 1.919254658 | G33: 1.790964 | N33: 1 | X33: Not dividing, more than 90%, center is raised | Z33: 0.925
A34: 33 | B34: 64 | D34: 1.139 | E34: 0.833 | F34: 1.367346939 | G34: 0.948787 | N34: 1
A35: =A34+1 -> 34 | B35: 82 | D35: 3.24 | E35: 0.926 | F35: 3.498920086 | G35: 3.00024 | H35: 0.235 | N35: 1 | X35: multiple divots/indentations | AB35: 0.465 | AC35: 0.437 | AD35: 0.019 | AE35: =(AC35*AB35)/(D35*E35) -> 0.06772958163 | AF35: 2.79 | AG35: 0.582 | AH35: 0.021 | AI35: =(AF35*AG35)/(D35*E35) -> 0.5412167027
A36: 35 | B36: 55 | C36: blurry
A37: 36 | B37: 41 | D37: 0.932 | E37: 0.796 | F37: =D37/E37 -> 1.170854271 | G37: 0.741872 | N37: 1
A38: 37 | B38: 41 | C38: blurry
A39: 38 | B39: 63 | D39: 1.588 | E39: 0.769 | F39: =D39/E39 -> 2.065019506 | G39: 1.221172 | N39: 1 | X39: dividing?
A40: 39 | B40: 43 | C40: blurry
A41: 40 | B41: 81 | D41: 1.842 | E41: 0.855 | F41: =D41/E41 -> 2.154385965 | G41: 1.57491 | H41: 0.182 | N41: 1 | X41: divoted canoe | AB41: 0.282 | AC41: 0.348 | AD41: 0.024 | AE41: =(AC41*AB41)/(D41*E41) -> 0.06231213212 | AF41: 1.221 | AG41: 0.487 | AH41: 0.024 | AI41: =(AF41*AG41)/(D41*E41) -> 0.3775625274
A42: 41 | B42: 91 | D42: 1.124 | E42: 0.656 | F42: =D42/E42 -> 1.713414634 | G42: 0.737344 | N42: 1 | X42: recently divided
A43: 42 | B43: 42 | C43: blurry
A44: 43 | B44: 62 | D44: 1.481 | E44: 0.885 | F44: =D44/E44 -> 1.673446328 | G44: 1.310685 | N44: 1
A45: 44 | B45: 80 | D45: 1.952 | E45: 0.827 | F45: 2.360338573 | G45: 1.614304 | H45: 0.242 | N45: 1 | X45: divoted canoe | AB45: 0.214 | AC45: 0.376 | AD45: 0.033 | AE45: =(AC45*AB45)/(D45*E45) -> 0.04984439114 | AF45: 1.373 | AG45: 0.526 | AH45: 0.029 | AI45: =(AF45*AG45)/(D45*E45) -> 0.4473742244
A46: 45 | B46: 89 | D46: 1.861 | E46: 0.688 | F46: 2.70494186 | G46: 1.280368 | N46: 1 | X46: rough bottom, 1 divot
A47: 46 | B47: 74 | D47: 1.595 | E47: 0.774 | F47: 2.060723514 | G47: 1.23453 | N47: 1
A48: 47 | B48: 73 | D48: 1.12 | E48: 0.71 | F48: 1.577464789 | G48: 0.7952 | H48: 0.236 | N48: 1 | X48: divoted canoe | AB48: 0.354 | AC48: 0.299 | AD48: 0.01 | AE48: =(AC48*AB48)/(D48*E48) -> 0.1331061368 | AF48: 0.708 | AG48: 0.419 | AH48: 0.016 | AI48: =(AF48*AG48)/(D48*E48) -> 0.3730533199
A49: 48 | B49: 52 | D49: 1.804 | E49: 0.855 | F49: 2.10994152 | G49: 1.54242 | N49: 1
A50: 49 | B50: 85 | D50: 1.62 | E50: 0.788 | F50: 2.055837563 | G50: 1.27656 | N50: 1
A51: 50 | B51: 94 | C51: blurry
A52: 51 | B52: 53 | D52: 0.885 | E52: 0.826 | F52: =D52/E52 -> 1.071428571 | G52: 0.73101 | H52: 0.292 | N52: 1 | AF52: 0.53 | AG52: 0.295 | AH52: 0.016 | AI52: =(AF52*AG52)/(D52*E52) -> 0.213882163
A53: 52 | B53: 52 | D53: 1.371 | E53: 0.853 | F53: 1.607268464 | G53: 1.169463 | N53: 1
A54: 53 | B54: 82 | D54: 1.027 | E54: 0.717 | F54: 1.432357043 | G54: 0.736359 | N54: 1
A55: 54 | B55: 86 | D55: 1.284 | E55: 0.934 | F55: 1.374732334 | G55: 1.199256 | H55: 0.227 | N55: 1 | X55: divoted canoe | AB55: 0.227 | AC55: 0.443 | AD55: 0.01 | AE55: =(AC55*AB55)/(D55*E55) -> 0.08385282208 | AF55: 0.906 | AG55: 0.503 | AH55: 0.025 | AI55: =(AF55*AG55)/(D55*E55) -> 0.3800006004
A56: 55 | B56: 64 | D56: 1.817 | E56: 0.95 | F56: 1.912631579 | G56: 1.72615 | N56: 1 | Y56: 1 | Z56: 0.823
A57: 56 | B57: 72 | D57: 1.178 | E57: 0.94 | F57: 1.253191489 | G57: 1.10732 | N57: 1 | X57: divoted canoe
A58: 57 | B58: 88 | C58: revised | D58: 1.679 | E58: 0.813 | F58: 2.065190652 | G58: 1.365027 | N58: 1 | X58: Not dividing, entire waist is below width, divoted canoe | Z58: 0.837 | AB58: 0.269 | AC58: 0.441 | AD58: 0.01 | AE58: =(AC58*AB58)/(D58*E58) -> 0.08690597329 | AF58: 1.343 | AG58: 0.438 | AH58: 0.021 | AI58: =(AF58*AG58)/(D58*E58) -> 0.4309321354
A59: 58 | B59: 87 | D59: 1.057 | E59: 0.765 | F59: 1.381699346 | G59: 0.808605 | N59: 1
A60: 59 | B60: 72 | D60: 2.005 | E60: 0.941 | F60: 2.130712009 | G60: 1.886705 | N60: 1 | X60: divoted canoe
A61: 60 | B61: 50
C64: Count | D64: =COUNT(D2:D61) -> 50 | E64: =COUNT(E2:E61) -> 50 | F64: =COUNT(F2:F61) -> 50 | G64: =COUNT(G2:G61) -> 50 | H64: =COUNT(H2:H61) -> 15 | I64: Instances | K64: =COUNT(K2:K63) -> 0 | L64: 0 | M64: 0 | N64: 47 | S64: 1 | T64: 0 | X64: 0 | Y64: 3 | Z64: =COUNT(Z2:Z63) -> 6 | AB64: =COUNT(AB2:AB61) -> 8 | AC64: 8 | AD64: 8 | AE64: 8 | AF64: 15 | AG64: 15 | AH64: 15 | AI64: 15 | AJ64: 0 | AK64: 0 | AL64: 0 | AM64: 0
C65: Avg. | D65: =SUM(D2:D61)/50 -> 1.55946 | E65: =SUM(E2:E61)/50 -> 0.85462 | F65: =SUM(F2:F57)/50 -> 1.7114533 | G65: =SUM(G2:G57)/50 -> 1.27486032 | H65: =AVERAGE(H2:H61) -> 0.2423333333 | I65: Fraction | K65: =K64/$D$64 -> 0 | L65: 0 | M65: 0 | N65: 0.94 | S65: 0.02 | T65: 0 | X65: 0 | Y65: 0.06 | Z65: =AVERAGE(Z2:Z63) -> 0.8216666667 | AB65: =AVERAGE(AB2:AB61) -> 0.311625 | AC65: 0.3695 | AD65: 0.01925 | AE65: 0.07817289244 | AF65: 1.114 | AG65: 0.4192666667 | AH65: 0.0232 | AI65: 0.3327733135
C66: STDEV | D66: =STDEV(D2:D6,D8:D42,D44:D53) -> 0.5184977944 | E66: =STDEV(E2:E61) -> 0.1081338721 | F66: =STDEV(F2:F57) -> 0.5327119561 | G66: =STDEV(G2:G57) -> 0.5493931134 | H66: =STDEV(H2:H61) -> 0.03215068688 | I66: Number/Cell | M66: =SUM(M3:M63)/L$64 ->  | Z66: =STDEV(Z2:Z63) -> 0.06253852146 | AB66: =STDEV(AB2:AB61) -> 0.09054113114 | AC66: 0.06415383298 | AD66: 0.008713700215 | AE66: 0.02876060276 | AF66: 0.5810084828 | AG66: 0.1084379129 | AH66: 0.005347896783 | AI66: 0.1047316961

Sheet H8_08031339
A1: Cell Number | B1: Number Sequence | C1: Comment | D1: Length (µm) | E1: Width (µm) | F1: Length/Width | G1: Width x Length | H1: Elevation | K1: Bite | L1: End Divot | M1: #Divots | N1: Canoe | S1: Smooth | T1: Filamented | X1: Comment | Y1: Dividing? | Z1: Waist | AB1: Divot Length | AC1: Divot Width | AD1: Divot Depth | AE1: %Surface Coverage | AF1: Canoe Length | AG1: Canoe Width | AH1: Canoe Depth | AI1: %Surface Coverage | AJ1: Bite Length | AK1: Bite Width | AL1: Bite Depth | AM1: %Surface Coverage
A2: =1 -> 1 | B2: 29 | D2: 0.887 | E2: 0.647 | F2: =D2/E2 -> 1.370942813 | G2: =D2*E2 -> 0.573889 | X2: Slanted, large depression near the middle, raised edges
A3: =A2+1 -> 2 | B3: 16 | D3: 0.998 | E3: 0.763 | F3: 1.307994758 | G3: 0.761474 | S3: 1 | X3: Discontinuous, slanted
A4: 3 | B4: 14 | D4: 1.287 | E4: 0.615 | F4: 2.092682927 | G4: 0.791505 | H4: 0.273 | N4: 1 | AF4: 0.979 | AG4: 0.309 | AH4: 0.017 | AI4: =(AF4*AG4)/(D4*E4)*100 -> 38.21972066
A5: 4 | B5: 20 | D5: 1.236 | E5: 0.609 | F5: 2.02955665 | G5: 0.752724 | X5: Very discontinuous, slanted
A6: 5 | B6: 9 | D6: 0.997 | E6: 0.794 | F6: 1.255667506 | G6: 0.791618 | N6: 1
A7: 6 | B7: 11 | D7: 1.223 | E7: 0.551 | F7: 2.219600726 | G7: 0.673873 | H7: 0.258 | N7: 1 | AF7: 0.847 | AG7: 0.306 | AH7: 0.012 | AI7: =(AF7*AG7)/(D7*E7)*100 -> 38.46154988
A8: 7 | B8: 5 | D8: 0.948 | E8: 0.693 | F8: 1.367965368 | G8: 0.656964 | N8: 1
A9: 8 | B9: 8 | D9: 1.227 | E9: 0.762 | F9: 1.61023622 | G9: 0.934974 | N9: 1
A10: 9 | B10: 34 | D10: 1.094 | E10: 0.72 | F10: 1.519444444 | G10: 0.78768 | H10: 0.262 | S10: 1 | X10: Discontinuous, slanted
A11: 10 | B11: 1 | D11: 0.799 | E11: 0.593 | F11: 1.347386172 | G11: 0.473807 | X11: Discontinuous
A12: 11 | B12: 2 | D12: 1.122 | E12: 0.706 | F12: 1.589235127 | G12: 0.792132 | N12: 1
A13: 12 | B13: 20 | D13: 0.825 | E13: 0.533 | F13: 1.547842402 | G13: 0.439725 | H13: 0.239 | N13: 1 | AF13: 0.411 | AG13: 0.235 | AH13: 0.016 | AI13: =(AF13*AG13)/(D13*E13)*100 -> 21.9648644
A14: 13 | B14: 32 | D14: 0.83 | E14: 0.659 | F14: 1.259484067 | G14: 0.54697 | N14: 1
A15: 14 | B15: 33 | D15: 0.882 | E15: 0.822 | F15: 1.072992701 | G15: 0.725004 | X15: Slanted, mostly smooth
A16: 15 | B16: 6 | D16: 0.961 | E16: 0.885 | F16: 1.085875706 | G16: 0.850485 | H16: 0.225 | N16: 1 | AF16: 0.739 | AG16: 0.626 | AH16: 0.02 | AI16: =(AF16*AG16)/(D16*E16)*100 -> 54.39413981
A17: 16 | B17: 10 | D17: 1.046 | E17: 0.717 | F17: 1.458856346 | G17: 0.749982 | N17: 1
A18: 17 | B18: 11 | D18: 0.788 | E18: 0.583 | F18: 1.351629503 | G18: 0.459404 | N18: 1
A19: 18 | B19: 11 | D19: 0.825 | E19: 0.705 | F19: 1.170212766 | G19: 0.581625 | H19: 0.251 | N19: 1 | AF19: 0.424 | AG19: 0.309 | AH19: 0.016 | AI19: =(AF19*AG19)/(D19*E19)*100 -> 22.52585429
A20: 19 | B20: 32 | D20: 0.8 | E20: 0.731 | F20: 1.094391245 | G20: 0.5848 | S20: 1 | X20: Slanted, almost smooth
A21: 20 | B21: 5 | D21: 1.089 | E21: 0.792 | F21: 1.375 | G21: 0.862488 | N21: 1
A22: 21 | B22: 10 | D22: 0.899 | E22: 0.619 | F22: 1.452342488 | G22: 0.556481 | H22: 0.267 | N22: 1 | AF22: 0.642 | AG22: 0.321 | AH22: 0.011 | AI22: =(AF22*AG22)/(D22*E22)*100 -> 37.03307031
A23: 22 | B23: 21 | D23: 1.368 | E23: 0.502 | F23: 2.725099602 | G23: 0.686736 | N23: 1
A24: 23 | B24: 18 | D24: 1.06 | E24: 0.534 | F24: 1.985018727 | G24: 0.56604 | N24: 1
A25: 24 | B25: 2 | D25: 0.714 | E25: 0.599 | F25: 1.191986644 | G25: 0.427686 | H25: 0.243 | N25: 1 | AF25: 0.536 | AG25: 0.419 | AH25: 0.016 | AI25: =(AF25*AG25)/(D25*E25)*100 -> 52.51142193
A26: 25 | B26: 5 | D26: 0.883 | E26: 0.642 | F26: 1.375389408 | G26: 0.566886 | N26: 1
A27: 26 | B27: 13 | D27: 1.089 | E27: 0.57 | F27: 1.910526316 | G27: 0.62073 | N27: 1
A28: 27 | B28: 31 | D28: 1.452 | E28: 0.712 | F28: 2.039325843 | G28: 1.033824 | H28: 0.25 | N28: 1 | AF28: 1.251 | AG28: 0.471 | AH28: 0.031 | AI28: =(AF28*AG28)/(D28*E28)*100 -> 56.99432399
A29: 28 | B29: 15 | D29: 1.159 | E29: 0.508 | F29: 2.281496063 | G29: 0.588772 | N29: 1
A30: 29 | B30: 8 | D30: 1.078 | E30: 0.768 | F30: 1.403645833 | G30: 0.827904 | X30: Discontinuous, slanted
A31: 30 | B31: 25 | D31: 1.059 | E31: 0.553 | F31: 1.915009042 | G31: 0.585627 | H31: 0.271 | S31: 1 | X31: Discontinuous, slanted
A32: 31 | B32: 12 | D32: 1.036 | E32: 0.903 | F32: 1.147286822 | G32: 0.935508 | X32: Discontinuous, slanted
A33: 32 | B33: 8 | D33: 1.064 | E33: 0.826 | F33: 1.288135593 | G33: 0.878864 | X33: Discontinuous, slanted, small indent in the middle
A34: 33 | B34: 4 | D34: 1.468 | E34: 0.763 | F34: =D34/E34 -> 1.923984273 | G34: =D34*E34 -> 1.120084 | H34: 0.267 | N34: 1 | AF34: 1.233 | AG34: 0.352 | AH34: 0.019 | AI34: =(AF34*AG34)/(D34*E34)*100 -> 38.74852243
A35: =A34+1 -> 34 | B35: 10 | D35: 1.035 | E35: 0.637 | F35: 1.624803768 | G35: 0.659295 | N35: 1
A36: 35 | B36: 13 | D36: 0.885 | E36: 0.752 | F36: 1.176861702 | G36: 0.66552 | N36: 1
A37: 36 | B37: 33 | D37: 0.787 | E37: 0.778 | F37: 1.011568123 | G37: 0.612286 | H37: 0.276 | N37: 1 | X37: Discontinuous, slanted
A38: 37 | B38: 2 | D38: 0.828 | E38: 0.647 | F38: 1.279752705 | G38: 0.535716 | N38: 1
A39: 38 | B39: 30 | D39: 0.998 | E39: 0.647 | F39: 1.542503864 | G39: 0.645706 | N39: 1
A40: 39 | B40: 15 | D40: 1.252 | E40: 0.67 | F40: 1.868656716 | G40: 0.83884 | H40: 0.257 | N40: 1 | AF40: 0.964 | AG40: 0.487 | AH40: 0.027 | AI40: =(AF40*AG40)/(D40*E40)*100 -> 55.96633446
A41: 40 | B41: 9 | D41: 0.905 | E41: 0.747 | F41: 1.211512718 | G41: 0.676035 | N41: 1
A42: 41 | B42: 1 | D42: 0.876 | E42: 0.809 | F42: 1.082818294 | G42: 0.708684 | S42: 1 | X42: Mostly smooth, slanted
A43: 42 | B43: 14 | D43: 0.938 | E43: 0.505 | F43: 1.857425743 | G43: 0.47369 | H43: 0.285 | N43: 1 | AF43: 0.722 | AG43: 0.289 | AH43: 0.012 | AI43: =(AF43*AG43)/(D43*E43)*100 -> 44.04948384
A44: 43 | B44: 3 | D44: 1.768 | E44: 0.76 | F44: 2.326315789 | G44: 1.34368 | N44: 1
A45: 44 | B45: 25 | D45: 1.351 | E45: 0.647 | F45: 2.088098918 | G45: 0.874097 | N45: 1 | X45: Discontinuous
A46: 45 | B46: 24 | D46: 1.162 | E46: 0.875 | F46: 1.328 | G46: 1.01675 | H46: 0.284 | AF46: 0.894 | AG46: 0.625 | AH46: 0.013 | AI46: =(AF46*AG46)/(D46*E46)*100 -> 54.95451193
A47: 46 | B47: 6 | D47: 1.062 | E47: 0.706 | F47: 1.504249292 | G47: 0.749772 | N47: 1
A48: 47 | B48: 3 | D48: 1.072 | E48: 0.627 | F48: 1.709728868 | G48: 0.672144 | N48: 1
A49: 48 | B49: 6 | D49: 1.118 | E49: 0.654 | F49: 1.709480122 | G49: 0.731172 | H49: 0.188 | AF49: 0.776 | AG49: 0.475 | AH49: 0.357 | AI49: =(AF49*AG49)/(D49*E49)*100 -> 50.41221491
A50: 49 | B50: 33 | D50: 0.881 | E50: 0.764 | F50: 1.153141361 | G50: 0.673084 | X50: Mostly smooth, slanted
A51: 50 | B51: 13 | D51: 0.841 | E51: 0.747 | F51: 1.12583668 | G51: 0.628227 | S51: 1 | X51: Discontinuous, slanted
A52: 51
A53: 52
A54: 53
A55: 54
A56: 55
A57: 56
A58: 57
A59: 58
A60: 59
A61: 60
A62: 61
A63: 62
A64: Count | D64: =COUNT(D2:D63) -> 50 | E64: =COUNT(E2:E63) -> 50 | F64: =COUNT(F2:F63) -> 50 | G64: =COUNT(G2:G63) -> 50 | H64: =COUNT(H2:H63) -> 16 | I64: Instances | K64: =COUNT(K2:K63) -> 0 | L64: 0 | M64: 0 | N64: 34 | S64: 6 | T64: 0 | X64: 0 | Y64: 0 | Z64: =COUNT(Z2:Z63) -> 0 | AA64: Count | AB64: =COUNT(AB2:AB63) -> 0 | AC64: 0 | AD64: 0 | AE64: 0 | AF64: 13 | AG64: 13 | AH64: 13 | AI64: 13 | AJ64: 0 | AK64: 0 | AL64: 0 | AM64: 0
A65: AVG | D65: =AVERAGE(D2:D51) -> 1.03904 | E65: =AVERAGE(E2:E63) -> 0.68702 | F65: =AVERAGE(F2:F63) -> 1.547339975 | G65: =AVERAGE(G2:G63) -> 0.71381926 | H65: =AVERAGE(H2:H63) -> 0.256 | I65: Fraction | K65: =K64/$D$64 -> 0 | L65: 0 | M65: 0 | N65: 0.68 | S65: 0.12 | T65: 0 | X65: 0 | Y65: 0 | Z65: =AVERAGE(Z2:Z63) ->  | AA65: AVG | AB65: =AVERAGE(AB2:AB63) ->  | AF65: 0.8013846154 | AG65: 0.4018461538 | AH65: 0.04361538462 | AI65: 43.55661637
A66: STDEV | D66: =STDEV(D2:D63) -> 0.2090950336 | E66: =STDEV(E2:E63) -> 0.102327304 | F66: =STDEV(F2:F63) -> 0.3970356557 | G66: =STDEV(G2:G63) -> 0.1809278609 | H66: =STDEV(H2:H63) -> 0.02439398833 | I66: Number/Cell | M66: =SUM(M3:M63)/L$64 ->  | Z66: =STDEV(Z2:Z63) ->  | AA66: STDEV | AB66: =STDEV(AB2:AB63) ->  | AF66: 0.2674859929 | AG66: 0.1270635315 | AH66: 0.0943420536 | AI66: 12.03460637

Sheet H9_02021428
A1: Cell Number | B1: Number Sequence | C1: Comment | D1: Length (µm) | E1: Width (µm) | F1: Length/Width | G1: Width x Length | H1: Elevation | K1: Bite | L1: End Divot | M1: #Divots | N1: Canoe | S1: Smooth | T1: Filamented | X1: Comment | Y1: Dividing? | Z1: Waist | AB1: Divot Length | AC1: Divot Width | AD1: Divot Depth | AE1: %Surface Coverage | AF1: Canoe Length | AG1: Canoe Width | AH1: Canoe Depth | AI1: %Surface Coverage | AJ1: Bite Length | AK1: Bite Width | AL1: Bite Depth | AM1: %Surface Coverage
A2: =1 -> 1 | B2: 7 | D2: 1.181 | E2: 0.881 | F2: =D2/E2 -> 1.340522134 | G2: =D2*E2 -> 1.040461 | X2: Discontinuous, slanted, some indents | AE2: =(AB2*AC2)/($D$2*$E$2)*100 -> 0 | AI2: =(AF2*AG2)/($D$2*$E$2)*100 -> 0 | AM2: =(AJ2*AK2)/($D$2*$E$2)*100 -> 0
A3: =A2+1 -> 2 | B3: 11 | D3: 1.174 | E3: 0.615 | F3: 1.908943089 | G3: 0.72201 | N3: 1 | AI3: 0
A4: 3 | B4: 4 | D4: 1.943 | E4: 0.71 | F4: 2.736619718 | G4: 1.37953 | H4: 0.265 | N4: 1 | AF4: 1.586 | AG4: 0.416 | AH4: 0.05 | AI4: 63.41189146
A5: 4 | B5: 28 | C5: revised, entry error | AI5: 0
A6: 5 | B6: 24 | D6: 1.571 | E6: 0.942 | F6: 1.667728238 | G6: 1.479882 | N6: 1 | AI6: 0
A7: 6 | B7: 26 | D7: 1.101 | E7: 0.916 | F7: 1.201965066 | G7: 1.008516 | H7: 0.256 | N7: 1 | AF7: 0.856 | AG7: 0.611 | AH7: 0.049 | AI7: 50.26771787
A8: 7 | B8: 6 | D8: 1.29 | E8: 0.928 | F8: 1.390086207 | G8: 1.19712 | S8: 1 | AI8: 0
A9: 8 | B9: 16 | D9: 1.452 | E9: 0.883 | F9: 1.644394111 | G9: 1.282116 | N9: 1 | AI9: 0
A10: 9 | B10: 8 | D10: 1.688 | E10: 0.913 | F10: 1.848849945 | G10: 1.541144 | H10: 0.26 | S10: 1 | AI10: 0
A11: 10 | B11: 4 | D11: 1.879 | E11: 0.823 | F11: 2.283110571 | G11: 1.546417 | S11: 1 | AI11: 0
A12: 11 | B12: 8 | D12: 1.438 | E12: 0.769 | F12: 1.869960988 | G12: 1.105822 | N12: 1 | AI12: 0
A13: 12 | B13: 3 | D13: 1.82 | E13: 1.061 | F13: 1.715362865 | G13: 1.93102 | H13: 0.24 | N13: 1 | AF13: 1.468 | AG13: 0.648 | AH13: 0.054 | AI13: 91.42716546
A14: 13 | B14: 17 | D14: 1.632 | E14: 0.929 | F14: 1.756727664 | G14: 1.516128 | N14: 1 | AI14: 0
A15: 14 | B15: 26 | D15: 1.364 | E15: 0.776 | F15: 1.757731959 | G15: 1.058464 | S15: 1 | X15: Discontinuous, nonsymmetrical indent near the middle | AI15: 0
A16: 15 | B16: 12 | D16: 1.166 | E16: 0.942 | F16: 1.237791932 | G16: 1.098372 | H16: 0.289 | N16: 1 | AF16: 0.675 | AG16: 0.565 | AH16: 0.037 | AI16: 36.6544253
A17: 16 | B17: 22 | D17: 1.052 | E17: 0.91 | F17: 1.156043956 | G17: 0.95732 | S17: 1 | AI17: 0
A18: 17 | B18: 7 | D18: 1.228 | E18: 0.858 | F18: 1.431235431 | G18: 1.053624 | N18: 1 | AI18: 0
A19: 18 | B19: 8 | D19: 1.447 | E19: 0.988 | F19: 1.464574899 | G19: 1.429636 | H19: 0.199 | N19: 1 | X19: Discontinuous, nonsymmetrical indent near the middle | AI19: 0
A20: 19 | B20: 6 | D20: 1.314 | E20: 0.951 | F20: 1.38170347 | G20: 1.249614 | S20: 1 | AI20: 0
A21: 20 | B21: 2 | D21: 1.798 | E21: 0.972 | F21: 1.849794239 | G21: 1.747656 | X21: Discontinuous, similar to a canoe | Y21: 1 | Z21: 0.641 | AI21: 0
A22: 21 | B22: 26 | D22: 1.84 | E22: 0.998 | F22: 1.843687375 | G22: 1.83632 | H22: 0.255 | N22: 1 | AF22: 1.44 | AG22: 0.691 | AH22: 0.041 | AI22: 95.63453123
A23: 22 | B23: 9 | D23: 1.786 | E23: 0.784 | F23: 2.278061224 | G23: 1.400224 | N23: 1 | AI23: 0
A24: 23 | B24: 15 | D24: 1.1 | E24: 0.706 | F24: 1.558073654 | G24: 0.7766 | S24: 1 | AI24: 0
A25: 24 | B25: 3 | D25: 1.826 | E25: 0.943 | F25: 1.936373277 | G25: 1.721918 | H25: 0.222 | N25: 1 | AF25: 1.431 | AG25: 0.707 | AH25: 0.046 | AI25: 97.23737843
A26: 25 | B26: 1 | D26: 1.482 | E26: 0.89 | F26: 1.665168539 | G26: 1.31898 | S26: 1 | AI26: 0
A27: 26 | B27: 24 | D27: 2.281 | E27: 1.072 | F27: 2.127798507 | G27: 2.445232 | N27: 1 | AI27: 0
A28: 27 | B28: 17 | D28: 2.088 | E28: 0.932 | F28: 2.240343348 | G28: 1.946016 | H28: 0.276 | S28: 1 | AI28: 0
A29: 28 | B29: 16 | D29: 1.511 | E29: 1.014 | F29: 1.490138067 | G29: 1.532154 | N29: 1 | AI29: 0
A30: 29 | B30: 1 | D30: 2.356 | E30: 1.174 | F30: 2.00681431 | G30: 2.765944 | X30: Discontinuous, one large indent near the middle | AI30: 0
A31: 30 | B31: 27 | D31: 1.365 | E31: 0.847 | F31: 1.611570248 | G31: 1.156155 | H31: 0.28 | S31: 1 | AI31: 0
A32: 31 | B32: 11 | D32: 2.671 | E32: 0.785 | F32: 3.402547771 | G32: 2.096735 | S32: 1 | AI32: 0
A33: 32 | B33: 29 | D33: 1.574 | E33: 0.867 | F33: 1.815455594 | G33: 1.364658 | S33: 1 | AI33: 0
A34: 33 | B34: 1 | D34: 1.181 | E34: 0.855 | F34: =D34/E34 -> 1.38128655 | G34: =D34*E34 -> 1.009755 | H34: 0.236 | N34: 1 | AF34: 0.886 | AG34: 0.57 | AH34: 0.051 | AI34: =(AF34*AG34)/($D$2*$E$2)*100 -> 48.53809994
A35: =A34+1 -> 34 | B35: 20 | D35: 1.359 | E35: 0.776 | F35: 1.75128866 | G35: 1.054584 | N35: 1 | AI35: 0
A36: 35 | B36: 27 | D36: 1.287 | E36: 0.885 | F36: 1.454237288 | G36: 1.138995 | S36: 1 | AI36: 0
A37: 36 | B37: 16 | D37: 1.309 | E37: 0.832 | F37: 1.573317308 | G37: 1.089088 | H37: 0.287 | X37: Discontinuous, similar to a canoe on half of cell | AI37: 0
A38: 37 | B38: 15 | D38: 1.507 | E38: 1.031 | F38: 1.461687682 | G38: 1.553717 | X38: Discontinuous, similar to a canoe | AI38: 0
A39: 38 | B39: 31 | D39: 1.595 | E39: 1.053 | F39: 1.514719848 | G39: 1.679535 | S39: 1 | X39: Discontinuous, similar to a canoe on half of cell | AI39: 0
A40: 39 | B40: 5 | D40: 1.174 | E40: 0.939 | F40: 1.250266241 | G40: 1.102386 | H40: 0.293 | S40: 1 | AI40: 0
A41: 40 | B41: 26 | D41: 1.771 | E41: 0.94 | F41: 1.884042553 | G41: 1.66474 | N41: 1 | AI41: 0
A42: 41 | B42: 10 | D42: 1.369 | E42: 0.934 | F42: 1.465738758 | G42: 1.278646 | S42: 1 | AI42: 0
A43: 42 | B43: 8 | D43: 1.648 | E43: 0.94 | F43: 1.753191489 | G43: 1.54912 | H43: 0.286 | N43: 1 | AF43: 1.347 | AG43: 0.672 | AH43: 0.057 | AI43: 86.99835938
A44: 43 | B44: 27 | D44: 1.41 | E44: 1.115 | F44: 1.264573991 | G44: 1.57215 | S44: 1 | AI44: 0
A45: 44 | B45: 2 | D45: 1.312 | E45: 1.006 | F45: 1.30417495 | G45: 1.319872 | X45: Discontinuous, nonsymmetrical indent near the middle | AI45: 0
A46: 45 | B46: 7 | D46: 1.199 | E46: 0.814 | F46: 1.472972973 | G46: 0.975986 | H46: 0.21 | N46: 1 | AF46: 0.847 | AG46: 0.475 | AH46: 0.026 | AI46: 38.66795584
A47: 46 | B47: 10 | D47: 1.447 | E47: 0.803 | F47: 1.801992528 | G47: 1.161941 | N47: 1 | AI47: 0
A48: 47 | B48: 3 | D48: 1.412 | E48: 0.947 | F48: 1.491024287 | G48: 1.337164 | N48: 1 | AI48: 0
A49: 48 | B49: 14 | D49: 1.181 | E49: 0.998 | F49: 1.183366733 | G49: 1.178638 | H49: 0.27 | N49: 1 | AF49: 0.959 | AG49: 0.691 | AH49: 0.037 | AI49: 63.68994129
A50: 49 | B50: 6 | D50: 1.083 | E50: 0.855 | F50: 1.266666667 | G50: 0.925965 | N50: 1 | AI50: 0
A51: 50 | B51: 10 | D51: 1.573 | E51: 1.043 | F51: 1.508149569 | G51: 1.640639 | S51: 1
A52: 51 | B52: 19
A53: 52 | B53: 20
A54: 53 | B54: 30
A55: 54 | B55: 18
A56: 55 | B56: 23
A57: 56 | B57: 6
A58: 57 | B58: 30
A59: 58 | B59: 23
A60: 59 | B60: 12
A61: 60 | B61: 1
A62: 61 | B62: 15
A63: 62 | B63: 6
A64: Count | D64: =COUNT(D2:D63) -> 49 | E64: =COUNT(E2:E63) -> 49 | F64: =COUNT(F2:F63) -> 49 | G64: =COUNT(G2:G63) -> 49 | H64: =COUNT(H2:H63) -> 16 | I64: Instances | K64: =COUNT(K2:K63) -> 0 | L64: 0 | M64: 0 | N64: 25 | S64: =COUNT(S2:S63) -> 18 | T64: 0 | X64: 0 | Y64: 1 | Z64: =COUNT(Z2:Z63) -> 1 | AB64: =COUNT(AB2:AB63) -> 0 | AC64: 0 | AD64: 0 | AE64: 1 | AF64: 10 | AG64: 10 | AH64: 10 | AI64: 49 | AJ64: 0 | AK64: 0 | AL64: 0 | AM64: 1
A65: AVG | D65: =AVERAGE(D2:D63) -> 1.515 | E65: =AVERAGE(E2:E63) -> 0.9090816327 | F65: =AVERAGE(F2:F63) -> 1.681670948 | G65: =AVERAGE(G2:G63) -> 1.386504265 | H65: =AVERAGE(H2:H63) -> 0.25775 | I65: Fraction | K65: =K64/$D$64 -> 0 | L65: 0 | M65: 0 | N65: 0.5102040816 | S65: =S64/$D$64 -> 0.3673469388 | T65: =T64/$D$64 -> 0 | X65: =X64/$D$64 -> 0 | Y65: =Y64/$D$64 -> 0.02040816327 | Z65: =AVERAGE(Z2:Z63) -> 0.641 | AB65: =AVERAGE(AB2:AB63) ->  | AE65: 0 | AF65: 1.1495 | AG65: 0.6046 | AH65: 0.0448 | AI65: 13.72505033 | AM65: 0
A66: STDEV | D66: =STDEV(D2:D63) -> 0.3488652438 | E66: =STDEV(E2:E63) -> 0.1096385799 | F66: =STDEV(F2:F63) -> 0.4136224561 | G66: =STDEV(G2:G63) -> 0.4014959911 | H66: =STDEV(H2:H63) -> 0.02911700534 | I66: Number/Cell | M66: =SUM(M3:M63)/L$64 ->  | Z66: =STDEV(Z2:Z63) ->  | AB66: =STDEV(AB2:AB63) ->  | AF66: 0.3338553413 | AG66: 0.09832734445 | AH66: 0.009472767987 | AI66: 29.2607758

Sheet H9_08031702
A1: Cell Number | B1: Number Sequence | C1: Comment | D1: Length (µm) | E1: Width (µm) | F1: Length/Width | G1: Width x Length | H1: Elevation | K1: Bite | L1: End Divot | M1: #Divots | N1: Canoe | S1: Smooth | T1: Filamented | X1: Comment | Y1: Dividing? | Z1: Waist | AB1: Divot Length | AC1: Divot Width | AD1: Divot Depth | AE1: %Surface Coverage | AF1: Canoe Length | AG1: Canoe Width | AH1: Canoe Depth | AI1: %Surface Coverage | AJ1: Bite Length | AK1: Bite Width | AL1: Bite Depth | AM1: %Surface Coverage
A2: =1 -> 1 | B2: 0 | D2: 0.918 | E2: 0.714 | F2: =D2/E2 -> 1.285714286 | G2: =D2*E2 -> 0.655452 | N2: 1 | X2: Smaller width and length than canoe stats | AE2: =(AB2*AC2)/($D$2*$E$2)*100 -> 0 | AM2: =(AJ2*AK2)/($D$2*$E$2)*100 -> 0
A3: =A2+1 -> 2 | B3: 51 | D3: 1.238 | E3: 0.557 | F3: =D3/E3 -> 2.222621185 | G3: =D3*E3 -> 0.689566 | N3: 1 | X3: Smaller than canoe stats show
A4: =A3+1 -> 3 | B4: 40 | D4: 1.171 | E4: 0.808 | F4: 1.449257426 | G4: 0.946168 | H4: 0.229 | N4: 1 | AF4: 0.669 | AG4: 0.274 | AH4: 0.025 | AI4: =(AF4*AG4)/($D4*$E4)*100 -> 19.37351506
A5: 4 | B5: 60 | D5: 1.615 | E5: 0.647 | F5: 2.496136012 | G5: 1.044905 | N5: 1
A6: 5 | B6: 10 | D6: 1.182 | E6: 0.768 | F6: 1.5390625 | G6: 0.907776 | N6: 1
A7: 6 | B7: 46 | C7: Could be overlapping with cell on top | D7: 1.043 | E7: 0.764 | F7: 1.365183246 | G7: 0.796852 | H7: 0.27 | N7: 1 | X7: Small indentation, not continuous throughout cell
A8: 7 | B8: 44 | D8: 1.057 | E8: 0.764 | F8: 1.383507853 | G8: 0.807548 | N8: 1 | X8: Smaller than regular canoe
A9: 8 | B9: 46 | D9: 1.081 | E9: 0.666 | F9: 1.623123123 | G9: 0.719946 | N9: 1
A10: 9 | B10: 90 | D10: 1.124 | E10: 0.726 | F10: 1.548209366 | G10: 0.816024 | H10: 0.284 | N10: 1 | AF10: 0.668 | AG10: 0.298 | AH10: 0.027 | AI10: =(AF10*AG10)/($D10*$E10)*100 -> 24.39438056
A11: 10 | B11: 31 | D11: 1.078 | E11: 0.752 | F11: 1.433510638 | G11: 0.810656 | N11: 1
A12: 11 | B12: 28 | D12: 1.233 | E12: 0.705 | F12: 1.74893617 | G12: 0.869265 | N12: 1 | AF12: 0.533 | AG12: 0.296 | AH12: 0.036 | AI12: =(AF12*AG12)/($D12*$E12)*100 -> 18.14958614
A13: 12 | B13: 43 | C13: could be dividing | D13: 1.015 | E13: 0.636 | F13: 1.59591195 | G13: 0.64554 | H13: 0.229 | N13: 1 | X13: Two distinct canoes are visible so cells are divided | AF13: 0.514 | AG13: 0.201 | AH13: 0.015 | AI13: =(AF13*AG13)/($D13*$E13)*100 -> 16.00427549
A14: 13 | B14: 36 | C14: could be dividing | D14: 1.795 | E14: 0.759 | F14: 2.364953887 | G14: 1.362405 | N14: 1 | X14: Slanted canoe
A15: =A14+1 -> 14 | B15: 22 | C15: look at numbered boxes not grid | D15: 1.544 | E15: 0.657 | F15: 2.350076104 | G15: 1.014408 | N15: 1 | X15: Raised middle section
A16: 15 | B16: 18 | C16: possibly dividing | D16: 1.891 | E16: 0.709 | F16: 2.667136812 | G16: 1.340719 | H16: 0.256 | N16: 1 | X16: Rough, not two distinct canoes | AF16: 1.299 | AG16: 0.239 | AH16: 0.028 | AI16: =(AF16*AG16)/($D16*$E16)*100 -> 23.15630643
A17: 16 | B17: 24 | D17: 1.462 | E17: 0.729 | F17: 2.005486968 | G17: 1.065798 | N17: 1
A18: 17 | B18: 20 | D18: 1.204 | E18: 0.614 | F18: 1.960912052 | G18: 0.739256 | N18: 1 | X18: Looks like canoe but there is no significant depression
A19: 18 | B19: 3 | D19: 1.177 | E19: 1.002 | F19: 1.174650699 | G19: 1.179354 | H19: 0.252 | S19: 1 | X19: Lack of characteristics to categorize, 2 shallow indents
A20: 19 | B20: 14 | C20: hard to say but possibly dividing | D20: 2.242 | E20: 0.796 | F20: 2.816582915 | G20: 1.784632 | N20: 1 | Y20: 1 | Z20: 0.459
A21: 20 | B21: 13 | D21: 1.249 | E21: 0.627 | F21: 1.992025518 | G21: 0.783123 | N21: 1 | X21: Possibly beginning stage of canoe, canoe feature not continous throughout cell
A22: 21 | B22: 21 | D22: 1.383 | E22: 0.608 | F22: 2.274671053 | G22: 0.840864 | H22: 0.255 | N22: 1 | X22: Lacks features that can be categorized
A23: 22 | B23: 13 | D23: 1.027 | E23: 0.612 | F23: 1.678104575 | G23: 0.628524 | X23: Lacks features that can be categorized
A24: 23 | B24: 9 | D24: 1.081 | E24: 0.85 | F24: 1.271764706 | G24: 0.91885 | N24: 1
A25: 24 | B25: 1 | D25: 1.612 | E25: 0.873 | F25: 1.8465063 | G25: 1.407276 | H25: 0.25 | N25: 1 | AF25: 1.059 | AG25: 0.253 | AH25: 0.042 | AI25: =(AF25*AG25)/($D25*$E25)*100 -> 19.03869603
A26: 25 | B26: 7 | D26: 1.193 | E26: 0.756 | F26: 1.578042328 | G26: 0.901908 | N26: 1
A27: 26 | B27: 21 | D27: 1.116 | E27: 0.587 | F27: 1.901192504 | G27: 0.655092 | N27: 1
A28: 27 | B28: 11 | D28: 1.28 | E28: 0.733 | F28: 1.746248295 | G28: 0.93824 | H28: 0.229 | N28: 1 | X28: Slightly smaller than average canoe | AF28: 0.671 | AG28: 0.192 | AH28: 0.04 | AI28: =(AF28*AG28)/($D28*$E28)*100 -> 13.73124147
A29: 28 | B29: 16 | D29: 1.238 | E29: 0.636 | F29: 1.946540881 | G29: 0.787368 | N29: 1 | X29: Slanted canoe
A30: 29 | B30: 19 | D30: 1.155 | E30: 0.733 | F30: 1.575716235 | G30: 0.846615 | N30: 1
A31: 30 | B31: 19 | D31: 1.138 | E31: 0.842 | F31: 1.351543943 | G31: 0.958196 | H31: 0.22 | N31: 1 | AF31: 0.64 | AG31: 0.319 | AH31: 0.026 | AI31: =(AF31*AG31)/($D31*$E31)*100 -> 21.30670552
A32: 31 | B32: 16 | D32: 1.247 | E32: 0.459 | F32: 2.716775599 | G32: 0.572373 | N32: 1 | X32: Middle of cell is raised
A33: 32 | B33: 3 | D33: 1.557 | E33: 0.743 | F33: 2.095558546 | G33: 1.156851 | N33: 1 | X33: Shallow canoe
A34: 33 | B34: 5 | D34: 1.292 | E34: 0.881 | F34: 1.466515323 | G34: 1.138252 | H34: 0.224 | N34: 1 | AF34: 0.881 | AG34: 0.294 | AH34: 0.037 | AI34: =(AF34*AG34)/($D34*$E34)*100 -> 22.75541796
A35: 34 | B35: 20 | D35: 1.359 | E35: 0.589 | F35: 2.307300509 | G35: 0.800451 | X35: Could be a bump?
A36: 35 | B36: 27 | D36: 1.527 | E36: 0.646 | F36: 2.36377709 | G36: 0.986442
A37: 36 | B37: 18 | D37: 1.526 | E37: 0.652 | F37: 2.340490798 | G37: 0.994952 | H37: 0.23 | X37: Lack of characterizable features, fairly smooth
A38: 37 | B38: 18 | D38: 1.079 | E38: 0.768 | F38: 1.404947917 | G38: 0.828672 | X38: Lack of characterizable features
A39: 38 | B39: 25 | D39: 1.292 | E39: 0.765 | F39: 1.688888889 | G39: 0.98838 | N39: 1 | X39: Slanted canoe
A40: 39 | B40: 16 | C40: Could be dividing | D40: 2.216 | E40: 0.722 | F40: 3.069252078 | G40: 1.599952 | H40: 0.23 | N40: 1 | X40: Left side looks like it is forming canoe but the right side lacks features | Y40: 1 | Z40: 0.504
A41: 40 | B41: 18 | D41: 1.259 | E41: 0.724 | F41: 1.738950276 | G41: 0.911516 | N41: 1 | X41: Fairly smooth
A42: 41 | B42: 1 | C42: revised | D42: 2.083 | E42: 0.532 | F42: 3.915413534 | G42: 1.108156 | N42: 1 | X42: Not dividing, Canoe forming on left side, right side is featureless
A43: 42 | B43: 26 | C43: Dividing | D43: 1.292 | E43: 0.711 | F43: 1.817158931 | G43: 0.918612 | H43: 0.257
A44: 43 | B44: 26 | D44: 1.173 | E44: 0.572 | F44: 2.050699301 | G44: 0.670956 | N44: 1 | X44: Fairly smooth, raised
A45: 44 | B45: 8 | C45: Dividing | D45: 1.968 | E45: 0.747 | F45: 2.634538153 | G45: 1.470096 | N45: 1 | X45: A canoe with a raised bridge | Y45: 1 | Z45: 0.397
A46: 45 | B46: 8 | D46: 1.351 | E46: 0.822 | F46: 1.643552311 | G46: 1.110522 | H46: 0.223 | N46: 1 | AF46: 0.764 | AG46: 0.294 | AH46: 0.037 | AI46: =(AF46*AG46)/($D46*$E46)*100 -> 20.22616391
A47: 46 | B47: 2 | D47: 0.881 | E47: 0.706 | F47: 1.247875354 | G47: 0.621986 | N47: 1 | X47: Large bump on right end
A48: 47 | B48: 9 | D48: 1.527 | E48: 0.646 | F48: 2.36377709 | G48: 0.986442 | N48: 1
A49: 48 | B49: 17 | C49: Dividing | D49: 2.177 | E49: 0.646 | F49: 3.36996904 | G49: 1.406342 | H49: 0.227 | N49: 1 | Y49: 1 | Z49: 0.47 | AF49: 1.236 | AG49: 0.294 | AH49: 0.048 | AI49: =(AF49*AG49)/($D49*$E49)*100 -> 25.83894956
A50: 49 | B50: 18 | C50: Borderline Canoe | D50: 1.418 | E50: 0.533 | F50: 2.660412758 | G50: 0.755794 | X50: Cell ends much lower than sides
A51: 50 | B51: 6 | D51: 1.213 | E51: 0.885 | F51: 1.370621469 | G51: 1.073505 | N51: 1
A52: 51 | B52: 16
A53: 52 | B53: 27
A54: 53 | B54: 19
A55: 54 | B55: 17
A56: 55
A57: 56
A58: 57
A59: 58
A60: 59
A61: 60
A62: 61
A63: 62
A64: Count | D64: =COUNT(D2:D63) -> 50 | E64: =COUNT(E2:E63) -> 50 | F64: =COUNT(F2:F63) -> 50 | G64: =COUNT(G2:G63) -> 50 | H64: =COUNT(H2:H63) -> 16 | I64: Instances | K64: =COUNT(K2:K63) -> 0 | L64: 0 | M64: 0 | N64: 42 | S64: 1 | T64: 0 | X64: 0 | Y64: 4 | Z64: =COUNT(Z2:Z63) -> 4 | AB64: =COUNT(AB2:AB63) -> 0 | AC64: 0 | AD64: 0 | AE64: 1 | AF64: 11 | AG64: 11 | AH64: 11 | AI64: 11 | AJ64: 0 | AK64: 0 | AL64: 0 | AM64: 1
A65: AVG | D65: =AVERAGE(D2:D63) -> 1.35958 | E65: =AVERAGE(E2:E63) -> 0.70758 | F65: =AVERAGE(F2:F63) -> 1.96919609 | G65: =AVERAGE(G2:G63) -> 0.95925156 | H65: =AVERAGE(H2:H63) -> 0.2415625 | I65: Fraction | K65: =K64/$D$64 -> 0 | L65: 0 | M65: 0 | N65: 0.84 | S65: 0.02 | T65: 0 | X65: 0 | Y65: 0.08 | Z65: =AVERAGE(Z2:Z63) -> 0.4575 | AB65: =AVERAGE(AB2:AB63) ->  | AE65: 0 | AF65: 0.8121818182 | AG65: 0.2685454545 | AH65: 0.03281818182 | AI65: 20.36138529 | AM65: 0
A66: STDEV | D66: =STDEV(D2:D63) -> 0.3356233366 | E66: =STDEV(E2:E63) -> 0.1043972183 | F66: =STDEV(F2:F63) -> 0.5897732266 | G66: =STDEV(G2:G63) -> 0.2659220682 | H66: =STDEV(H2:H63) -> 0.01912753251 | I66: Number/Cell | M66: =SUM(M3:M63)/L$64 ->  | Z66: =STDEV(Z2:Z63) -> 0.04465049458 | AB66: =STDEV(AB2:AB63) ->  | AF66: 0.2724543331 | AG66: 0.04204370021 | AH66: 0.009453234175 | AI66: 3.623317756

Sheet H9_08031738
A1: Cell Number | B1: Number Sequence | C1: Omit reason | D1: Length | E1: Width | F1: L/W | G1: Length x Width | H1: Elevation | K1: Bite | L1: End Divot | M1: #Divots | N1: Canoe | S1: Smooth | T1: Filamented | X1: comment | Y1: Dividing | Z1: Waist | AB1: divot length | AC1: divot width | AD1: divot depth | AE1: % surface divot | AF1: canoe length | AG1: canoe width | AH1: canoe depth | AI1: % surface canoe | AJ1: bite length | AK1: bite width | AL1: bite depth | AM1: %surface bite
A2: 1 | B2: 98 | C2: too blurry
A3: =1+A2 -> 2 | B3: 96 | D3: 1.674 | E3: 1.021 | F3: =D3/E3 -> 1.63956905 | G3: =D3*E3 -> 1.709154 | N3: 1
A4: =1+A3 -> 3 | B4: 13 | D4: 3.755 | E4: 0.869 | F4: 4.321058688 | G4: 3.263095 | H4: 0.225 | N4: 1 | AF4: 3.218 | AG4: 0.435 | AH4: 0.014 | AI4: =(AF4*AG4)/(D4*E4)*100 -> 42.89884297
A5: 4 | B5: 13 | D5: 2.317 | E5: 0.954 | F5: 2.428721174 | G5: 2.210418 | L5: 1 | M5: 3
A6: 5 | B6: 35 | D6: 2.41 | E6: 1.05 | F6: 2.295238095 | G6: 2.5305 | S6: 1
A7: 6 | B7: 55 | D7: 7.221 | E7: 0.881 | F7: 8.196367764 | G7: 6.361701 | T7: 1 | X7: partial canoe
A8: 7 | B8: 63 | D8: 1.861 | E8: 0.835 | F8: 2.228742515 | G8: 1.553935 | H8: 0.202 | N8: 1 | AF8: 1.339 | AG8: 0.389 | AH8: 0.01 | AI8: =(AF8*AG8)/(D8*E8)*100 -> 33.51948441
A9: 8 | B9: 26 | C9: blurry
A10: 9 | B10: 16 | C10: blurry
A11: 10 | B11: 76 | D11: 2.9 | E11: 0.681 | F11: =D11/E11 -> 4.258443465 | G11: =D11*E11 -> 1.9749 | N11: 1
A12: 11 | B12: 15 | D12: 1.452 | E12: 0.883 | F12: 1.644394111 | G12: =D12*E12 -> 1.282116 | N12: 1
A13: 12 | B13: 5 | D13: 2.546 | E13: 0.91 | F13: 2.797802198 | G13: =D13*E13 -> 2.31686 | H13: 0.238 | N13: 1 | AF13: 2.291 | AG13: 0.53 | AH13: 0.015 | AI13: =(AF13*AG13)/(D13*E13)*100 -> 52.4084321
A14: 13 | B14: 62 | C14: blurry
A15: 14 | B15: 53 | D15: 1.233 | E15: 0.939 | F15: 1.313099042 | G15: =D15*E15 -> 1.157787 | N15: 1
A16: 15 | B16: 97 | D16: 2.15 | E16: 0.981 | F16: 2.191641182 | G16: =D16*E16 -> 2.10915
A17: 16 | B17: 99 | C17: cut off
A18: 17 | B18: 2 | C18: blurry
A19: 18 | B19: 43 | D19: 1.388 | E19: 1.059 | F19: =D19/E19 -> 1.310670444 | G19: =D19*E19 -> 1.469892 | H19: 0.287 | S19: 1
A20: 19 | B20: 82 | D20: =1.546*2 -> 3.092 | E20: 1.297 | F20: =D20/E20 -> 2.383962992 | G20: =D20*E20 -> 4.010324 | Y20: 1 | Z20: 0.888
A21: 20 | B21: 4 | C21: revised | D21: =1.291*2 -> 2.582 | E21: 0.744 | F21: =D21/E21 -> 3.470430108 | G21: 1.921008 | N21: 1 | X21: Not dividing, entire waist is below width | Z21: 0.708
A22: 21 | B22: 96 | D22: 2.255 | E22: 0.97 | F22: =D22/E22 -> 2.324742268 | G22: 2.18735 | S22: 1 | Y22: 1 | Z22: 0.656
A23: 22 | B23: 15 | C23: blurry
A24: 23 | B24: 85 | D24: =2.913+2.253 -> 5.166 | E24: 0.821 | F24: =D24/E24 -> 6.292326431 | G24: 4.241286 | H24: 0.233 | T24: 1
A25: 24 | B25: 62 | C25: blurry
A26: 25 | B26: 13 | D26: 2.129 | E26: 0.484 | F26: =D26/E26 -> 4.398760331 | G26: 1.030436 | N26: 1
A27: 26 | B27: 43 | D27: 2.213 | E27: 1 | F27: =D27/E27 -> 2.213 | G27: 2.213
A28: 27 | B28: 73 | D28: 1.59 | E28: 1.079 | F28: =D28/E28 -> 1.473586654 | G28: 1.71561 | H28: 0.231 | L28: 1 | M28: 2 | AB28: 0.415 | AC28: 0.216 | AD28: 0.023 | AE28: =(AB28*AC28)/(D28*E28)*100 -> 5.224963716
A29: 28 | B29: 83 | D29: 2.276 | E29: 0.707 | F29: =D29/E29 -> 3.219236209 | G29: 1.609132
A30: 29 | B30: 82 | C30: blurry
A31: 30 | B31: 65 | D31: 1.899 | E31: 0.801 | F31: =D31/E31 -> 2.370786517 | G31: 1.521099 | N31: 1
A32: 31 | B32: 95 | C32: cut off
A33: 32 | B33: 14 | D33: 1.872 | E33: 0.954 | F33: =D33/E33 -> 1.962264151 | G33: 1.785888 | H33: 0.201 | S33: 1
A34: 33 | B34: 70 | D34: 1.68 | E34: 0.769 | F34: =D34/E34 -> 2.184655397 | G34: 1.29192 | N34: 1
A35: 34 | B35: 3 | D35: 1.88 | E35: 0.83 | F35: =D35/E35 -> 2.265060241 | G35: 1.5604 | X35: indentations
A36: 35 | B36: 43 | C36: blurry
A37: 36 | B37: 73 | D37: 1.703 | E37: 0.94 | F37: =D37/E37 -> 1.811702128 | G37: 1.60082 | H37: 0.19 | L37: 1 | M37: 2
A38: 37 | B38: 54 | D38: 1.651 | E38: 1.036 | F38: =D38/E38 -> 1.593629344 | G38: 1.710436 | N38: 1
A39: 38 | B39: 64 | D39: 6.59 | E39: 0.764 | F39: =D39/E39 -> 8.62565445 | G39: 5.03476 | T39: 1
A40: 39 | B40: 93 | C40: cut off
A41: 40 | B41: 95 | D41: 2.01 | E41: 0.936 | F41: =D41/E41 -> 2.147435897 | G41: 1.88136 | H41: 0.188 | N41: 1 | AF41: 1.447 | AG41: 0.546 | AH41: 0.014 | AI41: =(AF41*AG41)/(D41*E41)*100 -> 41.99419569
A42: 41 | B42: 24 | D42: 1.821 | E42: 0.822 | F42: =D42/E42 -> 2.215328467 | G42: 1.496862 | N42: 1
A43: 42 | B43: 83 | D43: 2.337 | E43: 1.018 | F43: =D43/E43 -> 2.2956778 | G43: 2.379066
A44: 43 | B44: 36 | C44: blurry
A45: 44 | B45: 65 | D45: 2.409 | E45: 0.999 | F45: =D45/E45 -> 2.411411411 | G45: 2.406591 | S45: 1
A46: 45 | B46: 83 | D46: 4.596 | E46: 0.715 | F46: =D46/E46 -> 6.427972028 | G46: 3.28614 | T46: 1
A47: 46 | B47: 25
A48: 47 | B48: 56
A49: 48 | B49: 1
A50: 49 | B50: 98
A51: 50 | B51: 98
A52: 51 | B52: 87
A53: 52 | B53: 5 | D53: 1.058 | E53: 0.705 | F53: =D53/E53 -> 1.50070922 | G53: 0.74589 | H53: 0.241
A54: 53 | B54: 24 | D54: 1.241 | E54: 0.914 | F54: 1.357768053 | G54: 1.134274
A55: 54 | B55: 54 | D55: 1.538 | E55: 1.065 | F55: 1.444131455 | G55: 1.63797
A56: 55 | B56: 74 | D56: 2.088 | E56: 1.034 | F56: 2.01934236 | G56: 2.158992 | H56: 0.165 | X56: bottom right corner sunken
A57: 56 | B57: 76 | D57: 2.004 | E57: 0.656 | F57: 3.054878049 | G57: 1.314624
A58: 57 | B58: 96 | D58: 2.328 | E58: 0.959 | F58: 2.427528676 | G58: 2.232552
A59: 58 | B59: 45 | D59: 1.514 | E59: 0.885 | F59: 1.710734463 | G59: 1.33989 | H59: 0.199
A60: 59 | B60: 14 | D60: 1.948 | E60: 0.871 | F60: 2.236509759 | G60: 1.696708
A61: 60 | B61: 25
C64: Count | D64: =COUNT(D2:D61) -> 40 | E64: =COUNT(E2:E61) -> 40 | F64: =COUNT(F2:F61) -> 40 | G64: =COUNT(G2:G61) -> 40 | H64: =COUNT(H2:H61) -> 12 | I64: Instances | K64: =COUNT(K2:K63) -> 0 | L64: 3 | M64: 3 | N64: 14 | S64: 5 | T64: 4 | X64: 0 | Y64: 2 | Z64: =COUNT(Z2:Z63) -> 3 | AB64: =COUNT(AB2:AB58) -> 1 | AC64: =COUNT(AC2:AC58) -> 1 | AD64: =COUNT(AD2:AD58) -> 1 | AE64: =COUNT(AE2:AE58) -> 1 | AF64: =COUNT(AF2:AF58) -> 4 | AG64: =COUNT(AG2:AG58) -> 4 | AH64: 4 | AI64: 4 | AJ64: 0 | AK64: 0 | AL64: 0 | AM64: 0
C65: Average | D65: =AVERAGE(D53:D61) -> 1.714875 | E65: =AVERAGE(E53:E61) -> 0.886125 | F65: =AVERAGE(F53:F61) -> 1.968950254 | G65: =AVERAGE(G2:G61) -> 2.1270974 | H65: =AVERAGE(H2:H61) -> 0.2166666667 | I65: Fraction | K65: =K64/$D$64 -> 0 | L65: 0.075 | M65: 0.075 | N65: 0.35 | S65: 0.125 | T65: 0.1 | X65: 0 | Y65: 0.05 | Z65: =AVERAGE(Z2:Z63) -> 0.7506666667 | AB65: =AVERAGE(AB2:AB61) -> 0.415 | AC65: 0.216 | AD65: 0.023 | AE65: 5.224963716 | AF65: 2.07375 | AG65: 0.475 | AH65: 0.01325 | AI65: =AVERAGE(AI53:AI61) ->  | AJ65: =AVERAGE(AJ53:AJ61) ->  | AK65: =AVERAGE(AK53:AK61) ->  | AL65: =AVERAGE(AL53:AL61) ->  | AM65: =AVERAGE(AM2:AM61) -> 
C66: Standard Dev. | D66: =STDEV(D53:D60) -> 0.4441304305 | E66: =STDEV(E53:E60) -> 0.1443927556 | F66: =STDEV(F53:F60) -> 0.5853648817 | G66: =STDEV(G2:G60) -> 1.117576599 | H66: =STDEV(H2:H60) -> 0.0323484813 | I66: Number/Cell | M66: =SUM(M3:M63)/L$64 -> 2.333333333 | Z66: =STDEV(Z2:Z63) -> 0.1217428985 | AB66: =STDEV(AB53:AB60) ->  | AE66: =STDEV(AE2:AE60) ->  | AF66: =STDEV(AF2:AF60) -> 0.8735328175 | AG66: =STDEV(AG2:AG60) -> 0.07541441065 | AH66: =STDEV(AH2:AH60) -> 0.002217355783 | AM66: =STDEV(AM2:AM60) -> 

Sheet H10_02031542
A1: Cell Number | B1: Number Sequence | C1: Comment | D1: Length (µm) | E1: Width (µm) | F1: Length/Width | G1: Width x Length | H1: Elevation | K1: Bite | L1: End Divot | M1: #Divots | N1: Canoe | S1: Smooth | T1: Filamented | X1: Comment | Y1: Dividing? | Z1: Waist | AB1: Divot Length | AC1: Divot Width | AD1: Divot Depth | AE1: %Surface Coverage | AF1: Canoe Length | AG1: Canoe Width | AH1: Canoe Depth | AI1: %Surface Coverage | AJ1: Bite Length | AK1: Bite Width | AL1: Bite Depth | AM1: %Surface Coverage
A2: =1 -> 1 | B2: 47 | D2: 2.131 | E2: 1.116 | F2: =D2/E2 -> 1.909498208 | G2: =D2*E2 -> 2.378196 | N2: 1 | AE2: =(AB2*AC2)/($D$2*$E$2)*100 -> 0 | AI2: =(AF2*AG2)/($D$2*$E$2)*100 -> 0 | AM2: =(AJ2*AK2)/($D$2*$E$2)*100 -> 0
A3: =A2+1 -> 2 | B3: 96 | D3: 2.164 | E3: 0.985 | F3: 2.196954315 | G3: 2.13154 | S3: 1 | AE3: 0 | AI3: 0
A4: 3 | B4: 18 | D4: 2.29 | E4: 0.995 | F4: 2.301507538 | G4: 2.27855 | H4: 0.264 | N4: 1 | AE4: 0 | AF4: 1.818 | AG4: 0.622 | AH4: 0.036 | AI4: 47.54847792
A5: 4 | B5: 51 | D5: 2.345 | E5: 1.066 | F5: 2.199812383 | G5: 2.49977 | X5: Slanted with an uneven surface | AE5: 0 | AI5: 0
A6: 5 | B6: 85 | D6: 2.226 | E6: 1.329 | F6: 1.674943567 | G6: 2.958354 | L6: 1 | M6: 2 | AE6: 0 | AI6: 0
A7: 6 | B7: 73 | D7: 4.446 | E7: 1.041 | F7: 4.270893372 | G7: 4.628286 | H7: 0.243 | T7: 1 | AE7: 0 | AI7: 0
A8: 7 | B8: 92 | D8: 2.466 | E8: 0.94 | F8: 2.623404255 | G8: 2.31804 | X8: Similar to (another) hour, ends are raised with a lower section in the middle that is still evidently connecting the two ends although it has a much lower elevation with a rough surface | AE8: 0 | AI8: 0
A9: 8 | B9: 43 | D9: 1.893 | E9: 0.985 | F9: 1.921827411 | G9: 1.864605 | X9: Similar to a donut-cell but the cell is not as round and the central "hole" is signifcantly smaller than most donut-cells | AE9: 0 | AI9: 0
A10: 9 | B10: 63 | D10: 1.735 | E10: 0.961 | F10: 1.80541103 | G10: 1.667335 | H10: 0.247 | X10: Uneven, discontinuous surface | AE10: 0 | AI10: 0
A11: 10 | B11: 61 | D11: 2.681 | E11: 1.044 | F11: 2.568007663 | G11: 2.798964 | S11: 1 | AE11: 0 | AI11: 0
A12: 11 | B12: 43 | D12: 2.196 | E12: 1.18 | F12: 1.861016949 | G12: 2.59128 | X12: Raised ends, discontinuous | AE12: 0 | AI12: 0
A13: 12 | B13: 35 | D13: 3.134 | E13: 0.969 | F13: 3.234262126 | G13: 3.036846 | H13: 0.255 | X13: Raised ends, discontinuous | AE13: 0 | AI13: 0
A14: 13 | B14: 34 | D14: 2.305 | E14: 0.928 | F14: 2.483836207 | G14: 2.13904 | S14: 1 | AE14: 0 | AI14: 0
A15: 14 | B15: 52 | D15: 1.879 | E15: 0.822 | F15: 2.285888078 | G15: 1.544538 | N15: 1 | AE15: 0 | AI15: 0
A16: 15 | B16: 89 | D16: 2.047 | E16: 1.053 | F16: 1.943969611 | G16: 2.155491 | H16: 0.204 | S16: 1 | X16: Discontinuous | AE16: 0 | AI16: 0
A17: 16 | B17: 82 | D17: 2.29 | E17: 0.999 | F17: 2.292292292 | G17: 2.28771 | X17: Raised ends, discontinuous, sunken middle (similar to hour 12 cells) | AE17: 0 | AI17: 0
A18: 17 | B18: 60 | D18: 2.003 | E18: 0.975 | F18: 2.054358974 | G18: 1.952925 | X18: Discontinuous | AE18: 0 | AI18: 0
A19: 18 | B19: 45 | D19: 1.776 | E19: 0.882 | F19: 2.013605442 | G19: 1.566432 | H19: 0.199 | S19: 1 | AE19: 0 | AI19: 0
A20: 19 | B20: 4 | D20: 3.937 | E20: 1.143 | F20: 3.444444444 | G20: 4.499991 | X20: Discontinuous, some randomly placed divots throughout | Y20: 1 | Z20: 0.723 | AE20: 0 | AI20: 0
A21: 20 | B21: 5 | D21: 1.401 | E21: 1.012 | F21: 1.384387352 | G21: 1.417812 | S21: 1 | AE21: 0 | AI21: 0
A22: 21 | B22: 26 | D22: 2.461 | E22: 1.006 | F22: 2.446322068 | G22: 2.475766 | H22: 0.197 | N22: 1 | AE22: 0 | AF22: 2.036 | AG22: 0.597 | AH22: 0.036 | AI22: 51.10983283
A23: 22 | B23: 16 | D23: 5.435 | E23: 1.059 | F23: 5.132200189 | G23: 5.755665 | T23: 1 | AE23: 0 | AI23: 0
A24: 23 | B24: 95 | D24: 2.722 | E24: 1.048 | F24: 2.597328244 | G24: 2.852656 | X24: Raised ends, discontinuous | AE24: 0 | AI24: 0
A25: 24 | B25: 4 | D25: 1.448 | E25: 1.022 | F25: 1.416829746 | G25: 1.479856 | H25: 0.208 | N25: 1 | AE25: 0 | AF25: 1.03 | AG25: 0.743 | AH25: 0.019 | AI25: 32.17943349
A26: 25 | B26: 78 | D26: 2.133 | E26: 0.966 | F26: 2.208074534 | G26: 2.060478 | S26: 1 | AE26: 0 | AI26: 0
A27: 26 | B27: 17 | D27: 2.015 | E27: 1.122 | F27: 1.795900178 | G27: 2.26083 | X27: Discontinuous, certain sections resemble a canoe | AE27: 0 | AI27: 0
A28: 27 | B28: 71 | D28: 1.632 | E28: 0.926 | F28: 1.762419006 | G28: 1.511232 | H28: 0.212 | L28: 1 | M28: 2 | AB28: 0.609 | AC28: 0.436 | AD28: 0.037 | AE28: 11.16493342 | AI28: 0
A29: 28 | B29: 39 | D29: 2.106 | E29: 0.945 | F29: 2.228571429 | G29: 1.99017 | N29: 1 | AE29: 0 | AI29: 0
A30: 29 | B30: 18 | D30: 3.68 | E30: 1.185 | F30: 3.105485232 | G30: 4.3608 | X30: Raised ends, discontinuous | AE30: 0 | AI30: 0
A31: 30 | B31: 93 | D31: 2.469 | E31: 0.947 | F31: 2.60718057 | G31: 2.338143 | H31: 0.219 | X31: Discontinuous, an indent near the middle, one raised end | AE31: 0 | AI31: 0
A32: 31 | B32: 8 | D32: 1.687 | E32: 1.076 | F32: 1.567843866 | G32: 1.815212 | X32: Discontinuous, some raised edges | AE32: 0 | AI32: 0
A33: 32 | B33: 43 | D33: 2.703 | E33: 1.041 | F33: 2.596541787 | G33: 2.813823 | X33: Discontinuous, some raised edges | AE33: 0 | AI33: 0
A34: 33 | B34: 96 | D34: 3.517 | E34: 1.002 | F34: =D34/E34 -> 3.50998004 | G34: =D34*E34 -> 3.524034 | H34: 0.289 | X34: Discontinuous, slanted | AE34: 0 | AI34: =(AF34*AG34)/($D$2*$E$2)*100 -> 0
A35: =A34+1 -> 34 | B35: 59 | D35: 2.212 | E35: 1.04 | F35: 2.126923077 | G35: 2.30048 | X35: Similar to an end divot but one divot is too large and the center of the cell is unusually high in comparison to the rest of the cell | AE35: 0 | AI35: 0
A36: 35 | B36: 59 | C36: Possible debris | D36: 2.277 | E36: 0.881 | F36: 2.584562997 | G36: 2.006037 | X36: Discontinuous, alternating peaks and dips (possible debris) | AE36: 0 | AI36: 0
A37: 36 | B37: 15 | D37: 2.265 | E37: 1.079 | F37: 2.099165894 | G37: 2.443935 | H37: 0.221 | X37: Discontinuous, randomly placed indents | AE37: 0 | AI37: 0
A38: 37 | B38: 81 | D38: 2.156 | E38: 0.961 | F38: 2.243496358 | G38: 2.071916 | X38: Similar to a canoe but discontinuous as of halfway through the cell (other half seems to have collapsed) | AE38: 0 | AI38: 0
A39: 38 | B39: 56 | D39: 2.317 | E39: 1.006 | F39: 2.303180915 | G39: 2.330902 | X39: Similar to a canoe but discontinuous as of halfway through the cell (other half is mostly the same elevation) | AE39: 0 | AI39: 0
A40: 39 | B40: 36 | D40: 2.172 | E40: 0.999 | F40: 2.174174174 | G40: 2.169828 | H40: 0.218 | X40: Oddly shaped, (like a circle and an oval next to each other) discontinuous surface features | Y40: 1 | Z40: 0.587 | AE40: 0 | AI40: 0
A41: 40 | B41: 27 | D41: 2.734 | E41: 1.058 | F41: 2.584120983 | G41: 2.892572 | N41: 1 | AI41: 0
A42: 41 | B42: 0 | C42: revised | D42: 2.311 | E42: 0.933 | F42: 2.476956056 | G42: 2.156163 | N42: 1 | X42: Not dividing, entire waist is lower than width | Z42: 0.774 | AI42: 0
A43: 42 | B43: 9 | D43: 1.599 | E43: 0.958 | F43: 1.669102296 | G43: 1.531842 | H43: 0.245 | AF43: 1.341 | AG43: 0.778 | AH43: 0.048 | AI43: 43.86930261
A44: 43 | B44: 88 | D44: 2.308 | E44: 1.111 | F44: 2.077407741 | G44: 2.564188 | S44: 1 | AI44: 0
A45: 44 | B45: 85 | D45: 1.464 | E45: 1.352 | F45: 1.082840237 | G45: 1.979328 | S45: 1 | AI45: 0
A46: 45 | B46: 67 | D46: 2.302 | E46: 1.135 | F46: 2.028193833 | G46: 2.61277 | H46: 0.26 | X46: Discontinuous, large indents along the surface | AI46: 0
A47: 46 | B47: 28 | D47: 2.511 | E47: 0.967 | F47: 2.596690796 | G47: 2.428137 | N47: 1 | AI47: 0
A48: 47 | B48: 39 | D48: 1.452 | E48: 1.027 | F48: 1.41382668 | G48: 1.491204 | X48: Similar to a canoe but discontinuous | AI48: 0
A49: 48 | B49: 43 | D49: 5.278 | E49: 1.05 | F49: 5.026666667 | G49: 5.5419 | H49: 0.209 | T49: 1 | AI49: 0
A50: 49 | B50: 89 | D50: 2.226 | E50: 1.048 | F50: 2.124045802 | G50: 2.332848 | X50: Discontinuous, 2 randomly placed indents | AI50: 0
A51: 50 | B51: 1 | D51: 1.893 | E51: 1.072 | F51: 1.765858209 | G51: 2.029296 | X51: Recently divided, one end divot | AI51: 0
A52: 51 | B52: 74 | AI52: 0
A53: 52 | B53: 31 | AI53: 0
A54: 53 | B54: 43 | AI54: 0
A55: 54 | B55: 60 | AI55: 0
A56: 55 | B56: 11 | AI56: 0
A57: 56 | B57: 32 | AI57: 0
A58: 57 | B58: 15 | AI58: 0
A59: 58 | B59: 22
A60: 59 | B60: 48
A61: 60 | B61: 36
A62: 61 | B62: 62
A63: 62 | B63: 37
A64: Count | D64: =COUNT(D2:D63) -> 50 | E64: =COUNT(E2:E63) -> 50 | F64: =COUNT(F2:F63) -> 50 | G64: =COUNT(G2:G63) -> 50 | H64: =COUNT(H2:H63) -> 16 | I64: Instances | K64: =COUNT(K2:K63) -> 0 | L64: 2 | M64: 2 | N64: 9 | S64: =COUNT(S2:S63) -> 9 | T64: 3 | X64: 0 | Y64: 2 | Z64: =COUNT(Z2:Z63) -> 3 | AB64: =COUNT(AB2:AB63) -> 1 | AC64: 1 | AD64: 1 | AE64: 39 | AF64: 4 | AG64: 4 | AH64: 4 | AI64: 57 | AJ64: 0 | AK64: 0 | AL64: 0 | AM64: 1
A65: AVG | D65: =AVERAGE(D2:D63) -> 2.4166 | E65: =AVERAGE(E2:E63) -> 1.02894 | F65: =AVERAGE(F2:F63) -> 2.356444216 | G65: =AVERAGE(G2:G63) -> 2.49675432 | H65: =AVERAGE(H2:H63) -> 0.230625 | I65: Fraction | K65: =K64/$D$64 -> 0 | L65: 0.04 | M65: 0.04 | N65: 0.18 | S65: =S64/$D$64 -> 0.18 | T65: =T64/$D$64 -> 0.06 | X65: =X64/$D$64 -> 0 | Y65: =Y64/$D$64 -> 0.04 | Z65: =AVERAGE(Z2:Z63) -> 0.6946666667 | AB65: =AVERAGE(AB2:AB63) -> 0.609 | AC65: 0.436 | AD65: 0.037 | AE65: 0.2862803441 | AF65: 1.55625 | AG65: 0.685 | AH65: 0.03475 | AI65: 3.06503591 | AM65: 0
A66: STDEV | D66: =STDEV(D2:D63) -> 0.8567690614 | E66: =STDEV(E2:E63) -> 0.098596769 | F66: =STDEV(F2:F63) -> 0.8027816217 | G66: =STDEV(G2:G63) -> 0.9582349191 | H66: =STDEV(H2:H63) -> 0.02727605788 | I66: Number/Cell | M66: =SUM(M3:M63)/L$64 -> 2 | Z66: =STDEV(Z2:Z63) -> 0.09666609195 | AB66: =STDEV(AB2:AB63) ->  | AE66: 1.787820176 | AF66: 0.4553184783 | AG66: 0.08893068462 | AH66: 0.01192686044 | AI66: 11.41554473

Sheet H10_08031857
A1: Cell Number | B1: Number Sequence | C1: Comment | D1: Length (µm) | E1: Width (µm) | F1: Length/Width | G1: Width x Length | H1: Elevation | K1: Bite | L1: End Divot | M1: #Divots | N1: Canoe | S1: Smooth | T1: Filamented | X1: Comment | Y1: Dividing? | Z1: Waist | AB1: Divot Length | AC1: Divot Width | AD1: Divot Depth | AE1: %Surface Coverage | AF1: Canoe Length | AG1: Canoe Width | AH1: Canoe Depth | AI1: %Surface Coverage | AJ1: Bite Length | AK1: Bite Width | AL1: Bite Depth | AM1: %Surface Coverage
A2: =1 -> 1 | B2: 2 | C2: Sample appears dirty | D2: 3.512 | E2: 1.002 | F2: =D2/E2 -> 3.50499002 | G2: =D2*E2 -> 3.519024 | X2: Similar to an end divot cell but with only one divot | AE2: =(AB2*AC2)/($D$2*$E$2)*100 -> 0 | AI2: =(AF2*AG2)/($D$2*$E$2)*100 -> 0 | AM2: =(AJ2*AK2)/($D$2*$E$2)*100 -> 0
A3: =A2+1 -> 2 | B3: 2 | D3: 1.469 | E3: 0.939 | F3: =D3/E3 -> 1.564430245 | G3: =D3*E3 -> 1.379391 | AI3: =(AF3*AG3)/($D$2*$E$2)*100 -> 0
A4: =A3+1 -> 3 | B4: 98 | D4: 1.988 | E4: 0.828 | F4: 2.400966184 | G4: 1.646064 | H4: 0.244 | N4: 1 | X4: Somewhat discontinuous near one end of the cell about 70% of the cell classifies as a canoe | AF4: 1.199 | AG4: 0.353 | AH4: 0.049 | AI4: 12.02739737
A5: 4 | B5: 76 | D5: 2.08 | E5: 0.776 | F5: 2.680412371 | G5: 1.61408 | X5: These bumps appear to be from debris on the sample. (overall, the sample looks dirty) | AI5: 0
A6: 5 | B6: 30 | D6: 1.652 | E6: 0.811 | F6: 2.036991369 | G6: 1.339772 | N6: 1 | AI6: 0
A7: 6 | B7: 93 | D7: 2.333 | E7: 0.796 | F7: 2.930904523 | G7: 1.857068 | H7: 0.229 | S7: 1 | X7: Discontinuous, similar to a canoe in some places but not the whole cell. | AI7: 0
A8: 7 | B8: 16 | D8: 1.875 | E8: 1.014 | F8: 1.849112426 | G8: 1.90125 | X8: Either end of the cell has raised edges while the middle is discontinuous, similar to the hour 12 cells but the elevation of these cells is higher | AI8: 0
A9: 8 | B9: 10 | D9: 4.061 | E9: 1.085 | F9: 3.742857143 | G9: 4.406185 | T9: 1 | AI9: 0
A10: 9 | B10: 60 | D10: 2.108 | E10: 0.762 | F10: 2.766404199 | G10: 1.606296 | H10: 0.255 | X10: Discontinuous with an indent near one end of the cell (about 20 nm deep) | AI10: 0
A11: 10 | B11: 59 | C11: suspected entry error | AI11: 0
A12: 11 | B12: 88 | D12: 2.182 | E12: 0.647 | F12: 3.372488408 | G12: 1.411754 | S12: 1 | X12: Nearly smooth but there is a some discontinuity near the higher part of the cell where there are some bumpy features | AI12: 0
A13: 12 | B13: 29 | D13: 2.362 | E13: 0.705 | F13: 3.35035461 | G13: 1.66521 | H13: 0.19 | N13: 1 | AF13: 1.825 | AG13: 0.47 | AH13: 0.029 | AI13: 24.37465615
A14: 13 | B14: 96 | D14: 1.976 | E14: 0.993 | F14: 1.989929507 | G14: 1.962168 | L14: 1 | M14: 2 | AI14: 0
A15: 14 | B15: 24 | D15: 1.742 | E15: 0.807 | F15: 2.158612144 | G15: 1.405794 | X15: A single divot close to, but not in the middle of the cell | AI15: 0
A16: 15 | B16: 5 | D16: 1.491 | E16: 0.78 | F16: 1.911538462 | G16: 1.16298 | H16: 0.219 | X16: Similar to a canoe but not deep continuously through the cell | AI16: 0
A17: 16 | B17: 43 | D17: 3.496 | E17: 0.796 | F17: 4.391959799 | G17: 2.782816 | N17: 1 | AI17: 0
A18: 17 | B18: 70 | D18: 2.174 | E18: 0.498 | F18: 4.365461847 | G18: 1.082652 | N18: 1 | AI18: 0
A19: 18 | B19: 0 | D19: 1.656 | E19: 0.998 | F19: 1.659318637 | G19: 1.652688 | H19: 0.196 | S19: 1 | X19: Nearly smooth, but there are some features present | AI19: 0
A20: 19 | B20: 91 | D20: 1.162 | E20: 0.677 | F20: 1.716395864 | G20: 0.786674 | X20: Uneven surface with divots and indentations | AI20: 0
A21: 20 | B21: 86 | D21: 1.237 | E21: 0.758 | F21: 1.631926121 | G21: 0.937646 | S21: 1 | X21: Shaped like a triangle, similar to a canoe but not deep enough throughout the cell | AI21: 0
A22: 21 | B22: 11 | D22: 1.923 | E22: 0.822 | F22: 2.339416058 | G22: 1.580706 | H22: 0.199 | X22: Discontinuous, rough surface with indents and a bump on one end of the cell | AI22: 0
A23: 22 | B23: 40 | D23: 1.879 | E23: 0.827 | F23: 2.272067715 | G23: 1.553933 | X23: Shaped like a teardrop, discontinuous surface with indents | AI23: 0
A24: 23 | B24: 16 | D24: 0.96 | E24: 0.822 | F24: 1.167883212 | G24: 0.78912 | N24: 1 | AI24: 0
A25: 24 | B25: 26 | D25: 2.367 | E25: 0.71 | F25: 3.333802817 | G25: 1.68057 | H25: 0.254 | X25: Similar to a canoe, but also similar to a bite in early formation | AI25: 0
A26: 25 | B26: 53 | C26: revised | D26: 1.743 | E26: 0.893 | F26: 1.951847704 | G26: 1.556499 | X26: Discontinuous, edges on the ends of the cell are raised (not dividing) | AI26: 0
A27: 26 | B27: 40 | D27: 1.103 | E27: 0.667 | F27: 1.653673163 | G27: 0.735701 | N27: 1 | AI27: 0
A28: 27 | B28: 75 | D28: 0.939 | E28: 0.881 | F28: 1.065834279 | G28: 0.827259 | H28: 0.22 | N28: 1 | AF28: 0.646 | AG28: 0.587 | AH28: 0.028 | AI28: 10.77577192
A29: 28 | B29: 46 | D29: 1.838 | E29: 0.832 | F29: 2.209134615 | G29: 1.529216 | X29: Discontinuous, divot in the middle of the cell (not large enough for the cell to be classified as a donut) | AI29: 0
A30: 29 | B30: 91 | D30: 0.913 | E30: 0.845 | F30: 1.080473373 | G30: 0.771485 | N30: 1 | AI30: 0
A31: 30 | B31: 22 | D31: 1.455 | E31: 0.932 | F31: 1.561158798 | G31: 1.35606 | H31: 0.222 | S31: 1 | X31: Discontinuous, rough surface with divots and indents | AI31: 0
A32: 31 | B32: 83 | D32: 2.29 | E32: 0.884 | F32: 2.590497738 | G32: 2.02436 | L32: 1 | M32: 2 | AI32: 0
A33: 32 | B33: 1 | D33: 2.119 | E33: 0.881 | F33: 2.405221339 | G33: 1.866839 | N33: 1 | Y33: 1 | Z33: 0.823 | AI33: 0
A34: 33 | B34: 32 | D34: 1.592 | E34: 0.999 | F34: 1.593593594 | G34: 1.590408 | H34: 0.19 | N34: 1 | AF34: 1.413 | AG34: 0.647 | AH34: 0.017 | AI34: 25.97910671
A35: 34 | B35: 85 | D35: 1.694 | E35: 0.769 | F35: 2.202860858 | G35: 1.302686 | N35: 1 | AI35: 0
A36: 35 | B36: 22 | D36: 2.522 | E36: 0.94 | F36: 2.682978723 | G36: 2.37068 | S36: 1 | X36: Nearly smooth, indents present | AI36: 0
A37: 36 | B37: 63 | D37: 1.833 | E37: 0.874 | F37: 2.097254005 | G37: 1.602042 | H37: 0.174 | X37: Discontinuous, many indents | AI37: 0
A38: 37 | B38: 8 | D38: 2.159 | E38: 1.003 | F38: 2.152542373 | G38: 2.165477 | N38: 1 | AI38: 0
A39: 38 | B39: 3 | D39: 1.84 | E39: 0.966 | F39: 1.904761905 | G39: 1.77744 | X39: Similar to a canoe but depth is discontinuous | AI39: 0
A40: 39 | B40: 12 | D40: 4.282 | E40: 0.881 | F40: 4.860385925 | G40: 3.772442 | H40: 0.225 | T40: 1 | AI40: 0
A41: 40 | B41: 39 | D41: 0.934 | E41: 0.663 | F41: 1.408748115 | G41: 0.619242 | N41: 1 | AI41: 0
A42: 41 | B42: 53 | D42: 1.861 | E42: 0.833 | F42: 2.234093637 | G42: 1.550213 | N42: 1 | AI42: 0
A43: 42 | B43: 60 | D43: 1.183 | E43: 0.956 | F43: 1.237447699 | G43: 1.130948 | H43: 0.185 | S43: 1 | X43: Discontinuous, divots present | AI43: 0
A44: 43 | B44: 19 | D44: 1.328 | E44: 1.034 | F44: 1.284332689 | G44: 1.373152 | N44: 1 | AI44: 0
A45: 44 | B45: 17 | D45: 3.531 | E45: 0.996 | F45: 3.545180723 | G45: 3.516876 | N45: 1 | Y45: 1 | Z45: 0.563 | AI45: 0
A46: 45 | B46: 11 | D46: 1.646 | E46: 0.885 | F46: 1.859887006 | G46: 1.45671 | H46: 0.191 | S46: 1 | X46: Similar to a canoe but discontinuous | AI46: 0
A47: 46 | B47: 64 | D47: 2.74 | E47: 1.075 | F47: 2.548837209 | G47: 2.9455 | X47: Similar to a canoe but discontinuous | AI47: 0
A48: 47 | B48: 4 | D48: 2.099 | E48: 0.996 | F48: 2.107429719 | G48: 2.090604 | S48: 1 | AI48: 0
A49: 48 | B49: 55 | D49: 1.178 | E49: 0.709 | F49: 1.661495063 | G49: 0.835202 | H49: 0.207 | N49: 1 | AF49: 0.826 | AG49: 0.479 | AH49: 0.034 | AI49: 11.24328791
A50: 49 | B50: 49 | D50: 1.832 | E50: 0.887 | F50: 2.065388952 | G50: 1.624984 | N50: 1 | AI50: 0
A51: 50 | B51: 22 | D51: 2.198 | E51: 1.04 | F51: 2.113461538 | G51: 2.28592 | X51: Discontinuous, indents and divots present | AI51: 0
A52: 51 | B52: 85 | AI52: 0
A53: 52 | B53: 91
A54: 53 | B54: 27
A55: 54 | B55: 22
A56: 55 | B56: 29
A57: 56 | B57: 27
A58: 57 | B58: 68
A59: 58 | B59: 83
A60: 59 | B60: 9
A61: 60 | B61: 69
A62: 61 | B62: 44
A63: 62 | B63: 6
A64: Count | D64: =COUNT(D2:D63) -> 49 | E64: =COUNT(E2:E63) -> 49 | F64: =COUNT(F2:F63) -> 49 | G64: =COUNT(G2:G63) -> 49 | H64: =COUNT(H2:H63) -> 16 | I64: Instances | K64: =COUNT(K2:K63) -> 0 | L64: 2 | M64: 2 | N64: 19 | S64: 9 | T64: 2 | X64: 0 | Y64: 2 | Z64: =COUNT(Z2:Z63) -> 2 | AB64: =COUNT(AB2:AB63) -> 0 | AC64: 0 | AD64: 0 | AE64: 1 | AF64: 5 | AG64: 5 | AH64: 5 | AI64: 51 | AJ64: 0 | AK64: 0 | AL64: 0 | AM64: 1
A65: AVG | D65: =AVERAGE(D2:D63) -> 1.970142857 | E65: =AVERAGE(E2:E63) -> 0.8606938776 | F65: =AVERAGE(F2:F63) -> 2.310545805 | G65: =AVERAGE(G2:G63) -> 1.722485429 | H65: =AVERAGE(H2:H63) -> 0.2125 | I65: Fraction | K65: =K64/$D$64 -> 0 | L65: 0.04081632653 | M65: 0.04081632653 | N65: 0.387755102 | S65: 0.1836734694 | T65: 0.04081632653 | X65: 0 | Y65: 0.04081632653 | Z65: =AVERAGE(Z2:Z63) -> 0.693 | AB65: =AVERAGE(AB2:AB63) ->  | AE65: 0 | AF65: 1.1818 | AG65: 0.5072 | AH65: 0.0314 | AI65: 1.654906276 | AM65: 0
A66: STDEV | D66: =STDEV(D2:D63) -> 0.7623860024 | E66: =STDEV(E2:E63) -> 0.1272190048 | F66: =STDEV(F2:F63) -> 0.8750500234 | G66: =STDEV(G2:G63) -> 0.8045815808 | H66: =STDEV(H2:H63) -> 0.02494794581 | I66: Number/Cell | M66: =SUM(M3:M63)/L$64 -> 2 | Z66: =STDEV(Z2:Z63) -> 0.1838477631 | AB66: =STDEV(AB2:AB63) ->  | AF66: 0.4693428384 | AG66: 0.1138736142 | AH66: 0.01163185282 | AI66: 5.507359558

Sheet H10_07291459
A1: Cell Number | B1: Number Sequence | C1: Omit reason | D1: Length | E1: Width | F1: L/W | G1: Length x Width | H1: Elevation | K1: Bite | L1: End Divot | M1: #Divots | N1: Canoe | S1: Smooth | T1: Filamented | X1: comment | Y1: Dividing | Z1: Waist | AB1: divot length | AC1: divot width | AD1: divot depth | AE1: % surface divot | AF1: canoe length | AG1: canoe width | AH1: canoe depth | AI1: % surface canoe | AJ1: bite length | AK1: bite width | AL1: bite depth | AM1: %surface bite
A2: 1 | B2: 78 | D2: 2.119 | E2: 0.825 | F2: =D2/E2 -> 2.568484848 | G2: =D2*E2 -> 1.748175
A3: 2
A4: =1+A3 -> 3 | B4: 42 | D4: 2.951 | E4: 1.368 | F4: 2.157163743 | G4: 4.036968 | H4: 0.226 | X4: Deep, circular, bite-like features | AJ4: 0.597 | AK4: 0.573 | AL4: 0.109 | AM4: =SUM((AJ4*AK4)/($D2/$E2)*100) -> 13.31839665
A5: =1+A4 -> 4 | B5: 57 | D5: 1.248 | E5: 0.966 | F5: 1.291925466 | G5: 1.205568 | N5: 1
A6: 5 | B6: 85 | D6: 0.855 | E6: 0.83 | F6: 1.030120482 | G6: 0.70965 | N6: 1
A7: 6 | B7: 7 | D7: 2.233 | E7: 0.763 | F7: 2.926605505 | G7: 1.703779 | H7: 0.233 | N7: 1 | Y7: 1 | Z7: 0.705 | AF7: 1.822 | AG7: 0.411 | AH7: 0.02 | AI7: =SUM((AF7*AG7)/($D5/$E5)*100) -> 57.96325096
A8: 7 | B8: 19 | D8: 1.774 | E8: 0.938 | F8: 1.891257996 | G8: 1.664012 | N8: 1
A9: 8 | B9: 11 | D9: 2.438 | E9: 0.917 | F9: 2.658669575 | G9: 2.235646
A10: 9 | B10: 66 | D10: 1.105 | E10: 0.701 | F10: 1.576319544 | G10: 0.774605 | H10: 0.265 | N10: 1 | AF10: 0.675 | AG10: 0.255 | AH10: 0.011 | AI10: =SUM((AF10*AG10)/($D8/$E8)*100) -> 9.101085118
A11: 10 | B11: 84 | D11: 1.972 | E11: 0.835 | F11: 2.361676647 | G11: 1.64662 | N11: 1
A12: 11 | B12: 64 | D12: 1.506 | E12: 0.832 | F12: 1.810096154 | G12: 1.252992 | N12: 1
A13: 12 | B13: 86 | D13: 1.183 | E13: 0.811 | F13: 1.458692972 | G13: 0.959413 | H13: 0.246 | S13: 1 | X13: half-canoe
A14: 13 | B14: 37 | D14: 2.561 | E14: 1.094 | F14: 2.34095064 | G14: 2.801734 | N14: 1
A15: 14 | B15: 69 | C15: overlapped
A16: 15 | B16: 36 | C16: overlapped
A17: 16 | B17: 15 | D17: 1.565 | E17: 0.995 | F17: =D17/E17 -> 1.572864322 | G17: =D17*E17 -> 1.557175 | N17: 1
A18: 17 | B18: 7 | D18: 1.868 | E18: 1.029 | F18: =D18/E18 -> 1.815354713 | G18: =D18*E18 -> 1.922172 | H18: 0.197 | N18: 1 | AF18: 1.326 | AG18: 0.303 | AH18: 0.015 | AI18: =SUM((AF18*AG18)/($D18/$E18)*100) -> 22.13220353
A19: 18 | B19: 62 | D19: 2.178 | E19: 0.995 | F19: =D19/E19 -> 2.188944724 | G19: =D19*E19 -> 2.16711 | S19: 1 | X19: indentations
A20: 19 | B20: 94 | C20: overlapped
A21: 20 | B21: 70 | D21: 2.408 | E21: 1.057 | F21: =D21/E21 -> 2.278145695 | G21: =D21*E21 -> 2.545256
A22: 21 | B22: 80 | D22: 4.054 | E22: 1.073 | F22: 3.778191985 | G22: =D22*E22 -> 4.349942 | H22: 0.207 | Y22: 1 | Z22: 0.828 | AF22: 3.408 | AG22: 0.537 | AH22: 0.012 | AI22: =SUM((AF22*AG22)/($D22/$E22)*100) -> 48.43840671
A23: 22 | B23: 72 | D23: 2.002 | E23: 1.001 | F23: 2 | G23: =D23*E23 -> 2.004002 | X23: dividing?
A24: 23 | B24: 66 | D24: 2.048 | E24: 0.84 | F24: 2.438095238 | G24: =D24*E24 -> 1.72032 | N24: 1
A25: 24 | B25: 66 | D25: 1.123 | E25: 0.803 | F25: 1.398505604 | G25: 0.901769 | H25: 0.255 | X25: center trench
A26: 25 | B26: 40 | D26: 2.436 | E26: 1.014 | F26: 2.402366864 | G26: 2.470104 | N26: 1 | Y26: 1 | Z26: 0.727
A27: 26 | B27: 60 | D27: 2.345 | E27: 1.021 | F27: 2.296767875 | G27: 2.394245
A28: 27 | B28: 8 | D28: 1.328 | E28: 0.855 | F28: 1.553216374 | G28: 1.13544 | X28: half canoe
A29: 28 | B29: 16 | D29: 1.443 | E29: 0.959 | F29: 1.504692388 | G29: 1.383837 | H29: 0.203 | N29: 1 | AF29: 0.893 | AG29: 0.479 | AH29: 0.04 | AI29: =SUM((AF29*AG29)/($D29/$E29)*100) -> 28.42753798
A30: 29 | B30: 33 | C30: revised | D30: 4.802 | E30: 0.997 | F30: 4.816449348 | G30: 4.787594 | N30: 1 | T30: 1 | X30: Not dividing, filamented and waist is lower than width | Z30: 0.572
A31: 30 | B31: 19 | C31: revised | D31: 2.267 | E31: 1.079 | F31: 2.101019462 | G31: 2.446093 | X31: Not dividing, two separate cells, different shapes
A32: 31 | B32: 31 | D32: 2.644 | E32: 0.999 | F32: 2.646646647 | G32: 2.641356 | H32: 0.287
A33: 32 | B33: 87 | C33: overlapped
A34: 33 | B34: 3 | D34: 2.289 | E34: 0.861 | F34: =D34/E34 -> 2.658536585 | G34: =D34*E34 -> 1.970829 | S34: 1 | X34: indentations
A35: 34 | B35: 87 | D35: 2.334 | E35: 0.869 | F35: 2.6858458 | G35: 2.028246
A36: 35 | B36: 36 | D36: 2.037 | E36: 0.84 | F36: 2.425 | G36: 1.71108 | H36: 0.233
A37: 36 | B37: 21 | D37: 1.909 | E37: 0.829 | F37: 2.302774427 | G37: 1.582561
A38: 37 | B38: 49 | D38: 1.452 | E38: 0.593 | F38: 2.44856661 | G38: 0.861036
A39: 38 | B39: 98 | D39: 1.48 | E39: 0.938 | F39: 1.57782516 | G39: 1.38824 | H39: 0.254 | N39: 1 | AF39: 0.843 | AG39: 0.366 | AH39: 0.033 | AI39: =SUM((AF39*AG39)/($D39/$E39)*100) -> 19.55463811
A40: 39 | B40: 17 | D40: 2.1 | E40: 0.656 | F40: 3.201219512 | G40: 1.3776
A41: 40 | B41: 49 | D41: 1.908 | E41: 0.919 | F41: 2.07616975 | G41: 1.753452 | S41: 1
A42: 41 | B42: 32 | D42: 1.134 | E42: 0.94 | F42: 1.206382979 | G42: 1.06596 | H42: 0.205 | N42: 1 | AF42: 0.827 | AG42: 0.664 | AH42: 0.037 | AI42: =SUM((AF42*AG42)/($D42/$E42)*100) -> 45.51854674
A43: 42 | B43: 86 | D43: 3.277 | E43: 1.034 | F43: =D43/E43 -> 3.169245648 | G43: =D43*E43 -> 3.388418 | N43: 1 | Y43: 1 | Z43: 0.896
A44: 43 | B44: 71 | D44: 2.572 | E44: 0.919 | F44: 2.798694233 | G44: 2.363668 | X44: canoe+sink
A45: 44 | B45: 85 | D45: 2.066 | E45: 1.061 | F45: 1.947219604 | G45: 2.192026 | H45: 0.309 | S45: 1
A46: 45 | B46: 48 | C46: revised | D46: 2.312 | E46: 0.883 | F46: 2.618346546 | G46: 2.041496 | X46: Not dividing more than 90%, pinching not in middle, divoted canoe | Z46: 0.824
A47: 46 | B47: 32 | D47: 1.116 | E47: 0.599 | F47: 1.863105175 | G47: 0.668484 | S47: 1
A48: 47 | B48: 27 | D48: 0.971 | E48: 0.561 | F48: 1.73083779 | G48: 0.544731 | H48: 0.274 | S48: 1
A49: 48 | B49: 44 | D49: 1.842 | E49: 0.946 | F49: 1.947145877 | G49: 1.742532 | N49: 1
A50: 49 | B50: 10 | D50: 1.727 | E50: 0.985 | F50: 1.753299492 | G50: 1.701095 | X50: rough bottom
A51: 50 | B51: 54 | D51: 1.764 | E51: 1.115 | F51: 1.58206278 | G51: 1.96686 | H51: 0.194
A52: 51 | B52: 84 | D52: 2.055 | E52: 0.763 | F52: 2.693315858 | G52: 1.567965
A53: 52 | B53: 47 | D53: 2.416 | E53: 0.91 | F53: 2.654945055 | G53: 2.19856 | X53: lumpy
A54: 53 | B54: 95 | D54: 1.162 | E54: 0.996 | F54: 1.166666667 | G54: 1.157352 | H54: 0.239 | S54: 1
A55: 54 | B55: 14 | D55: 1.41 | E55: 1.01 | F55: 1.396039604 | G55: 1.4241 | N55: 1
A56: 55 | B56: 43
A57: 56 | B57: 38
A58: 57 | B58: 86
A59: 58 | B59: 52
A60: 59 | B60: 72
A61: 60 | B61: 32
C64: Count | D64: =COUNT(D2:D61) -> 49 | E64: =COUNT(E2:E61) -> 49 | F64: =COUNT(F2:F61) -> 49 | G64: =COUNT(G2:G61) -> 49 | H64: =COUNT(H1:H61) -> 16 | I64: Instances | K64: =COUNT(K2:K63) -> 0 | L64: 0 | M64: 0 | N64: 19 | S64: 8 | T64: 1 | X64: 0 | Y64: 4 | Z64: =COUNT(Z2:Z63) -> 6 | AB64: =COUNT(AB43:AB61) -> 0 | AC64: 0 | AD64: 0 | AE64: 0 | AF64: 0 | AG64: 0 | AH64: 0 | AI64: 0 | AJ64: =COUNT(AJ2:AJ61) -> 1 | AK64: =COUNT(AK2:AK61) -> 1 | AL64: =COUNT(AL2:AL61) -> 1 | AM64: =COUNT(AM2:AM61) -> 1
C65: Average | D65: =AVERAGE(D43:D61) -> 1.899230769 | E65: =AVERAGE(E43:E61) -> 0.9063076923 | F65: =AVERAGE(F43:F61) -> 2.101609564 | G65: =AVERAGE(G43:G61) -> 1.765945154 | H65: =AVERAGE(H1:H61) -> 0.2391875 | I65: Fraction | K65: =K64/$D$64 -> 0 | L65: 0 | M65: 0 | N65: 0.387755102 | S65: 0.1632653061 | T65: 0.02040816327 | X65: 0 | Y65: 0.08163265306 | Z65: =AVERAGE(Z2:Z63) -> 0.7586666667 | AB65: =AVERAGE(AB43:AB61) ->  | AJ65: =AVERAGE(AJ2:AJ61) -> 0.597 | AK65: =AVERAGE(AK2:AK61) -> 0.573 | AL65: =AVERAGE(AL2:AL61) -> 0.109 | AM65: =AVERAGE(AM2:AM61) -> 13.31839665
C66: Standard Dev. | D66: =STDEV(D43:D60) -> 0.6550773687 | E66: =STDEV(E43:E60) -> 0.1696277221 | F66: =STDEV(F43:F60) -> 0.6160583546 | G66: =STDEV(G43:G60) -> 0.7473098902 | H66: =STDEV(H1:H60) -> 0.0338037843 | I66: Number/Cell | M66: =SUM(M3:M63)/L$64 ->  | Z66: =STDEV(Z2:Z63) -> 0.1154671671 | AB66: =STDEV(AB43:AB60) ->  | AJ66: =STDEV(AJ2:AJ60) ->  | AK66: =STDEV(AK2:AK60) ->  | AL66: =STDEV(AL2:AL60) ->  | AM66: =STDEV(AM2:AM60) -> 

Sheet H11_03291607
A1: Cell Number | B1: Number Sequence | C1: Comment | D1: Length (µm) | E1: Width (µm) | F1: Length/Width | G1: Width x Length | H1: Elevation | K1: Bite | L1: End Divot | M1: #Divots | N1: Canoe | S1: Smooth | T1: Filamented | X1: Comment | Y1: Dividing? | Z1: Waist | AB1: Divot Length | AC1: Divot Width | AD1: Divot Depth | AE1: %Surface Coverage | AF1: Canoe Length | AG1: Canoe Width | AH1: Canoe Depth | AI1: %Surface Coverage | AJ1: Bite Length | AK1: Bite Width | AL1: Bite Depth | AM1: %Surface Coverage
A2: =1 -> 1 | B2: 66 | D2: 1.018 | E2: 0.801 | F2: =D2/E2 -> 1.270911361 | G2: =D2*E2 -> 0.815418 | X2: Similar to a canoe but one end is not raised so canoe continuous all the way to end of cell | AE2: =(AB2*AC2)/($D$2*$E$2)*100 -> 0 | AI2: =(AF2*AG2)/($D$2*$E$2)*100 -> 0 | AM2: =(AJ2*AK2)/($D$2*$E$2)*100 -> 0
A3: =A2+1 -> 2 | B3: 23 | D3: 1.177 | E3: 0.835 | F3: =D3/E3 -> 1.409580838 | G3: =D3*E3 -> 0.982795 | S3: 1 | AI3: =(AF3*AG3)/($D$2*$E$2)*100 -> 0 | AM3: =(AJ3*AK3)/($D$2*$E$2)*100 -> 0
A4: =A3+1 -> 3 | B4: 67 | C4: revised | D4: 1.501 | E4: 0.866 | F4: 1.733256351 | G4: 1.299866 | H4: 0.333 | K4: 1 | N4: 1 | X4: Deep canoe (.171 um) | AI4: 0 | AM4: 0
A5: 4 | B5: 87 | D5: 1.529 | E5: 0.883 | F5: 1.731596829 | G5: 1.350107 | K5: 1 | X5: Discontinuous, an indent near the center of the slanted cell (more than 30 um) | AI5: 0 | AM5: 0
A6: 5 | B6: 15 | D6: 0.89 | E6: 0.833 | F6: 1.068427371 | G6: 0.74137 | X6: Similar to cell #1 | AI6: 0 | AM6: 0
A7: 6 | B7: 76 | D7: 0.943 | E7: 0.65 | F7: 1.450769231 | G7: 0.61295 | H7: 0.259 | S7: 1 | X7: Similar to cell #1 | AI7: 0 | AM7: 0
A8: 7 | B8: 86 | D8: 2.668 | E8: 1.011 | F8: 2.638971316 | G8: 2.697348 | X8: Discontinuous, an indent near the middle of one of the halves, slanted | Y8: 1 | Z8: 0.825 | AI8: 0 | AM8: 0
A9: 8 | B9: 82 | D9: 0.94 | E9: 0.881 | F9: 1.066969353 | G9: 0.82814 | X9: Similar to cell #1 | AI9: 0 | AM9: 0
A10: 9 | B10: 42 | D10: 1.296 | E10: 0.831 | F10: 1.559566787 | G10: 1.076976 | H10: 0.346 | X10: Discontinuous, slanted, | AI10: 0 | AM10: 0
A11: 10 | B11: 16 | D11: 2.141 | E11: 0.659 | F11: 3.248861912 | G11: 1.410919 | N11: 1 | AI11: 0 | AM11: 0
A12: 11 | B12: 88 | D12: 1.764 | E12: 1.115 | F12: 1.58206278 | G12: 1.96686 | K12: 1 | AI12: 0 | AM12: 0
A13: 12 | B13: 27 | C13: revised | D13: 1.928 | E13: 0.837 | F13: 2.303464755 | G13: 1.613736 | H13: 0.303 | X13: Slanted donut-cell | AI13: 0 | AM13: 0
A14: 13 | B14: 3 | D14: 0.802 | E14: 0.402 | F14: 1.995024876 | G14: 0.322404 | S14: 1 | AI14: 0 | AM14: 0
A15: 14 | B15: 78 | D15: 2.306 | E15: 0.883 | F15: 2.611551529 | G15: 2.036198 | N15: 1 | AI15: 0 | AM15: 0
A16: 15 | B16: 88 | D16: 0.962 | E16: 0.769 | F16: 1.250975293 | G16: 0.739778 | H16: 0.29 | N16: 1 | AF16: 0.472 | AG16: 0.401 | AH16: 0.039 | AI16: 23.21165341 | AM16: 0
A17: 16 | B17: 93 | D17: 0.887 | E17: 0.696 | F17: 1.274425287 | G17: 0.617352 | X17: Slanted donut-cell | AI17: 0 | AM17: 0
A18: 17 | B18: 87 | D18: 3.213 | E18: 1.114 | F18: 2.884201077 | G18: 3.579282 | N18: 1 | Y18: 1 | Z18: 0.936 | AI18: 0 | AM18: 0
A19: 18 | B19: 69 | D19: 1.331 | E19: 0.819 | F19: 1.625152625 | G19: 1.090089 | H19: 0.284 | K19: 1 | AI19: 0 | AJ19: 0.476 | AK19: 0.641 | AL19: 0.321 | AM19: 37.41835476
A20: 19 | B20: 16 | D20: 0.932 | E20: 0.928 | F20: 1.004310345 | G20: 0.864896 | S20: 1 | X20: Similar to cell #1 | AI20: 0 | AM20: 0
A21: 20 | B21: 1 | D21: 1.057 | E21: 0.881 | F21: 1.199772985 | G21: 0.931217 | X21: Similar to cell #1 | AI21: 0 | AM21: 0
A22: 21 | B22: 54 | D22: 1.174 | E22: 1.062 | F22: 1.105461394 | G22: 1.246788 | H22: 0.247 | N22: 1 | AF22: 0.776 | AG22: 0.655 | AH22: 0.059 | AI22: 62.33367426 | AM22: 0
A23: 22 | B23: 99 | D23: 1.116 | E23: 0.822 | F23: 1.357664234 | G23: 0.917352 | X23: Similar to cell #1, slanted | AI23: 0 | AM23: 0
A24: 23 | B24: 32 | D24: 0.767 | E24: 0.707 | F24: 1.084865629 | G24: 0.542269 | S24: 1 | AI24: 0 | AM24: 0
A25: 24 | B25: 12 | D25: 0.813 | E25: 0.699 | F25: 1.163090129 | G25: 0.568287 | H25: 0.343 | S25: 1 | AI25: 0 | AM25: 0
A26: 25 | B26: 15 | D26: 1.911 | E26: 0.871 | F26: 2.194029851 | G26: 1.664481 | N26: 1 | AI26: 0 | AM26: 0
A27: 26 | B27: 54 | D27: 1.199 | E27: 1.058 | F27: 1.133270321 | G27: 1.268542 | S27: 1 | X27: Discontinuous, slanted | AI27: 0 | AM27: 0
A28: 27 | B28: 68 | C28: revised | D28: 1.345 | E28: 0.896 | F28: 1.501116071 | G28: 1.20512 | H28: 0.257 | N28: 1 | AI28: 0 | AM28: 0
A29: 28 | B29: 95 | D29: 0.853 | E29: 0.762 | F29: 1.119422572 | G29: 0.649986 | S29: 1 | X29: Discontinuous, slanted, nonsymmetrical indents along surface | AI29: 0 | AM29: 0
A30: 29 | B30: 91 | C30: revised | D30: 0.864 | E30: 0.723 | F30: 1.195020747 | G30: 0.624672 | N30: 1 | AI30: 0 | AM30: 0
A31: 30 | B31: 98 | D31: 1.124 | E31: 0.887 | F31: 1.267192785 | G31: 0.996988 | H31: 0.291 | N31: 1 | AF31: 0.769 | AG31: 0.592 | AH31: 0.036 | AI31: 55.83001602 | AM31: 0
A32: 31 | B32: 89 | C32: revised | D32: 1.186 | E32: 1.04 | F32: 1.140384615 | G32: 1.23344 | N32: 1 | AI32: 0 | AM32: 0
A33: 32 | B33: 64 | D33: 1.542 | E33: 0.845 | F33: 1.824852071 | G33: 1.30299 | K33: 1 | AI33: 0 | AM33: 0
A34: 33 | B34: 76 | C34: revised | D34: 0.945 | E34: 0.887 | F34: 1.065388952 | G34: 0.838215 | H34: 0.257 | N34: 1 | X34: Deep canoe (.082 um)--indent not completely centered | AI34: 0 | AM34: 0
A35: 34 | B35: 96 | D35: 0.928 | E35: 0.809 | F35: 1.147095179 | G35: 0.750752 | X35: Similar to cell #1 | AI35: 0 | AM35: 0
A36: 35 | B36: 64 | D36: 1.417 | E36: 0.91 | F36: 1.557142857 | G36: 1.28947 | N36: 1 | AI36: 0 | AM36: 0
A37: 36 | B37: 0 | D37: 1.006 | E37: 0.869 | F37: 1.157652474 | G37: 0.874214 | H37: 0.311 | X37: Similar to a donut-cell but one side has a narrow valley, so the indent isn't contained just in the center | AI37: 0 | AM37: 0
A38: 37 | B38: 57 | D38: 1.211 | E38: 0.762 | F38: 1.589238845 | G38: 0.922782 | S38: 1 | AI38: 0 | AM38: 0
A39: 38 | B39: 3 | C39: revised | D39: 1.15 | E39: 1.026 | F39: 1.1208577 | G39: 1.1799 | N39: 1 | AI39: 0 | AM39: 0
A40: 39 | B40: 12 | D40: 1.464 | E40: 0.714 | F40: 2.050420168 | G40: 1.045296 | H40: 0.271 | S40: 1 | AI40: 0 | AM40: 0
A41: 40 | B41: 42 | D41: 2.144 | E41: 0.967 | F41: 2.217166494 | G41: 2.073248 | S41: 1 | Y41: 1 | Z41: 0.898 | AI41: 0 | AM41: 0
A42: 41 | B42: 14 | D42: 1.432 | E42: 0.823 | F42: 1.739975699 | G42: 1.178536 | K42: 1 | AI42: 0 | AM42: 0
A43: 42 | B43: 81 | D43: 3.19 | E43: 0.837 | F43: 3.811230585 | G43: 2.67003 | H43: 0.26 | N43: 1 | Y43: 1 | Z43: 0.808 | AI43: 0 | AM43: 0
A44: 43 | B44: 65 | D44: 0.89 | E44: 0.838 | F44: 1.062052506 | G44: 0.74582 | S44: 1 | X44: Similar to cell #1 | AI44: 0 | AM44: 0
A45: 44 | B45: 11 | D45: 0.985 | E45: 0.862 | F45: 1.142691415 | G45: 0.84907 | X45: Discontinuous, slanted, similar to a donut-cell with an indent near the middle | AI45: 0 | AM45: 0
A46: 45 | B46: 54 | D46: 1.73 | E46: 0.788 | F46: 2.195431472 | G46: 1.36324 | H46: 0.351 | S46: 1 | X46: Discontinuous, slanted, randomly place, nonsymmetrical indents
A47: 46 | B47: 81 | D47: 1.003 | E47: 0.898 | F47: 1.116926503 | G47: 0.900694 | X47: Similar to cell #1
A48: 47 | B48: 43 | D48: 0.863 | E48: 0.794 | F48: 1.086901763 | G48: 0.685222 | S48: 1
A49: 48 | B49: 34 | D49: 0.95 | E49: 0.642 | F49: 1.479750779 | G49: 0.6099 | H49: 0.313 | X49: Similar to cell #1
A50: 49 | B50: 54 | D50: 0.959 | E50: 0.936 | F50: 1.02457265 | G50: 0.897624 | S50: 1
A51: 50 | B51: 24 | D51: 0.977 | E51: 0.839 | F51: 1.164481526 | G51: 0.819703 | S51: 1
A52: 51 | B52: 84
A53: 52 | B53: 91
A54: 53 | B54: 98
A55: 54 | B55: 23
A56: 55 | B56: 38
A57: 56 | B57: 16
A58: 57 | B58: 61
A59: 58 | B59: 28
A60: 59 | B60: 94
A61: 60 | B61: 13
A62: 61 | B62: 94
A63: 62 | B63: 86
A64: Count | D64: =COUNT(D2:D63) -> 50 | E64: =COUNT(E2:E63) -> 50 | F64: =COUNT(F2:F63) -> 50 | G64: =COUNT(G2:G63) -> 50 | H64: =COUNT(H2:H63) -> 16 | I64: Instances | K64: =COUNT(K2:K63) -> 6 | L64: =COUNT(L2:L63) -> 0 | M64: =COUNT(M2:M63) -> 0 | N64: =COUNT(N2:N63) -> 15 | S64: =COUNT(S2:S63) -> 16 | T64: =COUNT(T2:T63) -> 0 | X64: =COUNT(X2:X63) -> 0 | Y64: =COUNT(Y2:Y63) -> 4 | Z64: =COUNT(Z2:Z63) -> 4 | AB64: =COUNT(AB2:AB63) -> 0 | AC64: 0 | AD64: 0 | AE64: 1 | AF64: 3 | AG64: 3 | AH64: 3 | AI64: 44 | AJ64: 1 | AK64: 1 | AL64: 1 | AM64: 44
A65: AVG | D65: =AVERAGE(D2:D63) -> 1.32846 | E65: =AVERAGE(E2:E63) -> 0.84534 | F65: =AVERAGE(F2:F63) -> 1.574504018 | G65: =AVERAGE(G2:G63) -> 1.14984664 | H65: =AVERAGE(H2:H63) -> 0.29475 | I65: Fraction | K65: =K64/$D$64 -> 0.12 | L65: =L64/$D$64 -> 0 | M65: =M64/$D$64 -> 0 | N65: =N64/$D$64 -> 0.3 | S65: =S64/$D$64 -> 0.32 | T65: =T64/$D$64 -> 0 | X65: =X64/$D$64 -> 0 | Y65: =Y64/$D$64 -> 0.08 | Z65: =AVERAGE(Z2:Z63) -> 0.86675 | AB65: =AVERAGE(AB2:AB63) ->  | AE65: 0 | AF65: 0.6723333333 | AG65: 0.5493333333 | AH65: 0.04466666667 | AI65: 3.213075993 | AJ65: 0.476 | AK65: 0.641 | AL65: 0.321 | AM65: 0.8504171536
A66: STDEV | D66: =STDEV(D2:D63) -> 0.5786614466 | E66: =STDEV(E2:E63) -> 0.1295515987 | F66: =STDEV(F2:F63) -> 0.622807871 | G66: =STDEV(G2:G63) -> 0.6114876324 | H66: =STDEV(H2:H63) -> 0.03519374945 | I66: Number/Cell | M66: =SUM(M3:M63)/L$64 ->  | Z66: =STDEV(Z2:Z63) -> 0.06046142021 | AB66: =STDEV(AB2:AB63) ->  | AF66: 0.1735290562 | AG66: 0.1322661458 | AH66: 0.01250333289 | AI66: 12.83799663 | AM66: 5.641029227

Sheet H11_03291533
A1: Cell Number | B1: Number Sequence | C1: Comment | D1: Length (µm) | E1: Width (µm) | F1: Length/Width | G1: Width x Length | H1: Elevation | K1: Bite | L1: End Divot | M1: #Divots | N1: Canoe | S1: Smooth | T1: Filamented | X1: Comment | Y1: Dividing? | Z1: waist | AB1: Divot Length | AC1: Divot Width | AD1: Divot Depth | AE1: %Surface Coverage | AF1: Canoe Length | AG1: Canoe Width | AH1: Canoe Depth | AI1: %Surface Coverage | AJ1: Bite Length | AK1: Bite Width | AL1: Bite Depth | AM1: %Surface Coverage
A2: =1 -> 1 | B2: 92 | D2: 2.777 | E2: 0.974 | F2: =D2/E2 -> 2.851129363 | G2: =D2*E2 -> 2.704798 | N2: 1 | AE2: =(AB2*AC2)/($D$2*$E$2)*100 -> 0 | AI2: =(AF2*AG2)/($D$2*$E$2)*100 -> 0 | AM2: =(AJ2*AK2)/($D$2*$E$2)*100 -> 0
A3: =A2+1 -> 2 | B3: 69 | D3: 1.132 | E3: 0.913 | F3: =D3/E3 -> 1.239868565 | G3: =D3*E3 -> 1.033516 | N3: 1 | AI3: =(AF3*AG3)/($D$2*$E$2)*100 -> 0
A4: =A3+1 -> 3 | B4: 32 | D4: 1.012 | E4: 0.942 | F4: 1.074309979 | G4: 0.953304 | H4: 0.291 | N4: 1 | AF4: 0.632 | AG4: 0.503 | AH4: 0.05 | AI4: 11.75304034
A5: 4 | B5: 65 | C5: Suspected Entry Error | AI5: 0
A6: 5 | B6: 55 | D6: 1.292 | E6: 0.999 | F6: 1.293293293 | G6: 1.290708 | N6: 1 | AI6: 0
A7: 6 | B7: 89 | C7: revised | D7: 2.541 | E7: 0.995 | F7: 2.553768844 | G7: 2.528295 | H7: 0.289 | N7: 1 | X7: Not dividing, more than 90% | Z7: 0.977 | AF7: 2.033 | AG7: 0.622 | AH7: 0.051 | AI7: 46.75121765
A8: 7 | B8: 78 | D8: 1.106 | E8: 0.967 | F8: 1.143743537 | G8: 1.069502 | N8: 1 | AI8: 0
A9: 8 | B9: 39 | D9: 1.313 | E9: 1.022 | F9: 1.284735812 | G9: 1.341886 | N9: 1 | AI9: 0
A10: 9 | B10: 24 | D10: 2.846 | E10: 1.127 | F10: 2.525288376 | G10: 3.207442 | H10: 0.261 | N10: 1 | Y10: 1 | Z10: 0.696 | AF10: 2.582 | AG10: 0.563 | AH10: 0.057 | AI10: 53.74397644
A11: 10 | B11: 75 | D11: 1.175 | E11: 0.94 | F11: 1.25 | G11: 1.1045 | N11: 1 | AI11: 0
A12: 11 | B12: 58 | D12: 1.343 | E12: 1.052 | F12: 1.27661597 | G12: 1.412836 | N12: 1 | AI12: 0
A13: 12 | B13: 58 | D13: 2.641 | E13: 1.072 | F13: 2.463619403 | G13: 2.831152 | H13: 0.277 | N13: 1 | AF13: 2.15 | AG13: 0.504 | AH13: 0.061 | AI13: 40.06214142
A14: 13 | B14: 48 | D14: 1.594 | E14: 0.952 | F14: 1.674369748 | G14: 1.517488 | N14: 1 | AI14: 0
A15: 14 | B15: 12 | D15: 1.643 | E15: 0.917 | F15: 1.791712105 | G15: 1.506631 | N15: 1 | AI15: 0
A16: 15 | B16: 60 | D16: 1.353 | E16: 0.699 | F16: 1.935622318 | G16: 0.945747 | H16: 0.312 | N16: 1 | AF16: 0.977 | AG16: 0.35 | AH16: 0.044 | AI16: 12.64234889
A17: 16 | B17: 47 | D17: 1.762 | E17: 0.985 | F17: 1.788832487 | G17: 1.73557 | N17: 1 | AI17: 0
A18: 17 | B18: 42 | D18: 1.786 | E18: 0.95 | F18: 1.88 | G18: 1.6967 | N18: 1 | X18: There is a bridge-like structure in the middle and running perpendicular to the canoe | AI18: 0
A19: 18 | B19: 34 | D19: 1.081 | E19: 1.026 | F19: 1.053606238 | G19: 1.109106 | H19: 0.272 | N19: 1 | AF19: 0.841 | AG19: 0.603 | AH19: 0.059 | AI19: 18.74901564
A20: 19 | B20: 80 | D20: 2.068 | E20: 0.89 | F20: 2.323595506 | G20: 1.84052 | N20: 1 | AI20: 0
A21: 20 | B21: 88 | C21: revised | D21: 1.997 | E21: 0.998 | F21: 2.001002004 | G21: 1.993006 | N21: 1 | X21: Not dividing, more than 90% | Z21: 0.942 | AI21: 0
A22: 21 | B22: 88 | D22: 2.114 | E22: 0.998 | F22: 2.118236473 | G22: 2.109772 | H22: 0.27 | N22: 1 | Y22: 1 | Z22: 0.588 | AF22: 1.644 | AG22: 0.587 | AH22: 0.016 | AI22: 35.67837598
A23: 22 | B23: 19 | D23: 1.147 | E23: 0.835 | F23: 1.373652695 | G23: 0.957745 | N23: 1 | AI23: 0
A24: 23 | B24: 21 | D24: 1.949 | E24: 0.734 | F24: 2.655313351 | G24: 1.430566 | X24: Similar to a canoe but the feature is not bounded by both ends (walls are not raised at the ends) | AI24: 0
A25: 24 | B25: 78 | D25: 1.129 | E25: 0.883 | F25: 1.278595696 | G25: 0.996907 | H25: 0.333 | N25: 1 | X25: Possible debris on the cell | AF25: 0.653 | AG25: 0.53 | AH25: 0.028 | AI25: 12.79541023
A26: 25 | B26: 64 | D26: 1.795 | E26: 1.051 | F26: 1.707897241 | G26: 1.886545 | N26: 1 | X26: Similar to cell #17 | AI26: 0
A27: 26 | B27: 25 | D27: 1.832 | E27: 1.005 | F27: 1.822885572 | G27: 1.84116 | N27: 1 | AI27: 0
A28: 27 | B28: 62 | D28: 1.018 | E28: 0.835 | F28: 1.219161677 | G28: 0.85003 | H28: 0.357 | N28: 1 | AF28: 0.514 | AG28: 0.475 | AH28: 0.034 | AI28: 9.026552075
A29: 28 | B29: 93 | D29: 2.172 | E29: 0.939 | F29: 2.313099042 | G29: 2.039508 | N29: 1 | X29: Similar to cell #17 | AI29: 0
A30: 29 | B30: 64 | D30: 2.706 | E30: 0.941 | F30: 2.875664187 | G30: 2.546346 | N30: 1 | Y30: 1 | Z30: 0.726 | AI30: 0
A31: 30 | B31: 59 | D31: 1.267 | E31: 0.996 | F31: 1.272088353 | G31: 1.261932 | H31: 0.272 | N31: 1 | AF31: 1.141 | AG31: 0.581 | AH31: 0.077 | AI31: 24.50907609
A32: 31 | B32: 43 | D32: 1.38 | E32: 0.977 | F32: 1.412487206 | G32: 1.34826 | N32: 1 | AI32: 0
A33: 32 | B33: 0 | D33: 1.21 | E33: 0.724 | F33: 1.671270718 | G33: 0.87604 | N33: 1 | AI33: 0
A34: 33 | B34: 86 | C34: revised | D34: 9.121 | E34: 0.888 | F34: 10.2713964 | G34: 8.099448 | H34: 0.262 | X34: Not dividing, no central pinching, Still has the same, continuous feature of a canoe | AI34: 0
A35: 34 | B35: 71 | D35: 1.351 | E35: 1.057 | F35: 1.278145695 | G35: 1.428007 | N35: 1 | AI35: 0
A36: 35 | B36: 2 | D36: 1.182 | E36: 0.723 | F36: 1.634854772 | G36: 0.854586 | N36: 1 | AI36: 0
A37: 36 | B37: 47 | D37: 0.943 | E37: 0.885 | F37: 1.065536723 | G37: 0.834555 | H37: 0.269 | N37: 1 | AF37: 0.628 | AG37: 0.563 | AH37: 0.07 | AI37: 13.07173401
A38: 37 | B38: 14 | D38: 1.889 | E38: 0.881 | F38: 2.14415437 | G38: 1.664209 | N38: 1 | AI38: 0
A39: 38 | B39: 64 | D39: 2.024 | E39: 0.884 | F39: 2.28959276 | G39: 1.789216 | N39: 1 | AI39: 0
A40: 39 | B40: 91 | D40: 1.284 | E40: 0.964 | F40: 1.331950207 | G40: 1.237776 | H40: 0.254 | N40: 1 | AF40: 0.906 | AG40: 0.562 | AH40: 0.046 | AI40: 18.82476991
A41: 40 | B41: 92 | D41: 1.167 | E41: 0.801 | F41: 1.456928839 | G41: 0.934767 | N41: 1 | AI41: 0
A42: 41 | B42: 89 | D42: 1.504 | E42: 1.053 | F42: 1.428300095 | G42: 1.583712 | N42: 1 | AI42: 0
A43: 42 | B43: 7 | D43: 1.434 | E43: 0.892 | F43: 1.607623318 | G43: 1.279128 | H43: 0.275 | N43: 1 | AF43: 1.015 | AG43: 0.475 | AH43: 0.047 | AI43: 17.82480614
A44: 43 | B44: 21 | D44: 1.413 | E44: 0.78 | F44: 1.811538462 | G44: 1.10214 | N44: 1 | X44: Similar to cell #17 | AI44: 0
A45: 44 | B45: 49 | D45: 0.94 | E45: 0.887 | F45: 1.059751973 | G45: 0.83378 | N45: 1 | AI45: 0
A46: 45 | B46: 14 | C46: revised | D46: 1.151 | E46: 1.05 | F46: 1.096190476 | G46: 1.20855 | H46: 0.315 | N46: 1 | X46: Deep canoe (.094 um) | AI46: 0
A47: 46 | B47: 96 | D47: 2.326 | E47: 0.947 | F47: 2.456177402 | G47: 2.202722 | N47: 1 | AI47: 0
A48: 47 | B48: 17 | D48: 1.787 | E48: 1.005 | F48: 1.778109453 | G48: 1.795935 | N48: 1 | AI48: 0
A49: 48 | B49: 51 | D49: 1.579 | E49: 1.066 | F49: 1.481238274 | G49: 1.683214 | H49: 0.293 | N49: 1 | AF49: 1.005 | AG49: 0.497 | AH49: 0.049 | AI49: 18.46662856
A50: 49 | B50: 38 | D50: 2.267 | E50: 0.982 | F50: 2.308553971 | G50: 2.226194 | N50: 1 | AI50: 0
A51: 50 | B51: 37 | D51: 2.368 | E51: 1.014 | F51: 2.33530572 | G51: 2.401152 | N51: 1 | Y51: 1 | Z51: 0.869 | AI51: 0
A52: 51 | B52: 34 | AI52: 0
A53: 52 | B53: 12
A54: 53 | B54: 8
A55: 54 | B55: 45
A56: 55 | B56: 16
A57: 56 | B57: 94
A58: 57 | B58: 73
A59: 58 | B59: 16
A60: 59 | B60: 86
A61: 60 | B61: 85
A62: 61 | B62: 56
A63: 62 | B63: 4
A64: Count | D64: =COUNT(D2:D63) -> 49 | E64: =COUNT(E2:E63) -> 49 | F64: =COUNT(F2:F63) -> 49 | G64: =COUNT(G2:G63) -> 49 | H64: =COUNT(H2:H63) -> 16 | I64: Instances | K64: =COUNT(K2:K63) -> 0 | L64: =COUNT(L2:L63) -> 0 | M64: =COUNT(M2:M63) -> 0 | N64: =COUNT(N2:N63) -> 47 | S64: =COUNT(S2:S63) -> 0 | T64: =COUNT(T2:T63) -> 0 | X64: =COUNT(X2:X63) -> 0 | Y64: =COUNT(Y2:Y63) -> 4 | Z64: =COUNT(Z2:Z63) -> 6 | AB64: =COUNT(AB2:AB63) -> 0 | AC64: 0 | AD64: 0 | AE64: 1 | AF64: 14 | AG64: 14 | AH64: 14 | AI64: 51 | AJ64: 0 | AK64: 0 | AL64: 0 | AM64: 1
A65: AVG | D65: =AVERAGE(D2:D63) -> 1.794102041 | E65: =AVERAGE(E2:E63) -> 0.940755102 | F65: =AVERAGE(F2:F63) -> 1.917567646 | G65: =AVERAGE(G2:G63) -> 1.696461408 | H65: =AVERAGE(H2:H63) -> 0.287625 | I65: Fraction | K65: =K64/$D$64 -> 0 | L65: =L64/$D$64 -> 0 | M65: =M64/$D$64 -> 0 | N65: =N64/$D$64 -> 0.9591836735 | S65: =S64/$D$64 -> 0 | T65: =T64/$D$64 -> 0 | X65: =X64/$D$64 -> 0 | Y65: =Y64/$D$64 -> 0.08163265306 | Z65: =AVERAGE(Z2:Z63) -> 0.7996666667 | AB65: =AVERAGE(AB2:AB63) ->  | AE65: 0 | AF65: 1.194357143 | AG65: 0.5296428571 | AH65: 0.04921428571 | AI65: 6.547041047 | AM65: 0
A66: STDEV | D66: =STDEV(D2:D63) -> 1.192505839 | E66: =STDEV(E2:E63) -> 0.09892095553 | F66: =STDEV(F2:F63) -> 1.325533758 | G66: =STDEV(G2:G63) -> 1.101453232 | H66: =STDEV(H2:H63) -> 0.02848596145 | I66: Number/Cell | M66: =SUM(M3:M63)/L$64 ->  | Z66: =STDEV(Z2:Z63) -> 0.1532901388 | AB66: =STDEV(AB2:AB63) ->  | AF66: 0.6482754172 | AG66: 0.07004790355 | AH66: 0.01600566521 | AI66: 12.99640624

Sheet H11_08111422
A1: Cell Number | B1: Number Sequence | C1: Omit reason | D1: Length (mm) | E1: Width (mm) | F1: Length/Width | G1: Length x Width | H1: Elevation | K1: Bite | L1: End Divot | M1: #Divots | N1: Canoe | S1: Smooth | T1: Filamented | X1: comment | Y1: dividing | Z1: Waist | AB1: divot length 1 | AC1: divot width 1 | AD1: divot depth 1 | AE1: % surface divot | AF1: canoe length | AG1: canoe width | AH1: canoe depth | AI1: % surface canoe | AJ1: bite length | AK1: bite width | AL1: bite depth | AM1: %surface bite
A2: 1 | B2: 35 | D2: 1.638 | E2: 0.698 | F2: =D2/E2 -> 2.346704871 | G2: =D2*E2 -> 1.143324 | N2: 1
A3: =1+A2 -> 2 | B3: 82 | D3: 1.795 | E3: 0.606 | F3: =D3/E3 -> 2.962046205 | G3: =D3*E3 -> 1.08777
A4: =1+A3 -> 3 | B4: 85 | C4: blurry
A5: =1+A4 -> 4 | B5: 64 | D5: 2.508 | E5: 0.887 | F5: =D5/E5 -> 2.827508455 | G5: =D5*E5 -> 2.224596 | H5: 0.229 | X5: speckled with mini divots | AB5: 0.296 | AC5: 0.369 | AD5: 0.044 | AE5: =SUM((AB5*AC5)/(D5*E5)*100) -> 4.909835314
A6: =1+A5 -> 5 | B6: 74 | C6: blurry
A7: =1+A6 -> 6 | B7: 36 | D7: 1.481 | E7: 0.769 | F7: =D7/E7 -> 1.925877763 | G7: =D7*E7 -> 1.138889 | S7: 1
A8: 7 | B8: 74 | C8: blurry
A9: =1+A8 -> 8 | B9: 46 | D9: 1.27 | E9: 0.741 | F9: =D9/E9 -> 1.713900135 | G9: =D9*E9 -> 0.94107
A10: 9 | B10: 83 | D10: 1.175 | E10: 0.651 | F10: =D10/E10 -> 1.804915515 | G10: =D10*E10 -> 0.764925 | H10: 0.233
A11: 10 | B11: 25 | C11: blurry
A12: 11 | B12: 85 | C12: blurry
A13: 12 | B13: 6 | D13: 0.629 | E13: 0.6 | F13: =D13/E13 -> 1.048333333 | G13: =D13*E13 -> 0.3774 | S13: 1 | X13: central bump
A14: 13 | B14: 20 | D14: 1.899 | E14: 0.747 | F14: 2.542168675 | G14: =D14*E14 -> 1.418553 | S14: 1 | Y14: 1 | Z14: 0.664
A15: 14 | B15: 56 | D15: 0.999 | E15: 0.822 | F15: 1.215328467 | G15: =D15*E15 -> 0.821178 | H15: 0.261
A16: 15 | B16: 71 | D16: 1.577 | E16: 0.719 | F16: 2.193324061 | G16: =D16*E16 -> 1.133863 | L16: 1 | M16: 2
A17: 16 | B17: 93 | D17: 1.468 | E17: 0.705 | F17: 2.082269504 | G17: =D17*E17 -> 1.03494 | S17: 1
A18: 17 | B18: 82 | D18: 1.19 | E18: 0.667 | F18: 1.784107946 | G18: =D18*E18 -> 0.79373 | H18: 0.215
A19: 18 | B19: 43 | D19: 2.212 | E19: 0.721 | F19: 3.067961165 | G19: 1.594852 | S19: 1
A20: 19 | B20: 53 | C20: revised | D20: 1.672 | E20: 0.908 | F20: 1.841409692 | G20: 1.518176 | L20: 1 | M20: 2 | X20: Not dividing, distinct features on the cells
A21: 20 | B21: 93 | D21: 2.546 | E21: 0.958 | F21: 2.657620042 | G21: 2.439068 | H21: 0.214 | X21: speckled with mini divots | AB21: 0.177 | AC21: 0.177 | AD21: 0.042 | AE21: =SUM((AB21*AC21)/(D21*E21)*100) -> 1.284466034
A22: 21 | B22: 14 | D22: 1.78 | E22: 1.119 | F22: 1.590705987 | G22: 1.99182 | S22: 1 | X22: between rough & smooth
A23: 22 | B23: 30 | D23: 1.466 | E23: 0.741 | F23: 1.978407557 | G23: 1.086306 | S23: 1
A24: 23 | B24: 15 | D24: 1.035 | E24: 0.721 | F24: 1.435506241 | G24: 0.746235 | H24: 0.25 | N24: 1 | AF24: 0.66 | AG24: 0.232 | AH24: 0.016 | AI24: =SUM((AF24*AG24)/(D24*E24)*100) -> 20.51900541
A25: 24 | B25: 46 | D25: 1.527 | E25: 0.823 | F25: 1.855407047 | G25: 1.256721
A26: 25 | B26: 92 | D26: 2.748 | E26: 0.629 | F26: 4.368839428 | G26: 1.728492
A27: 26 | B27: 53 | D27: 1.875 | E27: 0.83 | F27: 2.259036145 | G27: 1.55625 | H27: 0.217 | S27: 1
A28: 27 | B28: 8 | D28: 2.43 | E28: 0.889 | F28: 2.733408324 | G28: 2.16027 | S28: 1
A29: 28 | B29: 8 | C29: blurry
A30: 29 | B30: 65 | D30: 1.64 | E30: 0.892 | F30: 1.838565022 | G30: =D30*E30 -> 1.46288 | N30: 1 | Y30: 1 | Z30: 0.792
A31: 30 | B31: 35 | D31: 0.909 | E31: 0.798 | F31: 1.139097744 | G31: =D31*E31 -> 0.725382 | H31: 0.214 | N31: 1 | AF31: 0.629 | AG31: 0.532 | AH31: 0.026 | AI31: =SUM((AF31*AG31)/(D31*E31)*100) -> 46.13127979
A32: 31 | B32: 46 | D32: 1.763 | E32: 0.738 | F32: 2.388888889 | G32: =D32*E32 -> 1.301094 | N32: 1 | X32: 2 divots
A33: 32 | B33: 6 | C33: blurry
A34: 33 | B34: 80 | D34: 1.234 | E34: 0.767 | F34: 1.608865711 | G34: =D34*E34 -> 0.946478 | N34: 1 | X34: 2 divots
A35: 34 | B35: 91 | D35: 1.358 | E35: 0.392 | F35: 3.464285714 | G35: =D35*E35 -> 0.532336 | H35: 0.208 | X35: random pock-marks
A36: 35 | B36: 82 | D36: 1.714 | E36: 0.558 | F36: 3.071684588 | G36: =D36*E36 -> 0.956412 | S36: 1
A37: 36 | B37: 6 | C37: blurry
A38: 37 | B38: 80 | D38: 0.998 | E38: 0.822 | F38: 1.214111922 | G38: =D38*E38 -> 0.820356
A39: 38 | B39: 70 | C39: revised | D39: 1.933 | E39: 0.639 | F39: 3.025039124 | G39: 1.235187 | H39: 0.234 | N39: 1 | X39: Not dividing, no central pinching | AF39: 1.288 | AG39: 0.255 | AH39: 0.02 | AI39: =SUM((AF39*AG39)/(D39*E39)*100) -> 26.59030576
A40: 39 | B40: 7 | D40: 1.189 | E40: 0.89 | F40: 1.335955056 | G40: 1.05821 | S40: 1
A41: 40 | B41: 44 | D41: 1.062 | E41: 0.804 | F41: 1.320895522 | G41: 0.853848 | L41: 1 | M41: 2
A42: 41 | B42: 90 | D42: 0.939 | E42: 0.705 | F42: 1.331914894 | G42: 0.661995 | H42: 0.238 | S42: 1
A43: 42 | B43: 46 | D43: 1.008 | E43: 0.828 | F43: 1.217391304 | G43: 0.834624 | N43: 1
A44: 43 | B44: 82 | D44: 1.296 | E44: 0.647 | F44: 2.00309119 | G44: 0.838512 | N44: 1
A45: 44 | B45: 8 | C45: blurry
A46: 45 | B46: 15 | D46: 0.714 | E46: 0.672 | F46: 1.0625 | G46: =D46*E46 -> 0.479808 | H46: 0.3 | N46: 1 | AF46: 0.415 | AG46: 0.216 | AH46: 0.014 | AI46: =SUM((AF46*AG46)/(D46*E46)*100) -> 18.68247299
A47: 46 | B47: 81 | D47: 1.306 | E47: 0.874 | F47: 1.494279176 | G47: =D47*E47 -> 1.141444 | N47: 1
A48: 47 | B48: 5 | C48: blurry
A49: 48 | B49: 92 | D49: 1.259 | E49: 0.689 | F49: 1.827285922 | G49: =D49*E49 -> 0.867451 | N49: 1
A50: 49 | B50: 25 | D50: 0.835 | E50: 0.603 | F50: 1.384742952 | G50: 0.503505 | H50: 0.243 | N50: 1 | AF50: 0.589 | AG50: 0.181 | AH50: 0.01 | AI50: =SUM((AF50*AG50)/(D50*E50)*100) -> 21.17337464
A51: 50 | B51: 56 | D51: 1.494 | E51: 0.777 | F51: 1.922779923 | G51: 1.160838 | S51: 1
A52: 51 | B52: 56 | D52: 0.981 | E52: 0.933 | F52: 1.051446945 | G52: 0.915273 | X52: large, assymmetrical indentation
A53: 52 | B53: 15 | D53: 0.887 | E53: 0.582 | F53: 1.524054983 | G53: 0.516234 | H53: 0.29 | S53: 1
A54: 53 | B54: 73 | D54: 0.835 | E54: 0.775 | F54: 1.077419355 | G54: 0.647125 | S54: 1
A55: 54 | B55: 30 | D55: 1.174 | E55: 0.6 | F55: 1.956666667 | G55: 0.7044 | N55: 1
A56: 55 | B56: 44 | D56: 1.11 | E56: 0.758 | F56: 1.464379947 | G56: 0.84138 | H56: 0.214 | N56: 1 | AB56: 0.417 | AC56: 0.34 | AD56: 0.015 | AE56: =SUM((AB56*AC56)/(D56*E56)*100) -> 16.85088783 | AF56: 0.833 | AG56: 0.476 | AH56: 0.024 | AI56: =SUM((AF56*AG56)/(D56*E56)*100) -> 47.12591219
A57: 56 | B57: 26 | C57: blurry | D57: 0.964 | E57: 0.619 | F57: 1.557350565 | G57: 0.596716 | S57: 1
A58: 57 | B58: 73 | D58: 4.529 | E58: 0.919 | F58: 4.928182807 | G58: 4.162151 | T58: 1
A59: 58 | B59: 35 | D59: 1.035 | E59: 0.692 | F59: 1.49566474 | G59: 0.71622 | H59: 0.239 | N59: 1
A60: 59 | B60: 7 | D60: 1.879 | E60: 0.706 | F60: 2.661473088 | G60: 1.326574
A61: 60 | B61: 74 | D61: 1.598 | E61: 0.609 | F61: 2.623973727 | G61: 0.973182 | S61: 1 | Y61: 1 | Z61: 0.612
C64: Count | D64: =COUNT(D2:D61) -> 50 | E64: =COUNT(E2:E61) -> 50 | F64: =COUNT(F2:F61) -> 50 | G64: =COUNT(G2:G61) -> 50 | H64: =COUNT(H2:H61) -> 16 | I64: Instances | K64: =COUNT(K2:K63) -> 0 | L64: 3 | M64: 3 | N64: 16 | S64: 17 | T64: 1 | X64: 0 | Y64: 3 | Z64: =COUNT(Z2:Z63) -> 3 | AB64: =COUNT(AB2:AB61) -> 3 | AC64: 3 | AD64: 3 | AE64: 3 | AF64: 6 | AG64: 6 | AH64: 6 | AI64: 6 | AJ64: 0 | AK64: 0 | AL64: 0 | AM64: 0
C65: Average | D65: =AVERAGE(D2:D61) -> 1.49126 | E65: =AVERAGE(E2:E61) -> 0.74478 | F65: =AVERAGE(F2:F61) -> 2.024535481 | G65: =AVERAGE(G2:G61) -> 1.13476086 | H65: =AVERAGE(H2:H61) -> 0.2374375 | I65: Fraction | K65: =K64/$D$64 -> 0 | L65: 0.06 | M65: 0.06 | N65: 0.32 | S65: 0.34 | T65: 0.02 | X65: 0 | Y65: 0.06 | Z65: =AVERAGE(Z2:Z63) -> 0.6893333333 | AB65: =AVERAGE(AB2:AB61) -> 0.2966666667 | AC65: 0.2953333333 | AD65: 0.03366666667 | AE65: 7.681729725 | AF65: 0.7356666667 | AG65: 0.3153333333 | AH65: 0.01833333333 | AI65: 30.03705846
C66: Standard Dev. | D66: =STDEV(D2:D60) -> 0.6655509884 | E66: =STDEV(E2:E60) -> 0.1267938059 | F66: =STDEV(F2:F60) -> 0.8335080872 | G66: =STDEV(G2:G60) -> 0.6393545466 | H66: =STDEV(H2:H60) -> 0.02703323572 | I66: Number/Cell | M66: =SUM(M3:M63)/L$64 -> 2 | Z66: =STDEV(Z2:Z63) -> 0.09263548636 | AB66: =STDEV(AB2:AB60) -> 0.1200013889 | AC66: 0.1035004026 | AD66: 0.01619670748 | AE66: 8.144993605 | AF66: 0.301989183 | AG66: 0.1491679143 | AH66: 0.006121002097 | AI66: 13.12263558

Sheet H12_08181504
